Workbook

Sheet Cover
C9: AusNet Services
C10: ="Business Case Evaluation "&IF(Project_Inputs!H10="","Template",Project_Inputs!H10&" ")&Err_Chks_Msg -> Business Case Evaluation Flexible Trading Arrangements
C11: Go to Table of Contents
C19: Primary Developer: Rebecca Symonds
C21: Cover Notes:

Sheet GA (hidden)
C9: General Assumptions
C10: Section 1.
C11: =Model_Name -> Business Case Evaluation Flexible Trading Arrangements
C12: Go to Table of Contents
C13: ç | D13: è
C17: Section Cover Notes:
C18: [Insert section cover note 1]
C19: [Insert section cover note 2]
C20: [Insert section cover note 3]

Sheet Glossary
A1: ± | B1: Glossary
B2: =Model_Name -> Business Case Evaluation Flexible Trading Arrangements
F6: Enter Search term and press enter--> | H6: =IF(G6="","",IF(COUNTIF($J$9:$J$39,TRUE)=0,"Nothing Found, change search Term",COUNTIF($J$9:$J$39,TRUE)&" result(s) found")) -> 
F8: Term | G8: Category | H8: Definition | I8: Search1 | J8: Search2 | K8: Search3
F9: BAU | G9: BAU | H9: Business as Usual - refers to the current state and is the projected forecast if the Business Case is not implemented. | I9: =IF($G$6<>"",ISNUMBER(SEARCH($G$6,F9))) -> FALSE | J9: =IF($G$6<>"",OR(I9,ISNUMBER(SEARCH($G$6,G9)))) -> FALSE | K9: =OR(I9,J9) -> FALSE
F10: Regulated Revenue | G10: Building Block Revenue | H10: Regulated projects earns a return based on the Building Block Revenue model. The purpose of the Building Block Revenue model is to ensure revenue is equal to the sum of underlying components or building blocks consisting of the return on capital, the return of capital (also known as depreciation), the operating expenditure, taxes and incentive mechanisms | I10: FALSE | J10: FALSE | K10: FALSE
F11: Regulatory Return on capital (capex) | G11: Building Block Revenue | H11: Ausnet Services earns a "Return on capital" to cover the cost of funding for capex. The cost of funding capex is determined by the regulated WACC (Revenue WACC), whereas the real cost of funding capex is Ausnet cost of capital (Corporate WACC). Because the Revenue WACC is always greater than the Corporate WACC, increased capex expenditure increases NPV of a project | I11: FALSE | J11: FALSE | K11: FALSE
F12: Regulatory Depreciation - Return of capital | G12: Building Block Revenue | H12: Ausnet Services is compensated for the drop in value of an asset (the depreciation of the asset) | I12: FALSE | J12: FALSE | K12: FALSE
F13: Regulatory Opex allowance | G13: Building Block Revenue | H13: Opex in the building block revenue calculation is deemed a 'pass-through', hence opex does not impact the NPV calculation | I13: FALSE | J13: FALSE | K13: FALSE
F14: Regulatory Tax allowance | G14: Building Block Revenue | H14: The building block Revenue model includes an allowance for the tax that Ausnet is required to pay. The tax allowance is reduced by imputation credits received by shareholders | I14: FALSE | J14: FALSE | K14: FALSE
F15: Imputation Credits (gamma) | G15: Building Block Revenue | H15: Imputation Credits are a type of tax credit that allows Australian Companies to pass on tax paid at the company level to shareholders. The benefits are these franking credits can be used to reduce income tax paid on dividends or potentially be received as a tax refund. The benefit from these tax credits reduces the tax allowance in the Building Block revenue calculation | I15: FALSE | J15: FALSE | K15: FALSE
F16: Capitalised Finance Charges (CFC) | G16: Capex | H16: Capitalised Finance Charges (CFC) are the costs of funding an asset and is calculated during the period the asset is in WIP phase and then added to the asset value (capitalised). As per internal AusNet accounting policy, CFC's are only applied to an asset with WIP value greater than $100,000. The longer an asset is deemed to be in WIP, the greater the amount of CFC charges the capex will incur | I16: FALSE | J16: FALSE | K16: FALSE
F17: Management Reserve | G17: Capex | H17: Access to the Management Reserve fund (additional capex) is subject to approval of a Change Control Request (CCR) in SAP and prior to exceeding the Project Delivery Budget | I17: FALSE | J17: FALSE | K17: FALSE
F18: WIP/AUC | G18: Capex | H18: Work in Progress (WIP)/Assets under construction (AUC) is the sum of all costs put into the production process to manufacture products that are partially completed. WIP refers to expenditure on raw materials, labour and overheads incurred during various stages of the construction process, before an asset is created. | I18: FALSE | J18: FALSE | K18: FALSE
F19: Written off asset | G19: Capex | H19: In the event that an asset is taken out of service prior to the end of it's useful life the asset must be written off. A write off is a reduction in the recorded amount of an asset. A write off occurs upon the realisation that an asset no longer can be converted into cash, can provide no further use to a business, or has no market value. | I19: FALSE | J19: FALSE | K19: FALSE
F20: Capitalised Overheads | G20: Capex | H20: Capitalised overheads is the proportion of corporate overhead costs that are allocated to a profit centre each month (defined by the ABC survey). The capitalised overheads applied to each project in this model is an estimate only based on historical ABC survey results and may not be the final amount of overhead that is capitalised as the project progresses. | I20: FALSE | J20: FALSE | K20: FALSE
F21: Least Cost analysis | G21: Least Cost analysis | I21: FALSE | J21: FALSE | K21: FALSE
F22: F-Factor benefits / (penalty) | G22: Network Performance Incentive Schemes | H22: The intention of F-Factor scheme is to better incentivise DNSPs to reduce Ignition Risk Units (IRUs), and better target higher risk ignitions (in terms of geography and time). The F-Factor reward/penalty mechanism is based on a July-June year performance and is measured in IRUs. | I22: FALSE | J22: FALSE | K22: FALSE
F23: Lifecycle opex | I23: FALSE | J23: FALSE | K23: =OR(I23,J23) -> FALSE
F24: GSL Payments | G24: Network Performance Incentive Schemes | H24: Under the GSL payments scheme, electricity and gas distributors make payments directly to those customers (via retailers) who receive a level of service that is worse than a specific threshold or level. Thresholds are set such that approximately the worst-served 1% of customers will receive payments under the scheme, across measures including the duration and frequency of unplanned outages, being on time for appointments and fulfilling requested connections by the agreed date. | I24: FALSE | J24: FALSE | K24: FALSE
F25: Market Impact Component (MIC) | G25: Network Performance Incentive Schemes | H25: The MIC scheme provides a penalty or reward of up to 2% of Maximum Allowed Revenue (MAR) for reducing the number of dispatch intervals where a network outage has an impact of more than $10 per MWh to the spot wholesale price of electricity. | I25: FALSE | J25: FALSE | K25: FALSE
F26: Service Component | G26: Network Performance Incentive Schemes | H26: The Service Component is embedded as an adjustment to revenue (plus or minus) based on network performance in three broad key performance indicators - Average Circuit Outage Rate, Loss of Supply Event Frequency and Average Outage Duration. | I26: FALSE | J26: FALSE | K26: FALSE
F27: S-Factor benefits / (penalty) | G27: Network Performance Incentive Schemes | H27: The S-factor encourages NSPs to maintain and improve service performance. Incentive payments (or penalties) are determined based on actual performance compared to targets based on average performance over the past five years (e.g. targets for the 2016-20 period are based on performance from CY2010-14). S-factor performance in a given year is reflected in the revenue recovered from customers with a two-year lag. There are three different reliability parameters under the STPIS, each with different annual targets depending on feeder location (Urban, Rural – Short and Rural – Long). The parameters are: 1. Unplanned minutes “off-supply” per year (USAIDI) 2. Number of unplanned outages (>60 seconds) per year (USAIFI) 3. Number of momentary outages (<60 seconds) per year (MAIFI) Network wide there is also a target for call centre performance (% of calls answered within 30 seconds). USAIDI and USAIFI have a greater impact on the S-Factor price adjustment compared to MAIFI and call centre performance. | I27: FALSE | J27: FALSE | K27: FALSE
F28: Nominal $ | G28: Nominal $ | H28: When numbers are entered in "Nominal terms" a inflation (CPI) rate has been implied to the forecast | I28: FALSE | J28: FALSE | K28: FALSE
F29: Project/Implementation Cost | G29: Opex | H29: Project Implementation costs refers to opex costs of changing from BAU to the project, such as initial training to users of new systems, or redundancies to be paid as a result of reduction in headcount | I29: FALSE | J29: FALSE | K29: =OR(I29,J29) -> FALSE
F30: Real $ | G30: Real $ | H30: When numbers are entered in "Real terms" it means that no adjustment has been made for inflation | I30: FALSE | J30: FALSE | K30: FALSE
F31: Sarcoding | G31: Sarcoding | H31: Sarcoding is the process of transferring an asset from construction phase (WIP) to production phase (in service) | I31: FALSE | J31: FALSE | K31: FALSE
F32: Community benefits | G32: Valuation | I32: FALSE | J32: FALSE | K32: FALSE
F33: Economic vs. Financial analysis | G33: Valuation | H33: The basic difference between financial and economic analysis is that the financial analysis compares benefits and costs to the company, while the economic analysis compares the benefits and costs to the whole economy. Economic analysis attempts to value such externalities in order to reflect the true cost and value to the society. | I33: FALSE | J33: FALSE | K33: FALSE
F34: IRR | G34: Valuation | H34: Internal Rate of Return (IRR) is a metric used in capital budgeting to estimate the profitability of potential investments. Internal rate of return is a discount rate that makes the net present value (NPV) of all cash flows from a particular project equal to zero. | I34: FALSE | J34: FALSE | K34: FALSE
F35: NPV | G35: Valuation | H35: Net Present Value (NPV) is the difference between the present value of cash inflows (revenue) and the present value of cash outflows (opex, capex, interest and tax) over a period of time. NPV is used in capital budgeting to analyse the profitability of a projected investment or project. | I35: FALSE | J35: FALSE | K35: FALSE
F36: Payback period | G36: Valuation | H36: The payback period is the number of years it takes to payback the initial investment of a capital project from the cash flows that the project produce (in PV terms) | I36: FALSE | J36: FALSE | K36: FALSE
F37: PV | G37: Valuation | H37: Present value (PV) is the current worth of a future sum of money or stream of cash flows given a specified rate of return. Future cash flows are discounted at the discount rate (WACC), and the higher the discount rate, the lower the present value of the future cash flows. | I37: FALSE | J37: FALSE | K37: FALSE
F38: Valuation Period | G38: Valuation | H38: Valuation period defines the time horizon for the investment analysis. As a rule of thumb this should be the asset life of capex, but in instances where there is no capex a 5 year period should give a good indication regarding the sustainability of the Business Case | I38: FALSE | J38: FALSE | K38: FALSE
F39: WACC | G39: WACC | H39: Weighted average cost of capital (WACC) is a calculation of a firm's cost of capital (either funded by debt or shareholder equity) in which each category of capital is the cost to the business of funding an investment. The WACC rate should for the hurdle rate for return on investment | I39: FALSE | J39: FALSE | K39: FALSE
E57: =IF(F66=0,"",ROWS(F$40:F66)) -> 
E58: =IF(F67=0,"",ROWS(F$40:F67)) -> 

Sheet Project_Inputs
B1: Project Assumptions
B2: =Model_Name -> Business Case Evaluation Flexible Trading Arrangements
B6: Step 1: Enter Project Details
D8: Model Version/last update | I8: ="Model v. "&Corporate_Inputs!$I$42 -> Model v. 9.0 | J8: =Corporate_Inputs!H42 -> 2025-02-25
D9: Project Number | H9: HX-0015702
D10: Project Name | H10: Flexible Trading Arrangements
D11: Version Control Comments | H11: 0.1
C13: Primary Periodicity | H13: Annual
D14: Calendar Year End (month number) | H14: 12
D15: First Calendar Year (Ends in December in the year specified) | H15: 2025
D16: Last Calendar Year of analysis (optional) | H16: 2031 | K16: <-- entering a value here has no impact on analysis, it will just grey out non relevant input cells
D17: Maximum number of input years (DO NOT CHANGE) | H17: 50 | J17: =IF(H16=0,TS_Term,H16-TS_First_Fin_Yr+1) -> 7
D18: Model Start Date | H18: =EDATE(DATE(TS_First_Fin_Yr,DD_TS_Fin_Yr_End_Mth,1),-TS_Mths_In_Yr+1) -> 2025-01-01
D19: Model End Date | H19: =EDATE(TS_Start_Date,TS_Term*TS_Mths_In_Yr)-1 -> 2074-12-31
D20: Denomination (inputs must be entered in this denomination) | H20: $ | I20: 1 | K20: <-- ensure this is correct (used for CFC Calculation)
D21: Denomination Conversion Factor | H21: =INDEX(LU_TS_Denom_Conv,DD_TS_Denom) -> 1
D23: Corporate CPI | H23: =Corporate_Inputs!H44 -> 0.025
D24: Corporate Post-Tax WACC | H24: =Corporate_Inputs!I63 -> 0.0389176
D25: Corporate Pre-Tax WACC | H25: =Corporate_Inputs!K63 -> 0.05559657143
B27: Step 2: Read Model User Notes:
D29: 1 | F29: User inputs are required on Green tabs for BC, Salmon Pink tabs for PCR1, Orange tabs for PCR2
D30: 2 | F30: Only populate Blue cells on sheets with white background
D31: 3 | F31: Outputs are on Dark Blue tabs are always shown in the same $ denomination as inputs are entered (specified above)
D32: 4 | F32: Please use the Yellow Glossary tab as a reference guide to terms and definitions
D33: 5 | F33: Black tabs (usualy hidden) are used for calculation only and does not require any user input
D34: 6 | F34: Error checks are highlighted with Red text - these must be corrected prior to submission. Warnings are highlighted in Orange text.
D35: 7 | E35: @ | F35: =HYPERLINK("mailto:cmacommunications@ausnetservices.com.au"& "?subject=Business Case Evaluation Model enquiry","For any questions regarding the model, click here to contact CMA for assistance") -> For any questions regarding the model, click here to contact CMA for assistance
D36: 8 | F36: =HYPERLINK("https://forms.office.com/Pages/ResponsePage.aspx?id=HOSUo43PjkWsG92uGqFWKZywNITpk2pHsq3whwyol3tUN0haN0RYV0U2OVFESjVNMEs2VjNLU0JVVSQlQCN0PWcu","Click here if you would like to provide feedback about the model by completing an online survey") -> Click here if you would like to provide feedback about the model by completing an online survey
B39: Step 3: Select Model Setup
D41: Model users can decide on the setup of the model (i.e. which input sections are shown or 'grouped and hidden' on the next three green tabs), depending on the dollar amount for approval and/or complexity of the Business Case.
D42: The selection made here is not final, and can always be changed if during the input process if required.
D43: When opening up a new model downloaded from SharePoint it is set up with all inputs visible (Default Setup), and if this is the option preferred there is no need to click either of the buttons below
G45: Click Here to change model setup to Simple Version which will only show inputs for Capex, Sarcoding, Opex, Unregulated revenue and Economic Costs and Benefits for all options. Hidden section are: Capex profile, Written Off/Sale of Assets and Network performance Incentive Benefits/Penalties
G48: Click here to reset model to Default Version, which will show input sections for Capex profile for CFC calculation, Written Off/Sale of Assets and Network performance Incentive Benefits/Penalties in addition to the ones in Simple Version
B52: Step 4: Enter Line Of Business - % Split
D54: Enter which Line of Business the project will be allocated to. The allocation determines which Regulatory Determination period the revenue relates to.
D56: Note: rates are as per SAP CY23 rates | H56: % | I56: Overhead rate | J56: CFC rate
D57: =Corporate_Inputs!D52 -> Transmission | G57: TRUE | H57: 0 | I57: =Corporate_Inputs!H52 -> 0.0502 | J57: =Corporate_Inputs!I52 -> 0.0456
D58: =Corporate_Inputs!D53 -> Electricity Distribution | G58: TRUE | H58: 1 | I58: =Corporate_Inputs!H53 -> 0.1034 | J58: =Corporate_Inputs!I53 -> 0.0466
D59: =Corporate_Inputs!D54 -> Gas Distribution | G59: TRUE | H59: 0 | I59: =Corporate_Inputs!H54 -> 0.0641 | J59: =Corporate_Inputs!I54 -> 0.0515
D60: =Corporate_Inputs!D55 -> GFN | H60: 0 | I60: =Corporate_Inputs!H55 -> 0 | J60: =Corporate_Inputs!I55 -> 0
D61: Line of Business Split | H61: =SUM(H57:H60) -> 1 | I61: =_xlfn.IFS(SUM($H$57:$H$59)>0,SUMPRODUCT($H$57:$H$60,I57:I60),H60=1,I60,TRUE,0) -> 0.1034 | J61: =_xlfn.IFS(SUM($H$57:$H$59)>0,SUMPRODUCT($H$57:$H$60,J57:J60),J60=1,J60,TRUE,0) -> 0.0466
D63: =D61&" Check" -> Line of Business Split Check | H63: =IF(OR(AND(SUM(Business_Case_Tables!L16:L18)=0,H61=0),H61=1),0,"Enter line of Business split above - must equal 100%") -> 0
D65: Unreg Check | H65: =IF(H60>0,1,0) -> 0
D66: WACC Reference date | H66: =Corporate_Inputs!H20 -> 2022-05-01 | I66: =IF(DATEDIF(H66,TODAY(),"m")>6,"< WARNING! WACC may be out of date, if using this model for a new business Case please download new version from SharePoint","") -> < WARNING! WACC may be out of date, if using this model for a new business Case please download new version from SharePoint
B68: Step 5: Enter Project Option Information
D70: List each option below in the Option Name field and explain in brief what each option includes in the Description field.
D71: Option Name | G71: Generic Name | H71: Description
D72: BAU | G72: =BAU_Input!G22 -> BAU | H72: Do Nothing
D73: Option 1 | G73: =Opt1_Input!G22 -> Option 1 | H73: Compliant project only regarding the FTA - Ner changes
D74: Option 2 | G74: =Opt2_Input!G22 -> Option 2
D75: PCR1 - Baseline | G75: PCR1
D76: PCR1 Option 1 | G76: PCR1 Opt 1
D77: PCR1 Option 2 | G77: PCR1 Opt 2
D78: PCR2 - Baseline | G78: PCR2 | H78: *NOT IN USE IN THIS VERSION*
D79: PCR2 Option 1 | G79: PCR2 Opt 1 | H79: *NOT IN USE IN THIS VERSION*
D80: PCR2 Option 2 | G80: PCR2 Opt 2 | H80: *NOT IN USE IN THIS VERSION*
B83: Step 6: For PCRs only - Enter your existing baseline information
D85: Original approved (Business Case) CAPEX Delivery Budget | H85: 0
D86: Original approved (Business Case) Management Reserve | H86: 0
D87: Original approved (Business Case) Project OPEX Budget | H87: 0
D88: Original approved (Business Case) Asset Writedown Value | H88: 0
D90: Current approved CAPEX Delivery Budget | H90: 0
D91: Current approved Management Reserve | H91: 0
D92: Current approved Project OPEX Budget | H92: 0
D93: Current approved Asset Writedown Value | H93: 0

Sheet Option_Inputs-> (hidden)
C9: Option Inputs
C10: Section 2.
C11: =Model_Name -> Business Case Evaluation Flexible Trading Arrangements
C12: Go to Table of Contents
C13: ç | D13: è
C17: Section Cover Notes:
C18: [Insert section cover note 1]
C19: [Insert section cover note 2]
C20: [Insert section cover note 3]

Sheet BAU_Input
B1: =G23&" - Cost & Benefit Inputs" -> BAU - Cost & Benefit Inputs
B2: =Model_Name -> Business Case Evaluation Flexible Trading Arrangements
B5: ="Calendar Year Ending "&INDEX(LU_TS_Mth_Names,DD_TS_Fin_Yr_End_Mth) -> Calendar Year Ending December | J5: =J10 -> 2025 | K5: =K10 -> 2026 | L5: 2027 | M5: 2028 | N5: 2029 | O5: 2030 | P5: 2031 | Q5: 2032 | R5: 2033 | S5: 2034 | T5: 2035 | U5: 2036 | V5: 2037 | W5: 2038 | X5: 2039 | Y5: 2040 | Z5: 2041 | AA5: 2042 | AB5: 2043 | AC5: 2044 | AD5: 2045 | AE5: 2046 | AF5: 2047 | AG5: 2048 | AH5: 2049 | AI5: 2050 | AJ5: 2051 | AK5: 2052 | AL5: 2053 | AM5: 2054 | AN5: 2055 | AO5: 2056 | AP5: 2057 | AQ5: 2058 | AR5: 2059 | AS5: 2060 | AT5: 2061 | AU5: 2062 | AV5: 2063 | AW5: 2064 | AX5: 2065 | AY5: 2066 | AZ5: 2067 | BA5: 2068 | BB5: 2069 | BC5: 2070 | BD5: 2071 | BE5: 2072 | BF5: 2073 | BG5: 2074 | BI5: Total (Nominal)
B6: Period Start Date | J6: =EDATE(TS_Start_Date,(J8-1)*TS_Mths_In_Yr) -> 2025-01-01 | K6: 2026-01-01 | L6: 2027-01-01 | M6: 2028-01-01 | N6: 2029-01-01 | O6: 2030-01-01 | P6: 2031-01-01 | Q6: 2032-01-01 | R6: 2033-01-01 | S6: 2034-01-01 | T6: 2035-01-01 | U6: 2036-01-01 | V6: 2037-01-01 | W6: 2038-01-01 | X6: 2039-01-01 | Y6: 2040-01-01 | Z6: 2041-01-01 | AA6: 2042-01-01 | AB6: 2043-01-01 | AC6: 2044-01-01 | AD6: 2045-01-01 | AE6: 2046-01-01 | AF6: 2047-01-01 | AG6: 2048-01-01 | AH6: 2049-01-01 | AI6: 2050-01-01 | AJ6: 2051-01-01 | AK6: 2052-01-01 | AL6: 2053-01-01 | AM6: 2054-01-01 | AN6: 2055-01-01 | AO6: 2056-01-01 | AP6: =EDATE(TS_Start_Date,(AP8-1)*TS_Mths_In_Yr) -> 2057-01-01 | AQ6: 2058-01-01 | AR6: 2059-01-01 | AS6: 2060-01-01 | AT6: 2061-01-01 | AU6: 2062-01-01 | AV6: 2063-01-01 | AW6: 2064-01-01 | AX6: 2065-01-01 | AY6: 2066-01-01 | AZ6: 2067-01-01 | BA6: 2068-01-01 | BB6: 2069-01-01 | BC6: 2070-01-01 | BD6: 2071-01-01 | BE6: 2072-01-01 | BF6: 2073-01-01 | BG6: 2074-01-01
B7: Period End Date | J7: =EDATE(J6,TS_Mths_In_Yr)-1 -> 2025-12-31 | K7: 2026-12-31 | L7: 2027-12-31 | M7: 2028-12-31 | N7: 2029-12-31 | O7: 2030-12-31 | P7: 2031-12-31 | Q7: 2032-12-31 | R7: 2033-12-31 | S7: 2034-12-31 | T7: 2035-12-31 | U7: 2036-12-31 | V7: 2037-12-31 | W7: 2038-12-31 | X7: 2039-12-31 | Y7: 2040-12-31 | Z7: 2041-12-31 | AA7: 2042-12-31 | AB7: 2043-12-31 | AC7: 2044-12-31 | AD7: 2045-12-31 | AE7: 2046-12-31 | AF7: 2047-12-31 | AG7: 2048-12-31 | AH7: 2049-12-31 | AI7: 2050-12-31 | AJ7: 2051-12-31 | AK7: 2052-12-31 | AL7: 2053-12-31 | AM7: 2054-12-31 | AN7: 2055-12-31 | AO7: 2056-12-31 | AP7: =EDATE(AP6,TS_Mths_In_Yr)-1 -> 2057-12-31 | AQ7: 2058-12-31 | AR7: 2059-12-31 | AS7: 2060-12-31 | AT7: 2061-12-31 | AU7: 2062-12-31 | AV7: 2063-12-31 | AW7: 2064-12-31 | AX7: 2065-12-31 | AY7: 2066-12-31 | AZ7: 2067-12-31 | BA7: 2068-12-31 | BB7: 2069-12-31 | BC7: 2070-12-31 | BD7: 2071-12-31 | BE7: 2072-12-31 | BF7: 2073-12-31 | BG7: 2074-12-31
B8: ="Project Year" -> Project Year | J8: =COLUMNS($J8:J8) -> 1 | K8: =COLUMNS($J8:K8) -> 2 | L8: =COLUMNS($J8:L8) -> 3 | M8: =COLUMNS($J8:M8) -> 4 | N8: =COLUMNS($J8:N8) -> 5 | O8: =COLUMNS($J8:O8) -> 6 | P8: =COLUMNS($J8:P8) -> 7 | Q8: =COLUMNS($J8:Q8) -> 8 | R8: =COLUMNS($J8:R8) -> 9 | S8: =COLUMNS($J8:S8) -> 10 | T8: =COLUMNS($J8:T8) -> 11 | U8: =COLUMNS($J8:U8) -> 12 | V8: =COLUMNS($J8:V8) -> 13 | W8: =COLUMNS($J8:W8) -> 14 | X8: =COLUMNS($J8:X8) -> 15 | Y8: =COLUMNS($J8:Y8) -> 16 | Z8: =COLUMNS($J8:Z8) -> 17 | AA8: =COLUMNS($J8:AA8) -> 18 | AB8: =COLUMNS($J8:AB8) -> 19 | AC8: =COLUMNS($J8:AC8) -> 20 | AD8: =COLUMNS($J8:AD8) -> 21 | AE8: =COLUMNS($J8:AE8) -> 22 | AF8: =COLUMNS($J8:AF8) -> 23 | AG8: =COLUMNS($J8:AG8) -> 24 | AH8: =COLUMNS($J8:AH8) -> 25 | AI8: =COLUMNS($J8:AI8) -> 26 | AJ8: =COLUMNS($J8:AJ8) -> 27 | AK8: =COLUMNS($J8:AK8) -> 28 | AL8: =COLUMNS($J8:AL8) -> 29 | AM8: =COLUMNS($J8:AM8) -> 30 | AN8: =COLUMNS($J8:AN8) -> 31 | AO8: =COLUMNS($J8:AO8) -> 32 | AP8: =COLUMNS($J8:AP8) -> 33 | AQ8: =COLUMNS($J8:AQ8) -> 34 | AR8: =COLUMNS($J8:AR8) -> 35 | AS8: =COLUMNS($J8:AS8) -> 36 | AT8: =COLUMNS($J8:AT8) -> 37 | AU8: =COLUMNS($J8:AU8) -> 38 | AV8: =COLUMNS($J8:AV8) -> 39 | AW8: =COLUMNS($J8:AW8) -> 40 | AX8: =COLUMNS($J8:AX8) -> 41 | AY8: =COLUMNS($J8:AY8) -> 42 | AZ8: =COLUMNS($J8:AZ8) -> 43 | BA8: =COLUMNS($J8:BA8) -> 44 | BB8: =COLUMNS($J8:BB8) -> 45 | BC8: =COLUMNS($J8:BC8) -> 46 | BD8: =COLUMNS($J8:BD8) -> 47 | BE8: =COLUMNS($J8:BE8) -> 48 | BF8: =COLUMNS($J8:BF8) -> 49 | BG8: =COLUMNS($J8:BG8) -> 50
B9: Financial Year | J9: =YEAR(J7)+1 -> 2026 | K9: =YEAR(K7)+1 -> 2027 | L9: 2028 | M9: 2029 | N9: 2030 | O9: 2031 | P9: 2032 | Q9: 2033 | R9: 2034 | S9: 2035 | T9: 2036 | U9: 2037 | V9: 2038 | W9: 2039 | X9: 2040 | Y9: 2041 | Z9: 2042 | AA9: 2043 | AB9: 2044 | AC9: 2045 | AD9: 2046 | AE9: 2047 | AF9: 2048 | AG9: 2049 | AH9: 2050 | AI9: 2051 | AJ9: 2052 | AK9: 2053 | AL9: 2054 | AM9: 2055 | AN9: 2056 | AO9: 2057 | AP9: 2058 | AQ9: 2059 | AR9: 2060 | AS9: 2061 | AT9: 2062 | AU9: 2063 | AV9: 2064 | AW9: 2065 | AX9: 2066 | AY9: 2067 | AZ9: 2068 | BA9: 2069 | BB9: 2070 | BC9: 2071 | BD9: 2072 | BE9: 2073 | BF9: 2074 | BG9: 2075
B10: Calendar Year | J10: =J9-1 -> 2025 | K10: 2026 | L10: 2027 | M10: 2028 | N10: 2029 | O10: 2030 | P10: 2031 | Q10: 2032 | R10: 2033 | S10: 2034 | T10: 2035 | U10: 2036 | V10: 2037 | W10: 2038 | X10: 2039 | Y10: 2040 | Z10: 2041 | AA10: 2042 | AB10: 2043 | AC10: 2044 | AD10: 2045 | AE10: 2046 | AF10: 2047 | AG10: 2048 | AH10: 2049 | AI10: 2050 | AJ10: 2051 | AK10: 2052 | AL10: 2053 | AM10: 2054 | AN10: 2055 | AO10: 2056 | AP10: =AP9-1 -> 2057 | AQ10: 2058 | AR10: 2059 | AS10: 2060 | AT10: 2061 | AU10: 2062 | AV10: 2063 | AW10: 2064 | AX10: 2065 | AY10: 2066 | AZ10: 2067 | BA10: 2068 | BB10: 2069 | BC10: 2070 | BD10: 2071 | BE10: 2072 | BF10: 2073 | BG10: 2074
B11: CPI index | J11: =(1+Project_Inputs!$H23)^(J$8-1) -> 1 | K11: =(1+Project_Inputs!$H23)^(K$8-1) -> 1.025 | L11: =(1+Project_Inputs!$H23)^(L$8-1) -> 1.050625 | M11: =(1+Project_Inputs!$H23)^(M$8-1) -> 1.076890625 | N11: =(1+Project_Inputs!$H23)^(N$8-1) -> 1.103812891 | O11: =(1+Project_Inputs!$H23)^(O$8-1) -> 1.131408213 | P11: =(1+Project_Inputs!$H23)^(P$8-1) -> 1.159693418 | Q11: =(1+Project_Inputs!$H23)^(Q$8-1) -> 1.188685754 | R11: =(1+Project_Inputs!$H23)^(R$8-1) -> 1.218402898 | S11: =(1+Project_Inputs!$H23)^(S$8-1) -> 1.24886297 | T11: =(1+Project_Inputs!$H23)^(T$8-1) -> 1.280084544 | U11: =(1+Project_Inputs!$H23)^(U$8-1) -> 1.312086658 | V11: =(1+Project_Inputs!$H23)^(V$8-1) -> 1.344888824 | W11: =(1+Project_Inputs!$H23)^(W$8-1) -> 1.378511045 | X11: =(1+Project_Inputs!$H23)^(X$8-1) -> 1.412973821 | Y11: =(1+Project_Inputs!$H23)^(Y$8-1) -> 1.448298166 | Z11: =(1+Project_Inputs!$H23)^(Z$8-1) -> 1.484505621 | AA11: =(1+Project_Inputs!$H23)^(AA$8-1) -> 1.521618261 | AB11: =(1+Project_Inputs!$H23)^(AB$8-1) -> 1.559658718 | AC11: =(1+Project_Inputs!$H23)^(AC$8-1) -> 1.598650186 | AD11: =(1+Project_Inputs!$H23)^(AD$8-1) -> 1.63861644 | AE11: =(1+Project_Inputs!$H23)^(AE$8-1) -> 1.679581851 | AF11: =(1+Project_Inputs!$H23)^(AF$8-1) -> 1.721571398 | AG11: =(1+Project_Inputs!$H23)^(AG$8-1) -> 1.764610683 | AH11: =(1+Project_Inputs!$H23)^(AH$8-1) -> 1.80872595 | AI11: =(1+Project_Inputs!$H23)^(AI$8-1) -> 1.853944098 | AJ11: =(1+Project_Inputs!$H23)^(AJ$8-1) -> 1.900292701 | AK11: =(1+Project_Inputs!$H23)^(AK$8-1) -> 1.947800018 | AL11: =(1+Project_Inputs!$H23)^(AL$8-1) -> 1.996495019 | AM11: =(1+Project_Inputs!$H23)^(AM$8-1) -> 2.046407394 | AN11: =(1+Project_Inputs!$H23)^(AN$8-1) -> 2.097567579 | AO11: =(1+Project_Inputs!$H23)^(AO$8-1) -> 2.150006769 | AP11: =(1+Project_Inputs!$H23)^(AP$8-1) -> 2.203756938 | AQ11: =(1+Project_Inputs!$H23)^(AQ$8-1) -> 2.258850861 | AR11: =(1+Project_Inputs!$H23)^(AR$8-1) -> 2.315322133 | AS11: =(1+Project_Inputs!$H23)^(AS$8-1) -> 2.373205186 | AT11: =(1+Project_Inputs!$H23)^(AT$8-1) -> 2.432535316 | AU11: =(1+Project_Inputs!$H23)^(AU$8-1) -> 2.493348699 | AV11: =(1+Project_Inputs!$H23)^(AV$8-1) -> 2.555682416 | AW11: =(1+Project_Inputs!$H23)^(AW$8-1) -> 2.619574476 | AX11: =(1+Project_Inputs!$H23)^(AX$8-1) -> 2.685063838 | AY11: =(1+Project_Inputs!$H23)^(AY$8-1) -> 2.752190434 | AZ11: =(1+Project_Inputs!$H23)^(AZ$8-1) -> 2.820995195 | BA11: =(1+Project_Inputs!$H23)^(BA$8-1) -> 2.891520075 | BB11: =(1+Project_Inputs!$H23)^(BB$8-1) -> 2.963808077 | BC11: =(1+Project_Inputs!$H23)^(BC$8-1) -> 3.037903279 | BD11: =(1+Project_Inputs!$H23)^(BD$8-1) -> 3.113850861 | BE11: =(1+Project_Inputs!$H23)^(BE$8-1) -> 3.191697132 | BF11: =(1+Project_Inputs!$H23)^(BF$8-1) -> 3.271489561 | BG11: =(1+Project_Inputs!$H23)^(BG$8-1) -> 3.3532768
B12: CPI Index (lagged) | J12: =IF(J8=1,1,I11) -> 1 | K12: 1 | L12: 1.025 | M12: 1.050625 | N12: 1.076890625 | O12: 1.103812891 | P12: 1.131408213 | Q12: 1.159693418 | R12: 1.188685754 | S12: 1.218402898 | T12: 1.24886297 | U12: 1.280084544 | V12: 1.312086658 | W12: 1.344888824 | X12: 1.378511045 | Y12: 1.412973821 | Z12: 1.448298166 | AA12: 1.484505621 | AB12: 1.521618261 | AC12: 1.559658718 | AD12: 1.598650186 | AE12: 1.63861644 | AF12: 1.679581851 | AG12: 1.721571398 | AH12: 1.764610683 | AI12: 1.80872595 | AJ12: 1.853944098 | AK12: 1.900292701 | AL12: 1.947800018 | AM12: 1.996495019 | AN12: 2.046407394 | AO12: 2.097567579 | AP12: =IF(AP8=1,1,AO11) -> 2.150006769 | AQ12: 2.203756938 | AR12: 2.258850861 | AS12: 2.315322133 | AT12: 2.373205186 | AU12: 2.432535316 | AV12: 2.493348699 | AW12: 2.555682416 | AX12: 2.619574476 | AY12: 2.685063838 | AZ12: 2.752190434 | BA12: 2.820995195 | BB12: 2.891520075 | BC12: 2.963808077 | BD12: 3.037903279 | BE12: 3.113850861 | BF12: 3.191697132 | BG12: 3.271489561
B13: Discount Index (post tax) | J13: =(1+Project_Inputs!$H24)^(J$8-1) -> 1 | K13: =(1+Project_Inputs!$H24)^(K$8-1) -> 1.0389176 | L13: =(1+Project_Inputs!$H24)^(L$8-1) -> 1.07934978 | M13: =(1+Project_Inputs!$H24)^(M$8-1) -> 1.121355483 | N13: =(1+Project_Inputs!$H24)^(N$8-1) -> 1.164995947 | O13: =(1+Project_Inputs!$H24)^(O$8-1) -> 1.210334793 | P13: =(1+Project_Inputs!$H24)^(P$8-1) -> 1.257438118 | Q13: =(1+Project_Inputs!$H24)^(Q$8-1) -> 1.306374592 | R13: =(1+Project_Inputs!$H24)^(R$8-1) -> 1.357215556 | S13: =(1+Project_Inputs!$H24)^(S$8-1) -> 1.410035128 | T13: =(1+Project_Inputs!$H24)^(T$8-1) -> 1.464910311 | U13: =(1+Project_Inputs!$H24)^(U$8-1) -> 1.521921105 | V13: =(1+Project_Inputs!$H24)^(V$8-1) -> 1.581150621 | W13: =(1+Project_Inputs!$H24)^(W$8-1) -> 1.642685209 | X13: =(1+Project_Inputs!$H24)^(X$8-1) -> 1.706614575 | Y13: =(1+Project_Inputs!$H24)^(Y$8-1) -> 1.773031918 | Z13: =(1+Project_Inputs!$H24)^(Z$8-1) -> 1.842034065 | AA13: =(1+Project_Inputs!$H24)^(AA$8-1) -> 1.91372161 | AB13: =(1+Project_Inputs!$H24)^(AB$8-1) -> 1.988199062 | AC13: =(1+Project_Inputs!$H24)^(AC$8-1) -> 2.065574998 | AD13: =(1+Project_Inputs!$H24)^(AD$8-1) -> 2.145962219 | AE13: =(1+Project_Inputs!$H24)^(AE$8-1) -> 2.229477919 | AF13: =(1+Project_Inputs!$H24)^(AF$8-1) -> 2.316243849 | AG13: =(1+Project_Inputs!$H24)^(AG$8-1) -> 2.4063865 | AH13: =(1+Project_Inputs!$H24)^(AH$8-1) -> 2.500037287 | AI13: =(1+Project_Inputs!$H24)^(AI$8-1) -> 2.597332738 | AJ13: =(1+Project_Inputs!$H24)^(AJ$8-1) -> 2.698414695 | AK13: =(1+Project_Inputs!$H24)^(AK$8-1) -> 2.803430519 | AL13: =(1+Project_Inputs!$H24)^(AL$8-1) -> 2.912533306 | AM13: =(1+Project_Inputs!$H24)^(AM$8-1) -> 3.025882113 | AN13: =(1+Project_Inputs!$H24)^(AN$8-1) -> 3.143642182 | AO13: =(1+Project_Inputs!$H24)^(AO$8-1) -> 3.265985191 | AP13: =(1+Project_Inputs!$H24)^(AP$8-1) -> 3.393089497 | AQ13: =(1+Project_Inputs!$H24)^(AQ$8-1) -> 3.525140396 | AR13: =(1+Project_Inputs!$H24)^(AR$8-1) -> 3.6623304 | AS13: =(1+Project_Inputs!$H24)^(AS$8-1) -> 3.80485951 | AT13: =(1+Project_Inputs!$H24)^(AT$8-1) -> 3.95293551 | AU13: =(1+Project_Inputs!$H24)^(AU$8-1) -> 4.106774273 | AV13: =(1+Project_Inputs!$H24)^(AV$8-1) -> 4.266600072 | AW13: =(1+Project_Inputs!$H24)^(AW$8-1) -> 4.432645907 | AX13: =(1+Project_Inputs!$H24)^(AX$8-1) -> 4.605153847 | AY13: =(1+Project_Inputs!$H24)^(AY$8-1) -> 4.784375382 | AZ13: =(1+Project_Inputs!$H24)^(AZ$8-1) -> 4.97057179 | BA13: =(1+Project_Inputs!$H24)^(BA$8-1) -> 5.164014514 | BB13: =(1+Project_Inputs!$H24)^(BB$8-1) -> 5.364985566 | BC13: =(1+Project_Inputs!$H24)^(BC$8-1) -> 5.573777928 | BD13: =(1+Project_Inputs!$H24)^(BD$8-1) -> 5.790695988 | BE13: =(1+Project_Inputs!$H24)^(BE$8-1) -> 6.016055978 | BF13: =(1+Project_Inputs!$H24)^(BF$8-1) -> 6.250186438 | BG13: =(1+Project_Inputs!$H24)^(BG$8-1) -> 6.493428694
B14: Discount Index (pre tax) | J14: =(1+Project_Inputs!$H25)^(J$8-1) -> 1 | K14: =(1+Project_Inputs!$H25)^(K$8-1) -> 1.055596571 | L14: =(1+Project_Inputs!$H25)^(L$8-1) -> 1.114284122 | M14: =(1+Project_Inputs!$H25)^(M$8-1) -> 1.176234498 | N14: =(1+Project_Inputs!$H25)^(N$8-1) -> 1.241629104 | O14: =(1+Project_Inputs!$H25)^(O$8-1) -> 1.310659425 | P14: =(1+Project_Inputs!$H25)^(P$8-1) -> 1.383527595 | Q14: =(1+Project_Inputs!$H25)^(Q$8-1) -> 1.460446986 | R14: =(1+Project_Inputs!$H25)^(R$8-1) -> 1.541642831 | S14: =(1+Project_Inputs!$H25)^(S$8-1) -> 1.627352887 | T14: =(1+Project_Inputs!$H25)^(T$8-1) -> 1.717828128 | U14: =(1+Project_Inputs!$H25)^(U$8-1) -> 1.813333482 | V14: =(1+Project_Inputs!$H25)^(V$8-1) -> 1.914148607 | W14: =(1+Project_Inputs!$H25)^(W$8-1) -> 2.020568706 | X14: =(1+Project_Inputs!$H25)^(X$8-1) -> 2.132905399 | Y14: =(1+Project_Inputs!$H25)^(Y$8-1) -> 2.251487626 | Z14: =(1+Project_Inputs!$H25)^(Z$8-1) -> 2.376662619 | AA14: =(1+Project_Inputs!$H25)^(AA$8-1) -> 2.508796912 | AB14: =(1+Project_Inputs!$H25)^(AB$8-1) -> 2.648277418 | AC14: =(1+Project_Inputs!$H25)^(AC$8-1) -> 2.795512563 | AD14: =(1+Project_Inputs!$H25)^(AD$8-1) -> 2.950933477 | AE14: =(1+Project_Inputs!$H25)^(AE$8-1) -> 3.114995261 | AF14: =(1+Project_Inputs!$H25)^(AF$8-1) -> 3.288178317 | AG14: =(1+Project_Inputs!$H25)^(AG$8-1) -> 3.470989758 | AH14: =(1+Project_Inputs!$H25)^(AH$8-1) -> 3.663964888 | AI14: =(1+Project_Inputs!$H25)^(AI$8-1) -> 3.867668774 | AJ14: =(1+Project_Inputs!$H25)^(AJ$8-1) -> 4.082697897 | AK14: =(1+Project_Inputs!$H25)^(AK$8-1) -> 4.309681902 | AL14: =(1+Project_Inputs!$H25)^(AL$8-1) -> 4.54928544 | AM14: =(1+Project_Inputs!$H25)^(AM$8-1) -> 4.802210113 | AN14: =(1+Project_Inputs!$H25)^(AN$8-1) -> 5.06919653 | AO14: =(1+Project_Inputs!$H25)^(AO$8-1) -> 5.351026477 | AP14: =(1+Project_Inputs!$H25)^(AP$8-1) -> 5.648525203 | AQ14: =(1+Project_Inputs!$H25)^(AQ$8-1) -> 5.962563838 | AR14: =(1+Project_Inputs!$H25)^(AR$8-1) -> 6.294061944 | AS14: =(1+Project_Inputs!$H25)^(AS$8-1) -> 6.643990209 | AT14: =(1+Project_Inputs!$H25)^(AT$8-1) -> 7.013373285 | AU14: =(1+Project_Inputs!$H25)^(AU$8-1) -> 7.403292794 | AV14: =(1+Project_Inputs!$H25)^(AV$8-1) -> 7.81489049 | AW14: =(1+Project_Inputs!$H25)^(AW$8-1) -> 8.249371608 | AX14: =(1+Project_Inputs!$H25)^(AX$8-1) -> 8.708008385 | AY14: =(1+Project_Inputs!$H25)^(AY$8-1) -> 9.192143796 | AZ14: =(1+Project_Inputs!$H25)^(AZ$8-1) -> 9.703195475 | BA14: =(1+Project_Inputs!$H25)^(BA$8-1) -> 10.24265988 | BB14: =(1+Project_Inputs!$H25)^(BB$8-1) -> 10.81211665 | BC14: =(1+Project_Inputs!$H25)^(BC$8-1) -> 11.41323326 | BD14: =(1+Project_Inputs!$H25)^(BD$8-1) -> 12.0477699 | BE14: =(1+Project_Inputs!$H25)^(BE$8-1) -> 12.7175846 | BF14: =(1+Project_Inputs!$H25)^(BF$8-1) -> 13.4246387 | BG14: =(1+Project_Inputs!$H25)^(BG$8-1) -> 14.17100258
B15: Inactive Period | J15: =IF(J8>Project_Inputs!$J$17,1,0) -> 0 | K15: =IF(K8>Project_Inputs!$J$17,1,0) -> 0 | L15: =IF(L8>Project_Inputs!$J$17,1,0) -> 0 | M15: =IF(M8>Project_Inputs!$J$17,1,0) -> 0 | N15: =IF(N8>Project_Inputs!$J$17,1,0) -> 0 | O15: =IF(O8>Project_Inputs!$J$17,1,0) -> 0 | P15: =IF(P8>Project_Inputs!$J$17,1,0) -> 0 | Q15: =IF(Q8>Project_Inputs!$J$17,1,0) -> 1 | R15: =IF(R8>Project_Inputs!$J$17,1,0) -> 1 | S15: =IF(S8>Project_Inputs!$J$17,1,0) -> 1 | T15: =IF(T8>Project_Inputs!$J$17,1,0) -> 1 | U15: =IF(U8>Project_Inputs!$J$17,1,0) -> 1 | V15: =IF(V8>Project_Inputs!$J$17,1,0) -> 1 | W15: =IF(W8>Project_Inputs!$J$17,1,0) -> 1 | X15: =IF(X8>Project_Inputs!$J$17,1,0) -> 1 | Y15: =IF(Y8>Project_Inputs!$J$17,1,0) -> 1 | Z15: =IF(Z8>Project_Inputs!$J$17,1,0) -> 1 | AA15: =IF(AA8>Project_Inputs!$J$17,1,0) -> 1 | AB15: =IF(AB8>Project_Inputs!$J$17,1,0) -> 1 | AC15: =IF(AC8>Project_Inputs!$J$17,1,0) -> 1 | AD15: =IF(AD8>Project_Inputs!$J$17,1,0) -> 1 | AE15: =IF(AE8>Project_Inputs!$J$17,1,0) -> 1 | AF15: =IF(AF8>Project_Inputs!$J$17,1,0) -> 1 | AG15: =IF(AG8>Project_Inputs!$J$17,1,0) -> 1 | AH15: =IF(AH8>Project_Inputs!$J$17,1,0) -> 1 | AI15: =IF(AI8>Project_Inputs!$J$17,1,0) -> 1 | AJ15: =IF(AJ8>Project_Inputs!$J$17,1,0) -> 1 | AK15: =IF(AK8>Project_Inputs!$J$17,1,0) -> 1 | AL15: =IF(AL8>Project_Inputs!$J$17,1,0) -> 1 | AM15: =IF(AM8>Project_Inputs!$J$17,1,0) -> 1 | AN15: =IF(AN8>Project_Inputs!$J$17,1,0) -> 1 | AO15: =IF(AO8>Project_Inputs!$J$17,1,0) -> 1 | AP15: =IF(AP8>Project_Inputs!$J$17,1,0) -> 1 | AQ15: =IF(AQ8>Project_Inputs!$J$17,1,0) -> 1 | AR15: =IF(AR8>Project_Inputs!$J$17,1,0) -> 1 | AS15: =IF(AS8>Project_Inputs!$J$17,1,0) -> 1 | AT15: =IF(AT8>Project_Inputs!$J$17,1,0) -> 1 | AU15: =IF(AU8>Project_Inputs!$J$17,1,0) -> 1 | AV15: =IF(AV8>Project_Inputs!$J$17,1,0) -> 1 | AW15: =IF(AW8>Project_Inputs!$J$17,1,0) -> 1 | AX15: =IF(AX8>Project_Inputs!$J$17,1,0) -> 1 | AY15: =IF(AY8>Project_Inputs!$J$17,1,0) -> 1 | AZ15: =IF(AZ8>Project_Inputs!$J$17,1,0) -> 1 | BA15: =IF(BA8>Project_Inputs!$J$17,1,0) -> 1 | BB15: =IF(BB8>Project_Inputs!$J$17,1,0) -> 1 | BC15: =IF(BC8>Project_Inputs!$J$17,1,0) -> 1 | BD15: =IF(BD8>Project_Inputs!$J$17,1,0) -> 1 | BE15: =IF(BE8>Project_Inputs!$J$17,1,0) -> 1 | BF15: =IF(BF8>Project_Inputs!$J$17,1,0) -> 1 | BG15: =IF(BG8>Project_Inputs!$J$17,1,0) -> 1
B16: Active Period | J16: =1-J15 -> 1 | K16: 1 | L16: 1 | M16: 1 | N16: 1 | O16: 1 | P16: 1 | Q16: 0 | R16: 0 | S16: 0 | T16: 0 | U16: 0 | V16: 0 | W16: 0 | X16: 0 | Y16: 0 | Z16: 0 | AA16: 0 | AB16: 0 | AC16: 0 | AD16: 0 | AE16: 0 | AF16: 0 | AG16: 0 | AH16: 0 | AI16: 0 | AJ16: 0 | AK16: 0 | AL16: 0 | AM16: 0 | AN16: 0 | AO16: 0 | AP16: =1-AP15 -> 0 | AQ16: 0 | AR16: 0 | AS16: 0 | AT16: 0 | AU16: 0 | AV16: 0 | AW16: 0 | AX16: 0 | AY16: 0 | AZ16: 0 | BA16: 0 | BB16: 0 | BC16: 0 | BD16: 0 | BE16: 0 | BF16: 0 | BG16: 0
J19: ="CY "&RIGHT(J5,2) -> CY 25 | K19: ="CY "&RIGHT(K5,2) -> CY 26 | L19: CY 27 | M19: CY 28 | N19: CY 29 | O19: CY 30 | P19: CY 31 | Q19: CY 32 | R19: CY 33 | S19: CY 34 | T19: CY 35 | U19: CY 36 | V19: CY 37 | W19: CY 38 | X19: CY 39 | Y19: CY 40 | Z19: CY 41 | AA19: CY 42 | AB19: CY 43 | AC19: CY 44 | AD19: CY 45 | AE19: CY 46 | AF19: CY 47 | AG19: CY 48 | AH19: CY 49 | AI19: CY 50 | AJ19: CY 51 | AK19: CY 52 | AL19: CY 53 | AM19: CY 54 | AN19: CY 55 | AO19: CY 56 | AP19: CY 57 | AQ19: CY 58 | AR19: CY 59 | AS19: CY 60 | AT19: CY 61 | AU19: CY 62 | AV19: CY 63 | AW19: CY 64 | AX19: CY 65 | AY19: CY 66 | AZ19: CY 67 | BA19: CY 68 | BB19: CY 69 | BC19: CY 70 | BD19: CY 71 | BE19: CY 72 | BF19: CY 73 | BG19: CY 74
D20: BAU - Option Summary | J20: =J8 -> 1 | K20: 2 | L20: 3 | M20: 4 | N20: 5 | O20: 6 | P20: 7 | Q20: 8 | R20: 9 | S20: 10 | T20: 11 | U20: 12 | V20: 13 | W20: 14 | X20: 15 | Y20: 16 | Z20: 17 | AA20: 18 | AB20: 19 | AC20: 20 | AD20: 21 | AE20: 22 | AF20: 23 | AG20: 24 | AH20: 25 | AI20: 26 | AJ20: 27 | AK20: 28 | AL20: 29 | AM20: 30 | AN20: 31 | AO20: 32 | AP20: =AP8 -> 33 | AQ20: 34 | AR20: 35 | AS20: 36 | AT20: 37 | AU20: 38 | AV20: 39 | AW20: 40 | AX20: 41 | AY20: 42 | AZ20: 43 | BA20: 44 | BB20: 45 | BC20: 46 | BD20: 47 | BE20: 48 | BF20: 49 | BG20: 50
E22: Option Generic Name | G22: BAU
E23: Option Name | G23: =Project_Inputs!D72 -> BAU
E25: Present Value Cost
F27: =D49 -> Capital Expenditure - BAU | H27: =SUM(J27:BG27) -> 0 | J27: =-(J86)*J11/J14 -> 0 | K27: 0 | L27: 0 | M27: 0 | N27: 0 | O27: 0 | P27: 0 | Q27: 0 | R27: 0 | S27: 0 | T27: 0 | U27: 0 | V27: 0 | W27: 0 | X27: 0 | Y27: 0 | Z27: 0 | AA27: 0 | AB27: 0 | AC27: 0 | AD27: 0 | AE27: 0 | AF27: 0 | AG27: 0 | AH27: 0 | AI27: 0 | AJ27: 0 | AK27: 0 | AL27: 0 | AM27: 0 | AN27: 0 | AO27: 0 | AP27: =-(AP86)*AP11/AP14 -> 0 | AQ27: 0 | AR27: 0 | AS27: 0 | AT27: 0 | AU27: 0 | AV27: 0 | AW27: 0 | AX27: 0 | AY27: 0 | AZ27: 0 | BA27: 0 | BB27: 0 | BC27: 0 | BD27: 0 | BE27: 0 | BF27: 0 | BG27: 0
F28: =D200 -> Operating Expenditure (enter costs as positive numbers and savings as negative numbers) | H28: =SUM(J28:BG28) -> 0 | J28: =-J222*J11/J14 -> 0 | K28: 0 | L28: 0 | M28: 0 | N28: 0 | O28: 0 | P28: 0 | Q28: 0 | R28: 0 | S28: 0 | T28: 0 | U28: 0 | V28: 0 | W28: 0 | X28: 0 | Y28: 0 | Z28: 0 | AA28: 0 | AB28: 0 | AC28: 0 | AD28: 0 | AE28: 0 | AF28: 0 | AG28: 0 | AH28: 0 | AI28: 0 | AJ28: 0 | AK28: 0 | AL28: 0 | AM28: 0 | AN28: 0 | AO28: 0 | AP28: =-AP222*AP11/AP14 -> 0 | AQ28: 0 | AR28: 0 | AS28: 0 | AT28: 0 | AU28: 0 | AV28: 0 | AW28: 0 | AX28: 0 | AY28: 0 | AZ28: 0 | BA28: 0 | BB28: 0 | BC28: 0 | BD28: 0 | BE28: 0 | BF28: 0 | BG28: 0
F29: =D293 -> Potential future costs from maintaining BAU - not currently in cost base | H29: =SUM(J29:BG29) -> 0 | J29: =-J303*J11/J14 -> 0 | K29: 0 | L29: 0 | M29: 0 | N29: 0 | O29: 0 | P29: 0 | Q29: 0 | R29: 0 | S29: 0 | T29: 0 | U29: 0 | V29: 0 | W29: 0 | X29: 0 | Y29: 0 | Z29: 0 | AA29: 0 | AB29: 0 | AC29: 0 | AD29: 0 | AE29: 0 | AF29: 0 | AG29: 0 | AH29: 0 | AI29: 0 | AJ29: 0 | AK29: 0 | AL29: 0 | AM29: 0 | AN29: 0 | AO29: 0 | AP29: =-AP303*AP11/AP14 -> 0 | AQ29: 0 | AR29: 0 | AS29: 0 | AT29: 0 | AU29: 0 | AV29: 0 | AW29: 0 | AX29: 0 | AY29: 0 | AZ29: 0 | BA29: 0 | BB29: 0 | BC29: 0 | BD29: 0 | BE29: 0 | BF29: 0 | BG29: 0
F30: =D306 -> Other Economic Cost and Benefits | H30: =SUM(J30:BG30) -> 0 | J30: =(SUM(J318:J319)+J325)*J11/J14 -> 0 | K30: 0 | L30: 0 | M30: 0 | N30: 0 | O30: 0 | P30: 0 | Q30: 0 | R30: 0 | S30: 0 | T30: 0 | U30: 0 | V30: 0 | W30: 0 | X30: 0 | Y30: 0 | Z30: 0 | AA30: 0 | AB30: 0 | AC30: 0 | AD30: 0 | AE30: 0 | AF30: 0 | AG30: 0 | AH30: 0 | AI30: 0 | AJ30: 0 | AK30: 0 | AL30: 0 | AM30: 0 | AN30: 0 | AO30: 0 | AP30: =(SUM(AP318:AP319)+AP325)*AP11/AP14 -> 0 | AQ30: 0 | AR30: 0 | AS30: 0 | AT30: 0 | AU30: 0 | AV30: 0 | AW30: 0 | AX30: 0 | AY30: 0 | AZ30: 0 | BA30: 0 | BB30: 0 | BC30: 0 | BD30: 0 | BE30: 0 | BF30: 0 | BG30: 0
E31: Total Present Value (cost) / benefit | H31: =SUM(J31:BG31) -> 0 | J31: =SUM(J27:J30) -> 0 | K31: 0 | L31: 0 | M31: 0 | N31: 0 | O31: 0 | P31: 0 | Q31: 0 | R31: 0 | S31: 0 | T31: 0 | U31: 0 | V31: 0 | W31: 0 | X31: 0 | Y31: 0 | Z31: 0 | AA31: 0 | AB31: 0 | AC31: 0 | AD31: 0 | AE31: 0 | AF31: 0 | AG31: 0 | AH31: 0 | AI31: 0 | AJ31: 0 | AK31: 0 | AL31: 0 | AM31: 0 | AN31: 0 | AO31: 0 | AP31: =SUM(AP27:AP30) -> 0 | AQ31: 0 | AR31: 0 | AS31: 0 | AT31: 0 | AU31: 0 | AV31: 0 | AW31: 0 | AX31: 0 | AY31: 0 | AZ31: 0 | BA31: 0 | BB31: 0 | BC31: 0 | BD31: 0 | BE31: 0 | BF31: 0 | BG31: 0
E33: Net present value (NPV) Cashflows
F35: Regulated Revenue | H35: =SUM(J35:BG35) -> 0 | J35: =BAU_Calcs!J59/J13 -> 0 | K35: =BAU_Calcs!K59/K13 -> 0 | L35: =BAU_Calcs!L59/L13 -> 0 | M35: =BAU_Calcs!M59/M13 -> 0 | N35: =BAU_Calcs!N59/N13 -> 0 | O35: =BAU_Calcs!O59/O13 -> 0 | P35: =BAU_Calcs!P59/P13 -> 0 | Q35: =BAU_Calcs!Q59/Q13 -> 0 | R35: =BAU_Calcs!R59/R13 -> 0 | S35: =BAU_Calcs!S59/S13 -> 0 | T35: =BAU_Calcs!T59/T13 -> 0 | U35: =BAU_Calcs!U59/U13 -> 0 | V35: =BAU_Calcs!V59/V13 -> 0 | W35: =BAU_Calcs!W59/W13 -> 0 | X35: =BAU_Calcs!X59/X13 -> 0 | Y35: =BAU_Calcs!Y59/Y13 -> 0 | Z35: =BAU_Calcs!Z59/Z13 -> 0 | AA35: =BAU_Calcs!AA59/AA13 -> 0 | AB35: =BAU_Calcs!AB59/AB13 -> 0 | AC35: =BAU_Calcs!AC59/AC13 -> 0 | AD35: =BAU_Calcs!AD59/AD13 -> 0 | AE35: =BAU_Calcs!AE59/AE13 -> 0 | AF35: =BAU_Calcs!AF59/AF13 -> 0 | AG35: =BAU_Calcs!AG59/AG13 -> 0 | AH35: =BAU_Calcs!AH59/AH13 -> 0 | AI35: =BAU_Calcs!AI59/AI13 -> 0 | AJ35: =BAU_Calcs!AJ59/AJ13 -> 0 | AK35: =BAU_Calcs!AK59/AK13 -> 0 | AL35: =BAU_Calcs!AL59/AL13 -> 0 | AM35: =BAU_Calcs!AM59/AM13 -> 0 | AN35: =BAU_Calcs!AN59/AN13 -> 0 | AO35: =BAU_Calcs!AO59/AO13 -> 0 | AP35: =BAU_Calcs!AP59/AP13 -> 0 | AQ35: =BAU_Calcs!AQ59/AQ13 -> 0 | AR35: =BAU_Calcs!AR59/AR13 -> 0 | AS35: =BAU_Calcs!AS59/AS13 -> 0 | AT35: =BAU_Calcs!AT59/AT13 -> 0 | AU35: =BAU_Calcs!AU59/AU13 -> 0 | AV35: =BAU_Calcs!AV59/AV13 -> 0 | AW35: =BAU_Calcs!AW59/AW13 -> 0 | AX35: =BAU_Calcs!AX59/AX13 -> 0 | AY35: =BAU_Calcs!AY59/AY13 -> 0 | AZ35: =BAU_Calcs!AZ59/AZ13 -> 0 | BA35: =BAU_Calcs!BA59/BA13 -> 0 | BB35: =BAU_Calcs!BB59/BB13 -> 0 | BC35: =BAU_Calcs!BC59/BC13 -> 0 | BD35: =BAU_Calcs!BD59/BD13 -> 0 | BE35: =BAU_Calcs!BE59/BE13 -> 0 | BF35: =BAU_Calcs!BF59/BF13 -> 0 | BG35: =BAU_Calcs!BG59/BG13 -> 0
F36: Unregulated Revenue | H36: 0 | J36: =J286*J11/J13 -> 0 | K36: 0 | L36: 0 | M36: 0 | N36: 0 | O36: 0 | P36: 0 | Q36: 0 | R36: 0 | S36: 0 | T36: 0 | U36: 0 | V36: 0 | W36: 0 | X36: 0 | Y36: 0 | Z36: 0 | AA36: 0 | AB36: 0 | AC36: 0 | AD36: 0 | AE36: 0 | AF36: 0 | AG36: 0 | AH36: 0 | AI36: 0 | AJ36: 0 | AK36: 0 | AL36: 0 | AM36: 0 | AN36: 0 | AO36: 0 | AP36: =AP286*AP11/AP13 -> 0 | AQ36: 0 | AR36: 0 | AS36: 0 | AT36: 0 | AU36: 0 | AV36: 0 | AW36: 0 | AX36: 0 | AY36: 0 | AZ36: 0 | BA36: 0 | BB36: 0 | BC36: 0 | BD36: 0 | BE36: 0 | BF36: 0 | BG36: 0
F37: =F254 -> Revenue from sold assets | H37: 0 | J37: =J254*J11/J13 -> 0 | K37: 0 | L37: 0 | M37: 0 | N37: 0 | O37: 0 | P37: 0 | Q37: 0 | R37: 0 | S37: 0 | T37: 0 | U37: 0 | V37: 0 | W37: 0 | X37: 0 | Y37: 0 | Z37: 0 | AA37: 0 | AB37: 0 | AC37: 0 | AD37: 0 | AE37: 0 | AF37: 0 | AG37: 0 | AH37: 0 | AI37: 0 | AJ37: 0 | AK37: 0 | AL37: 0 | AM37: 0 | AN37: 0 | AO37: 0 | AP37: =AP254*AP11/AP13 -> 0 | AQ37: 0 | AR37: 0 | AS37: 0 | AT37: 0 | AU37: 0 | AV37: 0 | AW37: 0 | AX37: 0 | AY37: 0 | AZ37: 0 | BA37: 0 | BB37: 0 | BC37: 0 | BD37: 0 | BE37: 0 | BF37: 0 | BG37: 0
F38: Opex | H38: 0 | J38: =-J222*J11/J13 -> 0 | K38: 0 | L38: 0 | M38: 0 | N38: 0 | O38: 0 | P38: 0 | Q38: 0 | R38: 0 | S38: 0 | T38: 0 | U38: 0 | V38: 0 | W38: 0 | X38: 0 | Y38: 0 | Z38: 0 | AA38: 0 | AB38: 0 | AC38: 0 | AD38: 0 | AE38: 0 | AF38: 0 | AG38: 0 | AH38: 0 | AI38: 0 | AJ38: 0 | AK38: 0 | AL38: 0 | AM38: 0 | AN38: 0 | AO38: 0 | AP38: =-AP222*AP11/AP13 -> 0 | AQ38: 0 | AR38: 0 | AS38: 0 | AT38: 0 | AU38: 0 | AV38: 0 | AW38: 0 | AX38: 0 | AY38: 0 | AZ38: 0 | BA38: 0 | BB38: 0 | BC38: 0 | BD38: 0 | BE38: 0 | BF38: 0 | BG38: 0
F39: Tax | H39: 0 | J39: =-(ROUND(BAU_Calcs!J87/J13,4)) -> 0 | K39: =-(ROUND(BAU_Calcs!K87/K13,4)) -> 0 | L39: =-(ROUND(BAU_Calcs!L87/L13,4)) -> 0 | M39: =-(ROUND(BAU_Calcs!M87/M13,4)) -> 0 | N39: =-(ROUND(BAU_Calcs!N87/N13,4)) -> 0 | O39: =-(ROUND(BAU_Calcs!O87/O13,4)) -> 0 | P39: =-(ROUND(BAU_Calcs!P87/P13,4)) -> 0 | Q39: =-(ROUND(BAU_Calcs!Q87/Q13,4)) -> 0 | R39: =-(ROUND(BAU_Calcs!R87/R13,4)) -> 0 | S39: =-(ROUND(BAU_Calcs!S87/S13,4)) -> 0 | T39: =-(ROUND(BAU_Calcs!T87/T13,4)) -> 0 | U39: =-(ROUND(BAU_Calcs!U87/U13,4)) -> 0 | V39: =-(ROUND(BAU_Calcs!V87/V13,4)) -> 0 | W39: =-(ROUND(BAU_Calcs!W87/W13,4)) -> 0 | X39: =-(ROUND(BAU_Calcs!X87/X13,4)) -> 0 | Y39: =-(ROUND(BAU_Calcs!Y87/Y13,4)) -> 0 | Z39: =-(ROUND(BAU_Calcs!Z87/Z13,4)) -> 0 | AA39: =-(ROUND(BAU_Calcs!AA87/AA13,4)) -> 0 | AB39: =-(ROUND(BAU_Calcs!AB87/AB13,4)) -> 0 | AC39: =-(ROUND(BAU_Calcs!AC87/AC13,4)) -> 0 | AD39: =-(ROUND(BAU_Calcs!AD87/AD13,4)) -> 0 | AE39: =-(ROUND(BAU_Calcs!AE87/AE13,4)) -> 0 | AF39: =-(ROUND(BAU_Calcs!AF87/AF13,4)) -> 0 | AG39: =-(ROUND(BAU_Calcs!AG87/AG13,4)) -> 0 | AH39: =-(ROUND(BAU_Calcs!AH87/AH13,4)) -> 0 | AI39: =-(ROUND(BAU_Calcs!AI87/AI13,4)) -> 0 | AJ39: =-(ROUND(BAU_Calcs!AJ87/AJ13,4)) -> 0 | AK39: =-(ROUND(BAU_Calcs!AK87/AK13,4)) -> 0 | AL39: =-(ROUND(BAU_Calcs!AL87/AL13,4)) -> 0 | AM39: =-(ROUND(BAU_Calcs!AM87/AM13,4)) -> 0 | AN39: =-(ROUND(BAU_Calcs!AN87/AN13,4)) -> 0 | AO39: =-(ROUND(BAU_Calcs!AO87/AO13,4)) -> 0 | AP39: =-(ROUND(BAU_Calcs!AP87/AP13,4)) -> 0 | AQ39: =-(ROUND(BAU_Calcs!AQ87/AQ13,4)) -> 0 | AR39: =-(ROUND(BAU_Calcs!AR87/AR13,4)) -> 0 | AS39: =-(ROUND(BAU_Calcs!AS87/AS13,4)) -> 0 | AT39: =-(ROUND(BAU_Calcs!AT87/AT13,4)) -> 0 | AU39: =-(ROUND(BAU_Calcs!AU87/AU13,4)) -> 0 | AV39: =-(ROUND(BAU_Calcs!AV87/AV13,4)) -> 0 | AW39: =-(ROUND(BAU_Calcs!AW87/AW13,4)) -> 0 | AX39: =-(ROUND(BAU_Calcs!AX87/AX13,4)) -> 0 | AY39: =-(ROUND(BAU_Calcs!AY87/AY13,4)) -> 0 | AZ39: =-(ROUND(BAU_Calcs!AZ87/AZ13,4)) -> 0 | BA39: =-(ROUND(BAU_Calcs!BA87/BA13,4)) -> 0 | BB39: =-(ROUND(BAU_Calcs!BB87/BB13,4)) -> 0 | BC39: =-(ROUND(BAU_Calcs!BC87/BC13,4)) -> 0 | BD39: =-(ROUND(BAU_Calcs!BD87/BD13,4)) -> 0 | BE39: =-(ROUND(BAU_Calcs!BE87/BE13,4)) -> 0 | BF39: =-(ROUND(BAU_Calcs!BF87/BF13,4)) -> 0 | BG39: =-(ROUND(BAU_Calcs!BG87/BG13,4)) -> 0
F40: Cash Capex (excl CFC) | H40: 0 | J40: =-(J86)/J13 -> 0 | K40: 0 | L40: 0 | M40: 0 | N40: 0 | O40: 0 | P40: 0 | Q40: 0 | R40: 0 | S40: 0 | T40: 0 | U40: 0 | V40: 0 | W40: 0 | X40: 0 | Y40: 0 | Z40: 0 | AA40: 0 | AB40: 0 | AC40: 0 | AD40: 0 | AE40: 0 | AF40: 0 | AG40: 0 | AH40: 0 | AI40: 0 | AJ40: 0 | AK40: 0 | AL40: 0 | AM40: 0 | AN40: 0 | AO40: 0 | AP40: =-(AP86)/AP13 -> 0 | AQ40: 0 | AR40: 0 | AS40: 0 | AT40: 0 | AU40: 0 | AV40: 0 | AW40: 0 | AX40: 0 | AY40: 0 | AZ40: 0 | BA40: 0 | BB40: 0 | BC40: 0 | BD40: 0 | BE40: 0 | BF40: 0 | BG40: 0
E41: Net Present Value of Cashflows | H41: 0 | J41: =ROUND(SUM(J35:J40),1) -> 0 | K41: 0 | L41: 0 | M41: 0 | N41: 0 | O41: 0 | P41: 0 | Q41: 0 | R41: 0 | S41: 0 | T41: 0 | U41: 0 | V41: 0 | W41: 0 | X41: 0 | Y41: 0 | Z41: 0 | AA41: 0 | AB41: 0 | AC41: 0 | AD41: 0 | AE41: 0 | AF41: 0 | AG41: 0 | AH41: 0 | AI41: 0 | AJ41: 0 | AK41: 0 | AL41: 0 | AM41: 0 | AN41: 0 | AO41: 0 | AP41: =ROUND(SUM(AP35:AP40),1) -> 0 | AQ41: 0 | AR41: 0 | AS41: 0 | AT41: 0 | AU41: 0 | AV41: 0 | AW41: 0 | AX41: 0 | AY41: 0 | AZ41: 0 | BA41: 0 | BB41: 0 | BC41: 0 | BD41: 0 | BE41: 0 | BF41: 0 | BG41: 0
E43: Payback Period (years) | H43: =IFERROR(INDEX($J$8:$BG$8,0,MATCH(1,$J$44:$BG$44,0)),"-") -> -
J44: =IF(SUM($J41:J41)>0,1,0) -> 0 | K44: =IF(SUM($J41:K41)>0,1,0) -> 0 | L44: =IF(SUM($J41:L41)>0,1,0) -> 0 | M44: =IF(SUM($J41:M41)>0,1,0) -> 0 | N44: =IF(SUM($J41:N41)>0,1,0) -> 0 | O44: =IF(SUM($J41:O41)>0,1,0) -> 0 | P44: =IF(SUM($J41:P41)>0,1,0) -> 0 | Q44: =IF(SUM($J41:Q41)>0,1,0) -> 0 | R44: =IF(SUM($J41:R41)>0,1,0) -> 0 | S44: =IF(SUM($J41:S41)>0,1,0) -> 0 | T44: =IF(SUM($J41:T41)>0,1,0) -> 0 | U44: =IF(SUM($J41:U41)>0,1,0) -> 0 | V44: =IF(SUM($J41:V41)>0,1,0) -> 0 | W44: =IF(SUM($J41:W41)>0,1,0) -> 0 | X44: =IF(SUM($J41:X41)>0,1,0) -> 0 | Y44: =IF(SUM($J41:Y41)>0,1,0) -> 0 | Z44: =IF(SUM($J41:Z41)>0,1,0) -> 0 | AA44: =IF(SUM($J41:AA41)>0,1,0) -> 0 | AB44: =IF(SUM($J41:AB41)>0,1,0) -> 0 | AC44: =IF(SUM($J41:AC41)>0,1,0) -> 0 | AD44: =IF(SUM($J41:AD41)>0,1,0) -> 0 | AE44: =IF(SUM($J41:AE41)>0,1,0) -> 0 | AF44: =IF(SUM($J41:AF41)>0,1,0) -> 0 | AG44: =IF(SUM($J41:AG41)>0,1,0) -> 0 | AH44: =IF(SUM($J41:AH41)>0,1,0) -> 0 | AI44: =IF(SUM($J41:AI41)>0,1,0) -> 0 | AJ44: =IF(SUM($J41:AJ41)>0,1,0) -> 0 | AK44: =IF(SUM($J41:AK41)>0,1,0) -> 0 | AL44: =IF(SUM($J41:AL41)>0,1,0) -> 0 | AM44: =IF(SUM($J41:AM41)>0,1,0) -> 0 | AN44: =IF(SUM($J41:AN41)>0,1,0) -> 0 | AO44: =IF(SUM($J41:AO41)>0,1,0) -> 0 | AP44: =IF(SUM($J41:AP41)>0,1,0) -> 0 | AQ44: =IF(SUM($J41:AQ41)>0,1,0) -> 0 | AR44: =IF(SUM($J41:AR41)>0,1,0) -> 0 | AS44: =IF(SUM($J41:AS41)>0,1,0) -> 0 | AT44: =IF(SUM($J41:AT41)>0,1,0) -> 0 | AU44: =IF(SUM($J41:AU41)>0,1,0) -> 0 | AV44: =IF(SUM($J41:AV41)>0,1,0) -> 0 | AW44: =IF(SUM($J41:AW41)>0,1,0) -> 0 | AX44: =IF(SUM($J41:AX41)>0,1,0) -> 0 | AY44: =IF(SUM($J41:AY41)>0,1,0) -> 0 | AZ44: =IF(SUM($J41:AZ41)>0,1,0) -> 0 | BA44: =IF(SUM($J41:BA41)>0,1,0) -> 0 | BB44: =IF(SUM($J41:BB41)>0,1,0) -> 0 | BC44: =IF(SUM($J41:BC41)>0,1,0) -> 0 | BD44: =IF(SUM($J41:BD41)>0,1,0) -> 0 | BE44: =IF(SUM($J41:BE41)>0,1,0) -> 0 | BF44: =IF(SUM($J41:BF41)>0,1,0) -> 0 | BG44: =IF(SUM($J41:BG41)>0,1,0) -> 0
J45: =IF(COUNTIF($J44:J44,1)=1,1,0) -> 0 | K45: =IF(COUNTIF($J44:K44,1)=1,1,0) -> 0 | L45: =IF(COUNTIF($J44:L44,1)=1,1,0) -> 0 | M45: =IF(COUNTIF($J44:M44,1)=1,1,0) -> 0 | N45: =IF(COUNTIF($J44:N44,1)=1,1,0) -> 0 | O45: =IF(COUNTIF($J44:O44,1)=1,1,0) -> 0 | P45: =IF(COUNTIF($J44:P44,1)=1,1,0) -> 0 | Q45: =IF(COUNTIF($J44:Q44,1)=1,1,0) -> 0 | R45: =IF(COUNTIF($J44:R44,1)=1,1,0) -> 0 | S45: =IF(COUNTIF($J44:S44,1)=1,1,0) -> 0 | T45: =IF(COUNTIF($J44:T44,1)=1,1,0) -> 0 | U45: =IF(COUNTIF($J44:U44,1)=1,1,0) -> 0 | V45: =IF(COUNTIF($J44:V44,1)=1,1,0) -> 0 | W45: =IF(COUNTIF($J44:W44,1)=1,1,0) -> 0 | X45: =IF(COUNTIF($J44:X44,1)=1,1,0) -> 0 | Y45: =IF(COUNTIF($J44:Y44,1)=1,1,0) -> 0 | Z45: =IF(COUNTIF($J44:Z44,1)=1,1,0) -> 0 | AA45: =IF(COUNTIF($J44:AA44,1)=1,1,0) -> 0 | AB45: =IF(COUNTIF($J44:AB44,1)=1,1,0) -> 0 | AC45: =IF(COUNTIF($J44:AC44,1)=1,1,0) -> 0 | AD45: =IF(COUNTIF($J44:AD44,1)=1,1,0) -> 0 | AE45: =IF(COUNTIF($J44:AE44,1)=1,1,0) -> 0 | AF45: =IF(COUNTIF($J44:AF44,1)=1,1,0) -> 0 | AG45: =IF(COUNTIF($J44:AG44,1)=1,1,0) -> 0 | AH45: =IF(COUNTIF($J44:AH44,1)=1,1,0) -> 0 | AI45: =IF(COUNTIF($J44:AI44,1)=1,1,0) -> 0 | AJ45: =IF(COUNTIF($J44:AJ44,1)=1,1,0) -> 0 | AK45: =IF(COUNTIF($J44:AK44,1)=1,1,0) -> 0 | AL45: =IF(COUNTIF($J44:AL44,1)=1,1,0) -> 0 | AM45: =IF(COUNTIF($J44:AM44,1)=1,1,0) -> 0 | AN45: =IF(COUNTIF($J44:AN44,1)=1,1,0) -> 0 | AO45: =IF(COUNTIF($J44:AO44,1)=1,1,0) -> 0 | AP45: =IF(COUNTIF($J44:AP44,1)=1,1,0) -> 0 | AQ45: =IF(COUNTIF($J44:AQ44,1)=1,1,0) -> 0 | AR45: =IF(COUNTIF($J44:AR44,1)=1,1,0) -> 0 | AS45: =IF(COUNTIF($J44:AS44,1)=1,1,0) -> 0 | AT45: =IF(COUNTIF($J44:AT44,1)=1,1,0) -> 0 | AU45: =IF(COUNTIF($J44:AU44,1)=1,1,0) -> 0 | AV45: =IF(COUNTIF($J44:AV44,1)=1,1,0) -> 0 | AW45: =IF(COUNTIF($J44:AW44,1)=1,1,0) -> 0 | AX45: =IF(COUNTIF($J44:AX44,1)=1,1,0) -> 0 | AY45: =IF(COUNTIF($J44:AY44,1)=1,1,0) -> 0 | AZ45: =IF(COUNTIF($J44:AZ44,1)=1,1,0) -> 0 | BA45: =IF(COUNTIF($J44:BA44,1)=1,1,0) -> 0 | BB45: =IF(COUNTIF($J44:BB44,1)=1,1,0) -> 0 | BC45: =IF(COUNTIF($J44:BC44,1)=1,1,0) -> 0 | BD45: =IF(COUNTIF($J44:BD44,1)=1,1,0) -> 0 | BE45: =IF(COUNTIF($J44:BE44,1)=1,1,0) -> 0 | BF45: =IF(COUNTIF($J44:BF44,1)=1,1,0) -> 0 | BG45: =IF(COUNTIF($J44:BG44,1)=1,1,0) -> 0
J46: =IF(J41=0,NA(),SUM($J41:J41)) ->  | K46: =IF(K41=0,NA(),SUM($J41:K41)) ->  | L46: =IF(L41=0,NA(),SUM($J41:L41)) ->  | M46: =IF(M41=0,NA(),SUM($J41:M41)) ->  | N46: =IF(N41=0,NA(),SUM($J41:N41)) ->  | O46: =IF(O41=0,NA(),SUM($J41:O41)) ->  | P46: =IF(P41=0,NA(),SUM($J41:P41)) ->  | Q46: =IF(Q41=0,NA(),SUM($J41:Q41)) ->  | R46: =IF(R41=0,NA(),SUM($J41:R41)) ->  | S46: =IF(S41=0,NA(),SUM($J41:S41)) ->  | T46: =IF(T41=0,NA(),SUM($J41:T41)) ->  | U46: =IF(U41=0,NA(),SUM($J41:U41)) ->  | V46: =IF(V41=0,NA(),SUM($J41:V41)) ->  | W46: =IF(W41=0,NA(),SUM($J41:W41)) ->  | X46: =IF(X41=0,NA(),SUM($J41:X41)) ->  | Y46: =IF(Y41=0,NA(),SUM($J41:Y41)) ->  | Z46: =IF(Z41=0,NA(),SUM($J41:Z41)) ->  | AA46: =IF(AA41=0,NA(),SUM($J41:AA41)) ->  | AB46: =IF(AB41=0,NA(),SUM($J41:AB41)) ->  | AC46: =IF(AC41=0,NA(),SUM($J41:AC41)) ->  | AD46: =IF(AD41=0,NA(),SUM($J41:AD41)) ->  | AE46: =IF(AE41=0,NA(),SUM($J41:AE41)) ->  | AF46: =IF(AF41=0,NA(),SUM($J41:AF41)) ->  | AG46: =IF(AG41=0,NA(),SUM($J41:AG41)) ->  | AH46: =IF(AH41=0,NA(),SUM($J41:AH41)) ->  | AI46: =IF(AI41=0,NA(),SUM($J41:AI41)) ->  | AJ46: =IF(AJ41=0,NA(),SUM($J41:AJ41)) ->  | AK46: =IF(AK41=0,NA(),SUM($J41:AK41)) ->  | AL46: =IF(AL41=0,NA(),SUM($J41:AL41)) ->  | AM46: =IF(AM41=0,NA(),SUM($J41:AM41)) ->  | AN46: =IF(AN41=0,NA(),SUM($J41:AN41)) ->  | AO46: =IF(AO41=0,NA(),SUM($J41:AO41)) ->  | AP46: =IF(AP41=0,NA(),SUM($J41:AP41)) ->  | AQ46: =IF(AQ41=0,NA(),SUM($J41:AQ41)) ->  | AR46: =IF(AR41=0,NA(),SUM($J41:AR41)) ->  | AS46: =IF(AS41=0,NA(),SUM($J41:AS41)) ->  | AT46: =IF(AT41=0,NA(),SUM($J41:AT41)) ->  | AU46: =IF(AU41=0,NA(),SUM($J41:AU41)) ->  | AV46: =IF(AV41=0,NA(),SUM($J41:AV41)) ->  | AW46: =IF(AW41=0,NA(),SUM($J41:AW41)) ->  | AX46: =IF(AX41=0,NA(),SUM($J41:AX41)) ->  | AY46: =IF(AY41=0,NA(),SUM($J41:AY41)) ->  | AZ46: =IF(AZ41=0,NA(),SUM($J41:AZ41)) ->  | BA46: =IF(BA41=0,NA(),SUM($J41:BA41)) ->  | BB46: =IF(BB41=0,NA(),SUM($J41:BB41)) ->  | BC46: =IF(BC41=0,NA(),SUM($J41:BC41)) ->  | BD46: =IF(BD41=0,NA(),SUM($J41:BD41)) ->  | BE46: =IF(BE41=0,NA(),SUM($J41:BE41)) ->  | BF46: =IF(BF41=0,NA(),SUM($J41:BF41)) ->  | BG46: =IF(BG41=0,NA(),SUM($J41:BG41)) -> 
D49: Capital Expenditure - BAU
D50: Note: Only expand this section if Capital Expenditure is required to support the BAU option. Click the '+' to the left to expand.
D51: Capex is expenditure on constructing, acquiring or maintaining fixed assets, such as equipment, land and buildings
D52: Inputs entered here impacts Least Cost Analysis (capex cashflow) and NPV (Revenue (for regulated projects only - see Glossary for further details) and capex cashflow)
F56: Asset Life (average) | G56: 40 | H56: =IF(G56="","< ERROR CHECK: Enter Asset Life (average).","") -> 
F58: Capex Type | G58: 1
F60: Category | G60: Description (optional)
F61: =Corporate_Inputs!F76 -> Design | J61: 0 | K61: 0 | L61: 0 | M61: 0 | N61: 0 | O61: 0 | P61: 0 | Q61: 0 | R61: 0 | S61: 0 | T61: 0 | U61: 0 | V61: 0 | W61: 0 | X61: 0 | Y61: 0 | Z61: 0 | AA61: 0 | AB61: 0 | AC61: 0 | AD61: 0 | AE61: 0 | AF61: 0 | AG61: 0 | AH61: 0 | AI61: 0 | AJ61: 0 | AK61: 0 | AL61: 0 | AM61: 0 | AN61: 0 | AO61: 0 | AP61: 0 | AQ61: 0 | AR61: 0 | AS61: 0 | AT61: 0 | AU61: 0 | AV61: 0 | AW61: 0 | AX61: 0 | AY61: 0 | AZ61: 0 | BA61: 0 | BB61: 0 | BC61: 0 | BD61: 0 | BE61: 0 | BF61: 0 | BG61: 0 | BI61: =SUM(J61:BG61) -> 0
F62: =Corporate_Inputs!F77 -> Internal Labour | J62: 0 | K62: 0 | L62: 0 | M62: 0 | N62: 0 | O62: 0 | P62: 0 | Q62: 0 | R62: 0 | S62: 0 | T62: 0 | U62: 0 | V62: 0 | W62: 0 | X62: 0 | Y62: 0 | Z62: 0 | AA62: 0 | AB62: 0 | AC62: 0 | AD62: 0 | AE62: 0 | AF62: 0 | AG62: 0 | AH62: 0 | AI62: 0 | AJ62: 0 | AK62: 0 | AL62: 0 | AM62: 0 | AN62: 0 | AO62: 0 | AP62: 0 | AQ62: 0 | AR62: 0 | AS62: 0 | AT62: 0 | AU62: 0 | AV62: 0 | AW62: 0 | AX62: 0 | AY62: 0 | AZ62: 0 | BA62: 0 | BB62: 0 | BC62: 0 | BD62: 0 | BE62: 0 | BF62: 0 | BG62: 0 | BI62: 0
F63: =Corporate_Inputs!F78 -> Materials | J63: 0 | K63: 0 | L63: 0 | M63: 0 | N63: 0 | O63: 0 | P63: 0 | Q63: 0 | R63: 0 | S63: 0 | T63: 0 | U63: 0 | V63: 0 | W63: 0 | X63: 0 | Y63: 0 | Z63: 0 | AA63: 0 | AB63: 0 | AC63: 0 | AD63: 0 | AE63: 0 | AF63: 0 | AG63: 0 | AH63: 0 | AI63: 0 | AJ63: 0 | AK63: 0 | AL63: 0 | AM63: 0 | AN63: 0 | AO63: 0 | AP63: 0 | AQ63: 0 | AR63: 0 | AS63: 0 | AT63: 0 | AU63: 0 | AV63: 0 | AW63: 0 | AX63: 0 | AY63: 0 | AZ63: 0 | BA63: 0 | BB63: 0 | BC63: 0 | BD63: 0 | BE63: 0 | BF63: 0 | BG63: 0 | BI63: 0
F64: =Corporate_Inputs!F79 -> Plant & Equipment | J64: 0 | K64: 0 | L64: 0 | M64: 0 | N64: 0 | O64: 0 | P64: 0 | Q64: 0 | R64: 0 | S64: 0 | T64: 0 | U64: 0 | V64: 0 | W64: 0 | X64: 0 | Y64: 0 | Z64: 0 | AA64: 0 | AB64: 0 | AC64: 0 | AD64: 0 | AE64: 0 | AF64: 0 | AG64: 0 | AH64: 0 | AI64: 0 | AJ64: 0 | AK64: 0 | AL64: 0 | AM64: 0 | AN64: 0 | AO64: 0 | AP64: 0 | AQ64: 0 | AR64: 0 | AS64: 0 | AT64: 0 | AU64: 0 | AV64: 0 | AW64: 0 | AX64: 0 | AY64: 0 | AZ64: 0 | BA64: 0 | BB64: 0 | BC64: 0 | BD64: 0 | BE64: 0 | BF64: 0 | BG64: 0 | BI64: 0
F65: =Corporate_Inputs!F80 -> Contracts | J65: 0 | K65: 0 | L65: 0 | M65: 0 | N65: 0 | O65: 0 | P65: 0 | Q65: 0 | R65: 0 | S65: 0 | T65: 0 | U65: 0 | V65: 0 | W65: 0 | X65: 0 | Y65: 0 | Z65: 0 | AA65: 0 | AB65: 0 | AC65: 0 | AD65: 0 | AE65: 0 | AF65: 0 | AG65: 0 | AH65: 0 | AI65: 0 | AJ65: 0 | AK65: 0 | AL65: 0 | AM65: 0 | AN65: 0 | AO65: 0 | AP65: 0 | AQ65: 0 | AR65: 0 | AS65: 0 | AT65: 0 | AU65: 0 | AV65: 0 | AW65: 0 | AX65: 0 | AY65: 0 | AZ65: 0 | BA65: 0 | BB65: 0 | BC65: 0 | BD65: 0 | BE65: 0 | BF65: 0 | BG65: 0 | BI65: 0
F66: =Corporate_Inputs!F81 -> Meter Costs | J66: 0 | K66: 0 | L66: 0 | M66: 0 | N66: 0 | O66: 0 | P66: 0 | Q66: 0 | R66: 0 | S66: 0 | T66: 0 | U66: 0 | V66: 0 | W66: 0 | X66: 0 | Y66: 0 | Z66: 0 | AA66: 0 | AB66: 0 | AC66: 0 | AD66: 0 | AE66: 0 | AF66: 0 | AG66: 0 | AH66: 0 | AI66: 0 | AJ66: 0 | AK66: 0 | AL66: 0 | AM66: 0 | AN66: 0 | AO66: 0 | AP66: 0 | AQ66: 0 | AR66: 0 | AS66: 0 | AT66: 0 | AU66: 0 | AV66: 0 | AW66: 0 | AX66: 0 | AY66: 0 | AZ66: 0 | BA66: 0 | BB66: 0 | BC66: 0 | BD66: 0 | BE66: 0 | BF66: 0 | BG66: 0 | BI66: 0
J67: 0 | K67: 0 | L67: 0 | M67: 0 | N67: 0 | O67: 0 | P67: 0 | Q67: 0 | R67: 0 | S67: 0 | T67: 0 | U67: 0 | V67: 0 | W67: 0 | X67: 0 | Y67: 0 | Z67: 0 | AA67: 0 | AB67: 0 | AC67: 0 | AD67: 0 | AE67: 0 | AF67: 0 | AG67: 0 | AH67: 0 | AI67: 0 | AJ67: 0 | AK67: 0 | AL67: 0 | AM67: 0 | AN67: 0 | AO67: 0 | AP67: 0 | AQ67: 0 | AR67: 0 | AS67: 0 | AT67: 0 | AU67: 0 | AV67: 0 | AW67: 0 | AX67: 0 | AY67: 0 | AZ67: 0 | BA67: 0 | BB67: 0 | BC67: 0 | BD67: 0 | BE67: 0 | BF67: 0 | BG67: 0 | BI67: 0
F68: =Corporate_Inputs!F83 -> Decommissioning (or Make Good) Provision | I68: =IF(SUM(J61:BG67,J69:BG70)>0,"< see (*) below.","") ->  | J68: 0 | K68: 0 | L68: 0 | M68: 0 | N68: 0 | O68: 0 | P68: 0 | Q68: 0 | R68: 0 | S68: 0 | T68: 0 | U68: 0 | V68: 0 | W68: 0 | X68: 0 | Y68: 0 | Z68: 0 | AA68: 0 | AB68: 0 | AC68: 0 | AD68: 0 | AE68: 0 | AF68: 0 | AG68: 0 | AH68: 0 | AI68: 0 | AJ68: 0 | AK68: 0 | AL68: 0 | AM68: 0 | AN68: 0 | AO68: 0 | AP68: 0 | AQ68: 0 | AR68: 0 | AS68: 0 | AT68: 0 | AU68: 0 | AV68: 0 | AW68: 0 | AX68: 0 | AY68: 0 | AZ68: 0 | BA68: 0 | BB68: 0 | BC68: 0 | BD68: 0 | BE68: 0 | BF68: 0 | BG68: 0 | BI68: 0
F69: Other | J69: 0 | K69: 0 | L69: 0 | M69: 0 | N69: 0 | O69: 0 | P69: 0 | Q69: 0 | R69: 0 | S69: 0 | T69: 0 | U69: 0 | V69: 0 | W69: 0 | X69: 0 | Y69: 0 | Z69: 0 | AA69: 0 | AB69: 0 | AC69: 0 | AD69: 0 | AE69: 0 | AF69: 0 | AG69: 0 | AH69: 0 | AI69: 0 | AJ69: 0 | AK69: 0 | AL69: 0 | AM69: 0 | AN69: 0 | AO69: 0 | AP69: 0 | AQ69: 0 | AR69: 0 | AS69: 0 | AT69: 0 | AU69: 0 | AV69: 0 | AW69: 0 | AX69: 0 | AY69: 0 | AZ69: 0 | BA69: 0 | BB69: 0 | BC69: 0 | BD69: 0 | BE69: 0 | BF69: 0 | BG69: 0 | BI69: =SUMPRODUCT($J$11:$BG$11,J69:BG69) -> 0
F70: Other | J70: 0 | K70: 0 | L70: 0 | M70: 0 | N70: 0 | O70: 0 | P70: 0 | Q70: 0 | R70: 0 | S70: 0 | T70: 0 | U70: 0 | V70: 0 | W70: 0 | X70: 0 | Y70: 0 | Z70: 0 | AA70: 0 | AB70: 0 | AC70: 0 | AD70: 0 | AE70: 0 | AF70: 0 | AG70: 0 | AH70: 0 | AI70: 0 | AJ70: 0 | AK70: 0 | AL70: 0 | AM70: 0 | AN70: 0 | AO70: 0 | AP70: 0 | AQ70: 0 | AR70: 0 | AS70: 0 | AT70: 0 | AU70: 0 | AV70: 0 | AW70: 0 | AX70: 0 | AY70: 0 | AZ70: 0 | BA70: 0 | BB70: 0 | BC70: 0 | BD70: 0 | BE70: 0 | BF70: 0 | BG70: 0 | BI70: =SUMPRODUCT($J$11:$BG$11,J70:BG70) -> 0
F71: Total Direct Capex | I71: =IF(SUMPRODUCT(ISTEXT($J$61:$BG$70)*1)>0," Enter Values only (change red cells)",0) -> 0 | J71: =SUM(J61:J70)*J$16 -> 0 | K71: 0 | L71: 0 | M71: 0 | N71: 0 | O71: 0 | P71: 0 | Q71: 0 | R71: 0 | S71: 0 | T71: 0 | U71: 0 | V71: 0 | W71: 0 | X71: 0 | Y71: 0 | Z71: 0 | AA71: 0 | AB71: 0 | AC71: 0 | AD71: 0 | AE71: 0 | AF71: 0 | AG71: 0 | AH71: 0 | AI71: 0 | AJ71: 0 | AK71: 0 | AL71: 0 | AM71: 0 | AN71: 0 | AO71: 0 | AP71: =SUM(AP61:AP70)*AP$16 -> 0 | AQ71: 0 | AR71: 0 | AS71: 0 | AT71: 0 | AU71: 0 | AV71: 0 | AW71: 0 | AX71: 0 | AY71: 0 | AZ71: 0 | BA71: 0 | BB71: 0 | BC71: 0 | BD71: 0 | BE71: 0 | BF71: 0 | BG71: 0 | BI71: =SUMPRODUCT($J$11:$BG$11,J71:BG71) -> 0
F73: =Corporate_Inputs!F76 -> Design | J73: =(J61+SUMIF($F$69:$F$70,$F73,J$69:J$70))*J$16 -> 0 | K73: 0 | L73: 0 | M73: 0 | N73: 0 | O73: 0 | P73: 0 | Q73: 0 | R73: 0 | S73: 0 | T73: 0 | U73: 0 | V73: 0 | W73: 0 | X73: 0 | Y73: 0 | Z73: 0 | AA73: 0 | AB73: 0 | AC73: 0 | AD73: 0 | AE73: 0 | AF73: 0 | AG73: 0 | AH73: 0 | AI73: 0 | AJ73: 0 | AK73: 0 | AL73: 0 | AM73: 0 | AN73: 0 | AO73: 0 | AP73: =(AP61+SUMIF($F$69:$F$70,$F73,AP$69:AP$70))*AP$16 -> 0 | AQ73: 0 | AR73: 0 | AS73: 0 | AT73: 0 | AU73: 0 | AV73: 0 | AW73: 0 | AX73: 0 | AY73: 0 | AZ73: 0 | BA73: 0 | BB73: 0 | BC73: 0 | BD73: 0 | BE73: 0 | BF73: 0 | BG73: 0 | BI73: =SUMPRODUCT($J$11:$BG$11,J73:BG73) -> 0
F74: =Corporate_Inputs!F77 -> Internal Labour | J74: =(J62+SUMIF($F$69:$F$70,$F74,J$69:J$70))*J$16 -> 0 | K74: 0 | L74: 0 | M74: 0 | N74: 0 | O74: 0 | P74: 0 | Q74: 0 | R74: 0 | S74: 0 | T74: 0 | U74: 0 | V74: 0 | W74: 0 | X74: 0 | Y74: 0 | Z74: 0 | AA74: 0 | AB74: 0 | AC74: 0 | AD74: 0 | AE74: 0 | AF74: 0 | AG74: 0 | AH74: 0 | AI74: 0 | AJ74: 0 | AK74: 0 | AL74: 0 | AM74: 0 | AN74: 0 | AO74: 0 | AP74: =(AP62+SUMIF($F$69:$F$70,$F74,AP$69:AP$70))*AP$16 -> 0 | AQ74: 0 | AR74: 0 | AS74: 0 | AT74: 0 | AU74: 0 | AV74: 0 | AW74: 0 | AX74: 0 | AY74: 0 | AZ74: 0 | BA74: 0 | BB74: 0 | BC74: 0 | BD74: 0 | BE74: 0 | BF74: 0 | BG74: 0 | BI74: 0
F75: =Corporate_Inputs!F78 -> Materials | J75: =(J63+SUMIF($F$69:$F$70,$F75,J$69:J$70))*J$16 -> 0 | K75: 0 | L75: 0 | M75: 0 | N75: 0 | O75: 0 | P75: 0 | Q75: 0 | R75: 0 | S75: 0 | T75: 0 | U75: 0 | V75: 0 | W75: 0 | X75: 0 | Y75: 0 | Z75: 0 | AA75: 0 | AB75: 0 | AC75: 0 | AD75: 0 | AE75: 0 | AF75: 0 | AG75: 0 | AH75: 0 | AI75: 0 | AJ75: 0 | AK75: 0 | AL75: 0 | AM75: 0 | AN75: 0 | AO75: 0 | AP75: =(AP63+SUMIF($F$69:$F$70,$F75,AP$69:AP$70))*AP$16 -> 0 | AQ75: 0 | AR75: 0 | AS75: 0 | AT75: 0 | AU75: 0 | AV75: 0 | AW75: 0 | AX75: 0 | AY75: 0 | AZ75: 0 | BA75: 0 | BB75: 0 | BC75: 0 | BD75: 0 | BE75: 0 | BF75: 0 | BG75: 0 | BI75: 0
F76: =Corporate_Inputs!F79 -> Plant & Equipment | J76: =(J64+SUMIF($F$69:$F$70,$F76,J$69:J$70))*J$16 -> 0 | K76: 0 | L76: 0 | M76: 0 | N76: 0 | O76: 0 | P76: 0 | Q76: 0 | R76: 0 | S76: 0 | T76: 0 | U76: 0 | V76: 0 | W76: 0 | X76: 0 | Y76: 0 | Z76: 0 | AA76: 0 | AB76: 0 | AC76: 0 | AD76: 0 | AE76: 0 | AF76: 0 | AG76: 0 | AH76: 0 | AI76: 0 | AJ76: 0 | AK76: 0 | AL76: 0 | AM76: 0 | AN76: 0 | AO76: 0 | AP76: =(AP64+SUMIF($F$69:$F$70,$F76,AP$69:AP$70))*AP$16 -> 0 | AQ76: 0 | AR76: 0 | AS76: 0 | AT76: 0 | AU76: 0 | AV76: 0 | AW76: 0 | AX76: 0 | AY76: 0 | AZ76: 0 | BA76: 0 | BB76: 0 | BC76: 0 | BD76: 0 | BE76: 0 | BF76: 0 | BG76: 0 | BI76: 0
F77: =Corporate_Inputs!F80 -> Contracts | J77: =(J65+SUMIF($F$69:$F$70,$F77,J$69:J$70))*J$16 -> 0 | K77: 0 | L77: 0 | M77: 0 | N77: 0 | O77: 0 | P77: 0 | Q77: 0 | R77: 0 | S77: 0 | T77: 0 | U77: 0 | V77: 0 | W77: 0 | X77: 0 | Y77: 0 | Z77: 0 | AA77: 0 | AB77: 0 | AC77: 0 | AD77: 0 | AE77: 0 | AF77: 0 | AG77: 0 | AH77: 0 | AI77: 0 | AJ77: 0 | AK77: 0 | AL77: 0 | AM77: 0 | AN77: 0 | AO77: 0 | AP77: =(AP65+SUMIF($F$69:$F$70,$F77,AP$69:AP$70))*AP$16 -> 0 | AQ77: 0 | AR77: 0 | AS77: 0 | AT77: 0 | AU77: 0 | AV77: 0 | AW77: 0 | AX77: 0 | AY77: 0 | AZ77: 0 | BA77: 0 | BB77: 0 | BC77: 0 | BD77: 0 | BE77: 0 | BF77: 0 | BG77: 0 | BI77: 0
F78: =Corporate_Inputs!F81 -> Meter Costs | J78: =(J66+SUMIF($F$69:$F$70,$F78,J$69:J$70))*J$16 -> 0 | K78: 0 | L78: 0 | M78: 0 | N78: 0 | O78: 0 | P78: 0 | Q78: 0 | R78: 0 | S78: 0 | T78: 0 | U78: 0 | V78: 0 | W78: 0 | X78: 0 | Y78: 0 | Z78: 0 | AA78: 0 | AB78: 0 | AC78: 0 | AD78: 0 | AE78: 0 | AF78: 0 | AG78: 0 | AH78: 0 | AI78: 0 | AJ78: 0 | AK78: 0 | AL78: 0 | AM78: 0 | AN78: 0 | AO78: 0 | AP78: =(AP66+SUMIF($F$69:$F$70,$F78,AP$69:AP$70))*AP$16 -> 0 | AQ78: 0 | AR78: 0 | AS78: 0 | AT78: 0 | AU78: 0 | AV78: 0 | AW78: 0 | AX78: 0 | AY78: 0 | AZ78: 0 | BA78: 0 | BB78: 0 | BC78: 0 | BD78: 0 | BE78: 0 | BF78: 0 | BG78: 0 | BI78: 0
F79: =Corporate_Inputs!F82 -> 0 | J79: =(J67+SUMIF($F$69:$F$70,$F79,J$69:J$70))*J$16 -> 0 | K79: 0 | L79: 0 | M79: 0 | N79: 0 | O79: 0 | P79: 0 | Q79: 0 | R79: 0 | S79: 0 | T79: 0 | U79: 0 | V79: 0 | W79: 0 | X79: 0 | Y79: 0 | Z79: 0 | AA79: 0 | AB79: 0 | AC79: 0 | AD79: 0 | AE79: 0 | AF79: 0 | AG79: 0 | AH79: 0 | AI79: 0 | AJ79: 0 | AK79: 0 | AL79: 0 | AM79: 0 | AN79: 0 | AO79: 0 | AP79: =(AP67+SUMIF($F$69:$F$70,$F79,AP$69:AP$70))*AP$16 -> 0 | AQ79: 0 | AR79: 0 | AS79: 0 | AT79: 0 | AU79: 0 | AV79: 0 | AW79: 0 | AX79: 0 | AY79: 0 | AZ79: 0 | BA79: 0 | BB79: 0 | BC79: 0 | BD79: 0 | BE79: 0 | BF79: 0 | BG79: 0 | BI79: 0
F80: Other | J80: =(J68+SUMIF($F$69:$F$70,$F80,J$69:J$70))*J$16 -> 0 | K80: 0 | L80: 0 | M80: 0 | N80: 0 | O80: 0 | P80: 0 | Q80: 0 | R80: 0 | S80: 0 | T80: 0 | U80: 0 | V80: 0 | W80: 0 | X80: 0 | Y80: 0 | Z80: 0 | AA80: 0 | AB80: 0 | AC80: 0 | AD80: 0 | AE80: 0 | AF80: 0 | AG80: 0 | AH80: 0 | AI80: 0 | AJ80: 0 | AK80: 0 | AL80: 0 | AM80: 0 | AN80: 0 | AO80: 0 | AP80: =(AP68+SUMIF($F$69:$F$70,$F80,AP$69:AP$70))*AP$16 -> 0 | AQ80: 0 | AR80: 0 | AS80: 0 | AT80: 0 | AU80: 0 | AV80: 0 | AW80: 0 | AX80: 0 | AY80: 0 | AZ80: 0 | BA80: 0 | BB80: 0 | BC80: 0 | BD80: 0 | BE80: 0 | BF80: 0 | BG80: 0 | BI80: 0
F82: Management Reserve (incl Risk) | J82: 0 | K82: 0 | L82: 0 | M82: 0 | N82: 0 | O82: 0 | P82: 0 | Q82: 0 | R82: 0 | S82: 0 | T82: 0 | U82: 0 | V82: 0 | W82: 0 | X82: 0 | Y82: 0 | Z82: 0 | AA82: 0 | AB82: 0 | AC82: 0 | AD82: 0 | AE82: 0 | AF82: 0 | AG82: 0 | AH82: 0 | AI82: 0 | AJ82: 0 | AK82: 0 | AL82: 0 | AM82: 0 | AN82: 0 | AO82: 0 | AP82: 0 | AQ82: 0 | AR82: 0 | AS82: 0 | AT82: 0 | AU82: 0 | AV82: 0 | AW82: 0 | AX82: 0 | AY82: 0 | AZ82: 0 | BA82: 0 | BB82: 0 | BC82: 0 | BD82: 0 | BE82: 0 | BF82: 0 | BG82: 0 | BI82: =SUMPRODUCT($J$11:$BG$11,J82:BG82) -> 0
F83: Direct Plus Management Reserve | J83: =SUM(J71,J82)*J$16 -> 0 | K83: 0 | L83: 0 | M83: 0 | N83: 0 | O83: 0 | P83: 0 | Q83: 0 | R83: 0 | S83: 0 | T83: 0 | U83: 0 | V83: 0 | W83: 0 | X83: 0 | Y83: 0 | Z83: 0 | AA83: 0 | AB83: 0 | AC83: 0 | AD83: 0 | AE83: 0 | AF83: 0 | AG83: 0 | AH83: 0 | AI83: 0 | AJ83: 0 | AK83: 0 | AL83: 0 | AM83: 0 | AN83: 0 | AO83: 0 | AP83: =SUM(AP71,AP82)*AP$16 -> 0 | AQ83: 0 | AR83: 0 | AS83: 0 | AT83: 0 | AU83: 0 | AV83: 0 | AW83: 0 | AX83: 0 | AY83: 0 | AZ83: 0 | BA83: 0 | BB83: 0 | BC83: 0 | BD83: 0 | BE83: 0 | BF83: 0 | BG83: 0 | BI83: =SUMPRODUCT($J$11:$BG$11,J83:BG83) -> 0
F84: Capitalised Overheads | J84: =J71*Project_Inputs!$I61 -> 0 | K84: =K71*Project_Inputs!$I61 -> 0 | L84: =L71*Project_Inputs!$I61 -> 0 | M84: =M71*Project_Inputs!$I61 -> 0 | N84: =N71*Project_Inputs!$I61 -> 0 | O84: =O71*Project_Inputs!$I61 -> 0 | P84: =P71*Project_Inputs!$I61 -> 0 | Q84: =Q71*Project_Inputs!$I61 -> 0 | R84: =R71*Project_Inputs!$I61 -> 0 | S84: =S71*Project_Inputs!$I61 -> 0 | T84: =T71*Project_Inputs!$I61 -> 0 | U84: =U71*Project_Inputs!$I61 -> 0 | V84: =V71*Project_Inputs!$I61 -> 0 | W84: =W71*Project_Inputs!$I61 -> 0 | X84: =X71*Project_Inputs!$I61 -> 0 | Y84: =Y71*Project_Inputs!$I61 -> 0 | Z84: =Z71*Project_Inputs!$I61 -> 0 | AA84: =AA71*Project_Inputs!$I61 -> 0 | AB84: =AB71*Project_Inputs!$I61 -> 0 | AC84: =AC71*Project_Inputs!$I61 -> 0 | AD84: =AD71*Project_Inputs!$I61 -> 0 | AE84: =AE71*Project_Inputs!$I61 -> 0 | AF84: =AF71*Project_Inputs!$I61 -> 0 | AG84: =AG71*Project_Inputs!$I61 -> 0 | AH84: =AH71*Project_Inputs!$I61 -> 0 | AI84: =AI71*Project_Inputs!$I61 -> 0 | AJ84: =AJ71*Project_Inputs!$I61 -> 0 | AK84: =AK71*Project_Inputs!$I61 -> 0 | AL84: =AL71*Project_Inputs!$I61 -> 0 | AM84: =AM71*Project_Inputs!$I61 -> 0 | AN84: =AN71*Project_Inputs!$I61 -> 0 | AO84: =AO71*Project_Inputs!$I61 -> 0 | AP84: =AP71*Project_Inputs!$I61 -> 0 | AQ84: =AQ71*Project_Inputs!$I61 -> 0 | AR84: =AR71*Project_Inputs!$I61 -> 0 | AS84: =AS71*Project_Inputs!$I61 -> 0 | AT84: =AT71*Project_Inputs!$I61 -> 0 | AU84: =AU71*Project_Inputs!$I61 -> 0 | AV84: =AV71*Project_Inputs!$I61 -> 0 | AW84: =AW71*Project_Inputs!$I61 -> 0 | AX84: =AX71*Project_Inputs!$I61 -> 0 | AY84: =AY71*Project_Inputs!$I61 -> 0 | AZ84: =AZ71*Project_Inputs!$I61 -> 0 | BA84: =BA71*Project_Inputs!$I61 -> 0 | BB84: =BB71*Project_Inputs!$I61 -> 0 | BC84: =BC71*Project_Inputs!$I61 -> 0 | BD84: =BD71*Project_Inputs!$I61 -> 0 | BE84: =BE71*Project_Inputs!$I61 -> 0 | BF84: =BF71*Project_Inputs!$I61 -> 0 | BG84: =BG71*Project_Inputs!$I61 -> 0 | BI84: =SUMPRODUCT($J$11:$BG$11,J84:BG84) -> 0
I85: =IF(SUM(J61:BG67,J69:BG70)>0,"(*) WARNING! Check if you need to include an initial estimate for costs of decommissioning, dismantling, or removing the item and restoring the site on which it is located.","") -> 
F86: Total Capex | J86: =SUM(J83:J84) -> 0 | K86: 0 | L86: 0 | M86: 0 | N86: 0 | O86: 0 | P86: 0 | Q86: 0 | R86: 0 | S86: 0 | T86: 0 | U86: 0 | V86: 0 | W86: 0 | X86: 0 | Y86: 0 | Z86: 0 | AA86: 0 | AB86: 0 | AC86: 0 | AD86: 0 | AE86: 0 | AF86: 0 | AG86: 0 | AH86: 0 | AI86: 0 | AJ86: 0 | AK86: 0 | AL86: 0 | AM86: 0 | AN86: 0 | AO86: 0 | AP86: =SUM(AP83:AP84) -> 0 | AQ86: 0 | AR86: 0 | AS86: 0 | AT86: 0 | AU86: 0 | AV86: 0 | AW86: 0 | AX86: 0 | AY86: 0 | AZ86: 0 | BA86: 0 | BB86: 0 | BC86: 0 | BD86: 0 | BE86: 0 | BF86: 0 | BG86: 0 | BI86: =SUMPRODUCT($J$11:$BG$11,J86:BG86) -> 0
D89: Spend Profile (unless the whole amount to be allocated is profiled it is assumed the spend is evenly spread over 12 months)
E91: This is for the calculation of Capitalised Finance Charges (CFCs). CFCs are calculated from when the spend reaches $100k and if no profiling is entered it will just assume 1/12th of the annual amount is spent each month.
E92: Inputs entered here impacts the value of CFCs added to the Capex amount for approval but not capex amount for regulated revenue, hence no impact on Least Cost or NPV.
E93: Profiling the spend will be beneficial to projects which has uneven spend, particularly towards the end of a year as it will then incur lower CFCs.
F95: Custom Profile | I95: Amount to be allocated--> | J95: =CHOOSE($G$58,J86,0) -> 0 | K95: 0 | L95: 0 | M95: 0 | N95: 0 | O95: 0 | P95: 0 | Q95: 0 | R95: 0 | S95: 0 | T95: 0 | U95: 0 | V95: 0 | W95: 0 | X95: 0 | Y95: 0 | Z95: 0 | AA95: 0 | AB95: 0 | AC95: 0 | AD95: 0 | AE95: 0 | AF95: 0 | AG95: 0 | AH95: 0 | AI95: 0 | AJ95: 0 | AK95: 0 | AL95: 0 | AM95: 0 | AN95: 0 | AO95: 0 | AP95: =CHOOSE($G$58,AP86,0) -> 0 | AQ95: 0 | AR95: 0 | AS95: 0 | AT95: 0 | AU95: 0 | AV95: 0 | AW95: 0 | AX95: 0 | AY95: 0 | AZ95: 0 | BA95: 0 | BB95: 0 | BC95: 0 | BD95: 0 | BE95: 0 | BF95: 0 | BG95: 0
F96: =BAU_LU!D27 -> January | J96: 0 | K96: 0 | L96: 0 | M96: 0 | N96: 0 | O96: 0 | P96: 0 | Q96: 0 | R96: 0 | S96: 0 | T96: 0 | U96: 0 | V96: 0 | W96: 0 | X96: 0 | Y96: 0 | Z96: 0 | AA96: 0 | AB96: 0 | AC96: 0 | AD96: 0 | AE96: 0 | AF96: 0 | AG96: 0 | AH96: 0 | AI96: 0 | AJ96: 0 | AK96: 0 | AL96: 0 | AM96: 0 | AN96: 0 | AO96: 0 | AP96: 0 | AQ96: 0 | AR96: 0 | AS96: 0 | AT96: 0 | AU96: 0 | AV96: 0 | AW96: 0 | AX96: 0 | AY96: 0 | AZ96: 0 | BA96: 0 | BB96: 0 | BC96: 0 | BD96: 0 | BE96: 0 | BF96: 0 | BG96: 0
F97: =BAU_LU!D28 -> February | J97: 0 | K97: 0 | L97: 0 | M97: 0 | N97: 0 | O97: 0 | P97: 0 | Q97: 0 | R97: 0 | S97: 0 | T97: 0 | U97: 0 | V97: 0 | W97: 0 | X97: 0 | Y97: 0 | Z97: 0 | AA97: 0 | AB97: 0 | AC97: 0 | AD97: 0 | AE97: 0 | AF97: 0 | AG97: 0 | AH97: 0 | AI97: 0 | AJ97: 0 | AK97: 0 | AL97: 0 | AM97: 0 | AN97: 0 | AO97: 0 | AP97: 0 | AQ97: 0 | AR97: 0 | AS97: 0 | AT97: 0 | AU97: 0 | AV97: 0 | AW97: 0 | AX97: 0 | AY97: 0 | AZ97: 0 | BA97: 0 | BB97: 0 | BC97: 0 | BD97: 0 | BE97: 0 | BF97: 0 | BG97: 0
F98: =BAU_LU!D29 -> March | J98: 0 | K98: 0 | L98: 0 | M98: 0 | N98: 0 | O98: 0 | P98: 0 | Q98: 0 | R98: 0 | S98: 0 | T98: 0 | U98: 0 | V98: 0 | W98: 0 | X98: 0 | Y98: 0 | Z98: 0 | AA98: 0 | AB98: 0 | AC98: 0 | AD98: 0 | AE98: 0 | AF98: 0 | AG98: 0 | AH98: 0 | AI98: 0 | AJ98: 0 | AK98: 0 | AL98: 0 | AM98: 0 | AN98: 0 | AO98: 0 | AP98: 0 | AQ98: 0 | AR98: 0 | AS98: 0 | AT98: 0 | AU98: 0 | AV98: 0 | AW98: 0 | AX98: 0 | AY98: 0 | AZ98: 0 | BA98: 0 | BB98: 0 | BC98: 0 | BD98: 0 | BE98: 0 | BF98: 0 | BG98: 0
F99: =BAU_LU!D30 -> April | J99: 0 | K99: 0 | L99: 0 | M99: 0 | N99: 0 | O99: 0 | P99: 0 | Q99: 0 | R99: 0 | S99: 0 | T99: 0 | U99: 0 | V99: 0 | W99: 0 | X99: 0 | Y99: 0 | Z99: 0 | AA99: 0 | AB99: 0 | AC99: 0 | AD99: 0 | AE99: 0 | AF99: 0 | AG99: 0 | AH99: 0 | AI99: 0 | AJ99: 0 | AK99: 0 | AL99: 0 | AM99: 0 | AN99: 0 | AO99: 0 | AP99: 0 | AQ99: 0 | AR99: 0 | AS99: 0 | AT99: 0 | AU99: 0 | AV99: 0 | AW99: 0 | AX99: 0 | AY99: 0 | AZ99: 0 | BA99: 0 | BB99: 0 | BC99: 0 | BD99: 0 | BE99: 0 | BF99: 0 | BG99: 0
F100: =BAU_LU!D31 -> May | J100: 0 | K100: 0 | L100: 0 | M100: 0 | N100: 0 | O100: 0 | P100: 0 | Q100: 0 | R100: 0 | S100: 0 | T100: 0 | U100: 0 | V100: 0 | W100: 0 | X100: 0 | Y100: 0 | Z100: 0 | AA100: 0 | AB100: 0 | AC100: 0 | AD100: 0 | AE100: 0 | AF100: 0 | AG100: 0 | AH100: 0 | AI100: 0 | AJ100: 0 | AK100: 0 | AL100: 0 | AM100: 0 | AN100: 0 | AO100: 0 | AP100: 0 | AQ100: 0 | AR100: 0 | AS100: 0 | AT100: 0 | AU100: 0 | AV100: 0 | AW100: 0 | AX100: 0 | AY100: 0 | AZ100: 0 | BA100: 0 | BB100: 0 | BC100: 0 | BD100: 0 | BE100: 0 | BF100: 0 | BG100: 0
F101: =BAU_LU!D32 -> June | J101: 0 | K101: 0 | L101: 0 | M101: 0 | N101: 0 | O101: 0 | P101: 0 | Q101: 0 | R101: 0 | S101: 0 | T101: 0 | U101: 0 | V101: 0 | W101: 0 | X101: 0 | Y101: 0 | Z101: 0 | AA101: 0 | AB101: 0 | AC101: 0 | AD101: 0 | AE101: 0 | AF101: 0 | AG101: 0 | AH101: 0 | AI101: 0 | AJ101: 0 | AK101: 0 | AL101: 0 | AM101: 0 | AN101: 0 | AO101: 0 | AP101: 0 | AQ101: 0 | AR101: 0 | AS101: 0 | AT101: 0 | AU101: 0 | AV101: 0 | AW101: 0 | AX101: 0 | AY101: 0 | AZ101: 0 | BA101: 0 | BB101: 0 | BC101: 0 | BD101: 0 | BE101: 0 | BF101: 0 | BG101: 0
F102: =BAU_LU!D33 -> July | J102: 0 | K102: 0 | L102: 0 | M102: 0 | N102: 0 | O102: 0 | P102: 0 | Q102: 0 | R102: 0 | S102: 0 | T102: 0 | U102: 0 | V102: 0 | W102: 0 | X102: 0 | Y102: 0 | Z102: 0 | AA102: 0 | AB102: 0 | AC102: 0 | AD102: 0 | AE102: 0 | AF102: 0 | AG102: 0 | AH102: 0 | AI102: 0 | AJ102: 0 | AK102: 0 | AL102: 0 | AM102: 0 | AN102: 0 | AO102: 0 | AP102: 0 | AQ102: 0 | AR102: 0 | AS102: 0 | AT102: 0 | AU102: 0 | AV102: 0 | AW102: 0 | AX102: 0 | AY102: 0 | AZ102: 0 | BA102: 0 | BB102: 0 | BC102: 0 | BD102: 0 | BE102: 0 | BF102: 0 | BG102: 0
F103: =BAU_LU!D34 -> August | J103: 0 | K103: 0 | L103: 0 | M103: 0 | N103: 0 | O103: 0 | P103: 0 | Q103: 0 | R103: 0 | S103: 0 | T103: 0 | U103: 0 | V103: 0 | W103: 0 | X103: 0 | Y103: 0 | Z103: 0 | AA103: 0 | AB103: 0 | AC103: 0 | AD103: 0 | AE103: 0 | AF103: 0 | AG103: 0 | AH103: 0 | AI103: 0 | AJ103: 0 | AK103: 0 | AL103: 0 | AM103: 0 | AN103: 0 | AO103: 0 | AP103: 0 | AQ103: 0 | AR103: 0 | AS103: 0 | AT103: 0 | AU103: 0 | AV103: 0 | AW103: 0 | AX103: 0 | AY103: 0 | AZ103: 0 | BA103: 0 | BB103: 0 | BC103: 0 | BD103: 0 | BE103: 0 | BF103: 0 | BG103: 0
F104: =BAU_LU!D35 -> September | J104: 0 | K104: 0 | L104: 0 | M104: 0 | N104: 0 | O104: 0 | P104: 0 | Q104: 0 | R104: 0 | S104: 0 | T104: 0 | U104: 0 | V104: 0 | W104: 0 | X104: 0 | Y104: 0 | Z104: 0 | AA104: 0 | AB104: 0 | AC104: 0 | AD104: 0 | AE104: 0 | AF104: 0 | AG104: 0 | AH104: 0 | AI104: 0 | AJ104: 0 | AK104: 0 | AL104: 0 | AM104: 0 | AN104: 0 | AO104: 0 | AP104: 0 | AQ104: 0 | AR104: 0 | AS104: 0 | AT104: 0 | AU104: 0 | AV104: 0 | AW104: 0 | AX104: 0 | AY104: 0 | AZ104: 0 | BA104: 0 | BB104: 0 | BC104: 0 | BD104: 0 | BE104: 0 | BF104: 0 | BG104: 0
F105: =BAU_LU!D36 -> October | J105: 0 | K105: 0 | L105: 0 | M105: 0 | N105: 0 | O105: 0 | P105: 0 | Q105: 0 | R105: 0 | S105: 0 | T105: 0 | U105: 0 | V105: 0 | W105: 0 | X105: 0 | Y105: 0 | Z105: 0 | AA105: 0 | AB105: 0 | AC105: 0 | AD105: 0 | AE105: 0 | AF105: 0 | AG105: 0 | AH105: 0 | AI105: 0 | AJ105: 0 | AK105: 0 | AL105: 0 | AM105: 0 | AN105: 0 | AO105: 0 | AP105: 0 | AQ105: 0 | AR105: 0 | AS105: 0 | AT105: 0 | AU105: 0 | AV105: 0 | AW105: 0 | AX105: 0 | AY105: 0 | AZ105: 0 | BA105: 0 | BB105: 0 | BC105: 0 | BD105: 0 | BE105: 0 | BF105: 0 | BG105: 0
F106: =BAU_LU!D37 -> November | J106: 0 | K106: 0 | L106: 0 | M106: 0 | N106: 0 | O106: 0 | P106: 0 | Q106: 0 | R106: 0 | S106: 0 | T106: 0 | U106: 0 | V106: 0 | W106: 0 | X106: 0 | Y106: 0 | Z106: 0 | AA106: 0 | AB106: 0 | AC106: 0 | AD106: 0 | AE106: 0 | AF106: 0 | AG106: 0 | AH106: 0 | AI106: 0 | AJ106: 0 | AK106: 0 | AL106: 0 | AM106: 0 | AN106: 0 | AO106: 0 | AP106: 0 | AQ106: 0 | AR106: 0 | AS106: 0 | AT106: 0 | AU106: 0 | AV106: 0 | AW106: 0 | AX106: 0 | AY106: 0 | AZ106: 0 | BA106: 0 | BB106: 0 | BC106: 0 | BD106: 0 | BE106: 0 | BF106: 0 | BG106: 0
F107: =BAU_LU!D38 -> December | J107: 0 | K107: 0 | L107: 0 | M107: 0 | N107: 0 | O107: 0 | P107: 0 | Q107: 0 | R107: 0 | S107: 0 | T107: 0 | U107: 0 | V107: 0 | W107: 0 | X107: 0 | Y107: 0 | Z107: 0 | AA107: 0 | AB107: 0 | AC107: 0 | AD107: 0 | AE107: 0 | AF107: 0 | AG107: 0 | AH107: 0 | AI107: 0 | AJ107: 0 | AK107: 0 | AL107: 0 | AM107: 0 | AN107: 0 | AO107: 0 | AP107: 0 | AQ107: 0 | AR107: 0 | AS107: 0 | AT107: 0 | AU107: 0 | AV107: 0 | AW107: 0 | AX107: 0 | AY107: 0 | AZ107: 0 | BA107: 0 | BB107: 0 | BC107: 0 | BD107: 0 | BE107: 0 | BF107: 0 | BG107: 0
F108: ="Capex Profile - "&G22 -> Capex Profile - BAU | I108: =IF(SUMPRODUCT(ISTEXT($J$96:$BG$107)*1)>0," Enter Values only (change red cells)",0) -> 0 | J108: =J95-SUM(J96:J107)*J$16 -> 0 | K108: 0 | L108: 0 | M108: 0 | N108: 0 | O108: 0 | P108: 0 | Q108: 0 | R108: 0 | S108: 0 | T108: 0 | U108: 0 | V108: 0 | W108: 0 | X108: 0 | Y108: 0 | Z108: 0 | AA108: 0 | AB108: 0 | AC108: 0 | AD108: 0 | AE108: 0 | AF108: 0 | AG108: 0 | AH108: 0 | AI108: 0 | AJ108: 0 | AK108: 0 | AL108: 0 | AM108: 0 | AN108: 0 | AO108: 0 | AP108: =AP95-SUM(AP96:AP107)*AP$16 -> 0 | AQ108: 0 | AR108: 0 | AS108: 0 | AT108: 0 | AU108: 0 | AV108: 0 | AW108: 0 | AX108: 0 | AY108: 0 | AZ108: 0 | BA108: 0 | BB108: 0 | BC108: 0 | BD108: 0 | BE108: 0 | BF108: 0 | BG108: 0
I109: =IF(OR(SUM(J108:BG108)=0,SUM(J108:BG108)=SUM($J$95:$BG$95)),0,"ERROR CHECK: Not all capex has been profiled") -> 0
D111: Sarcoding --specify sarcoding period or de-select checkbox below to automatically sarcode at the end of each Financial Year
E112: Sarcoding is the process of transferring an asset from construction phase (WIP) to production phase (in service)
E114: TRUE | F114: WIP Balance rolled over (i.e. not sarcoded at the end of each Financial Year)
G116: End of Month | H116: Calendar Year | I116: Year
F117: Sarcoding Period 1 | G117: December | H117: 0 | I117: =H117 -> 0
F118: Sarcoding Period 2 | G118: December | H118: 0 | I118: =H118 -> 0
F119: Sarcoding Period 3 | G119: December | H119: 0 | I119: 0
F120: Final Sarcoding period | G120: December | I120: =MAX(J122:BG122,I117:I119) -> 0
J121: =N(NOT(SUM(J96:J107)=J95)) -> 0 | K121: 0 | L121: 0 | M121: 0 | N121: 0 | O121: 0 | P121: 0 | Q121: 0 | R121: 0 | S121: 0 | T121: 0 | U121: 0 | V121: 0 | W121: 0 | X121: 0 | Y121: 0 | Z121: 0 | AA121: 0 | AB121: 0 | AC121: 0 | AD121: 0 | AE121: 0 | AF121: 0 | AG121: 0 | AH121: 0 | AI121: 0 | AJ121: 0 | AK121: 0 | AL121: 0 | AM121: 0 | AN121: 0 | AO121: 0 | AP121: =N(NOT(SUM(AP96:AP107)=AP95)) -> 0 | AQ121: 0 | AR121: 0 | AS121: 0 | AT121: 0 | AU121: 0 | AV121: 0 | AW121: 0 | AX121: 0 | AY121: 0 | AZ121: 0 | BA121: 0 | BB121: 0 | BC121: 0 | BD121: 0 | BE121: 0 | BF121: 0 | BG121: 0
J122: =IF(J86=0,0,J5) -> 0 | K122: 0 | L122: 0 | M122: 0 | N122: 0 | O122: 0 | P122: 0 | Q122: 0 | R122: 0 | S122: 0 | T122: 0 | U122: 0 | V122: 0 | W122: 0 | X122: 0 | Y122: 0 | Z122: 0 | AA122: 0 | AB122: 0 | AC122: 0 | AD122: 0 | AE122: 0 | AF122: 0 | AG122: 0 | AH122: 0 | AI122: 0 | AJ122: 0 | AK122: 0 | AL122: 0 | AM122: 0 | AN122: 0 | AO122: 0 | AP122: =IF(AP86=0,0,AP5) -> 0 | AQ122: 0 | AR122: 0 | AS122: 0 | AT122: 0 | AU122: 0 | AV122: 0 | AW122: 0 | AX122: 0 | AY122: 0 | AZ122: 0 | BA122: 0 | BB122: 0 | BC122: 0 | BD122: 0 | BE122: 0 | BF122: 0 | BG122: 0
E124: Profiling
F125: =F96 -> January | J125: =CHOOSE($G$58,IF(J$121,J$95/TS_Mths_In_Yr,J96),0) -> 0 | K125: 0 | L125: 0 | M125: 0 | N125: 0 | O125: 0 | P125: 0 | Q125: 0 | R125: 0 | S125: 0 | T125: 0 | U125: 0 | V125: 0 | W125: 0 | X125: 0 | Y125: 0 | Z125: 0 | AA125: 0 | AB125: 0 | AC125: 0 | AD125: 0 | AE125: 0 | AF125: 0 | AG125: 0 | AH125: 0 | AI125: 0 | AJ125: 0 | AK125: 0 | AL125: 0 | AM125: 0 | AN125: 0 | AO125: 0 | AP125: =CHOOSE($G$58,IF(AP$121,AP$95/TS_Mths_In_Yr,AP96),0) -> 0 | AQ125: 0 | AR125: 0 | AS125: 0 | AT125: 0 | AU125: 0 | AV125: 0 | AW125: 0 | AX125: 0 | AY125: 0 | AZ125: 0 | BA125: 0 | BB125: 0 | BC125: 0 | BD125: 0 | BE125: 0 | BF125: 0 | BG125: 0
F126: February | J126: =CHOOSE($G$58,IF(J$121,J$95/TS_Mths_In_Yr,J97),0) -> 0 | K126: 0 | L126: 0 | M126: 0 | N126: 0 | O126: 0 | P126: 0 | Q126: 0 | R126: 0 | S126: 0 | T126: 0 | U126: 0 | V126: 0 | W126: 0 | X126: 0 | Y126: 0 | Z126: 0 | AA126: 0 | AB126: 0 | AC126: 0 | AD126: 0 | AE126: 0 | AF126: 0 | AG126: 0 | AH126: 0 | AI126: 0 | AJ126: 0 | AK126: 0 | AL126: 0 | AM126: 0 | AN126: 0 | AO126: 0 | AP126: =CHOOSE($G$58,IF(AP$121,AP$95/TS_Mths_In_Yr,AP97),0) -> 0 | AQ126: 0 | AR126: 0 | AS126: 0 | AT126: 0 | AU126: 0 | AV126: 0 | AW126: 0 | AX126: 0 | AY126: 0 | AZ126: 0 | BA126: 0 | BB126: 0 | BC126: 0 | BD126: 0 | BE126: 0 | BF126: 0 | BG126: 0
F127: March | J127: =CHOOSE($G$58,IF(J$121,J$95/TS_Mths_In_Yr,J98),0) -> 0 | K127: 0 | L127: 0 | M127: 0 | N127: 0 | O127: 0 | P127: 0 | Q127: 0 | R127: 0 | S127: 0 | T127: 0 | U127: 0 | V127: 0 | W127: 0 | X127: 0 | Y127: 0 | Z127: 0 | AA127: 0 | AB127: 0 | AC127: 0 | AD127: 0 | AE127: 0 | AF127: 0 | AG127: 0 | AH127: 0 | AI127: 0 | AJ127: 0 | AK127: 0 | AL127: 0 | AM127: 0 | AN127: 0 | AO127: 0 | AP127: =CHOOSE($G$58,IF(AP$121,AP$95/TS_Mths_In_Yr,AP98),0) -> 0 | AQ127: 0 | AR127: 0 | AS127: 0 | AT127: 0 | AU127: 0 | AV127: 0 | AW127: 0 | AX127: 0 | AY127: 0 | AZ127: 0 | BA127: 0 | BB127: 0 | BC127: 0 | BD127: 0 | BE127: 0 | BF127: 0 | BG127: 0
F128: April | J128: =CHOOSE($G$58,IF(J$121,J$95/TS_Mths_In_Yr,J99),0) -> 0 | K128: 0 | L128: 0 | M128: 0 | N128: 0 | O128: 0 | P128: 0 | Q128: 0 | R128: 0 | S128: 0 | T128: 0 | U128: 0 | V128: 0 | W128: 0 | X128: 0 | Y128: 0 | Z128: 0 | AA128: 0 | AB128: 0 | AC128: 0 | AD128: 0 | AE128: 0 | AF128: 0 | AG128: 0 | AH128: 0 | AI128: 0 | AJ128: 0 | AK128: 0 | AL128: 0 | AM128: 0 | AN128: 0 | AO128: 0 | AP128: =CHOOSE($G$58,IF(AP$121,AP$95/TS_Mths_In_Yr,AP99),0) -> 0 | AQ128: 0 | AR128: 0 | AS128: 0 | AT128: 0 | AU128: 0 | AV128: 0 | AW128: 0 | AX128: 0 | AY128: 0 | AZ128: 0 | BA128: 0 | BB128: 0 | BC128: 0 | BD128: 0 | BE128: 0 | BF128: 0 | BG128: 0
F129: May | J129: =CHOOSE($G$58,IF(J$121,J$95/TS_Mths_In_Yr,J100),0) -> 0 | K129: 0 | L129: 0 | M129: 0 | N129: 0 | O129: 0 | P129: 0 | Q129: 0 | R129: 0 | S129: 0 | T129: 0 | U129: 0 | V129: 0 | W129: 0 | X129: 0 | Y129: 0 | Z129: 0 | AA129: 0 | AB129: 0 | AC129: 0 | AD129: 0 | AE129: 0 | AF129: 0 | AG129: 0 | AH129: 0 | AI129: 0 | AJ129: 0 | AK129: 0 | AL129: 0 | AM129: 0 | AN129: 0 | AO129: 0 | AP129: =CHOOSE($G$58,IF(AP$121,AP$95/TS_Mths_In_Yr,AP100),0) -> 0 | AQ129: 0 | AR129: 0 | AS129: 0 | AT129: 0 | AU129: 0 | AV129: 0 | AW129: 0 | AX129: 0 | AY129: 0 | AZ129: 0 | BA129: 0 | BB129: 0 | BC129: 0 | BD129: 0 | BE129: 0 | BF129: 0 | BG129: 0
F130: June | J130: =CHOOSE($G$58,IF(J$121,J$95/TS_Mths_In_Yr,J101),0) -> 0 | K130: 0 | L130: 0 | M130: 0 | N130: 0 | O130: 0 | P130: 0 | Q130: 0 | R130: 0 | S130: 0 | T130: 0 | U130: 0 | V130: 0 | W130: 0 | X130: 0 | Y130: 0 | Z130: 0 | AA130: 0 | AB130: 0 | AC130: 0 | AD130: 0 | AE130: 0 | AF130: 0 | AG130: 0 | AH130: 0 | AI130: 0 | AJ130: 0 | AK130: 0 | AL130: 0 | AM130: 0 | AN130: 0 | AO130: 0 | AP130: =CHOOSE($G$58,IF(AP$121,AP$95/TS_Mths_In_Yr,AP101),0) -> 0 | AQ130: 0 | AR130: 0 | AS130: 0 | AT130: 0 | AU130: 0 | AV130: 0 | AW130: 0 | AX130: 0 | AY130: 0 | AZ130: 0 | BA130: 0 | BB130: 0 | BC130: 0 | BD130: 0 | BE130: 0 | BF130: 0 | BG130: 0
F131: July | J131: =CHOOSE($G$58,IF(J$121,J$95/TS_Mths_In_Yr,J102),0) -> 0 | K131: 0 | L131: 0 | M131: 0 | N131: 0 | O131: 0 | P131: 0 | Q131: 0 | R131: 0 | S131: 0 | T131: 0 | U131: 0 | V131: 0 | W131: 0 | X131: 0 | Y131: 0 | Z131: 0 | AA131: 0 | AB131: 0 | AC131: 0 | AD131: 0 | AE131: 0 | AF131: 0 | AG131: 0 | AH131: 0 | AI131: 0 | AJ131: 0 | AK131: 0 | AL131: 0 | AM131: 0 | AN131: 0 | AO131: 0 | AP131: =CHOOSE($G$58,IF(AP$121,AP$95/TS_Mths_In_Yr,AP102),0) -> 0 | AQ131: 0 | AR131: 0 | AS131: 0 | AT131: 0 | AU131: 0 | AV131: 0 | AW131: 0 | AX131: 0 | AY131: 0 | AZ131: 0 | BA131: 0 | BB131: 0 | BC131: 0 | BD131: 0 | BE131: 0 | BF131: 0 | BG131: 0
F132: August | J132: =CHOOSE($G$58,IF(J$121,J$95/TS_Mths_In_Yr,J103),0) -> 0 | K132: 0 | L132: 0 | M132: 0 | N132: 0 | O132: 0 | P132: 0 | Q132: 0 | R132: 0 | S132: 0 | T132: 0 | U132: 0 | V132: 0 | W132: 0 | X132: 0 | Y132: 0 | Z132: 0 | AA132: 0 | AB132: 0 | AC132: 0 | AD132: 0 | AE132: 0 | AF132: 0 | AG132: 0 | AH132: 0 | AI132: 0 | AJ132: 0 | AK132: 0 | AL132: 0 | AM132: 0 | AN132: 0 | AO132: 0 | AP132: =CHOOSE($G$58,IF(AP$121,AP$95/TS_Mths_In_Yr,AP103),0) -> 0 | AQ132: 0 | AR132: 0 | AS132: 0 | AT132: 0 | AU132: 0 | AV132: 0 | AW132: 0 | AX132: 0 | AY132: 0 | AZ132: 0 | BA132: 0 | BB132: 0 | BC132: 0 | BD132: 0 | BE132: 0 | BF132: 0 | BG132: 0
F133: September | J133: =CHOOSE($G$58,IF(J$121,J$95/TS_Mths_In_Yr,J104),0) -> 0 | K133: 0 | L133: 0 | M133: 0 | N133: 0 | O133: 0 | P133: 0 | Q133: 0 | R133: 0 | S133: 0 | T133: 0 | U133: 0 | V133: 0 | W133: 0 | X133: 0 | Y133: 0 | Z133: 0 | AA133: 0 | AB133: 0 | AC133: 0 | AD133: 0 | AE133: 0 | AF133: 0 | AG133: 0 | AH133: 0 | AI133: 0 | AJ133: 0 | AK133: 0 | AL133: 0 | AM133: 0 | AN133: 0 | AO133: 0 | AP133: =CHOOSE($G$58,IF(AP$121,AP$95/TS_Mths_In_Yr,AP104),0) -> 0 | AQ133: 0 | AR133: 0 | AS133: 0 | AT133: 0 | AU133: 0 | AV133: 0 | AW133: 0 | AX133: 0 | AY133: 0 | AZ133: 0 | BA133: 0 | BB133: 0 | BC133: 0 | BD133: 0 | BE133: 0 | BF133: 0 | BG133: 0
F134: October | J134: =CHOOSE($G$58,IF(J$121,J$95/TS_Mths_In_Yr,J105),0) -> 0 | K134: 0 | L134: 0 | M134: 0 | N134: 0 | O134: 0 | P134: 0 | Q134: 0 | R134: 0 | S134: 0 | T134: 0 | U134: 0 | V134: 0 | W134: 0 | X134: 0 | Y134: 0 | Z134: 0 | AA134: 0 | AB134: 0 | AC134: 0 | AD134: 0 | AE134: 0 | AF134: 0 | AG134: 0 | AH134: 0 | AI134: 0 | AJ134: 0 | AK134: 0 | AL134: 0 | AM134: 0 | AN134: 0 | AO134: 0 | AP134: =CHOOSE($G$58,IF(AP$121,AP$95/TS_Mths_In_Yr,AP105),0) -> 0 | AQ134: 0 | AR134: 0 | AS134: 0 | AT134: 0 | AU134: 0 | AV134: 0 | AW134: 0 | AX134: 0 | AY134: 0 | AZ134: 0 | BA134: 0 | BB134: 0 | BC134: 0 | BD134: 0 | BE134: 0 | BF134: 0 | BG134: 0
F135: November | J135: =CHOOSE($G$58,IF(J$121,J$95/TS_Mths_In_Yr,J106),0) -> 0 | K135: 0 | L135: 0 | M135: 0 | N135: 0 | O135: 0 | P135: 0 | Q135: 0 | R135: 0 | S135: 0 | T135: 0 | U135: 0 | V135: 0 | W135: 0 | X135: 0 | Y135: 0 | Z135: 0 | AA135: 0 | AB135: 0 | AC135: 0 | AD135: 0 | AE135: 0 | AF135: 0 | AG135: 0 | AH135: 0 | AI135: 0 | AJ135: 0 | AK135: 0 | AL135: 0 | AM135: 0 | AN135: 0 | AO135: 0 | AP135: =CHOOSE($G$58,IF(AP$121,AP$95/TS_Mths_In_Yr,AP106),0) -> 0 | AQ135: 0 | AR135: 0 | AS135: 0 | AT135: 0 | AU135: 0 | AV135: 0 | AW135: 0 | AX135: 0 | AY135: 0 | AZ135: 0 | BA135: 0 | BB135: 0 | BC135: 0 | BD135: 0 | BE135: 0 | BF135: 0 | BG135: 0
F136: December | J136: =CHOOSE($G$58,IF(J$121,J$95/TS_Mths_In_Yr,J107),0) -> 0 | K136: 0 | L136: 0 | M136: 0 | N136: 0 | O136: 0 | P136: 0 | Q136: 0 | R136: 0 | S136: 0 | T136: 0 | U136: 0 | V136: 0 | W136: 0 | X136: 0 | Y136: 0 | Z136: 0 | AA136: 0 | AB136: 0 | AC136: 0 | AD136: 0 | AE136: 0 | AF136: 0 | AG136: 0 | AH136: 0 | AI136: 0 | AJ136: 0 | AK136: 0 | AL136: 0 | AM136: 0 | AN136: 0 | AO136: 0 | AP136: =CHOOSE($G$58,IF(AP$121,AP$95/TS_Mths_In_Yr,AP107),0) -> 0 | AQ136: 0 | AR136: 0 | AS136: 0 | AT136: 0 | AU136: 0 | AV136: 0 | AW136: 0 | AX136: 0 | AY136: 0 | AZ136: 0 | BA136: 0 | BB136: 0 | BC136: 0 | BD136: 0 | BE136: 0 | BF136: 0 | BG136: 0
E138: WIP Closing balance
F139: =F96 -> January | G139: =ROWS(G$139:G139) -> 1 | H139: =TEXT(DATE(TS_First_Fin_Yr,MONTH(1&LEFT(F139,3))-1,1),"Mmmm") -> December | J139: =(J125+IF(AND($G139=1,$E$114),I$150,SUM(OFFSET(J139,-1,,-1))))*(1-J153) -> 0 | K139: 0 | L139: 0 | M139: 0 | N139: 0 | O139: 0 | P139: 0 | Q139: 0 | R139: 0 | S139: 0 | T139: 0 | U139: 0 | V139: 0 | W139: 0 | X139: 0 | Y139: 0 | Z139: 0 | AA139: 0 | AB139: 0 | AC139: 0 | AD139: 0 | AE139: 0 | AF139: 0 | AG139: 0 | AH139: 0 | AI139: 0 | AJ139: 0 | AK139: 0 | AL139: 0 | AM139: 0 | AN139: 0 | AO139: 0 | AP139: =(AP125+IF(AND($G139=1,$E$114),AO$150,SUM(OFFSET(AP139,-1,,-1))))*(1-AP153) -> 0 | AQ139: 0 | AR139: 0 | AS139: 0 | AT139: 0 | AU139: 0 | AV139: 0 | AW139: 0 | AX139: 0 | AY139: 0 | AZ139: 0 | BA139: 0 | BB139: 0 | BC139: 0 | BD139: 0 | BE139: 0 | BF139: 0 | BG139: 0
F140: February | G140: =ROWS(G$139:G140) -> 2 | H140: January | J140: =(J126+IF(AND($G140=1,$E$114),I$150,SUM(OFFSET(J140,-1,,-1))))*(1-J154) -> 0 | K140: 0 | L140: 0 | M140: 0 | N140: 0 | O140: 0 | P140: 0 | Q140: 0 | R140: 0 | S140: 0 | T140: 0 | U140: 0 | V140: 0 | W140: 0 | X140: 0 | Y140: 0 | Z140: 0 | AA140: 0 | AB140: 0 | AC140: 0 | AD140: 0 | AE140: 0 | AF140: 0 | AG140: 0 | AH140: 0 | AI140: 0 | AJ140: 0 | AK140: 0 | AL140: 0 | AM140: 0 | AN140: 0 | AO140: 0 | AP140: =(AP126+IF(AND($G140=1,$E$114),AO$150,SUM(OFFSET(AP140,-1,,-1))))*(1-AP154) -> 0 | AQ140: 0 | AR140: 0 | AS140: 0 | AT140: 0 | AU140: 0 | AV140: 0 | AW140: 0 | AX140: 0 | AY140: 0 | AZ140: 0 | BA140: 0 | BB140: 0 | BC140: 0 | BD140: 0 | BE140: 0 | BF140: 0 | BG140: 0
F141: March | G141: =ROWS(G$139:G141) -> 3 | H141: February | J141: =(J127+IF(AND($G141=1,$E$114),I$150,SUM(OFFSET(J141,-1,,-1))))*(1-J155) -> 0 | K141: 0 | L141: 0 | M141: 0 | N141: 0 | O141: 0 | P141: 0 | Q141: 0 | R141: 0 | S141: 0 | T141: 0 | U141: 0 | V141: 0 | W141: 0 | X141: 0 | Y141: 0 | Z141: 0 | AA141: 0 | AB141: 0 | AC141: 0 | AD141: 0 | AE141: 0 | AF141: 0 | AG141: 0 | AH141: 0 | AI141: 0 | AJ141: 0 | AK141: 0 | AL141: 0 | AM141: 0 | AN141: 0 | AO141: 0 | AP141: =(AP127+IF(AND($G141=1,$E$114),AO$150,SUM(OFFSET(AP141,-1,,-1))))*(1-AP155) -> 0 | AQ141: 0 | AR141: 0 | AS141: 0 | AT141: 0 | AU141: 0 | AV141: 0 | AW141: 0 | AX141: 0 | AY141: 0 | AZ141: 0 | BA141: 0 | BB141: 0 | BC141: 0 | BD141: 0 | BE141: 0 | BF141: 0 | BG141: 0
F142: April | G142: =ROWS(G$139:G142) -> 4 | H142: March | J142: =(J128+IF(AND($G142=1,$E$114),I$150,SUM(OFFSET(J142,-1,,-1))))*(1-J156) -> 0 | K142: 0 | L142: 0 | M142: 0 | N142: 0 | O142: 0 | P142: 0 | Q142: 0 | R142: 0 | S142: 0 | T142: 0 | U142: 0 | V142: 0 | W142: 0 | X142: 0 | Y142: 0 | Z142: 0 | AA142: 0 | AB142: 0 | AC142: 0 | AD142: 0 | AE142: 0 | AF142: 0 | AG142: 0 | AH142: 0 | AI142: 0 | AJ142: 0 | AK142: 0 | AL142: 0 | AM142: 0 | AN142: 0 | AO142: 0 | AP142: =(AP128+IF(AND($G142=1,$E$114),AO$150,SUM(OFFSET(AP142,-1,,-1))))*(1-AP156) -> 0 | AQ142: 0 | AR142: 0 | AS142: 0 | AT142: 0 | AU142: 0 | AV142: 0 | AW142: 0 | AX142: 0 | AY142: 0 | AZ142: 0 | BA142: 0 | BB142: 0 | BC142: 0 | BD142: 0 | BE142: 0 | BF142: 0 | BG142: 0
F143: May | G143: =ROWS(G$139:G143) -> 5 | H143: April | J143: =(J129+IF(AND($G143=1,$E$114),I$150,SUM(OFFSET(J143,-1,,-1))))*(1-J157) -> 0 | K143: 0 | L143: 0 | M143: 0 | N143: 0 | O143: 0 | P143: 0 | Q143: 0 | R143: 0 | S143: 0 | T143: 0 | U143: 0 | V143: 0 | W143: 0 | X143: 0 | Y143: 0 | Z143: 0 | AA143: 0 | AB143: 0 | AC143: 0 | AD143: 0 | AE143: 0 | AF143: 0 | AG143: 0 | AH143: 0 | AI143: 0 | AJ143: 0 | AK143: 0 | AL143: 0 | AM143: 0 | AN143: 0 | AO143: 0 | AP143: =(AP129+IF(AND($G143=1,$E$114),AO$150,SUM(OFFSET(AP143,-1,,-1))))*(1-AP157) -> 0 | AQ143: 0 | AR143: 0 | AS143: 0 | AT143: 0 | AU143: 0 | AV143: 0 | AW143: 0 | AX143: 0 | AY143: 0 | AZ143: 0 | BA143: 0 | BB143: 0 | BC143: 0 | BD143: 0 | BE143: 0 | BF143: 0 | BG143: 0
F144: June | G144: =ROWS(G$139:G144) -> 6 | H144: May | J144: =(J130+IF(AND($G144=1,$E$114),I$150,SUM(OFFSET(J144,-1,,-1))))*(1-J158) -> 0 | K144: 0 | L144: 0 | M144: 0 | N144: 0 | O144: 0 | P144: 0 | Q144: 0 | R144: 0 | S144: 0 | T144: 0 | U144: 0 | V144: 0 | W144: 0 | X144: 0 | Y144: 0 | Z144: 0 | AA144: 0 | AB144: 0 | AC144: 0 | AD144: 0 | AE144: 0 | AF144: 0 | AG144: 0 | AH144: 0 | AI144: 0 | AJ144: 0 | AK144: 0 | AL144: 0 | AM144: 0 | AN144: 0 | AO144: 0 | AP144: =(AP130+IF(AND($G144=1,$E$114),AO$150,SUM(OFFSET(AP144,-1,,-1))))*(1-AP158) -> 0 | AQ144: 0 | AR144: 0 | AS144: 0 | AT144: 0 | AU144: 0 | AV144: 0 | AW144: 0 | AX144: 0 | AY144: 0 | AZ144: 0 | BA144: 0 | BB144: 0 | BC144: 0 | BD144: 0 | BE144: 0 | BF144: 0 | BG144: 0
F145: July | G145: =ROWS(G$139:G145) -> 7 | H145: June | J145: =(J131+IF(AND($G145=1,$E$114),I$150,SUM(OFFSET(J145,-1,,-1))))*(1-J159) -> 0 | K145: 0 | L145: 0 | M145: 0 | N145: 0 | O145: 0 | P145: 0 | Q145: 0 | R145: 0 | S145: 0 | T145: 0 | U145: 0 | V145: 0 | W145: 0 | X145: 0 | Y145: 0 | Z145: 0 | AA145: 0 | AB145: 0 | AC145: 0 | AD145: 0 | AE145: 0 | AF145: 0 | AG145: 0 | AH145: 0 | AI145: 0 | AJ145: 0 | AK145: 0 | AL145: 0 | AM145: 0 | AN145: 0 | AO145: 0 | AP145: =(AP131+IF(AND($G145=1,$E$114),AO$150,SUM(OFFSET(AP145,-1,,-1))))*(1-AP159) -> 0 | AQ145: 0 | AR145: 0 | AS145: 0 | AT145: 0 | AU145: 0 | AV145: 0 | AW145: 0 | AX145: 0 | AY145: 0 | AZ145: 0 | BA145: 0 | BB145: 0 | BC145: 0 | BD145: 0 | BE145: 0 | BF145: 0 | BG145: 0
F146: August | G146: =ROWS(G$139:G146) -> 8 | H146: July | J146: =(J132+IF(AND($G146=1,$E$114),I$150,SUM(OFFSET(J146,-1,,-1))))*(1-J160) -> 0 | K146: 0 | L146: 0 | M146: 0 | N146: 0 | O146: 0 | P146: 0 | Q146: 0 | R146: 0 | S146: 0 | T146: 0 | U146: 0 | V146: 0 | W146: 0 | X146: 0 | Y146: 0 | Z146: 0 | AA146: 0 | AB146: 0 | AC146: 0 | AD146: 0 | AE146: 0 | AF146: 0 | AG146: 0 | AH146: 0 | AI146: 0 | AJ146: 0 | AK146: 0 | AL146: 0 | AM146: 0 | AN146: 0 | AO146: 0 | AP146: =(AP132+IF(AND($G146=1,$E$114),AO$150,SUM(OFFSET(AP146,-1,,-1))))*(1-AP160) -> 0 | AQ146: 0 | AR146: 0 | AS146: 0 | AT146: 0 | AU146: 0 | AV146: 0 | AW146: 0 | AX146: 0 | AY146: 0 | AZ146: 0 | BA146: 0 | BB146: 0 | BC146: 0 | BD146: 0 | BE146: 0 | BF146: 0 | BG146: 0
F147: September | G147: =ROWS(G$139:G147) -> 9 | H147: August | J147: =(J133+IF(AND($G147=1,$E$114),I$150,SUM(OFFSET(J147,-1,,-1))))*(1-J161) -> 0 | K147: 0 | L147: 0 | M147: 0 | N147: 0 | O147: 0 | P147: 0 | Q147: 0 | R147: 0 | S147: 0 | T147: 0 | U147: 0 | V147: 0 | W147: 0 | X147: 0 | Y147: 0 | Z147: 0 | AA147: 0 | AB147: 0 | AC147: 0 | AD147: 0 | AE147: 0 | AF147: 0 | AG147: 0 | AH147: 0 | AI147: 0 | AJ147: 0 | AK147: 0 | AL147: 0 | AM147: 0 | AN147: 0 | AO147: 0 | AP147: =(AP133+IF(AND($G147=1,$E$114),AO$150,SUM(OFFSET(AP147,-1,,-1))))*(1-AP161) -> 0 | AQ147: 0 | AR147: 0 | AS147: 0 | AT147: 0 | AU147: 0 | AV147: 0 | AW147: 0 | AX147: 0 | AY147: 0 | AZ147: 0 | BA147: 0 | BB147: 0 | BC147: 0 | BD147: 0 | BE147: 0 | BF147: 0 | BG147: 0
F148: October | G148: =ROWS(G$139:G148) -> 10 | H148: September | J148: =(J134+IF(AND($G148=1,$E$114),I$150,SUM(OFFSET(J148,-1,,-1))))*(1-J162) -> 0 | K148: 0 | L148: 0 | M148: 0 | N148: 0 | O148: 0 | P148: 0 | Q148: 0 | R148: 0 | S148: 0 | T148: 0 | U148: 0 | V148: 0 | W148: 0 | X148: 0 | Y148: 0 | Z148: 0 | AA148: 0 | AB148: 0 | AC148: 0 | AD148: 0 | AE148: 0 | AF148: 0 | AG148: 0 | AH148: 0 | AI148: 0 | AJ148: 0 | AK148: 0 | AL148: 0 | AM148: 0 | AN148: 0 | AO148: 0 | AP148: =(AP134+IF(AND($G148=1,$E$114),AO$150,SUM(OFFSET(AP148,-1,,-1))))*(1-AP162) -> 0 | AQ148: 0 | AR148: 0 | AS148: 0 | AT148: 0 | AU148: 0 | AV148: 0 | AW148: 0 | AX148: 0 | AY148: 0 | AZ148: 0 | BA148: 0 | BB148: 0 | BC148: 0 | BD148: 0 | BE148: 0 | BF148: 0 | BG148: 0
F149: November | G149: =ROWS(G$139:G149) -> 11 | H149: October | J149: =(J135+IF(AND($G149=1,$E$114),I$150,SUM(OFFSET(J149,-1,,-1))))*(1-J163) -> 0 | K149: 0 | L149: 0 | M149: 0 | N149: 0 | O149: 0 | P149: 0 | Q149: 0 | R149: 0 | S149: 0 | T149: 0 | U149: 0 | V149: 0 | W149: 0 | X149: 0 | Y149: 0 | Z149: 0 | AA149: 0 | AB149: 0 | AC149: 0 | AD149: 0 | AE149: 0 | AF149: 0 | AG149: 0 | AH149: 0 | AI149: 0 | AJ149: 0 | AK149: 0 | AL149: 0 | AM149: 0 | AN149: 0 | AO149: 0 | AP149: =(AP135+IF(AND($G149=1,$E$114),AO$150,SUM(OFFSET(AP149,-1,,-1))))*(1-AP163) -> 0 | AQ149: 0 | AR149: 0 | AS149: 0 | AT149: 0 | AU149: 0 | AV149: 0 | AW149: 0 | AX149: 0 | AY149: 0 | AZ149: 0 | BA149: 0 | BB149: 0 | BC149: 0 | BD149: 0 | BE149: 0 | BF149: 0 | BG149: 0
F150: December | G150: =ROWS(G$139:G150) -> 12 | H150: November | J150: =(J136+IF(AND($G150=1,$E$114),I$150,SUM(OFFSET(J150,-1,,-1))))*(1-J164) -> 0 | K150: 0 | L150: 0 | M150: 0 | N150: 0 | O150: 0 | P150: 0 | Q150: 0 | R150: 0 | S150: 0 | T150: 0 | U150: 0 | V150: 0 | W150: 0 | X150: 0 | Y150: 0 | Z150: 0 | AA150: 0 | AB150: 0 | AC150: 0 | AD150: 0 | AE150: 0 | AF150: 0 | AG150: 0 | AH150: 0 | AI150: 0 | AJ150: 0 | AK150: 0 | AL150: 0 | AM150: 0 | AN150: 0 | AO150: 0 | AP150: =(AP136+IF(AND($G150=1,$E$114),AO$150,SUM(OFFSET(AP150,-1,,-1))))*(1-AP164) -> 0 | AQ150: 0 | AR150: 0 | AS150: 0 | AT150: 0 | AU150: 0 | AV150: 0 | AW150: 0 | AX150: 0 | AY150: 0 | AZ150: 0 | BA150: 0 | BB150: 0 | BC150: 0 | BD150: 0 | BE150: 0 | BF150: 0 | BG150: 0
E152: Clearance
F153: =F125 -> January | G153: =ROWS(G$139:G139) -> 1 | J153: =IF(AND(NOT($E$114),$G153=TS_Mths_In_Yr),1,(MIN(1,COUNTIFS($G$117:$G$120,$F153,$I$117:$I$120,J$5)))) -> 0 | K153: 0 | L153: 0 | M153: 0 | N153: 0 | O153: 0 | P153: 0 | Q153: 0 | R153: 0 | S153: 0 | T153: =IF(AND(NOT($E$114),$G153=TS_Mths_In_Yr),1,(MIN(1,COUNTIFS($G$117:$G$120,$F153,$I$117:$I$120,T$5)))) -> 0 | U153: 0 | V153: 0 | W153: 0 | X153: 0 | Y153: 0 | Z153: 0 | AA153: 0 | AB153: 0 | AC153: 0 | AD153: =IF(AND(NOT($E$114),$G153=TS_Mths_In_Yr),1,(MIN(1,COUNTIFS($G$117:$G$120,$F153,$I$117:$I$120,AD$5)))) -> 0 | AE153: 0 | AF153: 0 | AG153: 0 | AH153: 0 | AI153: 0 | AJ153: 0 | AK153: 0 | AL153: 0 | AM153: 0 | AN153: =IF(AND(NOT($E$114),$G153=TS_Mths_In_Yr),1,(MIN(1,COUNTIFS($G$117:$G$120,$F153,$I$117:$I$120,AN$5)))) -> 0 | AO153: 0 | AP153: 0 | AQ153: 0 | AR153: 0 | AS153: 0 | AT153: 0 | AU153: 0 | AV153: 0 | AW153: 0 | AX153: =IF(AND(NOT($E$114),$G153=TS_Mths_In_Yr),1,(MIN(1,COUNTIFS($G$117:$G$120,$F153,$I$117:$I$120,AX$5)))) -> 0 | AY153: 0 | AZ153: 0 | BA153: 0 | BB153: 0 | BC153: 0 | BD153: 0 | BE153: 0 | BF153: 0 | BG153: 0
F154: February | G154: =ROWS(G$139:G140) -> 2 | J154: 0 | K154: 0 | L154: 0 | M154: 0 | N154: 0 | O154: 0 | P154: 0 | Q154: 0 | R154: 0 | S154: 0 | T154: 0 | U154: 0 | V154: 0 | W154: 0 | X154: 0 | Y154: 0 | Z154: 0 | AA154: 0 | AB154: 0 | AC154: 0 | AD154: 0 | AE154: 0 | AF154: 0 | AG154: 0 | AH154: 0 | AI154: 0 | AJ154: 0 | AK154: 0 | AL154: 0 | AM154: 0 | AN154: 0 | AO154: 0 | AP154: 0 | AQ154: 0 | AR154: 0 | AS154: 0 | AT154: 0 | AU154: 0 | AV154: 0 | AW154: 0 | AX154: 0 | AY154: 0 | AZ154: 0 | BA154: 0 | BB154: 0 | BC154: 0 | BD154: 0 | BE154: 0 | BF154: 0 | BG154: 0
F155: March | G155: =ROWS(G$139:G141) -> 3 | J155: 0 | K155: 0 | L155: 0 | M155: 0 | N155: 0 | O155: 0 | P155: 0 | Q155: 0 | R155: 0 | S155: 0 | T155: 0 | U155: 0 | V155: 0 | W155: 0 | X155: 0 | Y155: 0 | Z155: 0 | AA155: 0 | AB155: 0 | AC155: 0 | AD155: 0 | AE155: 0 | AF155: 0 | AG155: 0 | AH155: 0 | AI155: 0 | AJ155: 0 | AK155: 0 | AL155: 0 | AM155: 0 | AN155: 0 | AO155: 0 | AP155: 0 | AQ155: 0 | AR155: 0 | AS155: 0 | AT155: 0 | AU155: 0 | AV155: 0 | AW155: 0 | AX155: 0 | AY155: 0 | AZ155: 0 | BA155: 0 | BB155: 0 | BC155: 0 | BD155: 0 | BE155: 0 | BF155: 0 | BG155: 0
F156: April | G156: =ROWS(G$139:G142) -> 4 | J156: 0 | K156: 0 | L156: 0 | M156: 0 | N156: 0 | O156: 0 | P156: 0 | Q156: 0 | R156: 0 | S156: 0 | T156: 0 | U156: 0 | V156: 0 | W156: 0 | X156: 0 | Y156: 0 | Z156: 0 | AA156: 0 | AB156: 0 | AC156: 0 | AD156: 0 | AE156: 0 | AF156: 0 | AG156: 0 | AH156: 0 | AI156: 0 | AJ156: 0 | AK156: 0 | AL156: 0 | AM156: 0 | AN156: 0 | AO156: 0 | AP156: 0 | AQ156: 0 | AR156: 0 | AS156: 0 | AT156: 0 | AU156: 0 | AV156: 0 | AW156: 0 | AX156: 0 | AY156: 0 | AZ156: 0 | BA156: 0 | BB156: 0 | BC156: 0 | BD156: 0 | BE156: 0 | BF156: 0 | BG156: 0
F157: May | G157: =ROWS(G$139:G143) -> 5 | J157: 0 | K157: 0 | L157: 0 | M157: 0 | N157: 0 | O157: 0 | P157: 0 | Q157: 0 | R157: 0 | S157: 0 | T157: 0 | U157: 0 | V157: 0 | W157: 0 | X157: 0 | Y157: 0 | Z157: 0 | AA157: 0 | AB157: 0 | AC157: 0 | AD157: 0 | AE157: 0 | AF157: 0 | AG157: 0 | AH157: 0 | AI157: 0 | AJ157: 0 | AK157: 0 | AL157: 0 | AM157: 0 | AN157: 0 | AO157: 0 | AP157: 0 | AQ157: 0 | AR157: 0 | AS157: 0 | AT157: 0 | AU157: 0 | AV157: 0 | AW157: 0 | AX157: 0 | AY157: 0 | AZ157: 0 | BA157: 0 | BB157: 0 | BC157: 0 | BD157: 0 | BE157: 0 | BF157: 0 | BG157: 0
F158: June | G158: =ROWS(G$139:G144) -> 6 | J158: 0 | K158: 0 | L158: 0 | M158: 0 | N158: 0 | O158: 0 | P158: 0 | Q158: 0 | R158: 0 | S158: 0 | T158: 0 | U158: 0 | V158: 0 | W158: 0 | X158: 0 | Y158: 0 | Z158: 0 | AA158: 0 | AB158: 0 | AC158: 0 | AD158: 0 | AE158: 0 | AF158: 0 | AG158: 0 | AH158: 0 | AI158: 0 | AJ158: 0 | AK158: 0 | AL158: 0 | AM158: 0 | AN158: 0 | AO158: 0 | AP158: 0 | AQ158: 0 | AR158: 0 | AS158: 0 | AT158: 0 | AU158: 0 | AV158: 0 | AW158: 0 | AX158: 0 | AY158: 0 | AZ158: 0 | BA158: 0 | BB158: 0 | BC158: 0 | BD158: 0 | BE158: 0 | BF158: 0 | BG158: 0
F159: July | G159: =ROWS(G$139:G145) -> 7 | J159: 0 | K159: 0 | L159: 0 | M159: 0 | N159: 0 | O159: 0 | P159: 0 | Q159: 0 | R159: 0 | S159: 0 | T159: 0 | U159: 0 | V159: 0 | W159: 0 | X159: 0 | Y159: 0 | Z159: 0 | AA159: 0 | AB159: 0 | AC159: 0 | AD159: 0 | AE159: 0 | AF159: 0 | AG159: 0 | AH159: 0 | AI159: 0 | AJ159: 0 | AK159: 0 | AL159: 0 | AM159: 0 | AN159: 0 | AO159: 0 | AP159: 0 | AQ159: 0 | AR159: 0 | AS159: 0 | AT159: 0 | AU159: 0 | AV159: 0 | AW159: 0 | AX159: 0 | AY159: 0 | AZ159: 0 | BA159: 0 | BB159: 0 | BC159: 0 | BD159: 0 | BE159: 0 | BF159: 0 | BG159: 0
F160: August | G160: =ROWS(G$139:G146) -> 8 | J160: 0 | K160: 0 | L160: 0 | M160: 0 | N160: 0 | O160: 0 | P160: 0 | Q160: 0 | R160: 0 | S160: 0 | T160: 0 | U160: 0 | V160: 0 | W160: 0 | X160: 0 | Y160: 0 | Z160: 0 | AA160: 0 | AB160: 0 | AC160: 0 | AD160: 0 | AE160: 0 | AF160: 0 | AG160: 0 | AH160: 0 | AI160: 0 | AJ160: 0 | AK160: 0 | AL160: 0 | AM160: 0 | AN160: 0 | AO160: 0 | AP160: 0 | AQ160: 0 | AR160: 0 | AS160: 0 | AT160: 0 | AU160: 0 | AV160: 0 | AW160: 0 | AX160: 0 | AY160: 0 | AZ160: 0 | BA160: 0 | BB160: 0 | BC160: 0 | BD160: 0 | BE160: 0 | BF160: 0 | BG160: 0
F161: September | G161: =ROWS(G$139:G147) -> 9 | J161: 0 | K161: 0 | L161: 0 | M161: 0 | N161: 0 | O161: 0 | P161: 0 | Q161: 0 | R161: 0 | S161: 0 | T161: 0 | U161: 0 | V161: 0 | W161: 0 | X161: 0 | Y161: 0 | Z161: 0 | AA161: 0 | AB161: 0 | AC161: 0 | AD161: 0 | AE161: 0 | AF161: 0 | AG161: 0 | AH161: 0 | AI161: 0 | AJ161: 0 | AK161: 0 | AL161: 0 | AM161: 0 | AN161: 0 | AO161: 0 | AP161: 0 | AQ161: 0 | AR161: 0 | AS161: 0 | AT161: 0 | AU161: 0 | AV161: 0 | AW161: 0 | AX161: 0 | AY161: 0 | AZ161: 0 | BA161: 0 | BB161: 0 | BC161: 0 | BD161: 0 | BE161: 0 | BF161: 0 | BG161: 0
F162: October | G162: =ROWS(G$139:G148) -> 10 | J162: 0 | K162: 0 | L162: 0 | M162: 0 | N162: 0 | O162: 0 | P162: 0 | Q162: 0 | R162: 0 | S162: 0 | T162: 0 | U162: 0 | V162: 0 | W162: 0 | X162: 0 | Y162: 0 | Z162: 0 | AA162: 0 | AB162: 0 | AC162: 0 | AD162: 0 | AE162: 0 | AF162: 0 | AG162: 0 | AH162: 0 | AI162: 0 | AJ162: 0 | AK162: 0 | AL162: 0 | AM162: 0 | AN162: 0 | AO162: 0 | AP162: 0 | AQ162: 0 | AR162: 0 | AS162: 0 | AT162: 0 | AU162: 0 | AV162: 0 | AW162: 0 | AX162: 0 | AY162: 0 | AZ162: 0 | BA162: 0 | BB162: 0 | BC162: 0 | BD162: 0 | BE162: 0 | BF162: 0 | BG162: 0
F163: November | G163: =ROWS(G$139:G149) -> 11 | J163: 0 | K163: 0 | L163: 0 | M163: 0 | N163: 0 | O163: 0 | P163: 0 | Q163: 0 | R163: 0 | S163: 0 | T163: 0 | U163: 0 | V163: 0 | W163: 0 | X163: 0 | Y163: 0 | Z163: 0 | AA163: 0 | AB163: 0 | AC163: 0 | AD163: 0 | AE163: 0 | AF163: 0 | AG163: 0 | AH163: 0 | AI163: 0 | AJ163: 0 | AK163: 0 | AL163: 0 | AM163: 0 | AN163: 0 | AO163: 0 | AP163: 0 | AQ163: 0 | AR163: 0 | AS163: 0 | AT163: 0 | AU163: 0 | AV163: 0 | AW163: 0 | AX163: 0 | AY163: 0 | AZ163: 0 | BA163: 0 | BB163: 0 | BC163: 0 | BD163: 0 | BE163: 0 | BF163: 0 | BG163: 0
F164: December | G164: =ROWS(G$139:G150) -> 12 | J164: 0 | K164: 0 | L164: 0 | M164: 0 | N164: 0 | O164: 0 | P164: 0 | Q164: 0 | R164: 0 | S164: 0 | T164: 0 | U164: 0 | V164: 0 | W164: 0 | X164: 0 | Y164: 0 | Z164: 0 | AA164: 0 | AB164: 0 | AC164: 0 | AD164: 0 | AE164: 0 | AF164: 0 | AG164: 0 | AH164: 0 | AI164: 0 | AJ164: 0 | AK164: 0 | AL164: 0 | AM164: 0 | AN164: 0 | AO164: 0 | AP164: 0 | AQ164: 0 | AR164: 0 | AS164: 0 | AT164: 0 | AU164: 0 | AV164: 0 | AW164: 0 | AX164: 0 | AY164: 0 | AZ164: 0 | BA164: 0 | BB164: 0 | BC164: 0 | BD164: 0 | BE164: 0 | BF164: 0 | BG164: 0
E166: Opening Balance
F167: =F125 -> January | G167: =ROWS(G$139:G139) -> 1 | J167: =IF($G167=1,OFFSET(J139,TS_Mths_In_Yr-1,-1),OFFSET(J139,-1,)) -> 0 | K167: 0 | L167: 0 | M167: 0 | N167: 0 | O167: 0 | P167: 0 | Q167: 0 | R167: 0 | S167: 0 | T167: 0 | U167: 0 | V167: 0 | W167: 0 | X167: 0 | Y167: 0 | Z167: 0 | AA167: 0 | AB167: 0 | AC167: 0 | AD167: 0 | AE167: 0 | AF167: 0 | AG167: 0 | AH167: 0 | AI167: 0 | AJ167: 0 | AK167: 0 | AL167: 0 | AM167: 0 | AN167: 0 | AO167: 0 | AP167: =IF($G167=1,OFFSET(AP139,TS_Mths_In_Yr-1,-1),OFFSET(AP139,-1,)) -> 0 | AQ167: 0 | AR167: 0 | AS167: 0 | AT167: 0 | AU167: 0 | AV167: 0 | AW167: 0 | AX167: 0 | AY167: 0 | AZ167: 0 | BA167: 0 | BB167: 0 | BC167: 0 | BD167: 0 | BE167: 0 | BF167: 0 | BG167: 0
F168: February | G168: =ROWS(G$139:G140) -> 2 | J168: =IF($G168=1,OFFSET(J140,TS_Mths_In_Yr-1,-1),OFFSET(J140,-1,)) -> 0 | K168: 0 | L168: 0 | M168: 0 | N168: 0 | O168: 0 | P168: 0 | Q168: 0 | R168: 0 | S168: 0 | T168: 0 | U168: 0 | V168: 0 | W168: 0 | X168: 0 | Y168: 0 | Z168: 0 | AA168: 0 | AB168: 0 | AC168: 0 | AD168: 0 | AE168: 0 | AF168: 0 | AG168: 0 | AH168: 0 | AI168: 0 | AJ168: 0 | AK168: 0 | AL168: 0 | AM168: 0 | AN168: 0 | AO168: 0 | AP168: =IF($G168=1,OFFSET(AP140,TS_Mths_In_Yr-1,-1),OFFSET(AP140,-1,)) -> 0 | AQ168: 0 | AR168: 0 | AS168: 0 | AT168: 0 | AU168: 0 | AV168: 0 | AW168: 0 | AX168: 0 | AY168: 0 | AZ168: 0 | BA168: 0 | BB168: 0 | BC168: 0 | BD168: 0 | BE168: 0 | BF168: 0 | BG168: 0
F169: March | G169: =ROWS(G$139:G141) -> 3 | J169: =IF($G169=1,OFFSET(J141,TS_Mths_In_Yr-1,-1),OFFSET(J141,-1,)) -> 0 | K169: 0 | L169: 0 | M169: 0 | N169: 0 | O169: 0 | P169: 0 | Q169: 0 | R169: 0 | S169: 0 | T169: 0 | U169: 0 | V169: 0 | W169: 0 | X169: 0 | Y169: 0 | Z169: 0 | AA169: 0 | AB169: 0 | AC169: 0 | AD169: 0 | AE169: 0 | AF169: 0 | AG169: 0 | AH169: 0 | AI169: 0 | AJ169: 0 | AK169: 0 | AL169: 0 | AM169: 0 | AN169: 0 | AO169: 0 | AP169: =IF($G169=1,OFFSET(AP141,TS_Mths_In_Yr-1,-1),OFFSET(AP141,-1,)) -> 0 | AQ169: 0 | AR169: 0 | AS169: 0 | AT169: 0 | AU169: 0 | AV169: 0 | AW169: 0 | AX169: 0 | AY169: 0 | AZ169: 0 | BA169: 0 | BB169: 0 | BC169: 0 | BD169: 0 | BE169: 0 | BF169: 0 | BG169: 0
F170: April | G170: =ROWS(G$139:G142) -> 4 | J170: =IF($G170=1,OFFSET(J142,TS_Mths_In_Yr-1,-1),OFFSET(J142,-1,)) -> 0 | K170: 0 | L170: 0 | M170: 0 | N170: 0 | O170: 0 | P170: 0 | Q170: 0 | R170: 0 | S170: 0 | T170: 0 | U170: 0 | V170: 0 | W170: 0 | X170: 0 | Y170: 0 | Z170: 0 | AA170: 0 | AB170: 0 | AC170: 0 | AD170: 0 | AE170: 0 | AF170: 0 | AG170: 0 | AH170: 0 | AI170: 0 | AJ170: 0 | AK170: 0 | AL170: 0 | AM170: 0 | AN170: 0 | AO170: 0 | AP170: =IF($G170=1,OFFSET(AP142,TS_Mths_In_Yr-1,-1),OFFSET(AP142,-1,)) -> 0 | AQ170: 0 | AR170: 0 | AS170: 0 | AT170: 0 | AU170: 0 | AV170: 0 | AW170: 0 | AX170: 0 | AY170: 0 | AZ170: 0 | BA170: 0 | BB170: 0 | BC170: 0 | BD170: 0 | BE170: 0 | BF170: 0 | BG170: 0
F171: May | G171: =ROWS(G$139:G143) -> 5 | J171: =IF($G171=1,OFFSET(J143,TS_Mths_In_Yr-1,-1),OFFSET(J143,-1,)) -> 0 | K171: 0 | L171: 0 | M171: 0 | N171: 0 | O171: 0 | P171: 0 | Q171: 0 | R171: 0 | S171: 0 | T171: 0 | U171: 0 | V171: 0 | W171: 0 | X171: 0 | Y171: 0 | Z171: 0 | AA171: 0 | AB171: 0 | AC171: 0 | AD171: 0 | AE171: 0 | AF171: 0 | AG171: 0 | AH171: 0 | AI171: 0 | AJ171: 0 | AK171: 0 | AL171: 0 | AM171: 0 | AN171: 0 | AO171: 0 | AP171: =IF($G171=1,OFFSET(AP143,TS_Mths_In_Yr-1,-1),OFFSET(AP143,-1,)) -> 0 | AQ171: 0 | AR171: 0 | AS171: 0 | AT171: 0 | AU171: 0 | AV171: 0 | AW171: 0 | AX171: 0 | AY171: 0 | AZ171: 0 | BA171: 0 | BB171: 0 | BC171: 0 | BD171: 0 | BE171: 0 | BF171: 0 | BG171: 0
F172: June | G172: =ROWS(G$139:G144) -> 6 | J172: =IF($G172=1,OFFSET(J144,TS_Mths_In_Yr-1,-1),OFFSET(J144,-1,)) -> 0 | K172: 0 | L172: 0 | M172: 0 | N172: 0 | O172: 0 | P172: 0 | Q172: 0 | R172: 0 | S172: 0 | T172: 0 | U172: 0 | V172: 0 | W172: 0 | X172: 0 | Y172: 0 | Z172: 0 | AA172: 0 | AB172: 0 | AC172: 0 | AD172: 0 | AE172: 0 | AF172: 0 | AG172: 0 | AH172: 0 | AI172: 0 | AJ172: 0 | AK172: 0 | AL172: 0 | AM172: 0 | AN172: 0 | AO172: 0 | AP172: =IF($G172=1,OFFSET(AP144,TS_Mths_In_Yr-1,-1),OFFSET(AP144,-1,)) -> 0 | AQ172: 0 | AR172: 0 | AS172: 0 | AT172: 0 | AU172: 0 | AV172: 0 | AW172: 0 | AX172: 0 | AY172: 0 | AZ172: 0 | BA172: 0 | BB172: 0 | BC172: 0 | BD172: 0 | BE172: 0 | BF172: 0 | BG172: 0
F173: July | G173: =ROWS(G$139:G145) -> 7 | J173: =IF($G173=1,OFFSET(J145,TS_Mths_In_Yr-1,-1),OFFSET(J145,-1,)) -> 0 | K173: 0 | L173: 0 | M173: 0 | N173: 0 | O173: 0 | P173: 0 | Q173: 0 | R173: 0 | S173: 0 | T173: 0 | U173: 0 | V173: 0 | W173: 0 | X173: 0 | Y173: 0 | Z173: 0 | AA173: 0 | AB173: 0 | AC173: 0 | AD173: 0 | AE173: 0 | AF173: 0 | AG173: 0 | AH173: 0 | AI173: 0 | AJ173: 0 | AK173: 0 | AL173: 0 | AM173: 0 | AN173: 0 | AO173: 0 | AP173: =IF($G173=1,OFFSET(AP145,TS_Mths_In_Yr-1,-1),OFFSET(AP145,-1,)) -> 0 | AQ173: 0 | AR173: 0 | AS173: 0 | AT173: 0 | AU173: 0 | AV173: 0 | AW173: 0 | AX173: 0 | AY173: 0 | AZ173: 0 | BA173: 0 | BB173: 0 | BC173: 0 | BD173: 0 | BE173: 0 | BF173: 0 | BG173: 0
F174: August | G174: =ROWS(G$139:G146) -> 8 | J174: =IF($G174=1,OFFSET(J146,TS_Mths_In_Yr-1,-1),OFFSET(J146,-1,)) -> 0 | K174: 0 | L174: 0 | M174: 0 | N174: 0 | O174: 0 | P174: 0 | Q174: 0 | R174: 0 | S174: 0 | T174: 0 | U174: 0 | V174: 0 | W174: 0 | X174: 0 | Y174: 0 | Z174: 0 | AA174: 0 | AB174: 0 | AC174: 0 | AD174: 0 | AE174: 0 | AF174: 0 | AG174: 0 | AH174: 0 | AI174: 0 | AJ174: 0 | AK174: 0 | AL174: 0 | AM174: 0 | AN174: 0 | AO174: 0 | AP174: =IF($G174=1,OFFSET(AP146,TS_Mths_In_Yr-1,-1),OFFSET(AP146,-1,)) -> 0 | AQ174: 0 | AR174: 0 | AS174: 0 | AT174: 0 | AU174: 0 | AV174: 0 | AW174: 0 | AX174: 0 | AY174: 0 | AZ174: 0 | BA174: 0 | BB174: 0 | BC174: 0 | BD174: 0 | BE174: 0 | BF174: 0 | BG174: 0
F175: September | G175: =ROWS(G$139:G147) -> 9 | J175: =IF($G175=1,OFFSET(J147,TS_Mths_In_Yr-1,-1),OFFSET(J147,-1,)) -> 0 | K175: 0 | L175: 0 | M175: 0 | N175: 0 | O175: 0 | P175: 0 | Q175: 0 | R175: 0 | S175: 0 | T175: 0 | U175: 0 | V175: 0 | W175: 0 | X175: 0 | Y175: 0 | Z175: 0 | AA175: 0 | AB175: 0 | AC175: 0 | AD175: 0 | AE175: 0 | AF175: 0 | AG175: 0 | AH175: 0 | AI175: 0 | AJ175: 0 | AK175: 0 | AL175: 0 | AM175: 0 | AN175: 0 | AO175: 0 | AP175: =IF($G175=1,OFFSET(AP147,TS_Mths_In_Yr-1,-1),OFFSET(AP147,-1,)) -> 0 | AQ175: 0 | AR175: 0 | AS175: 0 | AT175: 0 | AU175: 0 | AV175: 0 | AW175: 0 | AX175: 0 | AY175: 0 | AZ175: 0 | BA175: 0 | BB175: 0 | BC175: 0 | BD175: 0 | BE175: 0 | BF175: 0 | BG175: 0
F176: October | G176: =ROWS(G$139:G148) -> 10 | J176: =IF($G176=1,OFFSET(J148,TS_Mths_In_Yr-1,-1),OFFSET(J148,-1,)) -> 0 | K176: 0 | L176: 0 | M176: 0 | N176: 0 | O176: 0 | P176: 0 | Q176: 0 | R176: 0 | S176: 0 | T176: 0 | U176: 0 | V176: 0 | W176: 0 | X176: 0 | Y176: 0 | Z176: 0 | AA176: 0 | AB176: 0 | AC176: 0 | AD176: 0 | AE176: 0 | AF176: 0 | AG176: 0 | AH176: 0 | AI176: 0 | AJ176: 0 | AK176: 0 | AL176: 0 | AM176: 0 | AN176: 0 | AO176: 0 | AP176: =IF($G176=1,OFFSET(AP148,TS_Mths_In_Yr-1,-1),OFFSET(AP148,-1,)) -> 0 | AQ176: 0 | AR176: 0 | AS176: 0 | AT176: 0 | AU176: 0 | AV176: 0 | AW176: 0 | AX176: 0 | AY176: 0 | AZ176: 0 | BA176: 0 | BB176: 0 | BC176: 0 | BD176: 0 | BE176: 0 | BF176: 0 | BG176: 0
F177: November | G177: =ROWS(G$139:G149) -> 11 | J177: =IF($G177=1,OFFSET(J149,TS_Mths_In_Yr-1,-1),OFFSET(J149,-1,)) -> 0 | K177: 0 | L177: 0 | M177: 0 | N177: 0 | O177: 0 | P177: 0 | Q177: 0 | R177: 0 | S177: 0 | T177: 0 | U177: 0 | V177: 0 | W177: 0 | X177: 0 | Y177: 0 | Z177: 0 | AA177: 0 | AB177: 0 | AC177: 0 | AD177: 0 | AE177: 0 | AF177: 0 | AG177: 0 | AH177: 0 | AI177: 0 | AJ177: 0 | AK177: 0 | AL177: 0 | AM177: 0 | AN177: 0 | AO177: 0 | AP177: =IF($G177=1,OFFSET(AP149,TS_Mths_In_Yr-1,-1),OFFSET(AP149,-1,)) -> 0 | AQ177: 0 | AR177: 0 | AS177: 0 | AT177: 0 | AU177: 0 | AV177: 0 | AW177: 0 | AX177: 0 | AY177: 0 | AZ177: 0 | BA177: 0 | BB177: 0 | BC177: 0 | BD177: 0 | BE177: 0 | BF177: 0 | BG177: 0
F178: December | G178: =ROWS(G$139:G150) -> 12 | J178: =IF($G178=1,OFFSET(J150,TS_Mths_In_Yr-1,-1),OFFSET(J150,-1,)) -> 0 | K178: 0 | L178: 0 | M178: 0 | N178: 0 | O178: 0 | P178: 0 | Q178: 0 | R178: 0 | S178: 0 | T178: 0 | U178: 0 | V178: 0 | W178: 0 | X178: 0 | Y178: 0 | Z178: 0 | AA178: 0 | AB178: 0 | AC178: 0 | AD178: 0 | AE178: 0 | AF178: 0 | AG178: 0 | AH178: 0 | AI178: 0 | AJ178: 0 | AK178: 0 | AL178: 0 | AM178: 0 | AN178: 0 | AO178: 0 | AP178: =IF($G178=1,OFFSET(AP150,TS_Mths_In_Yr-1,-1),OFFSET(AP150,-1,)) -> 0 | AQ178: 0 | AR178: 0 | AS178: 0 | AT178: 0 | AU178: 0 | AV178: 0 | AW178: 0 | AX178: 0 | AY178: 0 | AZ178: 0 | BA178: 0 | BB178: 0 | BC178: 0 | BD178: 0 | BE178: 0 | BF178: 0 | BG178: 0
E180: CFC Calculation
F181: Rate | H181: =Project_Inputs!J61 -> 0.0466
F182: Minimum amount | H182: =Corporate_Inputs!H47 -> 100000
F184: =F125 -> January | J184: =IF(J167>$H$182,J167,0)*$H$181/TS_Mths_In_Yr -> 0 | K184: 0 | L184: 0 | M184: 0 | N184: 0 | O184: 0 | P184: 0 | Q184: 0 | R184: 0 | S184: 0 | T184: 0 | U184: 0 | V184: 0 | W184: 0 | X184: 0 | Y184: 0 | Z184: 0 | AA184: 0 | AB184: 0 | AC184: 0 | AD184: 0 | AE184: 0 | AF184: 0 | AG184: 0 | AH184: 0 | AI184: 0 | AJ184: 0 | AK184: 0 | AL184: 0 | AM184: 0 | AN184: 0 | AO184: 0 | AP184: =IF(AP167>$H$182,AP167,0)*$H$181/TS_Mths_In_Yr -> 0 | AQ184: 0 | AR184: 0 | AS184: 0 | AT184: 0 | AU184: 0 | AV184: 0 | AW184: 0 | AX184: 0 | AY184: 0 | AZ184: 0 | BA184: 0 | BB184: 0 | BC184: 0 | BD184: 0 | BE184: 0 | BF184: 0 | BG184: 0
F185: February | J185: =IF(J168>$H$182,J168,0)*$H$181/TS_Mths_In_Yr -> 0 | K185: 0 | L185: 0 | M185: 0 | N185: 0 | O185: 0 | P185: 0 | Q185: 0 | R185: 0 | S185: 0 | T185: 0 | U185: 0 | V185: 0 | W185: 0 | X185: 0 | Y185: 0 | Z185: 0 | AA185: 0 | AB185: 0 | AC185: 0 | AD185: 0 | AE185: 0 | AF185: 0 | AG185: 0 | AH185: 0 | AI185: 0 | AJ185: 0 | AK185: 0 | AL185: 0 | AM185: 0 | AN185: 0 | AO185: 0 | AP185: =IF(AP168>$H$182,AP168,0)*$H$181/TS_Mths_In_Yr -> 0 | AQ185: 0 | AR185: 0 | AS185: 0 | AT185: 0 | AU185: 0 | AV185: 0 | AW185: 0 | AX185: 0 | AY185: 0 | AZ185: 0 | BA185: 0 | BB185: 0 | BC185: 0 | BD185: 0 | BE185: 0 | BF185: 0 | BG185: 0
F186: March | J186: =IF(J169>$H$182,J169,0)*$H$181/TS_Mths_In_Yr -> 0 | K186: 0 | L186: 0 | M186: 0 | N186: 0 | O186: 0 | P186: 0 | Q186: 0 | R186: 0 | S186: 0 | T186: 0 | U186: 0 | V186: 0 | W186: 0 | X186: 0 | Y186: 0 | Z186: 0 | AA186: 0 | AB186: 0 | AC186: 0 | AD186: 0 | AE186: 0 | AF186: 0 | AG186: 0 | AH186: 0 | AI186: 0 | AJ186: 0 | AK186: 0 | AL186: 0 | AM186: 0 | AN186: 0 | AO186: 0 | AP186: =IF(AP169>$H$182,AP169,0)*$H$181/TS_Mths_In_Yr -> 0 | AQ186: 0 | AR186: 0 | AS186: 0 | AT186: 0 | AU186: 0 | AV186: 0 | AW186: 0 | AX186: 0 | AY186: 0 | AZ186: 0 | BA186: 0 | BB186: 0 | BC186: 0 | BD186: 0 | BE186: 0 | BF186: 0 | BG186: 0
F187: April | J187: =IF(J170>$H$182,J170,0)*$H$181/TS_Mths_In_Yr -> 0 | K187: 0 | L187: 0 | M187: 0 | N187: 0 | O187: 0 | P187: 0 | Q187: 0 | R187: 0 | S187: 0 | T187: 0 | U187: 0 | V187: 0 | W187: 0 | X187: 0 | Y187: 0 | Z187: 0 | AA187: 0 | AB187: 0 | AC187: 0 | AD187: 0 | AE187: 0 | AF187: 0 | AG187: 0 | AH187: 0 | AI187: 0 | AJ187: 0 | AK187: 0 | AL187: 0 | AM187: 0 | AN187: 0 | AO187: 0 | AP187: =IF(AP170>$H$182,AP170,0)*$H$181/TS_Mths_In_Yr -> 0 | AQ187: 0 | AR187: 0 | AS187: 0 | AT187: 0 | AU187: 0 | AV187: 0 | AW187: 0 | AX187: 0 | AY187: 0 | AZ187: 0 | BA187: 0 | BB187: 0 | BC187: 0 | BD187: 0 | BE187: 0 | BF187: 0 | BG187: 0
F188: May | J188: =IF(J171>$H$182,J171,0)*$H$181/TS_Mths_In_Yr -> 0 | K188: 0 | L188: 0 | M188: 0 | N188: 0 | O188: 0 | P188: 0 | Q188: 0 | R188: 0 | S188: 0 | T188: 0 | U188: 0 | V188: 0 | W188: 0 | X188: 0 | Y188: 0 | Z188: 0 | AA188: 0 | AB188: 0 | AC188: 0 | AD188: 0 | AE188: 0 | AF188: 0 | AG188: 0 | AH188: 0 | AI188: 0 | AJ188: 0 | AK188: 0 | AL188: 0 | AM188: 0 | AN188: 0 | AO188: 0 | AP188: =IF(AP171>$H$182,AP171,0)*$H$181/TS_Mths_In_Yr -> 0 | AQ188: 0 | AR188: 0 | AS188: 0 | AT188: 0 | AU188: 0 | AV188: 0 | AW188: 0 | AX188: 0 | AY188: 0 | AZ188: 0 | BA188: 0 | BB188: 0 | BC188: 0 | BD188: 0 | BE188: 0 | BF188: 0 | BG188: 0
F189: June | J189: =IF(J172>$H$182,J172,0)*$H$181/TS_Mths_In_Yr -> 0 | K189: 0 | L189: 0 | M189: 0 | N189: 0 | O189: 0 | P189: 0 | Q189: 0 | R189: 0 | S189: 0 | T189: 0 | U189: 0 | V189: 0 | W189: 0 | X189: 0 | Y189: 0 | Z189: 0 | AA189: 0 | AB189: 0 | AC189: 0 | AD189: 0 | AE189: 0 | AF189: 0 | AG189: 0 | AH189: 0 | AI189: 0 | AJ189: 0 | AK189: 0 | AL189: 0 | AM189: 0 | AN189: 0 | AO189: 0 | AP189: =IF(AP172>$H$182,AP172,0)*$H$181/TS_Mths_In_Yr -> 0 | AQ189: 0 | AR189: 0 | AS189: 0 | AT189: 0 | AU189: 0 | AV189: 0 | AW189: 0 | AX189: 0 | AY189: 0 | AZ189: 0 | BA189: 0 | BB189: 0 | BC189: 0 | BD189: 0 | BE189: 0 | BF189: 0 | BG189: 0
F190: July | J190: =IF(J173>$H$182,J173,0)*$H$181/TS_Mths_In_Yr -> 0 | K190: 0 | L190: 0 | M190: 0 | N190: 0 | O190: 0 | P190: 0 | Q190: 0 | R190: 0 | S190: 0 | T190: 0 | U190: 0 | V190: 0 | W190: 0 | X190: 0 | Y190: 0 | Z190: 0 | AA190: 0 | AB190: 0 | AC190: 0 | AD190: 0 | AE190: 0 | AF190: 0 | AG190: 0 | AH190: 0 | AI190: 0 | AJ190: 0 | AK190: 0 | AL190: 0 | AM190: 0 | AN190: 0 | AO190: 0 | AP190: =IF(AP173>$H$182,AP173,0)*$H$181/TS_Mths_In_Yr -> 0 | AQ190: 0 | AR190: 0 | AS190: 0 | AT190: 0 | AU190: 0 | AV190: 0 | AW190: 0 | AX190: 0 | AY190: 0 | AZ190: 0 | BA190: 0 | BB190: 0 | BC190: 0 | BD190: 0 | BE190: 0 | BF190: 0 | BG190: 0
F191: August | J191: =IF(J174>$H$182,J174,0)*$H$181/TS_Mths_In_Yr -> 0 | K191: 0 | L191: 0 | M191: 0 | N191: 0 | O191: 0 | P191: 0 | Q191: 0 | R191: 0 | S191: 0 | T191: 0 | U191: 0 | V191: 0 | W191: 0 | X191: 0 | Y191: 0 | Z191: 0 | AA191: 0 | AB191: 0 | AC191: 0 | AD191: 0 | AE191: 0 | AF191: 0 | AG191: 0 | AH191: 0 | AI191: 0 | AJ191: 0 | AK191: 0 | AL191: 0 | AM191: 0 | AN191: 0 | AO191: 0 | AP191: =IF(AP174>$H$182,AP174,0)*$H$181/TS_Mths_In_Yr -> 0 | AQ191: 0 | AR191: 0 | AS191: 0 | AT191: 0 | AU191: 0 | AV191: 0 | AW191: 0 | AX191: 0 | AY191: 0 | AZ191: 0 | BA191: 0 | BB191: 0 | BC191: 0 | BD191: 0 | BE191: 0 | BF191: 0 | BG191: 0
F192: September | J192: =IF(J175>$H$182,J175,0)*$H$181/TS_Mths_In_Yr -> 0 | K192: 0 | L192: 0 | M192: 0 | N192: 0 | O192: 0 | P192: 0 | Q192: 0 | R192: 0 | S192: 0 | T192: 0 | U192: 0 | V192: 0 | W192: 0 | X192: 0 | Y192: 0 | Z192: 0 | AA192: 0 | AB192: 0 | AC192: 0 | AD192: 0 | AE192: 0 | AF192: 0 | AG192: 0 | AH192: 0 | AI192: 0 | AJ192: 0 | AK192: 0 | AL192: 0 | AM192: 0 | AN192: 0 | AO192: 0 | AP192: =IF(AP175>$H$182,AP175,0)*$H$181/TS_Mths_In_Yr -> 0 | AQ192: 0 | AR192: 0 | AS192: 0 | AT192: 0 | AU192: 0 | AV192: 0 | AW192: 0 | AX192: 0 | AY192: 0 | AZ192: 0 | BA192: 0 | BB192: 0 | BC192: 0 | BD192: 0 | BE192: 0 | BF192: 0 | BG192: 0
F193: October | J193: =IF(J176>$H$182,J176,0)*$H$181/TS_Mths_In_Yr -> 0 | K193: 0 | L193: 0 | M193: 0 | N193: 0 | O193: 0 | P193: 0 | Q193: 0 | R193: 0 | S193: 0 | T193: 0 | U193: 0 | V193: 0 | W193: 0 | X193: 0 | Y193: 0 | Z193: 0 | AA193: 0 | AB193: 0 | AC193: 0 | AD193: 0 | AE193: 0 | AF193: 0 | AG193: 0 | AH193: 0 | AI193: 0 | AJ193: 0 | AK193: 0 | AL193: 0 | AM193: 0 | AN193: 0 | AO193: 0 | AP193: =IF(AP176>$H$182,AP176,0)*$H$181/TS_Mths_In_Yr -> 0 | AQ193: 0 | AR193: 0 | AS193: 0 | AT193: 0 | AU193: 0 | AV193: 0 | AW193: 0 | AX193: 0 | AY193: 0 | AZ193: 0 | BA193: 0 | BB193: 0 | BC193: 0 | BD193: 0 | BE193: 0 | BF193: 0 | BG193: 0
F194: November | J194: =IF(J177>$H$182,J177,0)*$H$181/TS_Mths_In_Yr -> 0 | K194: 0 | L194: 0 | M194: 0 | N194: 0 | O194: 0 | P194: 0 | Q194: 0 | R194: 0 | S194: 0 | T194: 0 | U194: 0 | V194: 0 | W194: 0 | X194: 0 | Y194: 0 | Z194: 0 | AA194: 0 | AB194: 0 | AC194: 0 | AD194: 0 | AE194: 0 | AF194: 0 | AG194: 0 | AH194: 0 | AI194: 0 | AJ194: 0 | AK194: 0 | AL194: 0 | AM194: 0 | AN194: 0 | AO194: 0 | AP194: =IF(AP177>$H$182,AP177,0)*$H$181/TS_Mths_In_Yr -> 0 | AQ194: 0 | AR194: 0 | AS194: 0 | AT194: 0 | AU194: 0 | AV194: 0 | AW194: 0 | AX194: 0 | AY194: 0 | AZ194: 0 | BA194: 0 | BB194: 0 | BC194: 0 | BD194: 0 | BE194: 0 | BF194: 0 | BG194: 0
F195: December | J195: =IF(J178>$H$182,J178,0)*$H$181/TS_Mths_In_Yr -> 0 | K195: 0 | L195: 0 | M195: 0 | N195: 0 | O195: 0 | P195: 0 | Q195: 0 | R195: 0 | S195: 0 | T195: 0 | U195: 0 | V195: 0 | W195: 0 | X195: 0 | Y195: 0 | Z195: 0 | AA195: 0 | AB195: 0 | AC195: 0 | AD195: 0 | AE195: 0 | AF195: 0 | AG195: 0 | AH195: 0 | AI195: 0 | AJ195: 0 | AK195: 0 | AL195: 0 | AM195: 0 | AN195: 0 | AO195: 0 | AP195: =IF(AP178>$H$182,AP178,0)*$H$181/TS_Mths_In_Yr -> 0 | AQ195: 0 | AR195: 0 | AS195: 0 | AT195: 0 | AU195: 0 | AV195: 0 | AW195: 0 | AX195: 0 | AY195: 0 | AZ195: 0 | BA195: 0 | BB195: 0 | BC195: 0 | BD195: 0 | BE195: 0 | BF195: 0 | BG195: 0
F197: CFCs added to capex amount for approval | J197: =SUM(J184:J195) -> 0 | K197: 0 | L197: 0 | M197: 0 | N197: 0 | O197: 0 | P197: 0 | Q197: 0 | R197: 0 | S197: 0 | T197: 0 | U197: 0 | V197: 0 | W197: 0 | X197: 0 | Y197: 0 | Z197: 0 | AA197: 0 | AB197: 0 | AC197: 0 | AD197: 0 | AE197: 0 | AF197: 0 | AG197: 0 | AH197: 0 | AI197: 0 | AJ197: 0 | AK197: 0 | AL197: 0 | AM197: 0 | AN197: 0 | AO197: 0 | AP197: =SUM(AP184:AP195) -> 0 | AQ197: 0 | AR197: 0 | AS197: 0 | AT197: 0 | AU197: 0 | AV197: 0 | AW197: 0 | AX197: 0 | AY197: 0 | AZ197: 0 | BA197: 0 | BB197: 0 | BC197: 0 | BD197: 0 | BE197: 0 | BF197: 0 | BG197: 0 | BI197: =SUMPRODUCT($J$11:$BG$11,J197:BG197) -> 0
D200: Operating Expenditure (enter costs as positive numbers and savings as negative numbers)
E202: =IF(G217,"","Ongoing Opex from BAU") ->  | J202: 0 | K202: 0 | L202: 0 | M202: 0 | N202: 0 | O202: 0 | P202: 0 | Q202: 0 | R202: 0 | S202: 0 | T202: 0 | U202: 0 | V202: 0 | W202: 0 | X202: 0 | Y202: 0 | Z202: 0 | AA202: 0 | AB202: 0 | AC202: 0 | AD202: 0 | AE202: 0 | AF202: 0 | AG202: 0 | AH202: 0 | AI202: 0 | AJ202: 0 | AK202: 0 | AL202: 0 | AM202: 0 | AN202: 0 | AO202: 0 | AP202: 0 | AQ202: 0 | AR202: 0 | AS202: 0 | AT202: 0 | AU202: 0 | AV202: 0 | AW202: 0 | AX202: 0 | AY202: 0 | AZ202: 0 | BA202: 0 | BB202: 0 | BC202: 0 | BD202: 0 | BE202: 0 | BF202: 0 | BG202: 0
E205: =F219 -> Ongoing Opex (positive numbers) | I205: Specify Division:
E207: =IF(E205="Project/Implementation Cost (Opex for approval) (positive numbers)",0,1) -> 1 | J207: 0 | K207: 0 | L207: 0 | M207: 0 | N207: 0 | O207: 0 | P207: 0 | Q207: 0 | R207: 0 | S207: 0 | T207: 0 | U207: 0 | V207: 0 | W207: 0 | X207: 0 | Y207: 0 | Z207: 0 | AA207: 0 | AB207: 0 | AC207: 0 | AD207: 0 | AE207: 0 | AF207: 0 | AG207: 0 | AH207: 0 | AI207: 0 | AJ207: 0 | AK207: 0 | AL207: 0 | AM207: 0 | AN207: 0 | AO207: 0 | AP207: 0 | AQ207: 0 | AR207: 0 | AS207: 0 | AT207: 0 | AU207: 0 | AV207: 0 | AW207: 0 | AX207: 0 | AY207: 0 | AZ207: 0 | BA207: 0 | BB207: 0 | BC207: 0 | BD207: 0 | BE207: 0 | BF207: 0 | BG207: 0
E208: =E207 -> 1 | J208: 0 | K208: 0 | L208: 0 | M208: 0 | N208: 0 | O208: 0 | P208: 0 | Q208: 0 | R208: 0 | S208: 0 | T208: 0 | U208: 0 | V208: 0 | W208: 0 | X208: 0 | Y208: 0 | Z208: 0 | AA208: 0 | AB208: 0 | AC208: 0 | AD208: 0 | AE208: 0 | AF208: 0 | AG208: 0 | AH208: 0 | AI208: 0 | AJ208: 0 | AK208: 0 | AL208: 0 | AM208: 0 | AN208: 0 | AO208: 0 | AP208: 0 | AQ208: 0 | AR208: 0 | AS208: 0 | AT208: 0 | AU208: 0 | AV208: 0 | AW208: 0 | AX208: 0 | AY208: 0 | AZ208: 0 | BA208: 0 | BB208: 0 | BC208: 0 | BD208: 0 | BE208: 0 | BF208: 0 | BG208: 0
E209: 1 | J209: 0 | K209: 0 | L209: 0 | M209: 0 | N209: 0 | O209: 0 | P209: 0 | Q209: 0 | R209: 0 | S209: 0 | T209: 0 | U209: 0 | V209: 0 | W209: 0 | X209: 0 | Y209: 0 | Z209: 0 | AA209: 0 | AB209: 0 | AC209: 0 | AD209: 0 | AE209: 0 | AF209: 0 | AG209: 0 | AH209: 0 | AI209: 0 | AJ209: 0 | AK209: 0 | AL209: 0 | AM209: 0 | AN209: 0 | AO209: 0 | AP209: 0 | AQ209: 0 | AR209: 0 | AS209: 0 | AT209: 0 | AU209: 0 | AV209: 0 | AW209: 0 | AX209: 0 | AY209: 0 | AZ209: 0 | BA209: 0 | BB209: 0 | BC209: 0 | BD209: 0 | BE209: 0 | BF209: 0 | BG209: 0
E210: 1 | J210: 0 | K210: 0 | L210: 0 | M210: 0 | N210: 0 | O210: 0 | P210: 0 | Q210: 0 | R210: 0 | S210: 0 | T210: 0 | U210: 0 | V210: 0 | W210: 0 | X210: 0 | Y210: 0 | Z210: 0 | AA210: 0 | AB210: 0 | AC210: 0 | AD210: 0 | AE210: 0 | AF210: 0 | AG210: 0 | AH210: 0 | AI210: 0 | AJ210: 0 | AK210: 0 | AL210: 0 | AM210: 0 | AN210: 0 | AO210: 0 | AP210: 0 | AQ210: 0 | AR210: 0 | AS210: 0 | AT210: 0 | AU210: 0 | AV210: 0 | AW210: 0 | AX210: 0 | AY210: 0 | AZ210: 0 | BA210: 0 | BB210: 0 | BC210: 0 | BD210: 0 | BE210: 0 | BF210: 0 | BG210: 0
E211: 1 | J211: 0 | K211: 0 | L211: 0 | M211: 0 | N211: 0 | O211: 0 | P211: 0 | Q211: 0 | R211: 0 | S211: 0 | T211: 0 | U211: 0 | V211: 0 | W211: 0 | X211: 0 | Y211: 0 | Z211: 0 | AA211: 0 | AB211: 0 | AC211: 0 | AD211: 0 | AE211: 0 | AF211: 0 | AG211: 0 | AH211: 0 | AI211: 0 | AJ211: 0 | AK211: 0 | AL211: 0 | AM211: 0 | AN211: 0 | AO211: 0 | AP211: 0 | AQ211: 0 | AR211: 0 | AS211: 0 | AT211: 0 | AU211: 0 | AV211: 0 | AW211: 0 | AX211: 0 | AY211: 0 | AZ211: 0 | BA211: 0 | BB211: 0 | BC211: 0 | BD211: 0 | BE211: 0 | BF211: 0 | BG211: 0
E212: 1 | J212: 0 | K212: 0 | L212: 0 | M212: 0 | N212: 0 | O212: 0 | P212: 0 | Q212: 0 | R212: 0 | S212: 0 | T212: 0 | U212: 0 | V212: 0 | W212: 0 | X212: 0 | Y212: 0 | Z212: 0 | AA212: 0 | AB212: 0 | AC212: 0 | AD212: 0 | AE212: 0 | AF212: 0 | AG212: 0 | AH212: 0 | AI212: 0 | AJ212: 0 | AK212: 0 | AL212: 0 | AM212: 0 | AN212: 0 | AO212: 0 | AP212: 0 | AQ212: 0 | AR212: 0 | AS212: 0 | AT212: 0 | AU212: 0 | AV212: 0 | AW212: 0 | AX212: 0 | AY212: 0 | AZ212: 0 | BA212: 0 | BB212: 0 | BC212: 0 | BD212: 0 | BE212: 0 | BF212: 0 | BG212: 0
E213: 1 | J213: 0 | K213: 0 | L213: 0 | M213: 0 | N213: 0 | O213: 0 | P213: 0 | Q213: 0 | R213: 0 | S213: 0 | T213: 0 | U213: 0 | V213: 0 | W213: 0 | X213: 0 | Y213: 0 | Z213: 0 | AA213: 0 | AB213: 0 | AC213: 0 | AD213: 0 | AE213: 0 | AF213: 0 | AG213: 0 | AH213: 0 | AI213: 0 | AJ213: 0 | AK213: 0 | AL213: 0 | AM213: 0 | AN213: 0 | AO213: 0 | AP213: 0 | AQ213: 0 | AR213: 0 | AS213: 0 | AT213: 0 | AU213: 0 | AV213: 0 | AW213: 0 | AX213: 0 | AY213: 0 | AZ213: 0 | BA213: 0 | BB213: 0 | BC213: 0 | BD213: 0 | BE213: 0 | BF213: 0 | BG213: 0
E214: =E213 -> 1 | J214: 0 | K214: 0 | L214: 0 | M214: 0 | N214: 0 | O214: 0 | P214: 0 | Q214: 0 | R214: 0 | S214: 0 | T214: 0 | U214: 0 | V214: 0 | W214: 0 | X214: 0 | Y214: 0 | Z214: 0 | AA214: 0 | AB214: 0 | AC214: 0 | AD214: 0 | AE214: 0 | AF214: 0 | AG214: 0 | AH214: 0 | AI214: 0 | AJ214: 0 | AK214: 0 | AL214: 0 | AM214: 0 | AN214: 0 | AO214: 0 | AP214: 0 | AQ214: 0 | AR214: 0 | AS214: 0 | AT214: 0 | AU214: 0 | AV214: 0 | AW214: 0 | AX214: 0 | AY214: 0 | AZ214: 0 | BA214: 0 | BB214: 0 | BC214: 0 | BD214: 0 | BE214: 0 | BF214: 0 | BG214: 0
F215: ="Total "&E205 -> Total Ongoing Opex (positive numbers) | I215: =CHOOSE(I219,IF(MIN(J215:BG215)<0,"Postive # Only",""),IF(MAX(J215:BG215)>0,"Negative # Only","")) ->  | J215: =SUM(J207:J214)*J$16 -> 0 | K215: 0 | L215: 0 | M215: 0 | N215: 0 | O215: 0 | P215: 0 | Q215: 0 | R215: 0 | S215: 0 | T215: 0 | U215: 0 | V215: 0 | W215: 0 | X215: 0 | Y215: 0 | Z215: 0 | AA215: 0 | AB215: 0 | AC215: 0 | AD215: 0 | AE215: 0 | AF215: 0 | AG215: 0 | AH215: 0 | AI215: 0 | AJ215: 0 | AK215: 0 | AL215: 0 | AM215: 0 | AN215: 0 | AO215: 0 | AP215: =SUM(AP207:AP214)*AP$16 -> 0 | AQ215: 0 | AR215: 0 | AS215: 0 | AT215: 0 | AU215: 0 | AV215: 0 | AW215: 0 | AX215: 0 | AY215: 0 | AZ215: 0 | BA215: 0 | BB215: 0 | BC215: 0 | BD215: 0 | BE215: 0 | BF215: 0 | BG215: 0 | BI215: =SUMPRODUCT($J$11:$BG$11,J215:BG215) -> 0
I216: =IF(SUM(J216:BG216)<>0,"ERROR CHECK: Savings cannot be greater than BAU cost","") ->  | J216: =IF(-J215>J$202,1,"") ->  | AP216: =IF(-AP215>AP$202,1,"") -> 
G217: =IF($G$22="BAU",1,0) -> 1
E219: =E207 -> 1 | F219: =BAU_LU!D10 -> Ongoing Opex (positive numbers) | I219: =IF(ROWS(I$219:I219)=3,2,1) -> 1 | J219: =J215 -> 0 | K219: 0 | L219: 0 | M219: 0 | N219: 0 | O219: 0 | P219: 0 | Q219: 0 | R219: 0 | S219: 0 | T219: 0 | U219: 0 | V219: 0 | W219: 0 | X219: 0 | Y219: 0 | Z219: 0 | AA219: 0 | AB219: 0 | AC219: 0 | AD219: 0 | AE219: 0 | AF219: 0 | AG219: 0 | AH219: 0 | AI219: 0 | AJ219: 0 | AK219: 0 | AL219: 0 | AM219: 0 | AN219: 0 | AO219: 0 | AP219: =AP215 -> 0 | AQ219: 0 | AR219: 0 | AS219: 0 | AT219: 0 | AU219: 0 | AV219: 0 | AW219: 0 | AX219: 0 | AY219: 0 | AZ219: 0 | BA219: 0 | BB219: 0 | BC219: 0 | BD219: 0 | BE219: 0 | BF219: 0 | BG219: 0 | BI219: =SUMPRODUCT($J$11:$BG$11,J219:BG219) -> 0
F220: Total Opex | J220: =SUM(J219:J219)+J202 -> 0 | K220: 0 | L220: 0 | M220: 0 | N220: 0 | O220: 0 | P220: 0 | Q220: 0 | R220: 0 | S220: 0 | T220: 0 | U220: 0 | V220: 0 | W220: 0 | X220: 0 | Y220: 0 | Z220: 0 | AA220: 0 | AB220: 0 | AC220: 0 | AD220: 0 | AE220: 0 | AF220: 0 | AG220: 0 | AH220: 0 | AI220: 0 | AJ220: 0 | AK220: 0 | AL220: 0 | AM220: 0 | AN220: 0 | AO220: 0 | AP220: =SUM(AP219:AP219)+AP202 -> 0 | AQ220: 0 | AR220: 0 | AS220: 0 | AT220: 0 | AU220: 0 | AV220: 0 | AW220: 0 | AX220: 0 | AY220: 0 | AZ220: 0 | BA220: 0 | BB220: 0 | BC220: 0 | BD220: 0 | BE220: 0 | BF220: 0 | BG220: 0 | BI220: =SUMPRODUCT($J$11:$BG$11,J220:BG220) -> 0
F222: Net Opex (link out) | J222: =SUM(J202,J219:J219) -> 0 | K222: 0 | L222: 0 | M222: 0 | N222: 0 | O222: 0 | P222: 0 | Q222: 0 | R222: 0 | S222: 0 | T222: 0 | U222: 0 | V222: 0 | W222: 0 | X222: 0 | Y222: 0 | Z222: 0 | AA222: 0 | AB222: 0 | AC222: 0 | AD222: 0 | AE222: 0 | AF222: 0 | AG222: 0 | AH222: 0 | AI222: 0 | AJ222: 0 | AK222: 0 | AL222: 0 | AM222: 0 | AN222: 0 | AO222: 0 | AP222: =SUM(AP202,AP219:AP219) -> 0 | AQ222: 0 | AR222: 0 | AS222: 0 | AT222: 0 | AU222: 0 | AV222: 0 | AW222: 0 | AX222: 0 | AY222: 0 | AZ222: 0 | BA222: 0 | BB222: 0 | BC222: 0 | BD222: 0 | BE222: 0 | BF222: 0 | BG222: 0 | BI222: =SUMPRODUCT($J$11:$BG$11,J222:BG222) -> 0
E224: BAU Summary by Division
F226: =Corporate_Inputs!F86 -> Digital | J226: =SUMIFS(J$204:J$217,$I$204:$I$217,$F226,$E$204:$E$217,1) -> 0 | K226: 0 | L226: 0 | M226: 0 | N226: 0 | O226: 0 | P226: 0 | Q226: 0 | R226: 0 | S226: 0 | T226: 0 | U226: 0 | V226: 0 | W226: 0 | X226: 0 | Y226: 0 | Z226: 0 | AA226: 0 | AB226: 0 | AC226: 0 | AD226: 0 | AE226: 0 | AF226: 0 | AG226: 0 | AH226: 0 | AI226: 0 | AJ226: 0 | AK226: 0 | AL226: 0 | AM226: 0 | AN226: 0 | AO226: 0 | AP226: =SUMIFS(AP$204:AP$217,$I$204:$I$217,$F226,$E$204:$E$217,1) -> 0 | AQ226: 0 | AR226: 0 | AS226: 0 | AT226: 0 | AU226: 0 | AV226: 0 | AW226: 0 | AX226: 0 | AY226: 0 | AZ226: 0 | BA226: 0 | BB226: 0 | BC226: 0 | BD226: 0 | BE226: 0 | BF226: 0 | BG226: 0 | BI226: =SUMPRODUCT($J$11:$BG$11,J226:BG226) -> 0
F227: =Corporate_Inputs!F87 -> Governance | J227: =SUMIFS(J$204:J$217,$I$204:$I$217,$F227,$E$204:$E$217,1) -> 0 | K227: 0 | L227: 0 | M227: 0 | N227: 0 | O227: 0 | P227: 0 | Q227: 0 | R227: 0 | S227: 0 | T227: 0 | U227: 0 | V227: 0 | W227: 0 | X227: 0 | Y227: 0 | Z227: 0 | AA227: 0 | AB227: 0 | AC227: 0 | AD227: 0 | AE227: 0 | AF227: 0 | AG227: 0 | AH227: 0 | AI227: 0 | AJ227: 0 | AK227: 0 | AL227: 0 | AM227: 0 | AN227: 0 | AO227: 0 | AP227: =SUMIFS(AP$204:AP$217,$I$204:$I$217,$F227,$E$204:$E$217,1) -> 0 | AQ227: 0 | AR227: 0 | AS227: 0 | AT227: 0 | AU227: 0 | AV227: 0 | AW227: 0 | AX227: 0 | AY227: 0 | AZ227: 0 | BA227: 0 | BB227: 0 | BC227: 0 | BD227: 0 | BE227: 0 | BF227: 0 | BG227: 0 | BI227: 0
F228: =Corporate_Inputs!F88 -> Growth & Future Networks | J228: =SUMIFS(J$204:J$217,$I$204:$I$217,$F228,$E$204:$E$217,1) -> 0 | K228: 0 | L228: 0 | M228: 0 | N228: 0 | O228: 0 | P228: 0 | Q228: 0 | R228: 0 | S228: 0 | T228: 0 | U228: 0 | V228: 0 | W228: 0 | X228: 0 | Y228: 0 | Z228: 0 | AA228: 0 | AB228: 0 | AC228: 0 | AD228: 0 | AE228: 0 | AF228: 0 | AG228: 0 | AH228: 0 | AI228: 0 | AJ228: 0 | AK228: 0 | AL228: 0 | AM228: 0 | AN228: 0 | AO228: 0 | AP228: =SUMIFS(AP$204:AP$217,$I$204:$I$217,$F228,$E$204:$E$217,1) -> 0 | AQ228: 0 | AR228: 0 | AS228: 0 | AT228: 0 | AU228: 0 | AV228: 0 | AW228: 0 | AX228: 0 | AY228: 0 | AZ228: 0 | BA228: 0 | BB228: 0 | BC228: 0 | BD228: 0 | BE228: 0 | BF228: 0 | BG228: 0 | BI228: 0
F229: =Corporate_Inputs!F89 -> Finance | J229: =SUMIFS(J$204:J$217,$I$204:$I$217,$F229,$E$204:$E$217,1) -> 0 | K229: 0 | L229: 0 | M229: 0 | N229: 0 | O229: 0 | P229: 0 | Q229: 0 | R229: 0 | S229: 0 | T229: 0 | U229: 0 | V229: 0 | W229: 0 | X229: 0 | Y229: 0 | Z229: 0 | AA229: 0 | AB229: 0 | AC229: 0 | AD229: 0 | AE229: 0 | AF229: 0 | AG229: 0 | AH229: 0 | AI229: 0 | AJ229: 0 | AK229: 0 | AL229: 0 | AM229: 0 | AN229: 0 | AO229: 0 | AP229: =SUMIFS(AP$204:AP$217,$I$204:$I$217,$F229,$E$204:$E$217,1) -> 0 | AQ229: 0 | AR229: 0 | AS229: 0 | AT229: 0 | AU229: 0 | AV229: 0 | AW229: 0 | AX229: 0 | AY229: 0 | AZ229: 0 | BA229: 0 | BB229: 0 | BC229: 0 | BD229: 0 | BE229: 0 | BF229: 0 | BG229: 0 | BI229: 0
F230: =Corporate_Inputs!F90 -> Network Management | J230: =SUMIFS(J$204:J$217,$I$204:$I$217,$F230,$E$204:$E$217,1) -> 0 | K230: 0 | L230: 0 | M230: 0 | N230: 0 | O230: 0 | P230: 0 | Q230: 0 | R230: 0 | S230: 0 | T230: 0 | U230: 0 | V230: 0 | W230: 0 | X230: 0 | Y230: 0 | Z230: 0 | AA230: 0 | AB230: 0 | AC230: 0 | AD230: 0 | AE230: 0 | AF230: 0 | AG230: 0 | AH230: 0 | AI230: 0 | AJ230: 0 | AK230: 0 | AL230: 0 | AM230: 0 | AN230: 0 | AO230: 0 | AP230: =SUMIFS(AP$204:AP$217,$I$204:$I$217,$F230,$E$204:$E$217,1) -> 0 | AQ230: 0 | AR230: 0 | AS230: 0 | AT230: 0 | AU230: 0 | AV230: 0 | AW230: 0 | AX230: 0 | AY230: 0 | AZ230: 0 | BA230: 0 | BB230: 0 | BC230: 0 | BD230: 0 | BE230: 0 | BF230: 0 | BG230: 0 | BI230: 0
F231: =Corporate_Inputs!F91 -> Network Operations | J231: =SUMIFS(J$204:J$217,$I$204:$I$217,$F231,$E$204:$E$217,1) -> 0 | K231: 0 | L231: 0 | M231: 0 | N231: 0 | O231: 0 | P231: 0 | Q231: 0 | R231: 0 | S231: 0 | T231: 0 | U231: 0 | V231: 0 | W231: 0 | X231: 0 | Y231: 0 | Z231: 0 | AA231: 0 | AB231: 0 | AC231: 0 | AD231: 0 | AE231: 0 | AF231: 0 | AG231: 0 | AH231: 0 | AI231: 0 | AJ231: 0 | AK231: 0 | AL231: 0 | AM231: 0 | AN231: 0 | AO231: 0 | AP231: =SUMIFS(AP$204:AP$217,$I$204:$I$217,$F231,$E$204:$E$217,1) -> 0 | AQ231: 0 | AR231: 0 | AS231: 0 | AT231: 0 | AU231: 0 | AV231: 0 | AW231: 0 | AX231: 0 | AY231: 0 | AZ231: 0 | BA231: 0 | BB231: 0 | BC231: 0 | BD231: 0 | BE231: 0 | BF231: 0 | BG231: 0 | BI231: 0
F232: =Corporate_Inputs!F92 -> People & Safety | J232: =SUMIFS(J$204:J$217,$I$204:$I$217,$F232,$E$204:$E$217,1) -> 0 | K232: 0 | L232: 0 | M232: 0 | N232: 0 | O232: 0 | P232: 0 | Q232: 0 | R232: 0 | S232: 0 | T232: 0 | U232: 0 | V232: 0 | W232: 0 | X232: 0 | Y232: 0 | Z232: 0 | AA232: 0 | AB232: 0 | AC232: 0 | AD232: 0 | AE232: 0 | AF232: 0 | AG232: 0 | AH232: 0 | AI232: 0 | AJ232: 0 | AK232: 0 | AL232: 0 | AM232: 0 | AN232: 0 | AO232: 0 | AP232: =SUMIFS(AP$204:AP$217,$I$204:$I$217,$F232,$E$204:$E$217,1) -> 0 | AQ232: 0 | AR232: 0 | AS232: 0 | AT232: 0 | AU232: 0 | AV232: 0 | AW232: 0 | AX232: 0 | AY232: 0 | AZ232: 0 | BA232: 0 | BB232: 0 | BC232: 0 | BD232: 0 | BE232: 0 | BF232: 0 | BG232: 0 | BI232: 0
F233: =Corporate_Inputs!F93 -> Regulation & External Affairs | J233: =SUMIFS(J$204:J$217,$I$204:$I$217,$F233,$E$204:$E$217,1) -> 0 | K233: 0 | L233: 0 | M233: 0 | N233: 0 | O233: 0 | P233: 0 | Q233: 0 | R233: 0 | S233: 0 | T233: 0 | U233: 0 | V233: 0 | W233: 0 | X233: 0 | Y233: 0 | Z233: 0 | AA233: 0 | AB233: 0 | AC233: 0 | AD233: 0 | AE233: 0 | AF233: 0 | AG233: 0 | AH233: 0 | AI233: 0 | AJ233: 0 | AK233: 0 | AL233: 0 | AM233: 0 | AN233: 0 | AO233: 0 | AP233: =SUMIFS(AP$204:AP$217,$I$204:$I$217,$F233,$E$204:$E$217,1) -> 0 | AQ233: 0 | AR233: 0 | AS233: 0 | AT233: 0 | AU233: 0 | AV233: 0 | AW233: 0 | AX233: 0 | AY233: 0 | AZ233: 0 | BA233: 0 | BB233: 0 | BC233: 0 | BD233: 0 | BE233: 0 | BF233: 0 | BG233: 0 | BI233: 0
F234: =Corporate_Inputs!F94 -> Transformation | J234: =SUMIFS(J$204:J$217,$I$204:$I$217,$F234,$E$204:$E$217,1) -> 0 | K234: 0 | L234: 0 | M234: 0 | N234: 0 | O234: 0 | P234: 0 | Q234: 0 | R234: 0 | S234: 0 | T234: 0 | U234: 0 | V234: 0 | W234: 0 | X234: 0 | Y234: 0 | Z234: 0 | AA234: 0 | AB234: 0 | AC234: 0 | AD234: 0 | AE234: 0 | AF234: 0 | AG234: 0 | AH234: 0 | AI234: 0 | AJ234: 0 | AK234: 0 | AL234: 0 | AM234: 0 | AN234: 0 | AO234: 0 | AP234: =SUMIFS(AP$204:AP$217,$I$204:$I$217,$F234,$E$204:$E$217,1) -> 0 | AQ234: 0 | AR234: 0 | AS234: 0 | AT234: 0 | AU234: 0 | AV234: 0 | AW234: 0 | AX234: 0 | AY234: 0 | AZ234: 0 | BA234: 0 | BB234: 0 | BC234: 0 | BD234: 0 | BE234: 0 | BF234: 0 | BG234: 0 | BI234: 0
F235: Total | J235: =SUM(J226:J234) -> 0 | K235: 0 | L235: 0 | M235: 0 | N235: 0 | O235: 0 | P235: 0 | Q235: 0 | R235: 0 | S235: 0 | T235: 0 | U235: 0 | V235: 0 | W235: 0 | X235: 0 | Y235: 0 | Z235: 0 | AA235: 0 | AB235: 0 | AC235: 0 | AD235: 0 | AE235: 0 | AF235: 0 | AG235: 0 | AH235: 0 | AI235: 0 | AJ235: 0 | AK235: 0 | AL235: 0 | AM235: 0 | AN235: 0 | AO235: 0 | AP235: =SUM(AP226:AP234) -> 0 | AQ235: 0 | AR235: 0 | AS235: 0 | AT235: 0 | AU235: 0 | AV235: 0 | AW235: 0 | AX235: 0 | AY235: 0 | AZ235: 0 | BA235: 0 | BB235: 0 | BC235: 0 | BD235: 0 | BE235: 0 | BF235: 0 | BG235: 0 | BI235: =SUM(BI226:BI234) -> 0
I237: =IF(SUM(J237:BG237)=0,0,"Division input missing") -> 0 | J237: =SUMIF($E$219:$E$219,1,J$219:J$219)-J235 -> 0 | K237: 0 | L237: 0 | M237: 0 | N237: 0 | O237: 0 | P237: 0 | Q237: 0 | R237: 0 | S237: 0 | T237: 0 | U237: 0 | V237: 0 | W237: 0 | X237: 0 | Y237: 0 | Z237: 0 | AA237: 0 | AB237: 0 | AC237: 0 | AD237: 0 | AE237: 0 | AF237: 0 | AG237: 0 | AH237: 0 | AI237: 0 | AJ237: 0 | AK237: 0 | AL237: 0 | AM237: 0 | AN237: 0 | AO237: 0 | AP237: =SUMIF($E$219:$E$219,1,AP$219:AP$219)-AP235 -> 0 | AQ237: 0 | AR237: 0 | AS237: 0 | AT237: 0 | AU237: 0 | AV237: 0 | AW237: 0 | AX237: 0 | AY237: 0 | AZ237: 0 | BA237: 0 | BB237: 0 | BC237: 0 | BD237: 0 | BE237: 0 | BF237: 0 | BG237: 0
D240: Retired/Sold Assets including Written Down Assets (Writeoff) - BAU
D241: Note: Only expand this section if Assets are required to be sold or written down to support the BAU option. Click the '+' to the left to expand.
D242: In the event undertaking a project results in an existing asset being sold or written off, the remaining value and useful life of this asset must be entered here
D243: Inputs entered here impacts revenue (NPV) in the case of asset being sold and reduces depreciation if the asset is sold or written off.
D244: Refer to Fixed Assets team for a Write-Down Value (WDV) calculation.
F245: Asset Category Name | G245: Sale or Writeoff | J245: Value | K245: Year | L245: Remaining useful life (yrs) | M245: Annual depreciation | N245: Year Value
G246: Asset Writeoff | K246: 1 | M246: =IFERROR(J246/L246,0) -> 0 | N246: =INDEX(LU_Opt_Years,K246,0) -> 2025 | O246: =IF(J246>0,IF(L246="","< ERROR CHECK: Enter Remaining useful life (yrs).",""),"") -> 
... 61 more rows

Sheet Opt1_Input
B1: =IF(G23=0,G22,G23)&" - Cost & Benefit Inputs" -> Option 1 - Cost & Benefit Inputs
B2: =Model_Name -> Business Case Evaluation Flexible Trading Arrangements
B5: ="Calendar Year Ending "&INDEX(LU_TS_Mth_Names,DD_TS_Fin_Yr_End_Mth) -> Calendar Year Ending December | J5: =J10 -> 2025 | K5: =K10 -> 2026 | L5: 2027 | M5: 2028 | N5: 2029 | O5: 2030 | P5: 2031 | Q5: 2032 | R5: 2033 | S5: 2034 | T5: 2035 | U5: 2036 | V5: 2037 | W5: 2038 | X5: 2039 | Y5: 2040 | Z5: 2041 | AA5: 2042 | AB5: 2043 | AC5: 2044 | AD5: 2045 | AE5: 2046 | AF5: 2047 | AG5: 2048 | AH5: 2049 | AI5: 2050 | AJ5: 2051 | AK5: 2052 | AL5: 2053 | AM5: 2054 | AN5: 2055 | AO5: 2056 | AP5: 2057 | AQ5: 2058 | AR5: 2059 | AS5: 2060 | AT5: 2061 | AU5: 2062 | AV5: 2063 | AW5: 2064 | AX5: 2065 | AY5: 2066 | AZ5: 2067 | BA5: 2068 | BB5: 2069 | BC5: 2070 | BD5: 2071 | BE5: 2072 | BF5: 2073 | BG5: 2074 | BI5: Total (Nominal)
B6: Period Start Date | J6: =EDATE(TS_Start_Date,(J8-1)*TS_Mths_In_Yr) -> 2025-01-01 | K6: 2026-01-01 | L6: 2027-01-01 | M6: 2028-01-01 | N6: 2029-01-01 | O6: 2030-01-01 | P6: 2031-01-01 | Q6: 2032-01-01 | R6: 2033-01-01 | S6: 2034-01-01 | T6: 2035-01-01 | U6: 2036-01-01 | V6: 2037-01-01 | W6: 2038-01-01 | X6: 2039-01-01 | Y6: 2040-01-01 | Z6: 2041-01-01 | AA6: 2042-01-01 | AB6: 2043-01-01 | AC6: 2044-01-01 | AD6: 2045-01-01 | AE6: 2046-01-01 | AF6: 2047-01-01 | AG6: 2048-01-01 | AH6: 2049-01-01 | AI6: 2050-01-01 | AJ6: 2051-01-01 | AK6: 2052-01-01 | AL6: 2053-01-01 | AM6: 2054-01-01 | AN6: 2055-01-01 | AO6: 2056-01-01 | AP6: 2057-01-01 | AQ6: 2058-01-01 | AR6: 2059-01-01 | AS6: 2060-01-01 | AT6: 2061-01-01 | AU6: 2062-01-01 | AV6: 2063-01-01 | AW6: 2064-01-01 | AX6: 2065-01-01 | AY6: 2066-01-01 | AZ6: 2067-01-01 | BA6: 2068-01-01 | BB6: 2069-01-01 | BC6: 2070-01-01 | BD6: 2071-01-01 | BE6: 2072-01-01 | BF6: 2073-01-01 | BG6: 2074-01-01
B7: Period End Date | J7: =EDATE(J6,TS_Mths_In_Yr)-1 -> 2025-12-31 | K7: 2026-12-31 | L7: 2027-12-31 | M7: 2028-12-31 | N7: 2029-12-31 | O7: 2030-12-31 | P7: 2031-12-31 | Q7: 2032-12-31 | R7: 2033-12-31 | S7: 2034-12-31 | T7: 2035-12-31 | U7: 2036-12-31 | V7: 2037-12-31 | W7: 2038-12-31 | X7: 2039-12-31 | Y7: 2040-12-31 | Z7: 2041-12-31 | AA7: 2042-12-31 | AB7: 2043-12-31 | AC7: 2044-12-31 | AD7: 2045-12-31 | AE7: 2046-12-31 | AF7: 2047-12-31 | AG7: 2048-12-31 | AH7: 2049-12-31 | AI7: 2050-12-31 | AJ7: 2051-12-31 | AK7: 2052-12-31 | AL7: 2053-12-31 | AM7: 2054-12-31 | AN7: 2055-12-31 | AO7: 2056-12-31 | AP7: 2057-12-31 | AQ7: 2058-12-31 | AR7: 2059-12-31 | AS7: 2060-12-31 | AT7: 2061-12-31 | AU7: 2062-12-31 | AV7: 2063-12-31 | AW7: 2064-12-31 | AX7: 2065-12-31 | AY7: 2066-12-31 | AZ7: 2067-12-31 | BA7: 2068-12-31 | BB7: 2069-12-31 | BC7: 2070-12-31 | BD7: 2071-12-31 | BE7: 2072-12-31 | BF7: 2073-12-31 | BG7: 2074-12-31
B8: ="Project Year" -> Project Year | J8: =COLUMNS($J8:J8) -> 1 | K8: =COLUMNS($J8:K8) -> 2 | L8: =COLUMNS($J8:L8) -> 3 | M8: =COLUMNS($J8:M8) -> 4 | N8: =COLUMNS($J8:N8) -> 5 | O8: =COLUMNS($J8:O8) -> 6 | P8: =COLUMNS($J8:P8) -> 7 | Q8: =COLUMNS($J8:Q8) -> 8 | R8: =COLUMNS($J8:R8) -> 9 | S8: =COLUMNS($J8:S8) -> 10 | T8: =COLUMNS($J8:T8) -> 11 | U8: =COLUMNS($J8:U8) -> 12 | V8: =COLUMNS($J8:V8) -> 13 | W8: =COLUMNS($J8:W8) -> 14 | X8: =COLUMNS($J8:X8) -> 15 | Y8: =COLUMNS($J8:Y8) -> 16 | Z8: =COLUMNS($J8:Z8) -> 17 | AA8: =COLUMNS($J8:AA8) -> 18 | AB8: =COLUMNS($J8:AB8) -> 19 | AC8: =COLUMNS($J8:AC8) -> 20 | AD8: =COLUMNS($J8:AD8) -> 21 | AE8: =COLUMNS($J8:AE8) -> 22 | AF8: =COLUMNS($J8:AF8) -> 23 | AG8: =COLUMNS($J8:AG8) -> 24 | AH8: =COLUMNS($J8:AH8) -> 25 | AI8: =COLUMNS($J8:AI8) -> 26 | AJ8: =COLUMNS($J8:AJ8) -> 27 | AK8: =COLUMNS($J8:AK8) -> 28 | AL8: =COLUMNS($J8:AL8) -> 29 | AM8: =COLUMNS($J8:AM8) -> 30 | AN8: =COLUMNS($J8:AN8) -> 31 | AO8: =COLUMNS($J8:AO8) -> 32 | AP8: =COLUMNS($J8:AP8) -> 33 | AQ8: =COLUMNS($J8:AQ8) -> 34 | AR8: =COLUMNS($J8:AR8) -> 35 | AS8: =COLUMNS($J8:AS8) -> 36 | AT8: =COLUMNS($J8:AT8) -> 37 | AU8: =COLUMNS($J8:AU8) -> 38 | AV8: =COLUMNS($J8:AV8) -> 39 | AW8: =COLUMNS($J8:AW8) -> 40 | AX8: =COLUMNS($J8:AX8) -> 41 | AY8: =COLUMNS($J8:AY8) -> 42 | AZ8: =COLUMNS($J8:AZ8) -> 43 | BA8: =COLUMNS($J8:BA8) -> 44 | BB8: =COLUMNS($J8:BB8) -> 45 | BC8: =COLUMNS($J8:BC8) -> 46 | BD8: =COLUMNS($J8:BD8) -> 47 | BE8: =COLUMNS($J8:BE8) -> 48 | BF8: =COLUMNS($J8:BF8) -> 49 | BG8: =COLUMNS($J8:BG8) -> 50
B9: Financial Year | J9: =YEAR(J7)+1 -> 2026 | K9: =YEAR(K7)+1 -> 2027 | L9: 2028 | M9: 2029 | N9: 2030 | O9: 2031 | P9: 2032 | Q9: 2033 | R9: 2034 | S9: 2035 | T9: 2036 | U9: 2037 | V9: 2038 | W9: 2039 | X9: 2040 | Y9: 2041 | Z9: 2042 | AA9: 2043 | AB9: 2044 | AC9: 2045 | AD9: 2046 | AE9: 2047 | AF9: 2048 | AG9: 2049 | AH9: 2050 | AI9: 2051 | AJ9: 2052 | AK9: 2053 | AL9: 2054 | AM9: 2055 | AN9: 2056 | AO9: 2057 | AP9: 2058 | AQ9: 2059 | AR9: 2060 | AS9: 2061 | AT9: 2062 | AU9: 2063 | AV9: 2064 | AW9: 2065 | AX9: 2066 | AY9: 2067 | AZ9: 2068 | BA9: 2069 | BB9: 2070 | BC9: 2071 | BD9: 2072 | BE9: 2073 | BF9: 2074 | BG9: 2075
B10: Calendar Year | J10: =J9-1 -> 2025 | K10: 2026 | L10: 2027 | M10: 2028 | N10: 2029 | O10: 2030 | P10: 2031 | Q10: 2032 | R10: 2033 | S10: 2034 | T10: 2035 | U10: 2036 | V10: 2037 | W10: 2038 | X10: 2039 | Y10: 2040 | Z10: 2041 | AA10: 2042 | AB10: 2043 | AC10: 2044 | AD10: 2045 | AE10: 2046 | AF10: 2047 | AG10: 2048 | AH10: 2049 | AI10: 2050 | AJ10: 2051 | AK10: 2052 | AL10: 2053 | AM10: 2054 | AN10: 2055 | AO10: 2056 | AP10: 2057 | AQ10: 2058 | AR10: 2059 | AS10: 2060 | AT10: 2061 | AU10: 2062 | AV10: 2063 | AW10: 2064 | AX10: 2065 | AY10: 2066 | AZ10: 2067 | BA10: 2068 | BB10: 2069 | BC10: 2070 | BD10: 2071 | BE10: 2072 | BF10: 2073 | BG10: 2074
B11: CPI index | J11: =(1+Project_Inputs!$H23)^(J$8-1) -> 1 | K11: =(1+Project_Inputs!$H23)^(K$8-1) -> 1.025 | L11: =(1+Project_Inputs!$H23)^(L$8-1) -> 1.050625 | M11: =(1+Project_Inputs!$H23)^(M$8-1) -> 1.076890625 | N11: =(1+Project_Inputs!$H23)^(N$8-1) -> 1.103812891 | O11: =(1+Project_Inputs!$H23)^(O$8-1) -> 1.131408213 | P11: =(1+Project_Inputs!$H23)^(P$8-1) -> 1.159693418 | Q11: =(1+Project_Inputs!$H23)^(Q$8-1) -> 1.188685754 | R11: =(1+Project_Inputs!$H23)^(R$8-1) -> 1.218402898 | S11: =(1+Project_Inputs!$H23)^(S$8-1) -> 1.24886297 | T11: =(1+Project_Inputs!$H23)^(T$8-1) -> 1.280084544 | U11: =(1+Project_Inputs!$H23)^(U$8-1) -> 1.312086658 | V11: =(1+Project_Inputs!$H23)^(V$8-1) -> 1.344888824 | W11: =(1+Project_Inputs!$H23)^(W$8-1) -> 1.378511045 | X11: =(1+Project_Inputs!$H23)^(X$8-1) -> 1.412973821 | Y11: =(1+Project_Inputs!$H23)^(Y$8-1) -> 1.448298166 | Z11: =(1+Project_Inputs!$H23)^(Z$8-1) -> 1.484505621 | AA11: =(1+Project_Inputs!$H23)^(AA$8-1) -> 1.521618261 | AB11: =(1+Project_Inputs!$H23)^(AB$8-1) -> 1.559658718 | AC11: =(1+Project_Inputs!$H23)^(AC$8-1) -> 1.598650186 | AD11: =(1+Project_Inputs!$H23)^(AD$8-1) -> 1.63861644 | AE11: =(1+Project_Inputs!$H23)^(AE$8-1) -> 1.679581851 | AF11: =(1+Project_Inputs!$H23)^(AF$8-1) -> 1.721571398 | AG11: =(1+Project_Inputs!$H23)^(AG$8-1) -> 1.764610683 | AH11: =(1+Project_Inputs!$H23)^(AH$8-1) -> 1.80872595 | AI11: =(1+Project_Inputs!$H23)^(AI$8-1) -> 1.853944098 | AJ11: =(1+Project_Inputs!$H23)^(AJ$8-1) -> 1.900292701 | AK11: =(1+Project_Inputs!$H23)^(AK$8-1) -> 1.947800018 | AL11: =(1+Project_Inputs!$H23)^(AL$8-1) -> 1.996495019 | AM11: =(1+Project_Inputs!$H23)^(AM$8-1) -> 2.046407394 | AN11: =(1+Project_Inputs!$H23)^(AN$8-1) -> 2.097567579 | AO11: =(1+Project_Inputs!$H23)^(AO$8-1) -> 2.150006769 | AP11: =(1+Project_Inputs!$H23)^(AP$8-1) -> 2.203756938 | AQ11: =(1+Project_Inputs!$H23)^(AQ$8-1) -> 2.258850861 | AR11: =(1+Project_Inputs!$H23)^(AR$8-1) -> 2.315322133 | AS11: =(1+Project_Inputs!$H23)^(AS$8-1) -> 2.373205186 | AT11: =(1+Project_Inputs!$H23)^(AT$8-1) -> 2.432535316 | AU11: =(1+Project_Inputs!$H23)^(AU$8-1) -> 2.493348699 | AV11: =(1+Project_Inputs!$H23)^(AV$8-1) -> 2.555682416 | AW11: =(1+Project_Inputs!$H23)^(AW$8-1) -> 2.619574476 | AX11: =(1+Project_Inputs!$H23)^(AX$8-1) -> 2.685063838 | AY11: =(1+Project_Inputs!$H23)^(AY$8-1) -> 2.752190434 | AZ11: =(1+Project_Inputs!$H23)^(AZ$8-1) -> 2.820995195 | BA11: =(1+Project_Inputs!$H23)^(BA$8-1) -> 2.891520075 | BB11: =(1+Project_Inputs!$H23)^(BB$8-1) -> 2.963808077 | BC11: =(1+Project_Inputs!$H23)^(BC$8-1) -> 3.037903279 | BD11: =(1+Project_Inputs!$H23)^(BD$8-1) -> 3.113850861 | BE11: =(1+Project_Inputs!$H23)^(BE$8-1) -> 3.191697132 | BF11: =(1+Project_Inputs!$H23)^(BF$8-1) -> 3.271489561 | BG11: =(1+Project_Inputs!$H23)^(BG$8-1) -> 3.3532768
B12: CPI Index (lagged) | J12: =IF(J8=1,1,I11) -> 1 | K12: 1 | L12: 1.025 | M12: 1.050625 | N12: 1.076890625 | O12: 1.103812891 | P12: 1.131408213 | Q12: 1.159693418 | R12: 1.188685754 | S12: 1.218402898 | T12: 1.24886297 | U12: 1.280084544 | V12: 1.312086658 | W12: 1.344888824 | X12: 1.378511045 | Y12: 1.412973821 | Z12: 1.448298166 | AA12: 1.484505621 | AB12: 1.521618261 | AC12: 1.559658718 | AD12: 1.598650186 | AE12: 1.63861644 | AF12: 1.679581851 | AG12: 1.721571398 | AH12: 1.764610683 | AI12: 1.80872595 | AJ12: 1.853944098 | AK12: 1.900292701 | AL12: 1.947800018 | AM12: 1.996495019 | AN12: 2.046407394 | AO12: 2.097567579 | AP12: =IF(AP8=1,1,AO11) -> 2.150006769 | AQ12: 2.203756938 | AR12: 2.258850861 | AS12: 2.315322133 | AT12: 2.373205186 | AU12: 2.432535316 | AV12: 2.493348699 | AW12: 2.555682416 | AX12: 2.619574476 | AY12: 2.685063838 | AZ12: 2.752190434 | BA12: 2.820995195 | BB12: 2.891520075 | BC12: 2.963808077 | BD12: 3.037903279 | BE12: 3.113850861 | BF12: 3.191697132 | BG12: 3.271489561
B13: Discount Index (post tax) | J13: =(1+Project_Inputs!$H24)^(J$8-1) -> 1 | K13: =(1+Project_Inputs!$H24)^(K$8-1) -> 1.0389176 | L13: =(1+Project_Inputs!$H24)^(L$8-1) -> 1.07934978 | M13: =(1+Project_Inputs!$H24)^(M$8-1) -> 1.121355483 | N13: =(1+Project_Inputs!$H24)^(N$8-1) -> 1.164995947 | O13: =(1+Project_Inputs!$H24)^(O$8-1) -> 1.210334793 | P13: =(1+Project_Inputs!$H24)^(P$8-1) -> 1.257438118 | Q13: =(1+Project_Inputs!$H24)^(Q$8-1) -> 1.306374592 | R13: =(1+Project_Inputs!$H24)^(R$8-1) -> 1.357215556 | S13: =(1+Project_Inputs!$H24)^(S$8-1) -> 1.410035128 | T13: =(1+Project_Inputs!$H24)^(T$8-1) -> 1.464910311 | U13: =(1+Project_Inputs!$H24)^(U$8-1) -> 1.521921105 | V13: =(1+Project_Inputs!$H24)^(V$8-1) -> 1.581150621 | W13: =(1+Project_Inputs!$H24)^(W$8-1) -> 1.642685209 | X13: =(1+Project_Inputs!$H24)^(X$8-1) -> 1.706614575 | Y13: =(1+Project_Inputs!$H24)^(Y$8-1) -> 1.773031918 | Z13: =(1+Project_Inputs!$H24)^(Z$8-1) -> 1.842034065 | AA13: =(1+Project_Inputs!$H24)^(AA$8-1) -> 1.91372161 | AB13: =(1+Project_Inputs!$H24)^(AB$8-1) -> 1.988199062 | AC13: =(1+Project_Inputs!$H24)^(AC$8-1) -> 2.065574998 | AD13: =(1+Project_Inputs!$H24)^(AD$8-1) -> 2.145962219 | AE13: =(1+Project_Inputs!$H24)^(AE$8-1) -> 2.229477919 | AF13: =(1+Project_Inputs!$H24)^(AF$8-1) -> 2.316243849 | AG13: =(1+Project_Inputs!$H24)^(AG$8-1) -> 2.4063865 | AH13: =(1+Project_Inputs!$H24)^(AH$8-1) -> 2.500037287 | AI13: =(1+Project_Inputs!$H24)^(AI$8-1) -> 2.597332738 | AJ13: =(1+Project_Inputs!$H24)^(AJ$8-1) -> 2.698414695 | AK13: =(1+Project_Inputs!$H24)^(AK$8-1) -> 2.803430519 | AL13: =(1+Project_Inputs!$H24)^(AL$8-1) -> 2.912533306 | AM13: =(1+Project_Inputs!$H24)^(AM$8-1) -> 3.025882113 | AN13: =(1+Project_Inputs!$H24)^(AN$8-1) -> 3.143642182 | AO13: =(1+Project_Inputs!$H24)^(AO$8-1) -> 3.265985191 | AP13: =(1+Project_Inputs!$H24)^(AP$8-1) -> 3.393089497 | AQ13: =(1+Project_Inputs!$H24)^(AQ$8-1) -> 3.525140396 | AR13: =(1+Project_Inputs!$H24)^(AR$8-1) -> 3.6623304 | AS13: =(1+Project_Inputs!$H24)^(AS$8-1) -> 3.80485951 | AT13: =(1+Project_Inputs!$H24)^(AT$8-1) -> 3.95293551 | AU13: =(1+Project_Inputs!$H24)^(AU$8-1) -> 4.106774273 | AV13: =(1+Project_Inputs!$H24)^(AV$8-1) -> 4.266600072 | AW13: =(1+Project_Inputs!$H24)^(AW$8-1) -> 4.432645907 | AX13: =(1+Project_Inputs!$H24)^(AX$8-1) -> 4.605153847 | AY13: =(1+Project_Inputs!$H24)^(AY$8-1) -> 4.784375382 | AZ13: =(1+Project_Inputs!$H24)^(AZ$8-1) -> 4.97057179 | BA13: =(1+Project_Inputs!$H24)^(BA$8-1) -> 5.164014514 | BB13: =(1+Project_Inputs!$H24)^(BB$8-1) -> 5.364985566 | BC13: =(1+Project_Inputs!$H24)^(BC$8-1) -> 5.573777928 | BD13: =(1+Project_Inputs!$H24)^(BD$8-1) -> 5.790695988 | BE13: =(1+Project_Inputs!$H24)^(BE$8-1) -> 6.016055978 | BF13: =(1+Project_Inputs!$H24)^(BF$8-1) -> 6.250186438 | BG13: =(1+Project_Inputs!$H24)^(BG$8-1) -> 6.493428694
B14: Discount Index (pre tax) | J14: =(1+Project_Inputs!$H25)^(J$8-1) -> 1 | K14: =(1+Project_Inputs!$H25)^(K$8-1) -> 1.055596571 | L14: =(1+Project_Inputs!$H25)^(L$8-1) -> 1.114284122 | M14: =(1+Project_Inputs!$H25)^(M$8-1) -> 1.176234498 | N14: =(1+Project_Inputs!$H25)^(N$8-1) -> 1.241629104 | O14: =(1+Project_Inputs!$H25)^(O$8-1) -> 1.310659425 | P14: =(1+Project_Inputs!$H25)^(P$8-1) -> 1.383527595 | Q14: =(1+Project_Inputs!$H25)^(Q$8-1) -> 1.460446986 | R14: =(1+Project_Inputs!$H25)^(R$8-1) -> 1.541642831 | S14: =(1+Project_Inputs!$H25)^(S$8-1) -> 1.627352887 | T14: =(1+Project_Inputs!$H25)^(T$8-1) -> 1.717828128 | U14: =(1+Project_Inputs!$H25)^(U$8-1) -> 1.813333482 | V14: =(1+Project_Inputs!$H25)^(V$8-1) -> 1.914148607 | W14: =(1+Project_Inputs!$H25)^(W$8-1) -> 2.020568706 | X14: =(1+Project_Inputs!$H25)^(X$8-1) -> 2.132905399 | Y14: =(1+Project_Inputs!$H25)^(Y$8-1) -> 2.251487626 | Z14: =(1+Project_Inputs!$H25)^(Z$8-1) -> 2.376662619 | AA14: =(1+Project_Inputs!$H25)^(AA$8-1) -> 2.508796912 | AB14: =(1+Project_Inputs!$H25)^(AB$8-1) -> 2.648277418 | AC14: =(1+Project_Inputs!$H25)^(AC$8-1) -> 2.795512563 | AD14: =(1+Project_Inputs!$H25)^(AD$8-1) -> 2.950933477 | AE14: =(1+Project_Inputs!$H25)^(AE$8-1) -> 3.114995261 | AF14: =(1+Project_Inputs!$H25)^(AF$8-1) -> 3.288178317 | AG14: =(1+Project_Inputs!$H25)^(AG$8-1) -> 3.470989758 | AH14: =(1+Project_Inputs!$H25)^(AH$8-1) -> 3.663964888 | AI14: =(1+Project_Inputs!$H25)^(AI$8-1) -> 3.867668774 | AJ14: =(1+Project_Inputs!$H25)^(AJ$8-1) -> 4.082697897 | AK14: =(1+Project_Inputs!$H25)^(AK$8-1) -> 4.309681902 | AL14: =(1+Project_Inputs!$H25)^(AL$8-1) -> 4.54928544 | AM14: =(1+Project_Inputs!$H25)^(AM$8-1) -> 4.802210113 | AN14: =(1+Project_Inputs!$H25)^(AN$8-1) -> 5.06919653 | AO14: =(1+Project_Inputs!$H25)^(AO$8-1) -> 5.351026477 | AP14: =(1+Project_Inputs!$H25)^(AP$8-1) -> 5.648525203 | AQ14: =(1+Project_Inputs!$H25)^(AQ$8-1) -> 5.962563838 | AR14: =(1+Project_Inputs!$H25)^(AR$8-1) -> 6.294061944 | AS14: =(1+Project_Inputs!$H25)^(AS$8-1) -> 6.643990209 | AT14: =(1+Project_Inputs!$H25)^(AT$8-1) -> 7.013373285 | AU14: =(1+Project_Inputs!$H25)^(AU$8-1) -> 7.403292794 | AV14: =(1+Project_Inputs!$H25)^(AV$8-1) -> 7.81489049 | AW14: =(1+Project_Inputs!$H25)^(AW$8-1) -> 8.249371608 | AX14: =(1+Project_Inputs!$H25)^(AX$8-1) -> 8.708008385 | AY14: =(1+Project_Inputs!$H25)^(AY$8-1) -> 9.192143796 | AZ14: =(1+Project_Inputs!$H25)^(AZ$8-1) -> 9.703195475 | BA14: =(1+Project_Inputs!$H25)^(BA$8-1) -> 10.24265988 | BB14: =(1+Project_Inputs!$H25)^(BB$8-1) -> 10.81211665 | BC14: =(1+Project_Inputs!$H25)^(BC$8-1) -> 11.41323326 | BD14: =(1+Project_Inputs!$H25)^(BD$8-1) -> 12.0477699 | BE14: =(1+Project_Inputs!$H25)^(BE$8-1) -> 12.7175846 | BF14: =(1+Project_Inputs!$H25)^(BF$8-1) -> 13.4246387 | BG14: =(1+Project_Inputs!$H25)^(BG$8-1) -> 14.17100258
B15: Inactive Period | J15: =IF(J8>Project_Inputs!$J$17,1,0) -> 0 | K15: =IF(K8>Project_Inputs!$J$17,1,0) -> 0 | L15: =IF(L8>Project_Inputs!$J$17,1,0) -> 0 | M15: =IF(M8>Project_Inputs!$J$17,1,0) -> 0 | N15: =IF(N8>Project_Inputs!$J$17,1,0) -> 0 | O15: =IF(O8>Project_Inputs!$J$17,1,0) -> 0 | P15: =IF(P8>Project_Inputs!$J$17,1,0) -> 0 | Q15: =IF(Q8>Project_Inputs!$J$17,1,0) -> 1 | R15: =IF(R8>Project_Inputs!$J$17,1,0) -> 1 | S15: =IF(S8>Project_Inputs!$J$17,1,0) -> 1 | T15: =IF(T8>Project_Inputs!$J$17,1,0) -> 1 | U15: =IF(U8>Project_Inputs!$J$17,1,0) -> 1 | V15: =IF(V8>Project_Inputs!$J$17,1,0) -> 1 | W15: =IF(W8>Project_Inputs!$J$17,1,0) -> 1 | X15: =IF(X8>Project_Inputs!$J$17,1,0) -> 1 | Y15: =IF(Y8>Project_Inputs!$J$17,1,0) -> 1 | Z15: =IF(Z8>Project_Inputs!$J$17,1,0) -> 1 | AA15: =IF(AA8>Project_Inputs!$J$17,1,0) -> 1 | AB15: =IF(AB8>Project_Inputs!$J$17,1,0) -> 1 | AC15: =IF(AC8>Project_Inputs!$J$17,1,0) -> 1 | AD15: =IF(AD8>Project_Inputs!$J$17,1,0) -> 1 | AE15: =IF(AE8>Project_Inputs!$J$17,1,0) -> 1 | AF15: =IF(AF8>Project_Inputs!$J$17,1,0) -> 1 | AG15: =IF(AG8>Project_Inputs!$J$17,1,0) -> 1 | AH15: =IF(AH8>Project_Inputs!$J$17,1,0) -> 1 | AI15: =IF(AI8>Project_Inputs!$J$17,1,0) -> 1 | AJ15: =IF(AJ8>Project_Inputs!$J$17,1,0) -> 1 | AK15: =IF(AK8>Project_Inputs!$J$17,1,0) -> 1 | AL15: =IF(AL8>Project_Inputs!$J$17,1,0) -> 1 | AM15: =IF(AM8>Project_Inputs!$J$17,1,0) -> 1 | AN15: =IF(AN8>Project_Inputs!$J$17,1,0) -> 1 | AO15: =IF(AO8>Project_Inputs!$J$17,1,0) -> 1 | AP15: =IF(AP8>Project_Inputs!$J$17,1,0) -> 1 | AQ15: =IF(AQ8>Project_Inputs!$J$17,1,0) -> 1 | AR15: =IF(AR8>Project_Inputs!$J$17,1,0) -> 1 | AS15: =IF(AS8>Project_Inputs!$J$17,1,0) -> 1 | AT15: =IF(AT8>Project_Inputs!$J$17,1,0) -> 1 | AU15: =IF(AU8>Project_Inputs!$J$17,1,0) -> 1 | AV15: =IF(AV8>Project_Inputs!$J$17,1,0) -> 1 | AW15: =IF(AW8>Project_Inputs!$J$17,1,0) -> 1 | AX15: =IF(AX8>Project_Inputs!$J$17,1,0) -> 1 | AY15: =IF(AY8>Project_Inputs!$J$17,1,0) -> 1 | AZ15: =IF(AZ8>Project_Inputs!$J$17,1,0) -> 1 | BA15: =IF(BA8>Project_Inputs!$J$17,1,0) -> 1 | BB15: =IF(BB8>Project_Inputs!$J$17,1,0) -> 1 | BC15: =IF(BC8>Project_Inputs!$J$17,1,0) -> 1 | BD15: =IF(BD8>Project_Inputs!$J$17,1,0) -> 1 | BE15: =IF(BE8>Project_Inputs!$J$17,1,0) -> 1 | BF15: =IF(BF8>Project_Inputs!$J$17,1,0) -> 1 | BG15: =IF(BG8>Project_Inputs!$J$17,1,0) -> 1
B16: Active Period | J16: =1-J15 -> 1 | K16: 1 | L16: 1 | M16: 1 | N16: 1 | O16: 1 | P16: 1 | Q16: 0 | R16: 0 | S16: 0 | T16: 0 | U16: 0 | V16: 0 | W16: 0 | X16: 0 | Y16: 0 | Z16: 0 | AA16: 0 | AB16: 0 | AC16: 0 | AD16: 0 | AE16: 0 | AF16: 0 | AG16: 0 | AH16: 0 | AI16: 0 | AJ16: 0 | AK16: 0 | AL16: 0 | AM16: 0 | AN16: 0 | AO16: 0 | AP16: =1-AP15 -> 0 | AQ16: 0 | AR16: 0 | AS16: 0 | AT16: 0 | AU16: 0 | AV16: 0 | AW16: 0 | AX16: 0 | AY16: 0 | AZ16: 0 | BA16: 0 | BB16: 0 | BC16: 0 | BD16: 0 | BE16: 0 | BF16: 0 | BG16: 0
J19: ="CY "&RIGHT(J5,2) -> CY 25 | K19: ="CY "&RIGHT(K5,2) -> CY 26 | L19: CY 27 | M19: CY 28 | N19: CY 29 | O19: CY 30 | P19: CY 31 | Q19: CY 32 | R19: CY 33 | S19: CY 34 | T19: CY 35 | U19: CY 36 | V19: CY 37 | W19: CY 38 | X19: CY 39 | Y19: CY 40 | Z19: CY 41 | AA19: CY 42 | AB19: CY 43 | AC19: CY 44 | AD19: CY 45 | AE19: CY 46 | AF19: CY 47 | AG19: CY 48 | AH19: CY 49 | AI19: CY 50 | AJ19: CY 51 | AK19: CY 52 | AL19: CY 53 | AM19: CY 54 | AN19: CY 55 | AO19: CY 56 | AP19: CY 57 | AQ19: CY 58 | AR19: CY 59 | AS19: CY 60 | AT19: CY 61 | AU19: CY 62 | AV19: CY 63 | AW19: CY 64 | AX19: CY 65 | AY19: CY 66 | AZ19: CY 67 | BA19: CY 68 | BB19: CY 69 | BC19: CY 70 | BD19: CY 71 | BE19: CY 72 | BF19: CY 73 | BG19: CY 74
D20: Option 1 - Option Summary | J20: =J8 -> 1 | K20: 2 | L20: 3 | M20: 4 | N20: 5 | O20: 6 | P20: 7 | Q20: 8 | R20: 9 | S20: 10 | T20: 11 | U20: 12 | V20: 13 | W20: 14 | X20: 15 | Y20: 16 | Z20: 17 | AA20: 18 | AB20: 19 | AC20: 20 | AD20: 21 | AE20: 22 | AF20: 23 | AG20: 24 | AH20: 25 | AI20: 26 | AJ20: 27 | AK20: 28 | AL20: 29 | AM20: 30 | AN20: 31 | AO20: 32 | AP20: =AP8 -> 33 | AQ20: 34 | AR20: 35 | AS20: 36 | AT20: 37 | AU20: 38 | AV20: 39 | AW20: 40 | AX20: 41 | AY20: 42 | AZ20: 43 | BA20: 44 | BB20: 45 | BC20: 46 | BD20: 47 | BE20: 48 | BF20: 49 | BG20: 50
E22: Option Generic Name | G22: Option 1
E23: Option Name | G23: =Project_Inputs!D73 -> Option 1
E25: Present Value Cost
F27: =D49 -> Capital Expenditure | H27: =SUM(J27:BG27) -> -21573917.93 | J27: =-(J96)*J11/J14 -> -3684823.88 | K27: -17889094.05 | L27: 0 | M27: 0 | N27: 0 | O27: 0 | P27: 0 | Q27: 0 | R27: 0 | S27: 0 | T27: 0 | U27: 0 | V27: 0 | W27: 0 | X27: 0 | Y27: 0 | Z27: 0 | AA27: 0 | AB27: 0 | AC27: 0 | AD27: 0 | AE27: 0 | AF27: 0 | AG27: 0 | AH27: 0 | AI27: 0 | AJ27: 0 | AK27: 0 | AL27: 0 | AM27: 0 | AN27: 0 | AO27: 0 | AP27: =-(AP96)*AP11/AP14 -> 0 | AQ27: 0 | AR27: 0 | AS27: 0 | AT27: 0 | AU27: 0 | AV27: 0 | AW27: 0 | AX27: 0 | AY27: 0 | AZ27: 0 | BA27: 0 | BB27: 0 | BC27: 0 | BD27: 0 | BE27: 0 | BF27: 0 | BG27: 0
F28: =D210 -> Operating Expenditure (enter costs as positive numbers and savings as negative numbers) | H28: =SUM(J28:BG28) -> -689860.6198 | J28: =-J260*J11/J14 -> -94467 | K28: -298359.8645 | L28: -77566.13827 | M28: -75317.87605 | N28: -73134.77994 | O28: -71014.96108 | P28: 0 | Q28: 0 | R28: 0 | S28: 0 | T28: 0 | U28: 0 | V28: 0 | W28: 0 | X28: 0 | Y28: 0 | Z28: 0 | AA28: 0 | AB28: 0 | AC28: 0 | AD28: 0 | AE28: 0 | AF28: 0 | AG28: 0 | AH28: 0 | AI28: 0 | AJ28: 0 | AK28: 0 | AL28: 0 | AM28: 0 | AN28: 0 | AO28: 0 | AP28: =-AP260*AP11/AP14 -> 0 | AQ28: 0 | AR28: 0 | AS28: 0 | AT28: 0 | AU28: 0 | AV28: 0 | AW28: 0 | AX28: 0 | AY28: 0 | AZ28: 0 | BA28: 0 | BB28: 0 | BC28: 0 | BD28: 0 | BE28: 0 | BF28: 0 | BG28: 0
F29: =D331 -> Cost Avoidance from undertaking project (enter negative numbers) | H29: =SUM(J29:BG29) -> 0 | J29: =-J341*J11/J14 -> 0 | K29: 0 | L29: 0 | M29: 0 | N29: 0 | O29: 0 | P29: 0 | Q29: 0 | R29: 0 | S29: 0 | T29: 0 | U29: 0 | V29: 0 | W29: 0 | X29: 0 | Y29: 0 | Z29: 0 | AA29: 0 | AB29: 0 | AC29: 0 | AD29: 0 | AE29: 0 | AF29: 0 | AG29: 0 | AH29: 0 | AI29: 0 | AJ29: 0 | AK29: 0 | AL29: 0 | AM29: 0 | AN29: 0 | AO29: 0 | AP29: =-AP341*AP11/AP14 -> 0 | AQ29: 0 | AR29: 0 | AS29: 0 | AT29: 0 | AU29: 0 | AV29: 0 | AW29: 0 | AX29: 0 | AY29: 0 | AZ29: 0 | BA29: 0 | BB29: 0 | BC29: 0 | BD29: 0 | BE29: 0 | BF29: 0 | BG29: 0
F30: =D344 -> Other Economic Cost and Benefits | H30: =SUM(J30:BG30) -> 0 | J30: =(SUM(J356:J357)+J363)*J11/J14 -> 0 | K30: 0 | L30: 0 | M30: 0 | N30: 0 | O30: 0 | P30: 0 | Q30: 0 | R30: 0 | S30: 0 | T30: 0 | U30: 0 | V30: 0 | W30: 0 | X30: 0 | Y30: 0 | Z30: 0 | AA30: 0 | AB30: 0 | AC30: 0 | AD30: 0 | AE30: 0 | AF30: 0 | AG30: 0 | AH30: 0 | AI30: 0 | AJ30: 0 | AK30: 0 | AL30: 0 | AM30: 0 | AN30: 0 | AO30: 0 | AP30: =(SUM(AP356:AP357)+AP363)*AP11/AP14 -> 0 | AQ30: 0 | AR30: 0 | AS30: 0 | AT30: 0 | AU30: 0 | AV30: 0 | AW30: 0 | AX30: 0 | AY30: 0 | AZ30: 0 | BA30: 0 | BB30: 0 | BC30: 0 | BD30: 0 | BE30: 0 | BF30: 0 | BG30: 0
E31: Total Present Value (cost) / benefit | H31: =SUM(J31:BG31) -> -22263778.55 | J31: =SUM(J27:J30) -> -3779290.88 | K31: -18187453.92 | L31: -77566.13827 | M31: -75317.87605 | N31: -73134.77994 | O31: -71014.96108 | P31: 0 | Q31: 0 | R31: 0 | S31: 0 | T31: 0 | U31: 0 | V31: 0 | W31: 0 | X31: 0 | Y31: 0 | Z31: 0 | AA31: 0 | AB31: 0 | AC31: 0 | AD31: 0 | AE31: 0 | AF31: 0 | AG31: 0 | AH31: 0 | AI31: 0 | AJ31: 0 | AK31: 0 | AL31: 0 | AM31: 0 | AN31: 0 | AO31: 0 | AP31: =SUM(AP27:AP30) -> 0 | AQ31: 0 | AR31: 0 | AS31: 0 | AT31: 0 | AU31: 0 | AV31: 0 | AW31: 0 | AX31: 0 | AY31: 0 | AZ31: 0 | BA31: 0 | BB31: 0 | BC31: 0 | BD31: 0 | BE31: 0 | BF31: 0 | BG31: 0
E33: Net present value (NPV) Cashflows
F35: Regulated Revenue | H35: =SUM(J35:BG35) -> 23808265.63 | J35: =Op1_Calcs!J59/J13 -> 94467 | K35: =Op1_Calcs!K59/K13 -> 748037.1985 | L35: =Op1_Calcs!L59/L13 -> 2687502.906 | M35: =Op1_Calcs!M59/M13 -> 2614290.338 | N35: =Op1_Calcs!N59/N13 -> 2542388.358 | O35: =Op1_Calcs!O59/O13 -> 2471781.31 | P35: =Op1_Calcs!P59/P13 -> 2326582.282 | Q35: =Op1_Calcs!Q59/Q13 -> 2259534.317 | R35: =Op1_Calcs!R59/R13 -> 2193720.432 | S35: =Op1_Calcs!S59/S13 -> 2129125.019 | T35: =Op1_Calcs!T59/T13 -> 2065732.464 | U35: =Op1_Calcs!U59/U13 -> 1675104.011 | V35: =Op1_Calcs!V59/V13 -> 2.44720532e-11 | W35: =Op1_Calcs!W59/W13 -> 2.414421946e-11 | X35: =Op1_Calcs!X59/X13 -> 2.382077746e-11 | Y35: =Op1_Calcs!Y59/Y13 -> 2.350166836e-11 | Z35: =Op1_Calcs!Z59/Z13 -> 2.318683414e-11 | AA35: =Op1_Calcs!AA59/AA13 -> 2.287621751e-11 | AB35: =Op1_Calcs!AB59/AB13 -> 2.256976198e-11 | AC35: =Op1_Calcs!AC59/AC13 -> 2.22674118e-11 | AD35: =Op1_Calcs!AD59/AD13 -> 2.196911198e-11 | AE35: =Op1_Calcs!AE59/AE13 -> 2.167480826e-11 | AF35: =Op1_Calcs!AF59/AF13 -> 2.138444711e-11 | AG35: =Op1_Calcs!AG59/AG13 -> 2.109797571e-11 | AH35: =Op1_Calcs!AH59/AH13 -> 2.081534195e-11 | AI35: =Op1_Calcs!AI59/AI13 -> 2.053649442e-11 | AJ35: =Op1_Calcs!AJ59/AJ13 -> 2.026138241e-11 | AK35: =Op1_Calcs!AK59/AK13 -> 1.998995586e-11 | AL35: =Op1_Calcs!AL59/AL13 -> 1.972216541e-11 | AM35: =Op1_Calcs!AM59/AM13 -> 1.945796235e-11 | AN35: =Op1_Calcs!AN59/AN13 -> 1.919729862e-11 | AO35: =Op1_Calcs!AO59/AO13 -> 1.894012681e-11 | AP35: =Op1_Calcs!AP59/AP13 -> 1.868640013e-11 | AQ35: =Op1_Calcs!AQ59/AQ13 -> 1.843607244e-11 | AR35: =Op1_Calcs!AR59/AR13 -> 1.818909821e-11 | AS35: =Op1_Calcs!AS59/AS13 -> 1.79454325e-11 | AT35: =Op1_Calcs!AT59/AT13 -> 1.7705031e-11 | AU35: =Op1_Calcs!AU59/AU13 -> 1.746784997e-11 | AV35: =Op1_Calcs!AV59/AV13 -> 1.723384629e-11 | AW35: =Op1_Calcs!AW59/AW13 -> 1.700297737e-11 | AX35: =Op1_Calcs!AX59/AX13 -> 1.677520123e-11 | AY35: =Op1_Calcs!AY59/AY13 -> 1.655047644e-11 | AZ35: =Op1_Calcs!AZ59/AZ13 -> 1.632876212e-11 | BA35: =Op1_Calcs!BA59/BA13 -> 1.611001794e-11 | BB35: =Op1_Calcs!BB59/BB13 -> 1.589420411e-11 | BC35: =Op1_Calcs!BC59/BC13 -> 1.568128138e-11 | BD35: =Op1_Calcs!BD59/BD13 -> 1.547121101e-11 | BE35: =Op1_Calcs!BE59/BE13 -> 1.52639548e-11 | BF35: =Op1_Calcs!BF59/BF13 -> 1.505947504e-11 | BG35: =Op1_Calcs!BG59/BG13 -> 1.485773455e-11
F36: Unregulated Revenue | H36: 0 | J36: =J324*J11/J13 -> 0 | K36: 0 | L36: 0 | M36: 0 | N36: 0 | O36: 0 | P36: 0 | Q36: 0 | R36: 0 | S36: 0 | T36: 0 | U36: 0 | V36: 0 | W36: 0 | X36: 0 | Y36: 0 | Z36: 0 | AA36: 0 | AB36: 0 | AC36: 0 | AD36: 0 | AE36: 0 | AF36: 0 | AG36: 0 | AH36: 0 | AI36: 0 | AJ36: 0 | AK36: 0 | AL36: 0 | AM36: 0 | AN36: 0 | AO36: 0 | AP36: =AP324*AP11/AP13 -> 0 | AQ36: 0 | AR36: 0 | AS36: 0 | AT36: 0 | AU36: 0 | AV36: 0 | AW36: 0 | AX36: 0 | AY36: 0 | AZ36: 0 | BA36: 0 | BB36: 0 | BC36: 0 | BD36: 0 | BE36: 0 | BF36: 0 | BG36: 0
F37: =F292 -> Revenue from sold assets | H37: 0 | J37: =J292*J11/J13 -> 0 | K37: 0 | L37: 0 | M37: 0 | N37: 0 | O37: 0 | P37: 0 | Q37: 0 | R37: 0 | S37: 0 | T37: 0 | U37: 0 | V37: 0 | W37: 0 | X37: 0 | Y37: 0 | Z37: 0 | AA37: 0 | AB37: 0 | AC37: 0 | AD37: 0 | AE37: 0 | AF37: 0 | AG37: 0 | AH37: 0 | AI37: 0 | AJ37: 0 | AK37: 0 | AL37: 0 | AM37: 0 | AN37: 0 | AO37: 0 | AP37: =AP292*AP11/AP13 -> 0 | AQ37: 0 | AR37: 0 | AS37: 0 | AT37: 0 | AU37: 0 | AV37: 0 | AW37: 0 | AX37: 0 | AY37: 0 | AZ37: 0 | BA37: 0 | BB37: 0 | BC37: 0 | BD37: 0 | BE37: 0 | BF37: 0 | BG37: 0
F38: Opex | H38: -711544.3226 | J38: =-J260*J11/J13 -> -94467 | K38: -303149.7878 | L38: -80076.6516 | M38: -79003.92474 | N38: -77945.56841 | O38: -76901.39008 | P38: 0 | Q38: 0 | R38: 0 | S38: 0 | T38: 0 | U38: 0 | V38: 0 | W38: 0 | X38: 0 | Y38: 0 | Z38: 0 | AA38: 0 | AB38: 0 | AC38: 0 | AD38: 0 | AE38: 0 | AF38: 0 | AG38: 0 | AH38: 0 | AI38: 0 | AJ38: 0 | AK38: 0 | AL38: 0 | AM38: 0 | AN38: 0 | AO38: 0 | AP38: =-AP260*AP11/AP13 -> 0 | AQ38: 0 | AR38: 0 | AS38: 0 | AT38: 0 | AU38: 0 | AV38: 0 | AW38: 0 | AX38: 0 | AY38: 0 | AZ38: 0 | BA38: 0 | BB38: 0 | BC38: 0 | BD38: 0 | BE38: 0 | BF38: 0 | BG38: 0
F39: Tax | H39: -305843.888 | J39: =-(ROUND(Op1_Calcs!J87/J13,4)) -> 0 | K39: =-(ROUND(Op1_Calcs!K87/K13,4)) -> -9879.9926 | L39: =-(ROUND(Op1_Calcs!L87/L13,4)) -> -53973.7001 | M39: =-(ROUND(Op1_Calcs!M87/M13,4)) -> -47649.9747 | N39: =-(ROUND(Op1_Calcs!N87/N13,4)) -> -41705.2586 | O39: =-(ROUND(Op1_Calcs!O87/O13,4)) -> -36121.1893 | P39: =-(ROUND(Op1_Calcs!P87/P13,4)) -> -30880.1779 | Q39: =-(ROUND(Op1_Calcs!Q87/Q13,4)) -> -25965.3807 | R39: =-(ROUND(Op1_Calcs!R87/R13,4)) -> -21360.672 | S39: =-(ROUND(Op1_Calcs!S87/S13,4)) -> -17050.6184 | T39: =-(ROUND(Op1_Calcs!T87/T13,4)) -> -13020.4524 | U39: =-(ROUND(Op1_Calcs!U87/U13,4)) -> -8236.4713 | V39: =-(ROUND(Op1_Calcs!V87/V13,4)) -> 0 | W39: =-(ROUND(Op1_Calcs!W87/W13,4)) -> 0 | X39: =-(ROUND(Op1_Calcs!X87/X13,4)) -> 0 | Y39: =-(ROUND(Op1_Calcs!Y87/Y13,4)) -> 0 | Z39: =-(ROUND(Op1_Calcs!Z87/Z13,4)) -> 0 | AA39: =-(ROUND(Op1_Calcs!AA87/AA13,4)) -> 0 | AB39: =-(ROUND(Op1_Calcs!AB87/AB13,4)) -> 0 | AC39: =-(ROUND(Op1_Calcs!AC87/AC13,4)) -> 0 | AD39: =-(ROUND(Op1_Calcs!AD87/AD13,4)) -> 0 | AE39: =-(ROUND(Op1_Calcs!AE87/AE13,4)) -> 0 | AF39: =-(ROUND(Op1_Calcs!AF87/AF13,4)) -> 0 | AG39: =-(ROUND(Op1_Calcs!AG87/AG13,4)) -> 0 | AH39: =-(ROUND(Op1_Calcs!AH87/AH13,4)) -> 0 | AI39: =-(ROUND(Op1_Calcs!AI87/AI13,4)) -> 0 | AJ39: =-(ROUND(Op1_Calcs!AJ87/AJ13,4)) -> 0 | AK39: =-(ROUND(Op1_Calcs!AK87/AK13,4)) -> 0 | AL39: =-(ROUND(Op1_Calcs!AL87/AL13,4)) -> 0 | AM39: =-(ROUND(Op1_Calcs!AM87/AM13,4)) -> 0 | AN39: =-(ROUND(Op1_Calcs!AN87/AN13,4)) -> 0 | AO39: =-(ROUND(Op1_Calcs!AO87/AO13,4)) -> 0 | AP39: =-(ROUND(Op1_Calcs!AP87/AP13,4)) -> 0 | AQ39: =-(ROUND(Op1_Calcs!AQ87/AQ13,4)) -> 0 | AR39: =-(ROUND(Op1_Calcs!AR87/AR13,4)) -> 0 | AS39: =-(ROUND(Op1_Calcs!AS87/AS13,4)) -> 0 | AT39: =-(ROUND(Op1_Calcs!AT87/AT13,4)) -> 0 | AU39: =-(ROUND(Op1_Calcs!AU87/AU13,4)) -> 0 | AV39: =-(ROUND(Op1_Calcs!AV87/AV13,4)) -> 0 | AW39: =-(ROUND(Op1_Calcs!AW87/AW13,4)) -> 0 | AX39: =-(ROUND(Op1_Calcs!AX87/AX13,4)) -> 0 | AY39: =-(ROUND(Op1_Calcs!AY87/AY13,4)) -> 0 | AZ39: =-(ROUND(Op1_Calcs!AZ87/AZ13,4)) -> 0 | BA39: =-(ROUND(Op1_Calcs!BA87/BA13,4)) -> 0 | BB39: =-(ROUND(Op1_Calcs!BB87/BB13,4)) -> 0 | BC39: =-(ROUND(Op1_Calcs!BC87/BC13,4)) -> 0 | BD39: =-(ROUND(Op1_Calcs!BD87/BD13,4)) -> 0 | BE39: =-(ROUND(Op1_Calcs!BE87/BE13,4)) -> 0 | BF39: =-(ROUND(Op1_Calcs!BF87/BF13,4)) -> 0 | BG39: =-(ROUND(Op1_Calcs!BG87/BG13,4)) -> 0
F40: Cash Capex (excl CFC) | H40: -21417788.57 | J40: =-(J96)/J13 -> -3684823.88 | K40: -17732964.69 | L40: 0 | M40: 0 | N40: 0 | O40: 0 | P40: 0 | Q40: 0 | R40: 0 | S40: 0 | T40: 0 | U40: 0 | V40: 0 | W40: 0 | X40: 0 | Y40: 0 | Z40: 0 | AA40: 0 | AB40: 0 | AC40: 0 | AD40: 0 | AE40: 0 | AF40: 0 | AG40: 0 | AH40: 0 | AI40: 0 | AJ40: 0 | AK40: 0 | AL40: 0 | AM40: 0 | AN40: 0 | AO40: 0 | AP40: =-(AP96)/AP13 -> 0 | AQ40: 0 | AR40: 0 | AS40: 0 | AT40: 0 | AU40: 0 | AV40: 0 | AW40: 0 | AX40: 0 | AY40: 0 | AZ40: 0 | BA40: 0 | BB40: 0 | BC40: 0 | BD40: 0 | BE40: 0 | BF40: 0 | BG40: 0
E41: Net Present Value of Cashflows | H41: 1373088.7 | J41: =ROUND(SUM(J35:J40),1) -> -3684823.9 | K41: -17297957.3 | L41: 2553452.6 | M41: 2487636.4 | N41: 2422737.5 | O41: 2358758.7 | P41: 2295702.1 | Q41: 2233568.9 | R41: 2172359.8 | S41: 2112074.4 | T41: 2052712 | U41: 1666867.5 | V41: 0 | W41: 0 | X41: 0 | Y41: 0 | Z41: 0 | AA41: 0 | AB41: 0 | AC41: 0 | AD41: 0 | AE41: 0 | AF41: 0 | AG41: 0 | AH41: 0 | AI41: 0 | AJ41: 0 | AK41: 0 | AL41: 0 | AM41: 0 | AN41: 0 | AO41: 0 | AP41: =ROUND(SUM(AP35:AP40),1) -> 0 | AQ41: 0 | AR41: 0 | AS41: 0 | AT41: 0 | AU41: 0 | AV41: 0 | AW41: 0 | AX41: 0 | AY41: 0 | AZ41: 0 | BA41: 0 | BB41: 0 | BC41: 0 | BD41: 0 | BE41: 0 | BF41: 0 | BG41: 0
E43: Payback Period (years) | H43: =IFERROR(INDEX($J$8:$BG$8,0,MATCH(1,$J$44:$BG$44,0)),"-") -> 12
J44: =IF(SUM($J41:J41)>0,1,0) -> 0 | K44: =IF(SUM($J41:K41)>0,1,0) -> 0 | L44: =IF(SUM($J41:L41)>0,1,0) -> 0 | M44: =IF(SUM($J41:M41)>0,1,0) -> 0 | N44: =IF(SUM($J41:N41)>0,1,0) -> 0 | O44: =IF(SUM($J41:O41)>0,1,0) -> 0 | P44: =IF(SUM($J41:P41)>0,1,0) -> 0 | Q44: =IF(SUM($J41:Q41)>0,1,0) -> 0 | R44: =IF(SUM($J41:R41)>0,1,0) -> 0 | S44: =IF(SUM($J41:S41)>0,1,0) -> 0 | T44: =IF(SUM($J41:T41)>0,1,0) -> 0 | U44: =IF(SUM($J41:U41)>0,1,0) -> 1 | V44: =IF(SUM($J41:V41)>0,1,0) -> 1 | W44: =IF(SUM($J41:W41)>0,1,0) -> 1 | X44: =IF(SUM($J41:X41)>0,1,0) -> 1 | Y44: =IF(SUM($J41:Y41)>0,1,0) -> 1 | Z44: =IF(SUM($J41:Z41)>0,1,0) -> 1 | AA44: =IF(SUM($J41:AA41)>0,1,0) -> 1 | AB44: =IF(SUM($J41:AB41)>0,1,0) -> 1 | AC44: =IF(SUM($J41:AC41)>0,1,0) -> 1 | AD44: =IF(SUM($J41:AD41)>0,1,0) -> 1 | AE44: =IF(SUM($J41:AE41)>0,1,0) -> 1 | AF44: =IF(SUM($J41:AF41)>0,1,0) -> 1 | AG44: =IF(SUM($J41:AG41)>0,1,0) -> 1 | AH44: =IF(SUM($J41:AH41)>0,1,0) -> 1 | AI44: =IF(SUM($J41:AI41)>0,1,0) -> 1 | AJ44: =IF(SUM($J41:AJ41)>0,1,0) -> 1 | AK44: =IF(SUM($J41:AK41)>0,1,0) -> 1 | AL44: =IF(SUM($J41:AL41)>0,1,0) -> 1 | AM44: =IF(SUM($J41:AM41)>0,1,0) -> 1 | AN44: =IF(SUM($J41:AN41)>0,1,0) -> 1 | AO44: =IF(SUM($J41:AO41)>0,1,0) -> 1 | AP44: =IF(SUM($J41:AP41)>0,1,0) -> 1 | AQ44: =IF(SUM($J41:AQ41)>0,1,0) -> 1 | AR44: =IF(SUM($J41:AR41)>0,1,0) -> 1 | AS44: =IF(SUM($J41:AS41)>0,1,0) -> 1 | AT44: =IF(SUM($J41:AT41)>0,1,0) -> 1 | AU44: =IF(SUM($J41:AU41)>0,1,0) -> 1 | AV44: =IF(SUM($J41:AV41)>0,1,0) -> 1 | AW44: =IF(SUM($J41:AW41)>0,1,0) -> 1 | AX44: =IF(SUM($J41:AX41)>0,1,0) -> 1 | AY44: =IF(SUM($J41:AY41)>0,1,0) -> 1 | AZ44: =IF(SUM($J41:AZ41)>0,1,0) -> 1 | BA44: =IF(SUM($J41:BA41)>0,1,0) -> 1 | BB44: =IF(SUM($J41:BB41)>0,1,0) -> 1 | BC44: =IF(SUM($J41:BC41)>0,1,0) -> 1 | BD44: =IF(SUM($J41:BD41)>0,1,0) -> 1 | BE44: =IF(SUM($J41:BE41)>0,1,0) -> 1 | BF44: =IF(SUM($J41:BF41)>0,1,0) -> 1 | BG44: =IF(SUM($J41:BG41)>0,1,0) -> 1
J45: =IF(COUNTIF($J44:J44,1)=1,1,0) -> 0 | K45: =IF(COUNTIF($J44:K44,1)=1,1,0) -> 0 | L45: =IF(COUNTIF($J44:L44,1)=1,1,0) -> 0 | M45: =IF(COUNTIF($J44:M44,1)=1,1,0) -> 0 | N45: =IF(COUNTIF($J44:N44,1)=1,1,0) -> 0 | O45: =IF(COUNTIF($J44:O44,1)=1,1,0) -> 0 | P45: =IF(COUNTIF($J44:P44,1)=1,1,0) -> 0 | Q45: =IF(COUNTIF($J44:Q44,1)=1,1,0) -> 0 | R45: =IF(COUNTIF($J44:R44,1)=1,1,0) -> 0 | S45: =IF(COUNTIF($J44:S44,1)=1,1,0) -> 0 | T45: =IF(COUNTIF($J44:T44,1)=1,1,0) -> 0 | U45: =IF(COUNTIF($J44:U44,1)=1,1,0) -> 1 | V45: =IF(COUNTIF($J44:V44,1)=1,1,0) -> 0 | W45: =IF(COUNTIF($J44:W44,1)=1,1,0) -> 0 | X45: =IF(COUNTIF($J44:X44,1)=1,1,0) -> 0 | Y45: =IF(COUNTIF($J44:Y44,1)=1,1,0) -> 0 | Z45: =IF(COUNTIF($J44:Z44,1)=1,1,0) -> 0 | AA45: =IF(COUNTIF($J44:AA44,1)=1,1,0) -> 0 | AB45: =IF(COUNTIF($J44:AB44,1)=1,1,0) -> 0 | AC45: =IF(COUNTIF($J44:AC44,1)=1,1,0) -> 0 | AD45: =IF(COUNTIF($J44:AD44,1)=1,1,0) -> 0 | AE45: =IF(COUNTIF($J44:AE44,1)=1,1,0) -> 0 | AF45: =IF(COUNTIF($J44:AF44,1)=1,1,0) -> 0 | AG45: =IF(COUNTIF($J44:AG44,1)=1,1,0) -> 0 | AH45: =IF(COUNTIF($J44:AH44,1)=1,1,0) -> 0 | AI45: =IF(COUNTIF($J44:AI44,1)=1,1,0) -> 0 | AJ45: =IF(COUNTIF($J44:AJ44,1)=1,1,0) -> 0 | AK45: =IF(COUNTIF($J44:AK44,1)=1,1,0) -> 0 | AL45: =IF(COUNTIF($J44:AL44,1)=1,1,0) -> 0 | AM45: =IF(COUNTIF($J44:AM44,1)=1,1,0) -> 0 | AN45: =IF(COUNTIF($J44:AN44,1)=1,1,0) -> 0 | AO45: =IF(COUNTIF($J44:AO44,1)=1,1,0) -> 0 | AP45: =IF(COUNTIF($J44:AP44,1)=1,1,0) -> 0 | AQ45: =IF(COUNTIF($J44:AQ44,1)=1,1,0) -> 0 | AR45: =IF(COUNTIF($J44:AR44,1)=1,1,0) -> 0 | AS45: =IF(COUNTIF($J44:AS44,1)=1,1,0) -> 0 | AT45: =IF(COUNTIF($J44:AT44,1)=1,1,0) -> 0 | AU45: =IF(COUNTIF($J44:AU44,1)=1,1,0) -> 0 | AV45: =IF(COUNTIF($J44:AV44,1)=1,1,0) -> 0 | AW45: =IF(COUNTIF($J44:AW44,1)=1,1,0) -> 0 | AX45: =IF(COUNTIF($J44:AX44,1)=1,1,0) -> 0 | AY45: =IF(COUNTIF($J44:AY44,1)=1,1,0) -> 0 | AZ45: =IF(COUNTIF($J44:AZ44,1)=1,1,0) -> 0 | BA45: =IF(COUNTIF($J44:BA44,1)=1,1,0) -> 0 | BB45: =IF(COUNTIF($J44:BB44,1)=1,1,0) -> 0 | BC45: =IF(COUNTIF($J44:BC44,1)=1,1,0) -> 0 | BD45: =IF(COUNTIF($J44:BD44,1)=1,1,0) -> 0 | BE45: =IF(COUNTIF($J44:BE44,1)=1,1,0) -> 0 | BF45: =IF(COUNTIF($J44:BF44,1)=1,1,0) -> 0 | BG45: =IF(COUNTIF($J44:BG44,1)=1,1,0) -> 0
J46: =IF(J41=0,NA(),SUM($J41:J41)) -> -3684823.9 | K46: =IF(K41=0,NA(),SUM($J41:K41)) -> -20982781.2 | L46: =IF(L41=0,NA(),SUM($J41:L41)) -> -18429328.6 | M46: =IF(M41=0,NA(),SUM($J41:M41)) -> -15941692.2 | N46: =IF(N41=0,NA(),SUM($J41:N41)) -> -13518954.7 | O46: =IF(O41=0,NA(),SUM($J41:O41)) -> -11160196 | P46: =IF(P41=0,NA(),SUM($J41:P41)) -> -8864493.9 | Q46: =IF(Q41=0,NA(),SUM($J41:Q41)) -> -6630925 | R46: =IF(R41=0,NA(),SUM($J41:R41)) -> -4458565.2 | S46: =IF(S41=0,NA(),SUM($J41:S41)) -> -2346490.8 | T46: =IF(T41=0,NA(),SUM($J41:T41)) -> -293778.8 | U46: =IF(U41=0,NA(),SUM($J41:U41)) -> 1373088.7 | V46: =IF(V41=0,NA(),SUM($J41:V41)) ->  | W46: =IF(W41=0,NA(),SUM($J41:W41)) ->  | X46: =IF(X41=0,NA(),SUM($J41:X41)) ->  | Y46: =IF(Y41=0,NA(),SUM($J41:Y41)) ->  | Z46: =IF(Z41=0,NA(),SUM($J41:Z41)) ->  | AA46: =IF(AA41=0,NA(),SUM($J41:AA41)) ->  | AB46: =IF(AB41=0,NA(),SUM($J41:AB41)) ->  | AC46: =IF(AC41=0,NA(),SUM($J41:AC41)) ->  | AD46: =IF(AD41=0,NA(),SUM($J41:AD41)) ->  | AE46: =IF(AE41=0,NA(),SUM($J41:AE41)) ->  | AF46: =IF(AF41=0,NA(),SUM($J41:AF41)) ->  | AG46: =IF(AG41=0,NA(),SUM($J41:AG41)) ->  | AH46: =IF(AH41=0,NA(),SUM($J41:AH41)) ->  | AI46: =IF(AI41=0,NA(),SUM($J41:AI41)) ->  | AJ46: =IF(AJ41=0,NA(),SUM($J41:AJ41)) ->  | AK46: =IF(AK41=0,NA(),SUM($J41:AK41)) ->  | AL46: =IF(AL41=0,NA(),SUM($J41:AL41)) ->  | AM46: =IF(AM41=0,NA(),SUM($J41:AM41)) ->  | AN46: =IF(AN41=0,NA(),SUM($J41:AN41)) ->  | AO46: =IF(AO41=0,NA(),SUM($J41:AO41)) ->  | AP46: =IF(AP41=0,NA(),SUM($J41:AP41)) ->  | AQ46: =IF(AQ41=0,NA(),SUM($J41:AQ41)) ->  | AR46: =IF(AR41=0,NA(),SUM($J41:AR41)) ->  | AS46: =IF(AS41=0,NA(),SUM($J41:AS41)) ->  | AT46: =IF(AT41=0,NA(),SUM($J41:AT41)) ->  | AU46: =IF(AU41=0,NA(),SUM($J41:AU41)) ->  | AV46: =IF(AV41=0,NA(),SUM($J41:AV41)) ->  | AW46: =IF(AW41=0,NA(),SUM($J41:AW41)) ->  | AX46: =IF(AX41=0,NA(),SUM($J41:AX41)) ->  | AY46: =IF(AY41=0,NA(),SUM($J41:AY41)) ->  | AZ46: =IF(AZ41=0,NA(),SUM($J41:AZ41)) ->  | BA46: =IF(BA41=0,NA(),SUM($J41:BA41)) ->  | BB46: =IF(BB41=0,NA(),SUM($J41:BB41)) ->  | BC46: =IF(BC41=0,NA(),SUM($J41:BC41)) ->  | BD46: =IF(BD41=0,NA(),SUM($J41:BD41)) ->  | BE46: =IF(BE41=0,NA(),SUM($J41:BE41)) ->  | BF46: =IF(BF41=0,NA(),SUM($J41:BF41)) ->  | BG46: =IF(BG41=0,NA(),SUM($J41:BG41)) -> 
D49: Capital Expenditure
D51: Capex is expenditure on constructing, acquiring or maintaining fixed assets, such as equipment, land and buildings
D52: Inputs entered here impacts Least Cost Analysis (capex cashflow) and NPV (Revenue (for regulated projects only - see Glossary for further details) and capex cashflow)
F56: Asset Life (average) | G56: 10 | H56: =IF(G56="","< ERROR CHECK: Enter Asset Life (average)","") -> 
F58: Capex Type | G58: 1 | J58: =IF(SUM(J61:BG78,J80:BG81)>0,"(*) WARNING! Check if an initial estimate is required for costs of decommissioning, dismantling, or removing the item and restoring the site on which it is located.","") -> (*) WARNING! Check if an initial estimate is required for costs of decommissioning, dismantling, or removing the item and restoring the site on which it is located.
F60: Category | G60: Description (optional)
F61: =Corporate_Inputs!F76 -> Design | J61: 0 | K61: 0 | L61: 0 | M61: 0 | N61: 0 | O61: 0 | P61: 0 | Q61: 0 | R61: 0 | S61: 0 | T61: 0 | U61: 0 | V61: 0 | W61: 0 | X61: 0 | Y61: 0 | Z61: 0 | AA61: 0 | AB61: 0 | AC61: 0 | AD61: 0 | AE61: 0 | AF61: 0 | AG61: 0 | AH61: 0 | AI61: 0 | AJ61: 0 | AK61: 0 | AL61: 0 | AM61: 0 | AN61: 0 | AO61: 0 | AP61: 0 | AQ61: 0 | AR61: 0 | AS61: 0 | AT61: 0 | AU61: 0 | AV61: 0 | AW61: 0 | AX61: 0 | AY61: 0 | AZ61: 0 | BA61: 0 | BB61: 0 | BC61: 0 | BD61: 0 | BE61: 0 | BF61: 0 | BG61: 0 | BI61: =SUM(J61:BG61) -> 0
F62: =Corporate_Inputs!F77 -> Internal Labour | G62: Management | I62: =SUM(J62:K62)-'[2]BC Costs - FTA'!$E$21 -> 0 | J62: =SUM('[2]BC Costs - FTA'!$G$21:$K$21)*0.16 -> 349387.2 | K62: =SUM('[2]BC Costs - FTA'!$G$21:$K$21)*0.84 -> 1834282.8 | L62: 0 | M62: 0 | N62: 0 | O62: 0 | P62: 0 | Q62: 0 | R62: 0 | S62: 0 | T62: 0 | U62: 0 | V62: 0 | W62: 0 | X62: 0 | Y62: 0 | Z62: 0 | AA62: 0 | AB62: 0 | AC62: 0 | AD62: 0 | AE62: 0 | AF62: 0 | AG62: 0 | AH62: 0 | AI62: 0 | AJ62: 0 | AK62: 0 | AL62: 0 | AM62: 0 | AN62: 0 | AO62: 0 | AP62: 0 | AQ62: 0 | AR62: 0 | AS62: 0 | AT62: 0 | AU62: 0 | AV62: 0 | AW62: 0 | AX62: 0 | AY62: 0 | AZ62: 0 | BA62: 0 | BB62: 0 | BC62: 0 | BD62: 0 | BE62: 0 | BF62: 0 | BG62: 0 | BI62: 2183670
F63: Internal Labour | G63: Stakeholder lvl 3 -4 | I63: =SUM(J63:K63)-'[2]BC Costs - FTA'!$E$22 -> 0 | J63: =SUM('[2]BC Costs - FTA'!$G$22:$J$22)*0.16 -> 103960 | K63: =SUM('[2]BC Costs - FTA'!$G$22:$J$22)*0.84 -> 545790
F64: Internal Labour | G64: PM/BA Actuals to date | I64: =J64-'[2]BC Costs - FTA'!$E$20 -> 0 | J64: ='[2]BC Costs - FTA'!$E$20 -> 332020
F66: Change Management | G66: Change Management | I66: =SUM(J66:K66)-'[2]BC Costs - FTA'!$E$18 -> -0.0007392000116 | J66: =SUM('[2]BC Costs - FTA'!$G$18:$J$18)*0.1066666667 -> 23893.33334 | K66: =SUM('[2]BC Costs - FTA'!$G$18:$J$18)*0.89333333 -> 200106.6659 | L66: 0 | M66: 0 | N66: 0 | O66: 0 | P66: 0 | Q66: 0 | R66: 0 | S66: 0 | T66: 0 | U66: 0 | V66: 0 | W66: 0 | X66: 0 | Y66: 0 | Z66: 0 | AA66: 0 | AB66: 0 | AC66: 0 | AD66: 0 | AE66: 0 | AF66: 0 | AG66: 0 | AH66: 0 | AI66: 0 | AJ66: 0 | AK66: 0 | AL66: 0 | AM66: 0 | AN66: 0 | AO66: 0 | AP66: 0 | AQ66: 0 | AR66: 0 | AS66: 0 | AT66: 0 | AU66: 0 | AV66: 0 | AW66: 0 | AX66: 0 | AY66: 0 | AZ66: 0 | BA66: 0 | BB66: 0 | BC66: 0 | BD66: 0 | BE66: 0 | BF66: 0 | BG66: 0 | BI66: 223999.9993
F67: Infrastructure | G67: SAP Test Envir. (SaaS) and EAI (On-Prem) | I67: =SUM(J67:K67)-SUM('[2]BC Costs - FTA'!$G$6:$J$6) -> 0 | J67: ='[2]BC Costs - FTA'!$G$6*0.2 -> 149000 | K67: ='[2]BC Costs - FTA'!$J$6+('[2]BC Costs - FTA'!$G$6*0.8) -> 1383500
F68: Infrastructure | G68: Infra - EIP Resources Year 1 | H68: Infra - EIP Resources Year 1 | I68: =SUM(J68:K68)-SUM('[2]BC Costs - FTA'!$G$8:$K$8) -> 0 | J68: 46337.875 | K68: 185351.5
F69: Infrastructure | G69: Infra - EIP - Infrastructure - Equipment - YEAR 1 (servers) | H69: Infra - EIP - Infrastructure - Equipment - YEAR 1 (servers) | I69: =SUM(J69:K69)-SUM('[2]BC Costs - FTA'!$G$9:$L$9) -> 0 | J69: 34627.35232 | K69: 181793.5997
F70: Infrastructure | G70: Infra - EIP - Infrastructure - Equipment - YEAR 2 (storage) | H70: Infra - EIP - Infrastructure - Equipment - YEAR 2 (storage) | I70: =SUM(J70:K70)-SUM('[2]BC Costs - FTA'!$G$10:$L$10) -> 0 | J70: 0 | K70: 165000
F71: Infrastructure | G71: Infra. - SW, Maintenance, Support - YEAR 1 | H71: Infra. - SW, Maintenance, Support - YEAR 1 | I71: =SUM(J71:K71)-'[2]BC Costs - FTA'!$E$11 -> 0 | J71: 36561.404 | K71: 146245.616
F72: Infrastructure | G72: Infra. - SW, Maintenance, Support - YEAR 2 | H72: Infra. - SW, Maintenance, Support - YEAR 2 | I72: =SUM(J72:K72)-'[2]BC Costs - FTA'!$E$12 -> 0 | K72: 330000
F73: Infrastructure | H73: Infra. - SW, Maintenance, Support - Yr 2 onwards
F74: Infrastructure | G74: Infra. Salesforce, Microsoft Azure (SaaS platforms) | I74: =SUM(J74:K74)-SUM('[2]BC Costs - FTA'!$G$16:$K$16) -> 0 | J74: ='[2]BC Costs - FTA'!$E$16*0.2 -> 64000 | K74: ='[2]BC Costs - FTA'!$E$16*0.8 -> 256000
F75: Infrastructure | G75: EAI | I75: =SUM(J75:K75)-SUM('[2]BC Costs - FTA'!$G$16:$K$16) -> 0 | J75: ='[2]BC Costs - FTA'!$E$16*0.2 -> 64000 | K75: ='[2]BC Costs - FTA'!$E$16*0.8 -> 256000 | L75: 0 | M75: 0 | N75: 0 | O75: 0 | P75: 0 | Q75: 0 | R75: 0 | S75: 0 | T75: 0 | U75: 0 | V75: 0 | W75: 0 | X75: 0 | Y75: 0 | Z75: 0 | AA75: 0 | AB75: 0 | AC75: 0 | AD75: 0 | AE75: 0 | AF75: 0 | AG75: 0 | AH75: 0 | AI75: 0 | AJ75: 0 | AK75: 0 | AL75: 0 | AM75: 0 | AN75: 0 | AO75: 0 | AP75: 0 | AQ75: 0 | AR75: 0 | AS75: 0 | AT75: 0 | AU75: 0 | AV75: 0 | AW75: 0 | AX75: 0 | AY75: 0 | AZ75: 0 | BA75: 0 | BB75: 0 | BC75: 0 | BD75: 0 | BE75: 0 | BF75: 0 | BG75: 0 | BI75: 320000
F76: =Corporate_Inputs!F80 -> Contracts | G76: WIPRO | I76: =SUM(J76:K76)-SUM('[2]BC Costs - FTA'!$G$5:$J$5) -> 0 | J76: =SUM('[2]BC Costs - FTA'!$G$5:$J$5)*0.16 -> 1823679.888 | K76: =SUM('[2]BC Costs - FTA'!$G$5:$J$5)*0.84 -> 9574319.413 | L76: 0 | M76: 0 | N76: 0 | O76: 0 | P76: 0 | Q76: 0 | R76: 0 | S76: 0 | T76: 0 | U76: 0 | V76: 0 | W76: 0 | X76: 0 | Y76: 0 | Z76: 0 | AA76: 0 | AB76: 0 | AC76: 0 | AD76: 0 | AE76: 0 | AF76: 0 | AG76: 0 | AH76: 0 | AI76: 0 | AJ76: 0 | AK76: 0 | AL76: 0 | AM76: 0 | AN76: 0 | AO76: 0 | AP76: 0 | AQ76: 0 | AR76: 0 | AS76: 0 | AT76: 0 | AU76: 0 | AV76: 0 | AW76: 0 | AX76: 0 | AY76: 0 | AZ76: 0 | BA76: 0 | BB76: 0 | BC76: 0 | BD76: 0 | BE76: 0 | BF76: 0 | BG76: 0 | BI76: 11397999.3
F77: Contracts | G77: IBM | J77: ='[2]BC Costs - FTA'!$G$15*0.2 -> 312050.6921 | K77: =390063+1560253*0.8 -> 1638265.4 | L77: 0 | M77: 0 | N77: 0 | O77: 0 | P77: 0 | Q77: 0 | R77: 0 | S77: 0 | T77: 0 | U77: 0 | V77: 0 | W77: 0 | X77: 0 | Y77: 0 | Z77: 0 | AA77: 0 | AB77: 0 | AC77: 0 | AD77: 0 | AE77: 0 | AF77: 0 | AG77: 0 | AH77: 0 | AI77: 0 | AJ77: 0 | AK77: 0 | AL77: 0 | AM77: 0 | AN77: 0 | AO77: 0 | AP77: 0 | AQ77: 0 | AR77: 0 | AS77: 0 | AT77: 0 | AU77: 0 | AV77: 0 | AW77: 0 | AX77: 0 | AY77: 0 | AZ77: 0 | BA77: 0 | BB77: 0 | BC77: 0 | BD77: 0 | BE77: 0 | BF77: 0 | BG77: 0 | BI77: 1950316.092
J78: 0 | K78: 0 | L78: 0 | M78: 0 | N78: 0 | O78: 0 | P78: 0 | Q78: 0 | R78: 0 | S78: 0 | T78: 0 | U78: 0 | V78: 0 | W78: 0 | X78: 0 | Y78: 0 | Z78: 0 | AA78: 0 | AB78: 0 | AC78: 0 | AD78: 0 | AE78: 0 | AF78: 0 | AG78: 0 | AH78: 0 | AI78: 0 | AJ78: 0 | AK78: 0 | AL78: 0 | AM78: 0 | AN78: 0 | AO78: 0 | AP78: 0 | AQ78: 0 | AR78: 0 | AS78: 0 | AT78: 0 | AU78: 0 | AV78: 0 | AW78: 0 | AX78: 0 | AY78: 0 | AZ78: 0 | BA78: 0 | BB78: 0 | BC78: 0 | BD78: 0 | BE78: 0 | BF78: 0 | BG78: 0 | BI78: 0
F79: =Corporate_Inputs!F83 -> Decommissioning (or Make Good) Provision | J79: 0 | K79: 0 | L79: 0 | M79: 0 | N79: 0 | O79: 0 | P79: 0 | Q79: 0 | R79: 0 | S79: 0 | T79: 0 | U79: 0 | V79: 0 | W79: 0 | X79: 0 | Y79: 0 | Z79: 0 | AA79: 0 | AB79: 0 | AC79: 0 | AD79: 0 | AE79: 0 | AF79: 0 | AG79: 0 | AH79: 0 | AI79: 0 | AJ79: 0 | AK79: 0 | AL79: 0 | AM79: 0 | AN79: 0 | AO79: 0 | AP79: 0 | AQ79: 0 | AR79: 0 | AS79: 0 | AT79: 0 | AU79: 0 | AV79: 0 | AW79: 0 | AX79: 0 | AY79: 0 | AZ79: 0 | BA79: 0 | BB79: 0 | BC79: 0 | BD79: 0 | BE79: 0 | BF79: 0 | BG79: 0 | BI79: 0
F80: Other | J80: 0 | K80: 0 | L80: 0 | M80: 0 | N80: 0 | O80: 0 | P80: 0 | Q80: 0 | R80: 0 | S80: 0 | T80: 0 | U80: 0 | V80: 0 | W80: 0 | X80: 0 | Y80: 0 | Z80: 0 | AA80: 0 | AB80: 0 | AC80: 0 | AD80: 0 | AE80: 0 | AF80: 0 | AG80: 0 | AH80: 0 | AI80: 0 | AJ80: 0 | AK80: 0 | AL80: 0 | AM80: 0 | AN80: 0 | AO80: 0 | AP80: 0 | AQ80: 0 | AR80: 0 | AS80: 0 | AT80: 0 | AU80: 0 | AV80: 0 | AW80: 0 | AX80: 0 | AY80: 0 | AZ80: 0 | BA80: 0 | BB80: 0 | BC80: 0 | BD80: 0 | BE80: 0 | BF80: 0 | BG80: 0 | BI80: =SUMPRODUCT($J$11:$BG$11,J80:BG80) -> 0
F81: Other | J81: 0 | K81: 0 | L81: 0 | M81: 0 | N81: 0 | O81: 0 | P81: 0 | Q81: 0 | R81: 0 | S81: 0 | T81: 0 | U81: 0 | V81: 0 | W81: 0 | X81: 0 | Y81: 0 | Z81: 0 | AA81: 0 | AB81: 0 | AC81: 0 | AD81: 0 | AE81: 0 | AF81: 0 | AG81: 0 | AH81: 0 | AI81: 0 | AJ81: 0 | AK81: 0 | AL81: 0 | AM81: 0 | AN81: 0 | AO81: 0 | AP81: 0 | AQ81: 0 | AR81: 0 | AS81: 0 | AT81: 0 | AU81: 0 | AV81: 0 | AW81: 0 | AX81: 0 | AY81: 0 | AZ81: 0 | BA81: 0 | BB81: 0 | BC81: 0 | BD81: 0 | BE81: 0 | BF81: 0 | BG81: 0 | BI81: =SUMPRODUCT($J$11:$BG$11,J81:BG81) -> 0
F82: Total Direct Capex | I82: =IF(SUMPRODUCT(ISTEXT($J$61:$BG$81)*1)>0," Enter Values only (change red cells)",0) -> 0 | J82: =SUM(J61:J81)*J$16 -> 3339517.745 | K82: 16696654.99 | L82: 0 | M82: 0 | N82: 0 | O82: 0 | P82: 0 | Q82: 0 | R82: 0 | S82: 0 | T82: 0 | U82: 0 | V82: 0 | W82: 0 | X82: 0 | Y82: 0 | Z82: 0 | AA82: 0 | AB82: 0 | AC82: 0 | AD82: 0 | AE82: 0 | AF82: 0 | AG82: 0 | AH82: 0 | AI82: 0 | AJ82: 0 | AK82: 0 | AL82: 0 | AM82: 0 | AN82: 0 | AO82: 0 | AP82: =SUM(AP61:AP81)*AP$16 -> 0 | AQ82: 0 | AR82: 0 | AS82: 0 | AT82: 0 | AU82: 0 | AV82: 0 | AW82: 0 | AX82: 0 | AY82: 0 | AZ82: 0 | BA82: 0 | BB82: 0 | BC82: 0 | BD82: 0 | BE82: 0 | BF82: 0 | BG82: 0 | BI82: =SUMPRODUCT($J$11:$BG$11,J82:BG82) -> 20453589.11
F84: =Corporate_Inputs!F76 -> Design | J84: =(J61+SUMIF($F$80:$F$81,$F84,J$80:J$81))*J$16 -> 0 | K84: 0 | L84: 0 | M84: 0 | N84: 0 | O84: 0 | P84: 0 | Q84: 0 | R84: 0 | S84: 0 | T84: 0 | U84: 0 | V84: 0 | W84: 0 | X84: 0 | Y84: 0 | Z84: 0 | AA84: 0 | AB84: 0 | AC84: 0 | AD84: 0 | AE84: 0 | AF84: 0 | AG84: 0 | AH84: 0 | AI84: 0 | AJ84: 0 | AK84: 0 | AL84: 0 | AM84: 0 | AN84: 0 | AO84: 0 | AP84: =(AP61+SUMIF($F$80:$F$81,$F84,AP$80:AP$81))*AP$16 -> 0 | AQ84: 0 | AR84: 0 | AS84: 0 | AT84: 0 | AU84: 0 | AV84: 0 | AW84: 0 | AX84: 0 | AY84: 0 | AZ84: 0 | BA84: 0 | BB84: 0 | BC84: 0 | BD84: 0 | BE84: 0 | BF84: 0 | BG84: 0 | BI84: =SUMPRODUCT($J$11:$BG$11,J84:BG84) -> 0
F85: =Corporate_Inputs!F77 -> Internal Labour | J85: =(J62+SUMIF($F$80:$F$81,$F85,J$80:J$81))*J$16 -> 349387.2 | K85: 1834282.8 | L85: 0 | M85: 0 | N85: 0 | O85: 0 | P85: 0 | Q85: 0 | R85: 0 | S85: 0 | T85: 0 | U85: 0 | V85: 0 | W85: 0 | X85: 0 | Y85: 0 | Z85: 0 | AA85: 0 | AB85: 0 | AC85: 0 | AD85: 0 | AE85: 0 | AF85: 0 | AG85: 0 | AH85: 0 | AI85: 0 | AJ85: 0 | AK85: 0 | AL85: 0 | AM85: 0 | AN85: 0 | AO85: 0 | AP85: =(AP62+SUMIF($F$80:$F$81,$F85,AP$80:AP$81))*AP$16 -> 0 | AQ85: 0 | AR85: 0 | AS85: 0 | AT85: 0 | AU85: 0 | AV85: 0 | AW85: 0 | AX85: 0 | AY85: 0 | AZ85: 0 | BA85: 0 | BB85: 0 | BC85: 0 | BD85: 0 | BE85: 0 | BF85: 0 | BG85: 0 | BI85: 2229527.07
F86: =Corporate_Inputs!F78 -> Materials | J86: =(J66+SUMIF($F$80:$F$81,$F86,J$80:J$81))*J$16 -> 23893.33334 | K86: 200106.6659 | L86: 0 | M86: 0 | N86: 0 | O86: 0 | P86: 0 | Q86: 0 | R86: 0 | S86: 0 | T86: 0 | U86: 0 | V86: 0 | W86: 0 | X86: 0 | Y86: 0 | Z86: 0 | AA86: 0 | AB86: 0 | AC86: 0 | AD86: 0 | AE86: 0 | AF86: 0 | AG86: 0 | AH86: 0 | AI86: 0 | AJ86: 0 | AK86: 0 | AL86: 0 | AM86: 0 | AN86: 0 | AO86: 0 | AP86: =(AP66+SUMIF($F$80:$F$81,$F86,AP$80:AP$81))*AP$16 -> 0 | AQ86: 0 | AR86: 0 | AS86: 0 | AT86: 0 | AU86: 0 | AV86: 0 | AW86: 0 | AX86: 0 | AY86: 0 | AZ86: 0 | BA86: 0 | BB86: 0 | BC86: 0 | BD86: 0 | BE86: 0 | BF86: 0 | BG86: 0 | BI86: 229002.6659
F87: =Corporate_Inputs!F79 -> Plant & Equipment | J87: =(J75+SUMIF($F$80:$F$81,$F87,J$80:J$81))*J$16 -> 64000 | K87: 256000 | L87: 0 | M87: 0 | N87: 0 | O87: 0 | P87: 0 | Q87: 0 | R87: 0 | S87: 0 | T87: 0 | U87: 0 | V87: 0 | W87: 0 | X87: 0 | Y87: 0 | Z87: 0 | AA87: 0 | AB87: 0 | AC87: 0 | AD87: 0 | AE87: 0 | AF87: 0 | AG87: 0 | AH87: 0 | AI87: 0 | AJ87: 0 | AK87: 0 | AL87: 0 | AM87: 0 | AN87: 0 | AO87: 0 | AP87: =(AP75+SUMIF($F$80:$F$81,$F87,AP$80:AP$81))*AP$16 -> 0 | AQ87: 0 | AR87: 0 | AS87: 0 | AT87: 0 | AU87: 0 | AV87: 0 | AW87: 0 | AX87: 0 | AY87: 0 | AZ87: 0 | BA87: 0 | BB87: 0 | BC87: 0 | BD87: 0 | BE87: 0 | BF87: 0 | BG87: 0 | BI87: 326400
F88: =Corporate_Inputs!F80 -> Contracts | J88: =(J76+SUMIF($F$80:$F$81,$F88,J$80:J$81))*J$16 -> 1823679.888 | K88: 9574319.413 | L88: 0 | M88: 0 | N88: 0 | O88: 0 | P88: 0 | Q88: 0 | R88: 0 | S88: 0 | T88: 0 | U88: 0 | V88: 0 | W88: 0 | X88: 0 | Y88: 0 | Z88: 0 | AA88: 0 | AB88: 0 | AC88: 0 | AD88: 0 | AE88: 0 | AF88: 0 | AG88: 0 | AH88: 0 | AI88: 0 | AJ88: 0 | AK88: 0 | AL88: 0 | AM88: 0 | AN88: 0 | AO88: 0 | AP88: =(AP76+SUMIF($F$80:$F$81,$F88,AP$80:AP$81))*AP$16 -> 0 | AQ88: 0 | AR88: 0 | AS88: 0 | AT88: 0 | AU88: 0 | AV88: 0 | AW88: 0 | AX88: 0 | AY88: 0 | AZ88: 0 | BA88: 0 | BB88: 0 | BC88: 0 | BD88: 0 | BE88: 0 | BF88: 0 | BG88: 0 | BI88: 11637357.29
F89: =Corporate_Inputs!F81 -> Meter Costs | J89: =(J77+SUMIF($F$80:$F$81,$F89,J$80:J$81))*J$16 -> 312050.6921 | K89: 1638265.4 | L89: 0 | M89: 0 | N89: 0 | O89: 0 | P89: 0 | Q89: 0 | R89: 0 | S89: 0 | T89: 0 | U89: 0 | V89: 0 | W89: 0 | X89: 0 | Y89: 0 | Z89: 0 | AA89: 0 | AB89: 0 | AC89: 0 | AD89: 0 | AE89: 0 | AF89: 0 | AG89: 0 | AH89: 0 | AI89: 0 | AJ89: 0 | AK89: 0 | AL89: 0 | AM89: 0 | AN89: 0 | AO89: 0 | AP89: =(AP77+SUMIF($F$80:$F$81,$F89,AP$80:AP$81))*AP$16 -> 0 | AQ89: 0 | AR89: 0 | AS89: 0 | AT89: 0 | AU89: 0 | AV89: 0 | AW89: 0 | AX89: 0 | AY89: 0 | AZ89: 0 | BA89: 0 | BB89: 0 | BC89: 0 | BD89: 0 | BE89: 0 | BF89: 0 | BG89: 0 | BI89: 1991272.727
F90: =Corporate_Inputs!F82 -> 0 | J90: =(J78+SUMIF($F$80:$F$81,$F90,J$80:J$81))*J$16 -> 0 | K90: 0 | L90: 0 | M90: 0 | N90: 0 | O90: 0 | P90: 0 | Q90: 0 | R90: 0 | S90: 0 | T90: 0 | U90: 0 | V90: 0 | W90: 0 | X90: 0 | Y90: 0 | Z90: 0 | AA90: 0 | AB90: 0 | AC90: 0 | AD90: 0 | AE90: 0 | AF90: 0 | AG90: 0 | AH90: 0 | AI90: 0 | AJ90: 0 | AK90: 0 | AL90: 0 | AM90: 0 | AN90: 0 | AO90: 0 | AP90: =(AP78+SUMIF($F$80:$F$81,$F90,AP$80:AP$81))*AP$16 -> 0 | AQ90: 0 | AR90: 0 | AS90: 0 | AT90: 0 | AU90: 0 | AV90: 0 | AW90: 0 | AX90: 0 | AY90: 0 | AZ90: 0 | BA90: 0 | BB90: 0 | BC90: 0 | BD90: 0 | BE90: 0 | BF90: 0 | BG90: 0 | BI90: 0
F91: Other | J91: =(J79+SUMIF($F$80:$F$81,$F91,J$80:J$81))*J$16 -> 0 | K91: 0 | L91: 0 | M91: 0 | N91: 0 | O91: 0 | P91: 0 | Q91: 0 | R91: 0 | S91: 0 | T91: 0 | U91: 0 | V91: 0 | W91: 0 | X91: 0 | Y91: 0 | Z91: 0 | AA91: 0 | AB91: 0 | AC91: 0 | AD91: 0 | AE91: 0 | AF91: 0 | AG91: 0 | AH91: 0 | AI91: 0 | AJ91: 0 | AK91: 0 | AL91: 0 | AM91: 0 | AN91: 0 | AO91: 0 | AP91: =(AP79+SUMIF($F$80:$F$81,$F91,AP$80:AP$81))*AP$16 -> 0 | AQ91: 0 | AR91: 0 | AS91: 0 | AT91: 0 | AU91: 0 | AV91: 0 | AW91: 0 | AX91: 0 | AY91: 0 | AZ91: 0 | BA91: 0 | BB91: 0 | BC91: 0 | BD91: 0 | BE91: 0 | BF91: 0 | BG91: 0 | BI91: 0
F93: Management Reserve (incl Risk) | J93: 0 | K93: 0 | L93: 0 | M93: 0 | N93: 0 | O93: 0 | P93: 0 | Q93: 0 | R93: 0 | S93: 0 | T93: 0 | U93: 0 | V93: 0 | W93: 0 | X93: 0 | Y93: 0 | Z93: 0 | AA93: 0 | AB93: 0 | AC93: 0 | AD93: 0 | AE93: 0 | AF93: 0 | AG93: 0 | AH93: 0 | AI93: 0 | AJ93: 0 | AK93: 0 | AL93: 0 | AM93: 0 | AN93: 0 | AO93: 0 | AP93: 0 | AQ93: 0 | AR93: 0 | AS93: 0 | AT93: 0 | AU93: 0 | AV93: 0 | AW93: 0 | AX93: 0 | AY93: 0 | AZ93: 0 | BA93: 0 | BB93: 0 | BC93: 0 | BD93: 0 | BE93: 0 | BF93: 0 | BG93: 0 | BI93: =SUMPRODUCT($J$11:$BG$11,J93:BG93) -> 0
F94: Direct Plus Management Reserve | J94: =SUM(J82,J93)*J$16 -> 3339517.745 | K94: 16696654.99 | L94: 0 | M94: 0 | N94: 0 | O94: 0 | P94: 0 | Q94: 0 | R94: 0 | S94: 0 | T94: 0 | U94: 0 | V94: 0 | W94: 0 | X94: 0 | Y94: 0 | Z94: 0 | AA94: 0 | AB94: 0 | AC94: 0 | AD94: 0 | AE94: 0 | AF94: 0 | AG94: 0 | AH94: 0 | AI94: 0 | AJ94: 0 | AK94: 0 | AL94: 0 | AM94: 0 | AN94: 0 | AO94: 0 | AP94: =SUM(AP82,AP93)*AP$16 -> 0 | AQ94: 0 | AR94: 0 | AS94: 0 | AT94: 0 | AU94: 0 | AV94: 0 | AW94: 0 | AX94: 0 | AY94: 0 | AZ94: 0 | BA94: 0 | BB94: 0 | BC94: 0 | BD94: 0 | BE94: 0 | BF94: 0 | BG94: 0 | BI94: =SUMPRODUCT($J$11:$BG$11,J94:BG94) -> 20453589.11
F95: Capitalised Overheads | J95: =J82*Project_Inputs!$I61 -> 345306.1348 | K95: =K82*Project_Inputs!$I61 -> 1726434.126 | L95: =L82*Project_Inputs!$I61 -> 0 | M95: =M82*Project_Inputs!$I61 -> 0 | N95: =N82*Project_Inputs!$I61 -> 0 | O95: =O82*Project_Inputs!$I61 -> 0 | P95: =P82*Project_Inputs!$I61 -> 0 | Q95: =Q82*Project_Inputs!$I61 -> 0 | R95: =R82*Project_Inputs!$I61 -> 0 | S95: =S82*Project_Inputs!$I61 -> 0 | T95: =T82*Project_Inputs!$I61 -> 0 | U95: =U82*Project_Inputs!$I61 -> 0 | V95: =V82*Project_Inputs!$I61 -> 0 | W95: =W82*Project_Inputs!$I61 -> 0 | X95: =X82*Project_Inputs!$I61 -> 0 | Y95: =Y82*Project_Inputs!$I61 -> 0 | Z95: =Z82*Project_Inputs!$I61 -> 0 | AA95: =AA82*Project_Inputs!$I61 -> 0 | AB95: =AB82*Project_Inputs!$I61 -> 0 | AC95: =AC82*Project_Inputs!$I61 -> 0 | AD95: =AD82*Project_Inputs!$I61 -> 0 | AE95: =AE82*Project_Inputs!$I61 -> 0 | AF95: =AF82*Project_Inputs!$I61 -> 0 | AG95: =AG82*Project_Inputs!$I61 -> 0 | AH95: =AH82*Project_Inputs!$I61 -> 0 | AI95: =AI82*Project_Inputs!$I61 -> 0 | AJ95: =AJ82*Project_Inputs!$I61 -> 0 | AK95: =AK82*Project_Inputs!$I61 -> 0 | AL95: =AL82*Project_Inputs!$I61 -> 0 | AM95: =AM82*Project_Inputs!$I61 -> 0 | AN95: =AN82*Project_Inputs!$I61 -> 0 | AO95: =AO82*Project_Inputs!$I61 -> 0 | AP95: =AP82*Project_Inputs!$I61 -> 0 | AQ95: =AQ82*Project_Inputs!$I61 -> 0 | AR95: =AR82*Project_Inputs!$I61 -> 0 | AS95: =AS82*Project_Inputs!$I61 -> 0 | AT95: =AT82*Project_Inputs!$I61 -> 0 | AU95: =AU82*Project_Inputs!$I61 -> 0 | AV95: =AV82*Project_Inputs!$I61 -> 0 | AW95: =AW82*Project_Inputs!$I61 -> 0 | AX95: =AX82*Project_Inputs!$I61 -> 0 | AY95: =AY82*Project_Inputs!$I61 -> 0 | AZ95: =AZ82*Project_Inputs!$I61 -> 0 | BA95: =BA82*Project_Inputs!$I61 -> 0 | BB95: =BB82*Project_Inputs!$I61 -> 0 | BC95: =BC82*Project_Inputs!$I61 -> 0 | BD95: =BD82*Project_Inputs!$I61 -> 0 | BE95: =BE82*Project_Inputs!$I61 -> 0 | BF95: =BF82*Project_Inputs!$I61 -> 0 | BG95: =BG82*Project_Inputs!$I61 -> 0 | BI95: =SUMPRODUCT($J$11:$BG$11,J95:BG95) -> 2114901.114
F96: Total Capex | J96: =SUM(J94:J95) -> 3684823.88 | K96: =SUM(K94:K95) -> 18423089.12 | L96: 0 | M96: 0 | N96: 0 | O96: 0 | P96: 0 | Q96: 0 | R96: 0 | S96: 0 | T96: 0 | U96: 0 | V96: 0 | W96: 0 | X96: 0 | Y96: 0 | Z96: 0 | AA96: 0 | AB96: 0 | AC96: 0 | AD96: 0 | AE96: 0 | AF96: 0 | AG96: 0 | AH96: 0 | AI96: 0 | AJ96: 0 | AK96: 0 | AL96: 0 | AM96: 0 | AN96: 0 | AO96: 0 | AP96: =SUM(AP94:AP95) -> 0 | AQ96: 0 | AR96: 0 | AS96: 0 | AT96: 0 | AU96: 0 | AV96: 0 | AW96: 0 | AX96: 0 | AY96: 0 | AZ96: 0 | BA96: 0 | BB96: 0 | BC96: 0 | BD96: 0 | BE96: 0 | BF96: 0 | BG96: 0 | BI96: =SUMPRODUCT($J$11:$BG$11,J96:BG96) -> 22568490.23
D99: Spend Profile (unless the whole amount to be allocated is profiled it is assumed the spend is evenly spread over 12 months)
E101: This is for the calculation of Capitalised Finance Charges (CFCs). CFCs are calculated from when the spend reaches $100k and if no profiling is entered it will just assume 1/12th of the annual amount is spent each month.
E102: Inputs entered here impacts the value of CFCs added to the Capex amount for approval but not capex amount for regulated revenue, hence no impact on Least Cost or NPV.
E103: Profiling the spend will be beneficial to projects which has uneven spend, particularly towards the end of a year as it will then incur lower CFCs.
F105: Custom Profile | I105: Amount to be allocated--> | J105: =CHOOSE($G$58,J96,0) -> 3684823.88 | K105: 18423089.12 | L105: 0 | M105: 0 | N105: 0 | O105: 0 | P105: 0 | Q105: 0 | R105: 0 | S105: 0 | T105: 0 | U105: 0 | V105: 0 | W105: 0 | X105: 0 | Y105: 0 | Z105: 0 | AA105: 0 | AB105: 0 | AC105: 0 | AD105: 0 | AE105: 0 | AF105: 0 | AG105: 0 | AH105: 0 | AI105: 0 | AJ105: 0 | AK105: 0 | AL105: 0 | AM105: 0 | AN105: 0 | AO105: 0 | AP105: =CHOOSE($G$58,AP96,0) -> 0 | AQ105: 0 | AR105: 0 | AS105: 0 | AT105: 0 | AU105: 0 | AV105: 0 | AW105: 0 | AX105: 0 | AY105: 0 | AZ105: 0 | BA105: 0 | BB105: 0 | BC105: 0 | BD105: 0 | BE105: 0 | BF105: 0 | BG105: 0
F106: =Opt_1_LU!D28 -> January | J106: 0 | K106: 0 | L106: 0 | M106: 0 | N106: 0 | O106: 0 | P106: 0 | Q106: 0 | R106: 0 | S106: 0 | T106: 0 | U106: 0 | V106: 0 | W106: 0 | X106: 0 | Y106: 0 | Z106: 0 | AA106: 0 | AB106: 0 | AC106: 0 | AD106: 0 | AE106: 0 | AF106: 0 | AG106: 0 | AH106: 0 | AI106: 0 | AJ106: 0 | AK106: 0 | AL106: 0 | AM106: 0 | AN106: 0 | AO106: 0 | AP106: 0 | AQ106: 0 | AR106: 0 | AS106: 0 | AT106: 0 | AU106: 0 | AV106: 0 | AW106: 0 | AX106: 0 | AY106: 0 | AZ106: 0 | BA106: 0 | BB106: 0 | BC106: 0 | BD106: 0 | BE106: 0 | BF106: 0 | BG106: 0
F107: =Opt_1_LU!D29 -> February | J107: 0 | K107: 0 | L107: 0 | M107: 0 | N107: 0 | O107: 0 | P107: 0 | Q107: 0 | R107: 0 | S107: 0 | T107: 0 | U107: 0 | V107: 0 | W107: 0 | X107: 0 | Y107: 0 | Z107: 0 | AA107: 0 | AB107: 0 | AC107: 0 | AD107: 0 | AE107: 0 | AF107: 0 | AG107: 0 | AH107: 0 | AI107: 0 | AJ107: 0 | AK107: 0 | AL107: 0 | AM107: 0 | AN107: 0 | AO107: 0 | AP107: 0 | AQ107: 0 | AR107: 0 | AS107: 0 | AT107: 0 | AU107: 0 | AV107: 0 | AW107: 0 | AX107: 0 | AY107: 0 | AZ107: 0 | BA107: 0 | BB107: 0 | BC107: 0 | BD107: 0 | BE107: 0 | BF107: 0 | BG107: 0
F108: =Opt_1_LU!D30 -> March | J108: 0 | K108: 0 | L108: 0 | M108: 0 | N108: 0 | O108: 0 | P108: 0 | Q108: 0 | R108: 0 | S108: 0 | T108: 0 | U108: 0 | V108: 0 | W108: 0 | X108: 0 | Y108: 0 | Z108: 0 | AA108: 0 | AB108: 0 | AC108: 0 | AD108: 0 | AE108: 0 | AF108: 0 | AG108: 0 | AH108: 0 | AI108: 0 | AJ108: 0 | AK108: 0 | AL108: 0 | AM108: 0 | AN108: 0 | AO108: 0 | AP108: 0 | AQ108: 0 | AR108: 0 | AS108: 0 | AT108: 0 | AU108: 0 | AV108: 0 | AW108: 0 | AX108: 0 | AY108: 0 | AZ108: 0 | BA108: 0 | BB108: 0 | BC108: 0 | BD108: 0 | BE108: 0 | BF108: 0 | BG108: 0
F109: =Opt_1_LU!D31 -> April | J109: 0 | K109: 0 | L109: 0 | M109: 0 | N109: 0 | O109: 0 | P109: 0 | Q109: 0 | R109: 0 | S109: 0 | T109: 0 | U109: 0 | V109: 0 | W109: 0 | X109: 0 | Y109: 0 | Z109: 0 | AA109: 0 | AB109: 0 | AC109: 0 | AD109: 0 | AE109: 0 | AF109: 0 | AG109: 0 | AH109: 0 | AI109: 0 | AJ109: 0 | AK109: 0 | AL109: 0 | AM109: 0 | AN109: 0 | AO109: 0 | AP109: 0 | AQ109: 0 | AR109: 0 | AS109: 0 | AT109: 0 | AU109: 0 | AV109: 0 | AW109: 0 | AX109: 0 | AY109: 0 | AZ109: 0 | BA109: 0 | BB109: 0 | BC109: 0 | BD109: 0 | BE109: 0 | BF109: 0 | BG109: 0
F110: =Opt_1_LU!D32 -> May | J110: 0 | K110: 0 | L110: 0 | M110: 0 | N110: 0 | O110: 0 | P110: 0 | Q110: 0 | R110: 0 | S110: 0 | T110: 0 | U110: 0 | V110: 0 | W110: 0 | X110: 0 | Y110: 0 | Z110: 0 | AA110: 0 | AB110: 0 | AC110: 0 | AD110: 0 | AE110: 0 | AF110: 0 | AG110: 0 | AH110: 0 | AI110: 0 | AJ110: 0 | AK110: 0 | AL110: 0 | AM110: 0 | AN110: 0 | AO110: 0 | AP110: 0 | AQ110: 0 | AR110: 0 | AS110: 0 | AT110: 0 | AU110: 0 | AV110: 0 | AW110: 0 | AX110: 0 | AY110: 0 | AZ110: 0 | BA110: 0 | BB110: 0 | BC110: 0 | BD110: 0 | BE110: 0 | BF110: 0 | BG110: 0
F111: =Opt_1_LU!D33 -> June | J111: 0 | K111: 0 | L111: 0 | M111: 0 | N111: 0 | O111: 0 | P111: 0 | Q111: 0 | R111: 0 | S111: 0 | T111: 0 | U111: 0 | V111: 0 | W111: 0 | X111: 0 | Y111: 0 | Z111: 0 | AA111: 0 | AB111: 0 | AC111: 0 | AD111: 0 | AE111: 0 | AF111: 0 | AG111: 0 | AH111: 0 | AI111: 0 | AJ111: 0 | AK111: 0 | AL111: 0 | AM111: 0 | AN111: 0 | AO111: 0 | AP111: 0 | AQ111: 0 | AR111: 0 | AS111: 0 | AT111: 0 | AU111: 0 | AV111: 0 | AW111: 0 | AX111: 0 | AY111: 0 | AZ111: 0 | BA111: 0 | BB111: 0 | BC111: 0 | BD111: 0 | BE111: 0 | BF111: 0 | BG111: 0
F112: =Opt_1_LU!D34 -> July | J112: 0 | K112: 0 | L112: 0 | M112: 0 | N112: 0 | O112: 0 | P112: 0 | Q112: 0 | R112: 0 | S112: 0 | T112: 0 | U112: 0 | V112: 0 | W112: 0 | X112: 0 | Y112: 0 | Z112: 0 | AA112: 0 | AB112: 0 | AC112: 0 | AD112: 0 | AE112: 0 | AF112: 0 | AG112: 0 | AH112: 0 | AI112: 0 | AJ112: 0 | AK112: 0 | AL112: 0 | AM112: 0 | AN112: 0 | AO112: 0 | AP112: 0 | AQ112: 0 | AR112: 0 | AS112: 0 | AT112: 0 | AU112: 0 | AV112: 0 | AW112: 0 | AX112: 0 | AY112: 0 | AZ112: 0 | BA112: 0 | BB112: 0 | BC112: 0 | BD112: 0 | BE112: 0 | BF112: 0 | BG112: 0
F113: =Opt_1_LU!D35 -> August | J113: 0 | K113: 0 | L113: 0 | M113: 0 | N113: 0 | O113: 0 | P113: 0 | Q113: 0 | R113: 0 | S113: 0 | T113: 0 | U113: 0 | V113: 0 | W113: 0 | X113: 0 | Y113: 0 | Z113: 0 | AA113: 0 | AB113: 0 | AC113: 0 | AD113: 0 | AE113: 0 | AF113: 0 | AG113: 0 | AH113: 0 | AI113: 0 | AJ113: 0 | AK113: 0 | AL113: 0 | AM113: 0 | AN113: 0 | AO113: 0 | AP113: 0 | AQ113: 0 | AR113: 0 | AS113: 0 | AT113: 0 | AU113: 0 | AV113: 0 | AW113: 0 | AX113: 0 | AY113: 0 | AZ113: 0 | BA113: 0 | BB113: 0 | BC113: 0 | BD113: 0 | BE113: 0 | BF113: 0 | BG113: 0
F114: =Opt_1_LU!D36 -> September | J114: 0 | K114: 0 | L114: 0 | M114: 0 | N114: 0 | O114: 0 | P114: 0 | Q114: 0 | R114: 0 | S114: 0 | T114: 0 | U114: 0 | V114: 0 | W114: 0 | X114: 0 | Y114: 0 | Z114: 0 | AA114: 0 | AB114: 0 | AC114: 0 | AD114: 0 | AE114: 0 | AF114: 0 | AG114: 0 | AH114: 0 | AI114: 0 | AJ114: 0 | AK114: 0 | AL114: 0 | AM114: 0 | AN114: 0 | AO114: 0 | AP114: 0 | AQ114: 0 | AR114: 0 | AS114: 0 | AT114: 0 | AU114: 0 | AV114: 0 | AW114: 0 | AX114: 0 | AY114: 0 | AZ114: 0 | BA114: 0 | BB114: 0 | BC114: 0 | BD114: 0 | BE114: 0 | BF114: 0 | BG114: 0
F115: =Opt_1_LU!D37 -> October | J115: 0 | K115: 0 | L115: 0 | M115: 0 | N115: 0 | O115: 0 | P115: 0 | Q115: 0 | R115: 0 | S115: 0 | T115: 0 | U115: 0 | V115: 0 | W115: 0 | X115: 0 | Y115: 0 | Z115: 0 | AA115: 0 | AB115: 0 | AC115: 0 | AD115: 0 | AE115: 0 | AF115: 0 | AG115: 0 | AH115: 0 | AI115: 0 | AJ115: 0 | AK115: 0 | AL115: 0 | AM115: 0 | AN115: 0 | AO115: 0 | AP115: 0 | AQ115: 0 | AR115: 0 | AS115: 0 | AT115: 0 | AU115: 0 | AV115: 0 | AW115: 0 | AX115: 0 | AY115: 0 | AZ115: 0 | BA115: 0 | BB115: 0 | BC115: 0 | BD115: 0 | BE115: 0 | BF115: 0 | BG115: 0
F116: =Opt_1_LU!D38 -> November | J116: 0 | K116: 0 | L116: 0 | M116: 0 | N116: 0 | O116: 0 | P116: 0 | Q116: 0 | R116: 0 | S116: 0 | T116: 0 | U116: 0 | V116: 0 | W116: 0 | X116: 0 | Y116: 0 | Z116: 0 | AA116: 0 | AB116: 0 | AC116: 0 | AD116: 0 | AE116: 0 | AF116: 0 | AG116: 0 | AH116: 0 | AI116: 0 | AJ116: 0 | AK116: 0 | AL116: 0 | AM116: 0 | AN116: 0 | AO116: 0 | AP116: 0 | AQ116: 0 | AR116: 0 | AS116: 0 | AT116: 0 | AU116: 0 | AV116: 0 | AW116: 0 | AX116: 0 | AY116: 0 | AZ116: 0 | BA116: 0 | BB116: 0 | BC116: 0 | BD116: 0 | BE116: 0 | BF116: 0 | BG116: 0
F117: =Opt_1_LU!D39 -> December | J117: 0 | K117: 0 | L117: 0 | M117: 0 | N117: 0 | O117: 0 | P117: 0 | Q117: 0 | R117: 0 | S117: 0 | T117: 0 | U117: 0 | V117: 0 | W117: 0 | X117: 0 | Y117: 0 | Z117: 0 | AA117: 0 | AB117: 0 | AC117: 0 | AD117: 0 | AE117: 0 | AF117: 0 | AG117: 0 | AH117: 0 | AI117: 0 | AJ117: 0 | AK117: 0 | AL117: 0 | AM117: 0 | AN117: 0 | AO117: 0 | AP117: 0 | AQ117: 0 | AR117: 0 | AS117: 0 | AT117: 0 | AU117: 0 | AV117: 0 | AW117: 0 | AX117: 0 | AY117: 0 | AZ117: 0 | BA117: 0 | BB117: 0 | BC117: 0 | BD117: 0 | BE117: 0 | BF117: 0 | BG117: 0
F118: ="Capex Profile - "&G22 -> Capex Profile - Option 1 | I118: =IF(SUMPRODUCT(ISTEXT($J$106:$BG$117)*1)>0," Enter Values only (change red cells)",0) -> 0 | J118: =J105-SUM(J106:J117)*J$16 -> 3684823.88 | K118: 18423089.12 | L118: 0 | M118: 0 | N118: 0 | O118: 0 | P118: 0 | Q118: 0 | R118: 0 | S118: 0 | T118: 0 | U118: 0 | V118: 0 | W118: 0 | X118: 0 | Y118: 0 | Z118: 0 | AA118: 0 | AB118: 0 | AC118: 0 | AD118: 0 | AE118: 0 | AF118: 0 | AG118: 0 | AH118: 0 | AI118: 0 | AJ118: 0 | AK118: 0 | AL118: 0 | AM118: 0 | AN118: 0 | AO118: 0 | AP118: =AP105-SUM(AP106:AP117)*AP$16 -> 0 | AQ118: 0 | AR118: 0 | AS118: 0 | AT118: 0 | AU118: 0 | AV118: 0 | AW118: 0 | AX118: 0 | AY118: 0 | AZ118: 0 | BA118: 0 | BB118: 0 | BC118: 0 | BD118: 0 | BE118: 0 | BF118: 0 | BG118: 0
I119: =IF(OR(SUM(J118:BG118)=0,SUM(J118:BG118)=SUM($J$105:$BG$105)),0,"ERROR CHECK: Not all capex has been profiled") -> 0
D121: Sarcoding --you must specify sarcoding period or de-select checkbox below to automatically sarcode at the end of each Financial Year
E122: Sarcoding is the process of transferring an asset from construction phase (WIP) to production phase (in service)
E124: TRUE | F124: WIP Balance rolled over (i.e. not sarcoded at the end of each Financial Year)
G126: End of Month | H126: Calendar Year | I126: Year
F127: Sarcoding Period 1 | G127: December | H127: 0 | I127: =H127 -> 0
F128: Sarcoding Period 2 | G128: December | H128: 0 | I128: =H128 -> 0
F129: Sarcoding Period 3 | G129: December | H129: 0 | I129: 0
F130: Final Sarcoding period | G130: December | I130: =MAX(J132:BG132,I127:I129) -> 2026
J131: =N(NOT(SUM(J106:J117)=J105)) -> 1 | K131: 1 | L131: 0 | M131: 0 | N131: 0 | O131: 0 | P131: 0 | Q131: 0 | R131: 0 | S131: 0 | T131: 0 | U131: 0 | V131: 0 | W131: 0 | X131: 0 | Y131: 0 | Z131: 0 | AA131: 0 | AB131: 0 | AC131: 0 | AD131: 0 | AE131: 0 | AF131: 0 | AG131: 0 | AH131: 0 | AI131: 0 | AJ131: 0 | AK131: 0 | AL131: 0 | AM131: 0 | AN131: 0 | AO131: 0 | AP131: =N(NOT(SUM(AP106:AP117)=AP105)) -> 0 | AQ131: 0 | AR131: 0 | AS131: 0 | AT131: 0 | AU131: 0 | AV131: 0 | AW131: 0 | AX131: 0 | AY131: 0 | AZ131: 0 | BA131: 0 | BB131: 0 | BC131: 0 | BD131: 0 | BE131: 0 | BF131: 0 | BG131: 0
J132: =IF(J96=0,0,J5) -> 2025 | K132: 2026 | L132: 0 | M132: 0 | N132: 0 | O132: 0 | P132: 0 | Q132: 0 | R132: 0 | S132: 0 | T132: 0 | U132: 0 | V132: 0 | W132: 0 | X132: 0 | Y132: 0 | Z132: 0 | AA132: 0 | AB132: 0 | AC132: 0 | AD132: 0 | AE132: 0 | AF132: 0 | AG132: 0 | AH132: 0 | AI132: 0 | AJ132: 0 | AK132: 0 | AL132: 0 | AM132: 0 | AN132: 0 | AO132: 0 | AP132: =IF(AP96=0,0,AP5) -> 0 | AQ132: 0 | AR132: 0 | AS132: 0 | AT132: 0 | AU132: 0 | AV132: 0 | AW132: 0 | AX132: 0 | AY132: 0 | AZ132: 0 | BA132: 0 | BB132: 0 | BC132: 0 | BD132: 0 | BE132: 0 | BF132: 0 | BG132: 0
E134: Profiling
F135: =F106 -> January | J135: =CHOOSE($G$58,IF(J$131,J$105/TS_Mths_In_Yr,J106),0) -> 307068.6566 | K135: 1535257.427 | L135: 0 | M135: 0 | N135: 0 | O135: 0 | P135: 0 | Q135: 0 | R135: 0 | S135: 0 | T135: 0 | U135: 0 | V135: 0 | W135: 0 | X135: 0 | Y135: 0 | Z135: 0 | AA135: 0 | AB135: 0 | AC135: 0 | AD135: 0 | AE135: 0 | AF135: 0 | AG135: 0 | AH135: 0 | AI135: 0 | AJ135: 0 | AK135: 0 | AL135: 0 | AM135: 0 | AN135: 0 | AO135: 0 | AP135: =CHOOSE($G$58,IF(AP$131,AP$105/TS_Mths_In_Yr,AP106),0) -> 0 | AQ135: 0 | AR135: 0 | AS135: 0 | AT135: 0 | AU135: 0 | AV135: 0 | AW135: 0 | AX135: 0 | AY135: 0 | AZ135: 0 | BA135: 0 | BB135: 0 | BC135: 0 | BD135: 0 | BE135: 0 | BF135: 0 | BG135: 0 | BH135: 0
F136: February | J136: =CHOOSE($G$58,IF(J$131,J$105/TS_Mths_In_Yr,J107),0) -> 307068.6566 | K136: 1535257.427 | L136: 0 | M136: 0 | N136: 0 | O136: 0 | P136: 0 | Q136: 0 | R136: 0 | S136: 0 | T136: 0 | U136: 0 | V136: 0 | W136: 0 | X136: 0 | Y136: 0 | Z136: 0 | AA136: 0 | AB136: 0 | AC136: 0 | AD136: 0 | AE136: 0 | AF136: 0 | AG136: 0 | AH136: 0 | AI136: 0 | AJ136: 0 | AK136: 0 | AL136: 0 | AM136: 0 | AN136: 0 | AO136: 0 | AP136: =CHOOSE($G$58,IF(AP$131,AP$105/TS_Mths_In_Yr,AP107),0) -> 0 | AQ136: 0 | AR136: 0 | AS136: 0 | AT136: 0 | AU136: 0 | AV136: 0 | AW136: 0 | AX136: 0 | AY136: 0 | AZ136: 0 | BA136: 0 | BB136: 0 | BC136: 0 | BD136: 0 | BE136: 0 | BF136: 0 | BG136: 0 | BH136: 0
F137: March | J137: =CHOOSE($G$58,IF(J$131,J$105/TS_Mths_In_Yr,J108),0) -> 307068.6566 | K137: 1535257.427 | L137: 0 | M137: 0 | N137: 0 | O137: 0 | P137: 0 | Q137: 0 | R137: 0 | S137: 0 | T137: 0 | U137: 0 | V137: 0 | W137: 0 | X137: 0 | Y137: 0 | Z137: 0 | AA137: 0 | AB137: 0 | AC137: 0 | AD137: 0 | AE137: 0 | AF137: 0 | AG137: 0 | AH137: 0 | AI137: 0 | AJ137: 0 | AK137: 0 | AL137: 0 | AM137: 0 | AN137: 0 | AO137: 0 | AP137: =CHOOSE($G$58,IF(AP$131,AP$105/TS_Mths_In_Yr,AP108),0) -> 0 | AQ137: 0 | AR137: 0 | AS137: 0 | AT137: 0 | AU137: 0 | AV137: 0 | AW137: 0 | AX137: 0 | AY137: 0 | AZ137: 0 | BA137: 0 | BB137: 0 | BC137: 0 | BD137: 0 | BE137: 0 | BF137: 0 | BG137: 0 | BH137: 0
F138: April | J138: =CHOOSE($G$58,IF(J$131,J$105/TS_Mths_In_Yr,J109),0) -> 307068.6566 | K138: 1535257.427 | L138: 0 | M138: 0 | N138: 0 | O138: 0 | P138: 0 | Q138: 0 | R138: 0 | S138: 0 | T138: 0 | U138: 0 | V138: 0 | W138: 0 | X138: 0 | Y138: 0 | Z138: 0 | AA138: 0 | AB138: 0 | AC138: 0 | AD138: 0 | AE138: 0 | AF138: 0 | AG138: 0 | AH138: 0 | AI138: 0 | AJ138: 0 | AK138: 0 | AL138: 0 | AM138: 0 | AN138: 0 | AO138: 0 | AP138: =CHOOSE($G$58,IF(AP$131,AP$105/TS_Mths_In_Yr,AP109),0) -> 0 | AQ138: 0 | AR138: 0 | AS138: 0 | AT138: 0 | AU138: 0 | AV138: 0 | AW138: 0 | AX138: 0 | AY138: 0 | AZ138: 0 | BA138: 0 | BB138: 0 | BC138: 0 | BD138: 0 | BE138: 0 | BF138: 0 | BG138: 0 | BH138: 0
F139: May | J139: =CHOOSE($G$58,IF(J$131,J$105/TS_Mths_In_Yr,J110),0) -> 307068.6566 | K139: 1535257.427 | L139: 0 | M139: 0 | N139: 0 | O139: 0 | P139: 0 | Q139: 0 | R139: 0 | S139: 0 | T139: 0 | U139: 0 | V139: 0 | W139: 0 | X139: 0 | Y139: 0 | Z139: 0 | AA139: 0 | AB139: 0 | AC139: 0 | AD139: 0 | AE139: 0 | AF139: 0 | AG139: 0 | AH139: 0 | AI139: 0 | AJ139: 0 | AK139: 0 | AL139: 0 | AM139: 0 | AN139: 0 | AO139: 0 | AP139: =CHOOSE($G$58,IF(AP$131,AP$105/TS_Mths_In_Yr,AP110),0) -> 0 | AQ139: 0 | AR139: 0 | AS139: 0 | AT139: 0 | AU139: 0 | AV139: 0 | AW139: 0 | AX139: 0 | AY139: 0 | AZ139: 0 | BA139: 0 | BB139: 0 | BC139: 0 | BD139: 0 | BE139: 0 | BF139: 0 | BG139: 0 | BH139: 0
F140: June | J140: =CHOOSE($G$58,IF(J$131,J$105/TS_Mths_In_Yr,J111),0) -> 307068.6566 | K140: 1535257.427 | L140: 0 | M140: 0 | N140: 0 | O140: 0 | P140: 0 | Q140: 0 | R140: 0 | S140: 0 | T140: 0 | U140: 0 | V140: 0 | W140: 0 | X140: 0 | Y140: 0 | Z140: 0 | AA140: 0 | AB140: 0 | AC140: 0 | AD140: 0 | AE140: 0 | AF140: 0 | AG140: 0 | AH140: 0 | AI140: 0 | AJ140: 0 | AK140: 0 | AL140: 0 | AM140: 0 | AN140: 0 | AO140: 0 | AP140: =CHOOSE($G$58,IF(AP$131,AP$105/TS_Mths_In_Yr,AP111),0) -> 0 | AQ140: 0 | AR140: 0 | AS140: 0 | AT140: 0 | AU140: 0 | AV140: 0 | AW140: 0 | AX140: 0 | AY140: 0 | AZ140: 0 | BA140: 0 | BB140: 0 | BC140: 0 | BD140: 0 | BE140: 0 | BF140: 0 | BG140: 0 | BH140: 0
F141: July | J141: =CHOOSE($G$58,IF(J$131,J$105/TS_Mths_In_Yr,J112),0) -> 307068.6566 | K141: 1535257.427 | L141: 0 | M141: 0 | N141: 0 | O141: 0 | P141: 0 | Q141: 0 | R141: 0 | S141: 0 | T141: 0 | U141: 0 | V141: 0 | W141: 0 | X141: 0 | Y141: 0 | Z141: 0 | AA141: 0 | AB141: 0 | AC141: 0 | AD141: 0 | AE141: 0 | AF141: 0 | AG141: 0 | AH141: 0 | AI141: 0 | AJ141: 0 | AK141: 0 | AL141: 0 | AM141: 0 | AN141: 0 | AO141: 0 | AP141: =CHOOSE($G$58,IF(AP$131,AP$105/TS_Mths_In_Yr,AP112),0) -> 0 | AQ141: 0 | AR141: 0 | AS141: 0 | AT141: 0 | AU141: 0 | AV141: 0 | AW141: 0 | AX141: 0 | AY141: 0 | AZ141: 0 | BA141: 0 | BB141: 0 | BC141: 0 | BD141: 0 | BE141: 0 | BF141: 0 | BG141: 0 | BH141: 0
F142: August | J142: =CHOOSE($G$58,IF(J$131,J$105/TS_Mths_In_Yr,J113),0) -> 307068.6566 | K142: 1535257.427 | L142: 0 | M142: 0 | N142: 0 | O142: 0 | P142: 0 | Q142: 0 | R142: 0 | S142: 0 | T142: 0 | U142: 0 | V142: 0 | W142: 0 | X142: 0 | Y142: 0 | Z142: 0 | AA142: 0 | AB142: 0 | AC142: 0 | AD142: 0 | AE142: 0 | AF142: 0 | AG142: 0 | AH142: 0 | AI142: 0 | AJ142: 0 | AK142: 0 | AL142: 0 | AM142: 0 | AN142: 0 | AO142: 0 | AP142: =CHOOSE($G$58,IF(AP$131,AP$105/TS_Mths_In_Yr,AP113),0) -> 0 | AQ142: 0 | AR142: 0 | AS142: 0 | AT142: 0 | AU142: 0 | AV142: 0 | AW142: 0 | AX142: 0 | AY142: 0 | AZ142: 0 | BA142: 0 | BB142: 0 | BC142: 0 | BD142: 0 | BE142: 0 | BF142: 0 | BG142: 0 | BH142: 0
F143: September | J143: =CHOOSE($G$58,IF(J$131,J$105/TS_Mths_In_Yr,J114),0) -> 307068.6566 | K143: 1535257.427 | L143: 0 | M143: 0 | N143: 0 | O143: 0 | P143: 0 | Q143: 0 | R143: 0 | S143: 0 | T143: 0 | U143: 0 | V143: 0 | W143: 0 | X143: 0 | Y143: 0 | Z143: 0 | AA143: 0 | AB143: 0 | AC143: 0 | AD143: 0 | AE143: 0 | AF143: 0 | AG143: 0 | AH143: 0 | AI143: 0 | AJ143: 0 | AK143: 0 | AL143: 0 | AM143: 0 | AN143: 0 | AO143: 0 | AP143: =CHOOSE($G$58,IF(AP$131,AP$105/TS_Mths_In_Yr,AP114),0) -> 0 | AQ143: 0 | AR143: 0 | AS143: 0 | AT143: 0 | AU143: 0 | AV143: 0 | AW143: 0 | AX143: 0 | AY143: 0 | AZ143: 0 | BA143: 0 | BB143: 0 | BC143: 0 | BD143: 0 | BE143: 0 | BF143: 0 | BG143: 0 | BH143: 0
F144: October | J144: =CHOOSE($G$58,IF(J$131,J$105/TS_Mths_In_Yr,J115),0) -> 307068.6566 | K144: 1535257.427 | L144: 0 | M144: 0 | N144: 0 | O144: 0 | P144: 0 | Q144: 0 | R144: 0 | S144: 0 | T144: 0 | U144: 0 | V144: 0 | W144: 0 | X144: 0 | Y144: 0 | Z144: 0 | AA144: 0 | AB144: 0 | AC144: 0 | AD144: 0 | AE144: 0 | AF144: 0 | AG144: 0 | AH144: 0 | AI144: 0 | AJ144: 0 | AK144: 0 | AL144: 0 | AM144: 0 | AN144: 0 | AO144: 0 | AP144: =CHOOSE($G$58,IF(AP$131,AP$105/TS_Mths_In_Yr,AP115),0) -> 0 | AQ144: 0 | AR144: 0 | AS144: 0 | AT144: 0 | AU144: 0 | AV144: 0 | AW144: 0 | AX144: 0 | AY144: 0 | AZ144: 0 | BA144: 0 | BB144: 0 | BC144: 0 | BD144: 0 | BE144: 0 | BF144: 0 | BG144: 0 | BH144: 0
F145: November | J145: =CHOOSE($G$58,IF(J$131,J$105/TS_Mths_In_Yr,J116),0) -> 307068.6566 | K145: 1535257.427 | L145: 0 | M145: 0 | N145: 0 | O145: 0 | P145: 0 | Q145: 0 | R145: 0 | S145: 0 | T145: 0 | U145: 0 | V145: 0 | W145: 0 | X145: 0 | Y145: 0 | Z145: 0 | AA145: 0 | AB145: 0 | AC145: 0 | AD145: 0 | AE145: 0 | AF145: 0 | AG145: 0 | AH145: 0 | AI145: 0 | AJ145: 0 | AK145: 0 | AL145: 0 | AM145: 0 | AN145: 0 | AO145: 0 | AP145: =CHOOSE($G$58,IF(AP$131,AP$105/TS_Mths_In_Yr,AP116),0) -> 0 | AQ145: 0 | AR145: 0 | AS145: 0 | AT145: 0 | AU145: 0 | AV145: 0 | AW145: 0 | AX145: 0 | AY145: 0 | AZ145: 0 | BA145: 0 | BB145: 0 | BC145: 0 | BD145: 0 | BE145: 0 | BF145: 0 | BG145: 0 | BH145: 0
F146: December | J146: =CHOOSE($G$58,IF(J$131,J$105/TS_Mths_In_Yr,J117),0) -> 307068.6566 | K146: 1535257.427 | L146: 0 | M146: 0 | N146: 0 | O146: 0 | P146: 0 | Q146: 0 | R146: 0 | S146: 0 | T146: 0 | U146: 0 | V146: 0 | W146: 0 | X146: 0 | Y146: 0 | Z146: 0 | AA146: 0 | AB146: 0 | AC146: 0 | AD146: 0 | AE146: 0 | AF146: 0 | AG146: 0 | AH146: 0 | AI146: 0 | AJ146: 0 | AK146: 0 | AL146: 0 | AM146: 0 | AN146: 0 | AO146: 0 | AP146: =CHOOSE($G$58,IF(AP$131,AP$105/TS_Mths_In_Yr,AP117),0) -> 0 | AQ146: 0 | AR146: 0 | AS146: 0 | AT146: 0 | AU146: 0 | AV146: 0 | AW146: 0 | AX146: 0 | AY146: 0 | AZ146: 0 | BA146: 0 | BB146: 0 | BC146: 0 | BD146: 0 | BE146: 0 | BF146: 0 | BG146: 0 | BH146: 0
E148: WIP Closing balance
F149: =F106 -> January | G149: =ROWS(G$149:G149) -> 1 | H149: =TEXT(DATE(TS_First_Fin_Yr,MONTH(1&LEFT(F149,3))-1,1),"Mmmm") -> December | J149: =(J135+IF(AND($G149=1,$E$124),I$160,SUM(OFFSET(J149,-1,,-1))))*(1-J163) -> 307068.6566 | K149: 5220081.306 | L149: 0 | M149: 0 | N149: 0 | O149: 0 | P149: 0 | Q149: 0 | R149: 0 | S149: 0 | T149: 0 | U149: 0 | V149: 0 | W149: 0 | X149: 0 | Y149: 0 | Z149: 0 | AA149: 0 | AB149: 0 | AC149: 0 | AD149: 0 | AE149: 0 | AF149: 0 | AG149: 0 | AH149: 0 | AI149: 0 | AJ149: 0 | AK149: 0 | AL149: 0 | AM149: 0 | AN149: 0 | AO149: 0 | AP149: =(AP135+IF(AND($G149=1,$E$124),AO$160,SUM(OFFSET(AP149,-1,,-1))))*(1-AP163) -> 0 | AQ149: 0 | AR149: 0 | AS149: 0 | AT149: 0 | AU149: 0 | AV149: 0 | AW149: 0 | AX149: 0 | AY149: 0 | AZ149: 0 | BA149: 0 | BB149: 0 | BC149: 0 | BD149: 0 | BE149: 0 | BF149: 0 | BG149: 0
F150: February | G150: =ROWS(G$149:G150) -> 2 | H150: January | J150: =(J136+IF(AND($G150=1,$E$124),I$160,SUM(OFFSET(J150,-1,,-1))))*(1-J164) -> 614137.3133 | K150: 6755338.733 | L150: 0 | M150: 0 | N150: 0 | O150: 0 | P150: 0 | Q150: 0 | R150: 0 | S150: 0 | T150: 0 | U150: 0 | V150: 0 | W150: 0 | X150: 0 | Y150: 0 | Z150: 0 | AA150: 0 | AB150: 0 | AC150: 0 | AD150: 0 | AE150: 0 | AF150: 0 | AG150: 0 | AH150: 0 | AI150: 0 | AJ150: 0 | AK150: 0 | AL150: 0 | AM150: 0 | AN150: 0 | AO150: 0 | AP150: =(AP136+IF(AND($G150=1,$E$124),AO$160,SUM(OFFSET(AP150,-1,,-1))))*(1-AP164) -> 0 | AQ150: 0 | AR150: 0 | AS150: 0 | AT150: 0 | AU150: 0 | AV150: 0 | AW150: 0 | AX150: 0 | AY150: 0 | AZ150: 0 | BA150: 0 | BB150: 0 | BC150: 0 | BD150: 0 | BE150: 0 | BF150: 0 | BG150: 0
F151: March | G151: =ROWS(G$149:G151) -> 3 | H151: February | J151: =(J137+IF(AND($G151=1,$E$124),I$160,SUM(OFFSET(J151,-1,,-1))))*(1-J165) -> 921205.9699 | K151: 8290596.16 | L151: 0 | M151: 0 | N151: 0 | O151: 0 | P151: 0 | Q151: 0 | R151: 0 | S151: 0 | T151: 0 | U151: 0 | V151: 0 | W151: 0 | X151: 0 | Y151: 0 | Z151: 0 | AA151: 0 | AB151: 0 | AC151: 0 | AD151: 0 | AE151: 0 | AF151: 0 | AG151: 0 | AH151: 0 | AI151: 0 | AJ151: 0 | AK151: 0 | AL151: 0 | AM151: 0 | AN151: 0 | AO151: 0 | AP151: =(AP137+IF(AND($G151=1,$E$124),AO$160,SUM(OFFSET(AP151,-1,,-1))))*(1-AP165) -> 0 | AQ151: 0 | AR151: 0 | AS151: 0 | AT151: 0 | AU151: 0 | AV151: 0 | AW151: 0 | AX151: 0 | AY151: 0 | AZ151: 0 | BA151: 0 | BB151: 0 | BC151: 0 | BD151: 0 | BE151: 0 | BF151: 0 | BG151: 0
F152: April | G152: =ROWS(G$149:G152) -> 4 | H152: March | J152: =(J138+IF(AND($G152=1,$E$124),I$160,SUM(OFFSET(J152,-1,,-1))))*(1-J166) -> 1228274.627 | K152: 9825853.587 | L152: 0 | M152: 0 | N152: 0 | O152: 0 | P152: 0 | Q152: 0 | R152: 0 | S152: 0 | T152: 0 | U152: 0 | V152: 0 | W152: 0 | X152: 0 | Y152: 0 | Z152: 0 | AA152: 0 | AB152: 0 | AC152: 0 | AD152: 0 | AE152: 0 | AF152: 0 | AG152: 0 | AH152: 0 | AI152: 0 | AJ152: 0 | AK152: 0 | AL152: 0 | AM152: 0 | AN152: 0 | AO152: 0 | AP152: =(AP138+IF(AND($G152=1,$E$124),AO$160,SUM(OFFSET(AP152,-1,,-1))))*(1-AP166) -> 0 | AQ152: 0 | AR152: 0 | AS152: 0 | AT152: 0 | AU152: 0 | AV152: 0 | AW152: 0 | AX152: 0 | AY152: 0 | AZ152: 0 | BA152: 0 | BB152: 0 | BC152: 0 | BD152: 0 | BE152: 0 | BF152: 0 | BG152: 0
F153: May | G153: =ROWS(G$149:G153) -> 5 | H153: April | J153: =(J139+IF(AND($G153=1,$E$124),I$160,SUM(OFFSET(J153,-1,,-1))))*(1-J167) -> 1535343.283 | K153: 11361111.01 | L153: 0 | M153: 0 | N153: 0 | O153: 0 | P153: 0 | Q153: 0 | R153: 0 | S153: 0 | T153: 0 | U153: 0 | V153: 0 | W153: 0 | X153: 0 | Y153: 0 | Z153: 0 | AA153: 0 | AB153: 0 | AC153: 0 | AD153: 0 | AE153: 0 | AF153: 0 | AG153: 0 | AH153: 0 | AI153: 0 | AJ153: 0 | AK153: 0 | AL153: 0 | AM153: 0 | AN153: 0 | AO153: 0 | AP153: =(AP139+IF(AND($G153=1,$E$124),AO$160,SUM(OFFSET(AP153,-1,,-1))))*(1-AP167) -> 0 | AQ153: 0 | AR153: 0 | AS153: 0 | AT153: 0 | AU153: 0 | AV153: 0 | AW153: 0 | AX153: 0 | AY153: 0 | AZ153: 0 | BA153: 0 | BB153: 0 | BC153: 0 | BD153: 0 | BE153: 0 | BF153: 0 | BG153: 0
F154: June | G154: =ROWS(G$149:G154) -> 6 | H154: May | J154: =(J140+IF(AND($G154=1,$E$124),I$160,SUM(OFFSET(J154,-1,,-1))))*(1-J168) -> 1842411.94 | K154: 12896368.44 | L154: 0 | M154: 0 | N154: 0 | O154: 0 | P154: 0 | Q154: 0 | R154: 0 | S154: 0 | T154: 0 | U154: 0 | V154: 0 | W154: 0 | X154: 0 | Y154: 0 | Z154: 0 | AA154: 0 | AB154: 0 | AC154: 0 | AD154: 0 | AE154: 0 | AF154: 0 | AG154: 0 | AH154: 0 | AI154: 0 | AJ154: 0 | AK154: 0 | AL154: 0 | AM154: 0 | AN154: 0 | AO154: 0 | AP154: =(AP140+IF(AND($G154=1,$E$124),AO$160,SUM(OFFSET(AP154,-1,,-1))))*(1-AP168) -> 0 | AQ154: 0 | AR154: 0 | AS154: 0 | AT154: 0 | AU154: 0 | AV154: 0 | AW154: 0 | AX154: 0 | AY154: 0 | AZ154: 0 | BA154: 0 | BB154: 0 | BC154: 0 | BD154: 0 | BE154: 0 | BF154: 0 | BG154: 0
F155: July | G155: =ROWS(G$149:G155) -> 7 | H155: June | J155: =(J141+IF(AND($G155=1,$E$124),I$160,SUM(OFFSET(J155,-1,,-1))))*(1-J169) -> 2149480.597 | K155: 14431625.87 | L155: 0 | M155: 0 | N155: 0 | O155: 0 | P155: 0 | Q155: 0 | R155: 0 | S155: 0 | T155: 0 | U155: 0 | V155: 0 | W155: 0 | X155: 0 | Y155: 0 | Z155: 0 | AA155: 0 | AB155: 0 | AC155: 0 | AD155: 0 | AE155: 0 | AF155: 0 | AG155: 0 | AH155: 0 | AI155: 0 | AJ155: 0 | AK155: 0 | AL155: 0 | AM155: 0 | AN155: 0 | AO155: 0 | AP155: =(AP141+IF(AND($G155=1,$E$124),AO$160,SUM(OFFSET(AP155,-1,,-1))))*(1-AP169) -> 0 | AQ155: 0 | AR155: 0 | AS155: 0 | AT155: 0 | AU155: 0 | AV155: 0 | AW155: 0 | AX155: 0 | AY155: 0 | AZ155: 0 | BA155: 0 | BB155: 0 | BC155: 0 | BD155: 0 | BE155: 0 | BF155: 0 | BG155: 0
F156: August | G156: =ROWS(G$149:G156) -> 8 | H156: July | J156: =(J142+IF(AND($G156=1,$E$124),I$160,SUM(OFFSET(J156,-1,,-1))))*(1-J170) -> 2456549.253 | K156: 15966883.29 | L156: 0 | M156: 0 | N156: 0 | O156: 0 | P156: 0 | Q156: 0 | R156: 0 | S156: 0 | T156: 0 | U156: 0 | V156: 0 | W156: 0 | X156: 0 | Y156: 0 | Z156: 0 | AA156: 0 | AB156: 0 | AC156: 0 | AD156: 0 | AE156: 0 | AF156: 0 | AG156: 0 | AH156: 0 | AI156: 0 | AJ156: 0 | AK156: 0 | AL156: 0 | AM156: 0 | AN156: 0 | AO156: 0 | AP156: =(AP142+IF(AND($G156=1,$E$124),AO$160,SUM(OFFSET(AP156,-1,,-1))))*(1-AP170) -> 0 | AQ156: 0 | AR156: 0 | AS156: 0 | AT156: 0 | AU156: 0 | AV156: 0 | AW156: 0 | AX156: 0 | AY156: 0 | AZ156: 0 | BA156: 0 | BB156: 0 | BC156: 0 | BD156: 0 | BE156: 0 | BF156: 0 | BG156: 0
F157: September | G157: =ROWS(G$149:G157) -> 9 | H157: August | J157: =(J143+IF(AND($G157=1,$E$124),I$160,SUM(OFFSET(J157,-1,,-1))))*(1-J171) -> 2763617.91 | K157: 17502140.72 | L157: 0 | M157: 0 | N157: 0 | O157: 0 | P157: 0 | Q157: 0 | R157: 0 | S157: 0 | T157: 0 | U157: 0 | V157: 0 | W157: 0 | X157: 0 | Y157: 0 | Z157: 0 | AA157: 0 | AB157: 0 | AC157: 0 | AD157: 0 | AE157: 0 | AF157: 0 | AG157: 0 | AH157: 0 | AI157: 0 | AJ157: 0 | AK157: 0 | AL157: 0 | AM157: 0 | AN157: 0 | AO157: 0 | AP157: =(AP143+IF(AND($G157=1,$E$124),AO$160,SUM(OFFSET(AP157,-1,,-1))))*(1-AP171) -> 0 | AQ157: 0 | AR157: 0 | AS157: 0 | AT157: 0 | AU157: 0 | AV157: 0 | AW157: 0 | AX157: 0 | AY157: 0 | AZ157: 0 | BA157: 0 | BB157: 0 | BC157: 0 | BD157: 0 | BE157: 0 | BF157: 0 | BG157: 0
F158: October | G158: =ROWS(G$149:G158) -> 10 | H158: September | J158: =(J144+IF(AND($G158=1,$E$124),I$160,SUM(OFFSET(J158,-1,,-1))))*(1-J172) -> 3070686.566 | K158: 19037398.15 | L158: 0 | M158: 0 | N158: 0 | O158: 0 | P158: 0 | Q158: 0 | R158: 0 | S158: 0 | T158: 0 | U158: 0 | V158: 0 | W158: 0 | X158: 0 | Y158: 0 | Z158: 0 | AA158: 0 | AB158: 0 | AC158: 0 | AD158: 0 | AE158: 0 | AF158: 0 | AG158: 0 | AH158: 0 | AI158: 0 | AJ158: 0 | AK158: 0 | AL158: 0 | AM158: 0 | AN158: 0 | AO158: 0 | AP158: =(AP144+IF(AND($G158=1,$E$124),AO$160,SUM(OFFSET(AP158,-1,,-1))))*(1-AP172) -> 0 | AQ158: 0 | AR158: 0 | AS158: 0 | AT158: 0 | AU158: 0 | AV158: 0 | AW158: 0 | AX158: 0 | AY158: 0 | AZ158: 0 | BA158: 0 | BB158: 0 | BC158: 0 | BD158: 0 | BE158: 0 | BF158: 0 | BG158: 0
F159: November | G159: =ROWS(G$149:G159) -> 11 | H159: October | J159: =(J145+IF(AND($G159=1,$E$124),I$160,SUM(OFFSET(J159,-1,,-1))))*(1-J173) -> 3377755.223 | K159: 20572655.57 | L159: 0 | M159: 0 | N159: 0 | O159: 0 | P159: 0 | Q159: 0 | R159: 0 | S159: 0 | T159: 0 | U159: 0 | V159: 0 | W159: 0 | X159: 0 | Y159: 0 | Z159: 0 | AA159: 0 | AB159: 0 | AC159: 0 | AD159: 0 | AE159: 0 | AF159: 0 | AG159: 0 | AH159: 0 | AI159: 0 | AJ159: 0 | AK159: 0 | AL159: 0 | AM159: 0 | AN159: 0 | AO159: 0 | AP159: =(AP145+IF(AND($G159=1,$E$124),AO$160,SUM(OFFSET(AP159,-1,,-1))))*(1-AP173) -> 0 | AQ159: 0 | AR159: 0 | AS159: 0 | AT159: 0 | AU159: 0 | AV159: 0 | AW159: 0 | AX159: 0 | AY159: 0 | AZ159: 0 | BA159: 0 | BB159: 0 | BC159: 0 | BD159: 0 | BE159: 0 | BF159: 0 | BG159: 0
F160: December | G160: =ROWS(G$149:G160) -> 12 | H160: November | J160: =(J146+IF(AND($G160=1,$E$124),I$160,SUM(OFFSET(J160,-1,,-1))))*(1-J174) -> 3684823.88 | K160: 0 | L160: 0 | M160: 0 | N160: 0 | O160: 0 | P160: 0 | Q160: 0 | R160: 0 | S160: 0 | T160: 0 | U160: 0 | V160: 0 | W160: 0 | X160: 0 | Y160: 0 | Z160: 0 | AA160: 0 | AB160: 0 | AC160: 0 | AD160: 0 | AE160: 0 | AF160: 0 | AG160: 0 | AH160: 0 | AI160: 0 | AJ160: 0 | AK160: 0 | AL160: 0 | AM160: 0 | AN160: 0 | AO160: 0 | AP160: =(AP146+IF(AND($G160=1,$E$124),AO$160,SUM(OFFSET(AP160,-1,,-1))))*(1-AP174) -> 0 | AQ160: 0 | AR160: 0 | AS160: 0 | AT160: 0 | AU160: 0 | AV160: 0 | AW160: 0 | AX160: 0 | AY160: 0 | AZ160: 0 | BA160: 0 | BB160: 0 | BC160: 0 | BD160: 0 | BE160: 0 | BF160: 0 | BG160: 0
E162: Clearance
F163: =F135 -> January | G163: =ROWS(G$149:G149) -> 1 | J163: =IF(AND(NOT($E$124),$G163=TS_Mths_In_Yr),1,(MIN(1,COUNTIFS($G$127:$G$130,$F163,$I$127:$I$130,J$5)))) -> 0 | K163: 0 | L163: 0 | M163: 0 | N163: 0 | O163: 0 | P163: 0 | Q163: 0 | R163: 0 | S163: 0 | T163: =IF(AND(NOT($E$124),$G163=TS_Mths_In_Yr),1,(MIN(1,COUNTIFS($G$127:$G$130,$F163,$I$127:$I$130,T$5)))) -> 0 | U163: 0 | V163: 0 | W163: 0 | X163: 0 | Y163: 0 | Z163: 0 | AA163: 0 | AB163: 0 | AC163: 0 | AD163: =IF(AND(NOT($E$124),$G163=TS_Mths_In_Yr),1,(MIN(1,COUNTIFS($G$127:$G$130,$F163,$I$127:$I$130,AD$5)))) -> 0 | AE163: 0 | AF163: 0 | AG163: 0 | AH163: 0 | AI163: 0 | AJ163: 0 | AK163: 0 | AL163: 0 | AM163: 0 | AN163: =IF(AND(NOT($E$124),$G163=TS_Mths_In_Yr),1,(MIN(1,COUNTIFS($G$127:$G$130,$F163,$I$127:$I$130,AN$5)))) -> 0 | AO163: 0 | AP163: 0 | AQ163: 0 | AR163: 0 | AS163: 0 | AT163: 0 | AU163: 0 | AV163: 0 | AW163: 0 | AX163: =IF(AND(NOT($E$124),$G163=TS_Mths_In_Yr),1,(MIN(1,COUNTIFS($G$127:$G$130,$F163,$I$127:$I$130,AX$5)))) -> 0 | AY163: 0 | AZ163: 0 | BA163: 0 | BB163: 0 | BC163: 0 | BD163: 0 | BE163: 0 | BF163: 0 | BG163: 0
F164: February | G164: =ROWS(G$149:G150) -> 2 | J164: 0 | K164: 0 | L164: 0 | M164: 0 | N164: 0 | O164: 0 | P164: 0 | Q164: 0 | R164: 0 | S164: 0 | T164: 0 | U164: 0 | V164: 0 | W164: 0 | X164: 0 | Y164: 0 | Z164: 0 | AA164: 0 | AB164: 0 | AC164: 0 | AD164: 0 | AE164: 0 | AF164: 0 | AG164: 0 | AH164: 0 | AI164: 0 | AJ164: 0 | AK164: 0 | AL164: 0 | AM164: 0 | AN164: 0 | AO164: 0 | AP164: 0 | AQ164: 0 | AR164: 0 | AS164: 0 | AT164: 0 | AU164: 0 | AV164: 0 | AW164: 0 | AX164: 0 | AY164: 0 | AZ164: 0 | BA164: 0 | BB164: 0 | BC164: 0 | BD164: 0 | BE164: 0 | BF164: 0 | BG164: 0
F165: March | G165: =ROWS(G$149:G151) -> 3 | J165: 0 | K165: 0 | L165: 0 | M165: 0 | N165: 0 | O165: 0 | P165: 0 | Q165: 0 | R165: 0 | S165: 0 | T165: 0 | U165: 0 | V165: 0 | W165: 0 | X165: 0 | Y165: 0 | Z165: 0 | AA165: 0 | AB165: 0 | AC165: 0 | AD165: 0 | AE165: 0 | AF165: 0 | AG165: 0 | AH165: 0 | AI165: 0 | AJ165: 0 | AK165: 0 | AL165: 0 | AM165: 0 | AN165: 0 | AO165: 0 | AP165: 0 | AQ165: 0 | AR165: 0 | AS165: 0 | AT165: 0 | AU165: 0 | AV165: 0 | AW165: 0 | AX165: 0 | AY165: 0 | AZ165: 0 | BA165: 0 | BB165: 0 | BC165: 0 | BD165: 0 | BE165: 0 | BF165: 0 | BG165: 0
F166: April | G166: =ROWS(G$149:G152) -> 4 | J166: 0 | K166: 0 | L166: 0 | M166: 0 | N166: 0 | O166: 0 | P166: 0 | Q166: 0 | R166: 0 | S166: 0 | T166: 0 | U166: 0 | V166: 0 | W166: 0 | X166: 0 | Y166: 0 | Z166: 0 | AA166: 0 | AB166: 0 | AC166: 0 | AD166: 0 | AE166: 0 | AF166: 0 | AG166: 0 | AH166: 0 | AI166: 0 | AJ166: 0 | AK166: 0 | AL166: 0 | AM166: 0 | AN166: 0 | AO166: 0 | AP166: 0 | AQ166: 0 | AR166: 0 | AS166: 0 | AT166: 0 | AU166: 0 | AV166: 0 | AW166: 0 | AX166: 0 | AY166: 0 | AZ166: 0 | BA166: 0 | BB166: 0 | BC166: 0 | BD166: 0 | BE166: 0 | BF166: 0 | BG166: 0
F167: May | G167: =ROWS(G$149:G153) -> 5 | J167: 0 | K167: 0 | L167: 0 | M167: 0 | N167: 0 | O167: 0 | P167: 0 | Q167: 0 | R167: 0 | S167: 0 | T167: 0 | U167: 0 | V167: 0 | W167: 0 | X167: 0 | Y167: 0 | Z167: 0 | AA167: 0 | AB167: 0 | AC167: 0 | AD167: 0 | AE167: 0 | AF167: 0 | AG167: 0 | AH167: 0 | AI167: 0 | AJ167: 0 | AK167: 0 | AL167: 0 | AM167: 0 | AN167: 0 | AO167: 0 | AP167: 0 | AQ167: 0 | AR167: 0 | AS167: 0 | AT167: 0 | AU167: 0 | AV167: 0 | AW167: 0 | AX167: 0 | AY167: 0 | AZ167: 0 | BA167: 0 | BB167: 0 | BC167: 0 | BD167: 0 | BE167: 0 | BF167: 0 | BG167: 0
F168: June | G168: =ROWS(G$149:G154) -> 6 | J168: 0 | K168: 0 | L168: 0 | M168: 0 | N168: 0 | O168: 0 | P168: 0 | Q168: 0 | R168: 0 | S168: 0 | T168: 0 | U168: 0 | V168: 0 | W168: 0 | X168: 0 | Y168: 0 | Z168: 0 | AA168: 0 | AB168: 0 | AC168: 0 | AD168: 0 | AE168: 0 | AF168: 0 | AG168: 0 | AH168: 0 | AI168: 0 | AJ168: 0 | AK168: 0 | AL168: 0 | AM168: 0 | AN168: 0 | AO168: 0 | AP168: 0 | AQ168: 0 | AR168: 0 | AS168: 0 | AT168: 0 | AU168: 0 | AV168: 0 | AW168: 0 | AX168: 0 | AY168: 0 | AZ168: 0 | BA168: 0 | BB168: 0 | BC168: 0 | BD168: 0 | BE168: 0 | BF168: 0 | BG168: 0
F169: July | G169: =ROWS(G$149:G155) -> 7 | J169: 0 | K169: 0 | L169: 0 | M169: 0 | N169: 0 | O169: 0 | P169: 0 | Q169: 0 | R169: 0 | S169: 0 | T169: 0 | U169: 0 | V169: 0 | W169: 0 | X169: 0 | Y169: 0 | Z169: 0 | AA169: 0 | AB169: 0 | AC169: 0 | AD169: 0 | AE169: 0 | AF169: 0 | AG169: 0 | AH169: 0 | AI169: 0 | AJ169: 0 | AK169: 0 | AL169: 0 | AM169: 0 | AN169: 0 | AO169: 0 | AP169: 0 | AQ169: 0 | AR169: 0 | AS169: 0 | AT169: 0 | AU169: 0 | AV169: 0 | AW169: 0 | AX169: 0 | AY169: 0 | AZ169: 0 | BA169: 0 | BB169: 0 | BC169: 0 | BD169: 0 | BE169: 0 | BF169: 0 | BG169: 0
F170: August | G170: =ROWS(G$149:G156) -> 8 | J170: 0 | K170: 0 | L170: 0 | M170: 0 | N170: 0 | O170: 0 | P170: 0 | Q170: 0 | R170: 0 | S170: 0 | T170: 0 | U170: 0 | V170: 0 | W170: 0 | X170: 0 | Y170: 0 | Z170: 0 | AA170: 0 | AB170: 0 | AC170: 0 | AD170: 0 | AE170: 0 | AF170: 0 | AG170: 0 | AH170: 0 | AI170: 0 | AJ170: 0 | AK170: 0 | AL170: 0 | AM170: 0 | AN170: 0 | AO170: 0 | AP170: 0 | AQ170: 0 | AR170: 0 | AS170: 0 | AT170: 0 | AU170: 0 | AV170: 0 | AW170: 0 | AX170: 0 | AY170: 0 | AZ170: 0 | BA170: 0 | BB170: 0 | BC170: 0 | BD170: 0 | BE170: 0 | BF170: 0 | BG170: 0
F171: September | G171: =ROWS(G$149:G157) -> 9 | J171: 0 | K171: 0 | L171: 0 | M171: 0 | N171: 0 | O171: 0 | P171: 0 | Q171: 0 | R171: 0 | S171: 0 | T171: 0 | U171: 0 | V171: 0 | W171: 0 | X171: 0 | Y171: 0 | Z171: 0 | AA171: 0 | AB171: 0 | AC171: 0 | AD171: 0 | AE171: 0 | AF171: 0 | AG171: 0 | AH171: 0 | AI171: 0 | AJ171: 0 | AK171: 0 | AL171: 0 | AM171: 0 | AN171: 0 | AO171: 0 | AP171: 0 | AQ171: 0 | AR171: 0 | AS171: 0 | AT171: 0 | AU171: 0 | AV171: 0 | AW171: 0 | AX171: 0 | AY171: 0 | AZ171: 0 | BA171: 0 | BB171: 0 | BC171: 0 | BD171: 0 | BE171: 0 | BF171: 0 | BG171: 0
F172: October | G172: =ROWS(G$149:G158) -> 10 | J172: 0 | K172: 0 | L172: 0 | M172: 0 | N172: 0 | O172: 0 | P172: 0 | Q172: 0 | R172: 0 | S172: 0 | T172: 0 | U172: 0 | V172: 0 | W172: 0 | X172: 0 | Y172: 0 | Z172: 0 | AA172: 0 | AB172: 0 | AC172: 0 | AD172: 0 | AE172: 0 | AF172: 0 | AG172: 0 | AH172: 0 | AI172: 0 | AJ172: 0 | AK172: 0 | AL172: 0 | AM172: 0 | AN172: 0 | AO172: 0 | AP172: 0 | AQ172: 0 | AR172: 0 | AS172: 0 | AT172: 0 | AU172: 0 | AV172: 0 | AW172: 0 | AX172: 0 | AY172: 0 | AZ172: 0 | BA172: 0 | BB172: 0 | BC172: 0 | BD172: 0 | BE172: 0 | BF172: 0 | BG172: 0
F173: November | G173: =ROWS(G$149:G159) -> 11 | J173: 0 | K173: 0 | L173: 0 | M173: 0 | N173: 0 | O173: 0 | P173: 0 | Q173: 0 | R173: 0 | S173: 0 | T173: 0 | U173: 0 | V173: 0 | W173: 0 | X173: 0 | Y173: 0 | Z173: 0 | AA173: 0 | AB173: 0 | AC173: 0 | AD173: 0 | AE173: 0 | AF173: 0 | AG173: 0 | AH173: 0 | AI173: 0 | AJ173: 0 | AK173: 0 | AL173: 0 | AM173: 0 | AN173: 0 | AO173: 0 | AP173: 0 | AQ173: 0 | AR173: 0 | AS173: 0 | AT173: 0 | AU173: 0 | AV173: 0 | AW173: 0 | AX173: 0 | AY173: 0 | AZ173: 0 | BA173: 0 | BB173: 0 | BC173: 0 | BD173: 0 | BE173: 0 | BF173: 0 | BG173: 0
F174: December | G174: =ROWS(G$149:G160) -> 12 | J174: 0 | K174: 1 | L174: 0 | M174: 0 | N174: 0 | O174: 0 | P174: 0 | Q174: 0 | R174: 0 | S174: 0 | T174: 0 | U174: 0 | V174: 0 | W174: 0 | X174: 0 | Y174: 0 | Z174: 0 | AA174: 0 | AB174: 0 | AC174: 0 | AD174: 0 | AE174: 0 | AF174: 0 | AG174: 0 | AH174: 0 | AI174: 0 | AJ174: 0 | AK174: 0 | AL174: 0 | AM174: 0 | AN174: 0 | AO174: 0 | AP174: 0 | AQ174: 0 | AR174: 0 | AS174: 0 | AT174: 0 | AU174: 0 | AV174: 0 | AW174: 0 | AX174: 0 | AY174: 0 | AZ174: 0 | BA174: 0 | BB174: 0 | BC174: 0 | BD174: 0 | BE174: 0 | BF174: 0 | BG174: 0
E176: Opening Balance
F177: =F135 -> January | G177: =ROWS(G$149:G149) -> 1 | J177: =IF($G177=1,OFFSET(J149,TS_Mths_In_Yr-1,-1),OFFSET(J149,-1,)) -> 0 | K177: 3684823.88 | L177: 0 | M177: 0 | N177: 0 | O177: 0 | P177: 0 | Q177: 0 | R177: 0 | S177: 0 | T177: 0 | U177: 0 | V177: 0 | W177: 0 | X177: 0 | Y177: 0 | Z177: 0 | AA177: 0 | AB177: 0 | AC177: 0 | AD177: 0 | AE177: 0 | AF177: 0 | AG177: 0 | AH177: 0 | AI177: 0 | AJ177: 0 | AK177: 0 | AL177: 0 | AM177: 0 | AN177: 0 | AO177: 0 | AP177: =IF($G177=1,OFFSET(AP149,TS_Mths_In_Yr-1,-1),OFFSET(AP149,-1,)) -> 0 | AQ177: 0 | AR177: 0 | AS177: 0 | AT177: 0 | AU177: 0 | AV177: 0 | AW177: 0 | AX177: 0 | AY177: 0 | AZ177: 0 | BA177: 0 | BB177: 0 | BC177: 0 | BD177: 0 | BE177: 0 | BF177: 0 | BG177: 0
F178: February | G178: =ROWS(G$149:G150) -> 2 | J178: =IF($G178=1,OFFSET(J150,TS_Mths_In_Yr-1,-1),OFFSET(J150,-1,)) -> 307068.6566 | K178: 5220081.306 | L178: 0 | M178: 0 | N178: 0 | O178: 0 | P178: 0 | Q178: 0 | R178: 0 | S178: 0 | T178: 0 | U178: 0 | V178: 0 | W178: 0 | X178: 0 | Y178: 0 | Z178: 0 | AA178: 0 | AB178: 0 | AC178: 0 | AD178: 0 | AE178: 0 | AF178: 0 | AG178: 0 | AH178: 0 | AI178: 0 | AJ178: 0 | AK178: 0 | AL178: 0 | AM178: 0 | AN178: 0 | AO178: 0 | AP178: =IF($G178=1,OFFSET(AP150,TS_Mths_In_Yr-1,-1),OFFSET(AP150,-1,)) -> 0 | AQ178: 0 | AR178: 0 | AS178: 0 | AT178: 0 | AU178: 0 | AV178: 0 | AW178: 0 | AX178: 0 | AY178: 0 | AZ178: 0 | BA178: 0 | BB178: 0 | BC178: 0 | BD178: 0 | BE178: 0 | BF178: 0 | BG178: 0
F179: March | G179: =ROWS(G$149:G151) -> 3 | J179: =IF($G179=1,OFFSET(J151,TS_Mths_In_Yr-1,-1),OFFSET(J151,-1,)) -> 614137.3133 | K179: 6755338.733 | L179: 0 | M179: 0 | N179: 0 | O179: 0 | P179: 0 | Q179: 0 | R179: 0 | S179: 0 | T179: 0 | U179: 0 | V179: 0 | W179: 0 | X179: 0 | Y179: 0 | Z179: 0 | AA179: 0 | AB179: 0 | AC179: 0 | AD179: 0 | AE179: 0 | AF179: 0 | AG179: 0 | AH179: 0 | AI179: 0 | AJ179: 0 | AK179: 0 | AL179: 0 | AM179: 0 | AN179: 0 | AO179: 0 | AP179: =IF($G179=1,OFFSET(AP151,TS_Mths_In_Yr-1,-1),OFFSET(AP151,-1,)) -> 0 | AQ179: 0 | AR179: 0 | AS179: 0 | AT179: 0 | AU179: 0 | AV179: 0 | AW179: 0 | AX179: 0 | AY179: 0 | AZ179: 0 | BA179: 0 | BB179: 0 | BC179: 0 | BD179: 0 | BE179: 0 | BF179: 0 | BG179: 0
F180: April | G180: =ROWS(G$149:G152) -> 4 | J180: =IF($G180=1,OFFSET(J152,TS_Mths_In_Yr-1,-1),OFFSET(J152,-1,)) -> 921205.9699 | K180: 8290596.16 | L180: 0 | M180: 0 | N180: 0 | O180: 0 | P180: 0 | Q180: 0 | R180: 0 | S180: 0 | T180: 0 | U180: 0 | V180: 0 | W180: 0 | X180: 0 | Y180: 0 | Z180: 0 | AA180: 0 | AB180: 0 | AC180: 0 | AD180: 0 | AE180: 0 | AF180: 0 | AG180: 0 | AH180: 0 | AI180: 0 | AJ180: 0 | AK180: 0 | AL180: 0 | AM180: 0 | AN180: 0 | AO180: 0 | AP180: =IF($G180=1,OFFSET(AP152,TS_Mths_In_Yr-1,-1),OFFSET(AP152,-1,)) -> 0 | AQ180: 0 | AR180: 0 | AS180: 0 | AT180: 0 | AU180: 0 | AV180: 0 | AW180: 0 | AX180: 0 | AY180: 0 | AZ180: 0 | BA180: 0 | BB180: 0 | BC180: 0 | BD180: 0 | BE180: 0 | BF180: 0 | BG180: 0
F181: May | G181: =ROWS(G$149:G153) -> 5 | J181: =IF($G181=1,OFFSET(J153,TS_Mths_In_Yr-1,-1),OFFSET(J153,-1,)) -> 1228274.627 | K181: 9825853.587 | L181: 0 | M181: 0 | N181: 0 | O181: 0 | P181: 0 | Q181: 0 | R181: 0 | S181: 0 | T181: 0 | U181: 0 | V181: 0 | W181: 0 | X181: 0 | Y181: 0 | Z181: 0 | AA181: 0 | AB181: 0 | AC181: 0 | AD181: 0 | AE181: 0 | AF181: 0 | AG181: 0 | AH181: 0 | AI181: 0 | AJ181: 0 | AK181: 0 | AL181: 0 | AM181: 0 | AN181: 0 | AO181: 0 | AP181: =IF($G181=1,OFFSET(AP153,TS_Mths_In_Yr-1,-1),OFFSET(AP153,-1,)) -> 0 | AQ181: 0 | AR181: 0 | AS181: 0 | AT181: 0 | AU181: 0 | AV181: 0 | AW181: 0 | AX181: 0 | AY181: 0 | AZ181: 0 | BA181: 0 | BB181: 0 | BC181: 0 | BD181: 0 | BE181: 0 | BF181: 0 | BG181: 0
F182: June | G182: =ROWS(G$149:G154) -> 6 | J182: =IF($G182=1,OFFSET(J154,TS_Mths_In_Yr-1,-1),OFFSET(J154,-1,)) -> 1535343.283 | K182: 11361111.01 | L182: 0 | M182: 0 | N182: 0 | O182: 0 | P182: 0 | Q182: 0 | R182: 0 | S182: 0 | T182: 0 | U182: 0 | V182: 0 | W182: 0 | X182: 0 | Y182: 0 | Z182: 0 | AA182: 0 | AB182: 0 | AC182: 0 | AD182: 0 | AE182: 0 | AF182: 0 | AG182: 0 | AH182: 0 | AI182: 0 | AJ182: 0 | AK182: 0 | AL182: 0 | AM182: 0 | AN182: 0 | AO182: 0 | AP182: =IF($G182=1,OFFSET(AP154,TS_Mths_In_Yr-1,-1),OFFSET(AP154,-1,)) -> 0 | AQ182: 0 | AR182: 0 | AS182: 0 | AT182: 0 | AU182: 0 | AV182: 0 | AW182: 0 | AX182: 0 | AY182: 0 | AZ182: 0 | BA182: 0 | BB182: 0 | BC182: 0 | BD182: 0 | BE182: 0 | BF182: 0 | BG182: 0
F183: July | G183: =ROWS(G$149:G155) -> 7 | J183: =IF($G183=1,OFFSET(J155,TS_Mths_In_Yr-1,-1),OFFSET(J155,-1,)) -> 1842411.94 | K183: 12896368.44 | L183: 0 | M183: 0 | N183: 0 | O183: 0 | P183: 0 | Q183: 0 | R183: 0 | S183: 0 | T183: 0 | U183: 0 | V183: 0 | W183: 0 | X183: 0 | Y183: 0 | Z183: 0 | AA183: 0 | AB183: 0 | AC183: 0 | AD183: 0 | AE183: 0 | AF183: 0 | AG183: 0 | AH183: 0 | AI183: 0 | AJ183: 0 | AK183: 0 | AL183: 0 | AM183: 0 | AN183: 0 | AO183: 0 | AP183: =IF($G183=1,OFFSET(AP155,TS_Mths_In_Yr-1,-1),OFFSET(AP155,-1,)) -> 0 | AQ183: 0 | AR183: 0 | AS183: 0 | AT183: 0 | AU183: 0 | AV183: 0 | AW183: 0 | AX183: 0 | AY183: 0 | AZ183: 0 | BA183: 0 | BB183: 0 | BC183: 0 | BD183: 0 | BE183: 0 | BF183: 0 | BG183: 0
F184: August | G184: =ROWS(G$149:G156) -> 8 | J184: =IF($G184=1,OFFSET(J156,TS_Mths_In_Yr-1,-1),OFFSET(J156,-1,)) -> 2149480.597 | K184: 14431625.87 | L184: 0 | M184: 0 | N184: 0 | O184: 0 | P184: 0 | Q184: 0 | R184: 0 | S184: 0 | T184: 0 | U184: 0 | V184: 0 | W184: 0 | X184: 0 | Y184: 0 | Z184: 0 | AA184: 0 | AB184: 0 | AC184: 0 | AD184: 0 | AE184: 0 | AF184: 0 | AG184: 0 | AH184: 0 | AI184: 0 | AJ184: 0 | AK184: 0 | AL184: 0 | AM184: 0 | AN184: 0 | AO184: 0 | AP184: =IF($G184=1,OFFSET(AP156,TS_Mths_In_Yr-1,-1),OFFSET(AP156,-1,)) -> 0 | AQ184: 0 | AR184: 0 | AS184: 0 | AT184: 0 | AU184: 0 | AV184: 0 | AW184: 0 | AX184: 0 | AY184: 0 | AZ184: 0 | BA184: 0 | BB184: 0 | BC184: 0 | BD184: 0 | BE184: 0 | BF184: 0 | BG184: 0
F185: September | G185: =ROWS(G$149:G157) -> 9 | J185: =IF($G185=1,OFFSET(J157,TS_Mths_In_Yr-1,-1),OFFSET(J157,-1,)) -> 2456549.253 | K185: 15966883.29 | L185: 0 | M185: 0 | N185: 0 | O185: 0 | P185: 0 | Q185: 0 | R185: 0 | S185: 0 | T185: 0 | U185: 0 | V185: 0 | W185: 0 | X185: 0 | Y185: 0 | Z185: 0 | AA185: 0 | AB185: 0 | AC185: 0 | AD185: 0 | AE185: 0 | AF185: 0 | AG185: 0 | AH185: 0 | AI185: 0 | AJ185: 0 | AK185: 0 | AL185: 0 | AM185: 0 | AN185: 0 | AO185: 0 | AP185: =IF($G185=1,OFFSET(AP157,TS_Mths_In_Yr-1,-1),OFFSET(AP157,-1,)) -> 0 | AQ185: 0 | AR185: 0 | AS185: 0 | AT185: 0 | AU185: 0 | AV185: 0 | AW185: 0 | AX185: 0 | AY185: 0 | AZ185: 0 | BA185: 0 | BB185: 0 | BC185: 0 | BD185: 0 | BE185: 0 | BF185: 0 | BG185: 0
F186: October | G186: =ROWS(G$149:G158) -> 10 | J186: =IF($G186=1,OFFSET(J158,TS_Mths_In_Yr-1,-1),OFFSET(J158,-1,)) -> 2763617.91 | K186: 17502140.72 | L186: 0 | M186: 0 | N186: 0 | O186: 0 | P186: 0 | Q186: 0 | R186: 0 | S186: 0 | T186: 0 | U186: 0 | V186: 0 | W186: 0 | X186: 0 | Y186: 0 | Z186: 0 | AA186: 0 | AB186: 0 | AC186: 0 | AD186: 0 | AE186: 0 | AF186: 0 | AG186: 0 | AH186: 0 | AI186: 0 | AJ186: 0 | AK186: 0 | AL186: 0 | AM186: 0 | AN186: 0 | AO186: 0 | AP186: =IF($G186=1,OFFSET(AP158,TS_Mths_In_Yr-1,-1),OFFSET(AP158,-1,)) -> 0 | AQ186: 0 | AR186: 0 | AS186: 0 | AT186: 0 | AU186: 0 | AV186: 0 | AW186: 0 | AX186: 0 | AY186: 0 | AZ186: 0 | BA186: 0 | BB186: 0 | BC186: 0 | BD186: 0 | BE186: 0 | BF186: 0 | BG186: 0
F187: November | G187: =ROWS(G$149:G159) -> 11 | J187: =IF($G187=1,OFFSET(J159,TS_Mths_In_Yr-1,-1),OFFSET(J159,-1,)) -> 3070686.566 | K187: 19037398.15 | L187: 0 | M187: 0 | N187: 0 | O187: 0 | P187: 0 | Q187: 0 | R187: 0 | S187: 0 | T187: 0 | U187: 0 | V187: 0 | W187: 0 | X187: 0 | Y187: 0 | Z187: 0 | AA187: 0 | AB187: 0 | AC187: 0 | AD187: 0 | AE187: 0 | AF187: 0 | AG187: 0 | AH187: 0 | AI187: 0 | AJ187: 0 | AK187: 0 | AL187: 0 | AM187: 0 | AN187: 0 | AO187: 0 | AP187: =IF($G187=1,OFFSET(AP159,TS_Mths_In_Yr-1,-1),OFFSET(AP159,-1,)) -> 0 | AQ187: 0 | AR187: 0 | AS187: 0 | AT187: 0 | AU187: 0 | AV187: 0 | AW187: 0 | AX187: 0 | AY187: 0 | AZ187: 0 | BA187: 0 | BB187: 0 | BC187: 0 | BD187: 0 | BE187: 0 | BF187: 0 | BG187: 0
F188: December | G188: =ROWS(G$149:G160) -> 12 | J188: =IF($G188=1,OFFSET(J160,TS_Mths_In_Yr-1,-1),OFFSET(J160,-1,)) -> 3377755.223 | K188: 20572655.57 | L188: 0 | M188: 0 | N188: 0 | O188: 0 | P188: 0 | Q188: 0 | R188: 0 | S188: 0 | T188: 0 | U188: 0 | V188: 0 | W188: 0 | X188: 0 | Y188: 0 | Z188: 0 | AA188: 0 | AB188: 0 | AC188: 0 | AD188: 0 | AE188: 0 | AF188: 0 | AG188: 0 | AH188: 0 | AI188: 0 | AJ188: 0 | AK188: 0 | AL188: 0 | AM188: 0 | AN188: 0 | AO188: 0 | AP188: =IF($G188=1,OFFSET(AP160,TS_Mths_In_Yr-1,-1),OFFSET(AP160,-1,)) -> 0 | AQ188: 0 | AR188: 0 | AS188: 0 | AT188: 0 | AU188: 0 | AV188: 0 | AW188: 0 | AX188: 0 | AY188: 0 | AZ188: 0 | BA188: 0 | BB188: 0 | BC188: 0 | BD188: 0 | BE188: 0 | BF188: 0 | BG188: 0
E190: CFC Calculation
F191: Rate | H191: =Project_Inputs!J61 -> 0.0466
F192: Minimum amount | H192: =Corporate_Inputs!H47 -> 100000
F194: =F135 -> January | J194: =IF(J177>$H$192,J177,0)*$H$191/TS_Mths_In_Yr -> 0 | K194: 14309.3994 | L194: 0 | M194: 0 | N194: 0 | O194: 0 | P194: 0 | Q194: 0 | R194: 0 | S194: 0 | T194: 0 | U194: 0 | V194: 0 | W194: 0 | X194: 0 | Y194: 0 | Z194: 0 | AA194: 0 | AB194: 0 | AC194: 0 | AD194: 0 | AE194: 0 | AF194: 0 | AG194: 0 | AH194: 0 | AI194: 0 | AJ194: 0 | AK194: 0 | AL194: 0 | AM194: 0 | AN194: 0 | AO194: 0 | AP194: =IF(AP177>$H$192,AP177,0)*$H$191/TS_Mths_In_Yr -> 0 | AQ194: 0 | AR194: 0 | AS194: 0 | AT194: 0 | AU194: 0 | AV194: 0 | AW194: 0 | AX194: 0 | AY194: 0 | AZ194: 0 | BA194: 0 | BB194: 0 | BC194: 0 | BD194: 0 | BE194: 0 | BF194: 0 | BG194: 0
F195: February | J195: =IF(J178>$H$192,J178,0)*$H$191/TS_Mths_In_Yr -> 1192.44995 | K195: 20271.31574 | L195: 0 | M195: 0 | N195: 0 | O195: 0 | P195: 0 | Q195: 0 | R195: 0 | S195: 0 | T195: 0 | U195: 0 | V195: 0 | W195: 0 | X195: 0 | Y195: 0 | Z195: 0 | AA195: 0 | AB195: 0 | AC195: 0 | AD195: 0 | AE195: 0 | AF195: 0 | AG195: 0 | AH195: 0 | AI195: 0 | AJ195: 0 | AK195: 0 | AL195: 0 | AM195: 0 | AN195: 0 | AO195: 0 | AP195: =IF(AP178>$H$192,AP178,0)*$H$191/TS_Mths_In_Yr -> 0 | AQ195: 0 | AR195: 0 | AS195: 0 | AT195: 0 | AU195: 0 | AV195: 0 | AW195: 0 | AX195: 0 | AY195: 0 | AZ195: 0 | BA195: 0 | BB195: 0 | BC195: 0 | BD195: 0 | BE195: 0 | BF195: 0 | BG195: 0
F196: March | J196: =IF(J179>$H$192,J179,0)*$H$191/TS_Mths_In_Yr -> 2384.8999 | K196: 26233.23208 | L196: 0 | M196: 0 | N196: 0 | O196: 0 | P196: 0 | Q196: 0 | R196: 0 | S196: 0 | T196: 0 | U196: 0 | V196: 0 | W196: 0 | X196: 0 | Y196: 0 | Z196: 0 | AA196: 0 | AB196: 0 | AC196: 0 | AD196: 0 | AE196: 0 | AF196: 0 | AG196: 0 | AH196: 0 | AI196: 0 | AJ196: 0 | AK196: 0 | AL196: 0 | AM196: 0 | AN196: 0 | AO196: 0 | AP196: =IF(AP179>$H$192,AP179,0)*$H$191/TS_Mths_In_Yr -> 0 | AQ196: 0 | AR196: 0 | AS196: 0 | AT196: 0 | AU196: 0 | AV196: 0 | AW196: 0 | AX196: 0 | AY196: 0 | AZ196: 0 | BA196: 0 | BB196: 0 | BC196: 0 | BD196: 0 | BE196: 0 | BF196: 0 | BG196: 0
F197: April | J197: =IF(J180>$H$192,J180,0)*$H$191/TS_Mths_In_Yr -> 3577.34985 | K197: 32195.14842 | L197: 0 | M197: 0 | N197: 0 | O197: 0 | P197: 0 | Q197: 0 | R197: 0 | S197: 0 | T197: 0 | U197: 0 | V197: 0 | W197: 0 | X197: 0 | Y197: 0 | Z197: 0 | AA197: 0 | AB197: 0 | AC197: 0 | AD197: 0 | AE197: 0 | AF197: 0 | AG197: 0 | AH197: 0 | AI197: 0 | AJ197: 0 | AK197: 0 | AL197: 0 | AM197: 0 | AN197: 0 | AO197: 0 | AP197: =IF(AP180>$H$192,AP180,0)*$H$191/TS_Mths_In_Yr -> 0 | AQ197: 0 | AR197: 0 | AS197: 0 | AT197: 0 | AU197: 0 | AV197: 0 | AW197: 0 | AX197: 0 | AY197: 0 | AZ197: 0 | BA197: 0 | BB197: 0 | BC197: 0 | BD197: 0 | BE197: 0 | BF197: 0 | BG197: 0
F198: May | J198: =IF(J181>$H$192,J181,0)*$H$191/TS_Mths_In_Yr -> 4769.7998 | K198: 38157.06476 | L198: 0 | M198: 0 | N198: 0 | O198: 0 | P198: 0 | Q198: 0 | R198: 0 | S198: 0 | T198: 0 | U198: 0 | V198: 0 | W198: 0 | X198: 0 | Y198: 0 | Z198: 0 | AA198: 0 | AB198: 0 | AC198: 0 | AD198: 0 | AE198: 0 | AF198: 0 | AG198: 0 | AH198: 0 | AI198: 0 | AJ198: 0 | AK198: 0 | AL198: 0 | AM198: 0 | AN198: 0 | AO198: 0 | AP198: =IF(AP181>$H$192,AP181,0)*$H$191/TS_Mths_In_Yr -> 0 | AQ198: 0 | AR198: 0 | AS198: 0 | AT198: 0 | AU198: 0 | AV198: 0 | AW198: 0 | AX198: 0 | AY198: 0 | AZ198: 0 | BA198: 0 | BB198: 0 | BC198: 0 | BD198: 0 | BE198: 0 | BF198: 0 | BG198: 0
F199: June | J199: =IF(J182>$H$192,J182,0)*$H$191/TS_Mths_In_Yr -> 5962.24975 | K199: 44118.9811 | L199: 0 | M199: 0 | N199: 0 | O199: 0 | P199: 0 | Q199: 0 | R199: 0 | S199: 0 | T199: 0 | U199: 0 | V199: 0 | W199: 0 | X199: 0 | Y199: 0 | Z199: 0 | AA199: 0 | AB199: 0 | AC199: 0 | AD199: 0 | AE199: 0 | AF199: 0 | AG199: 0 | AH199: 0 | AI199: 0 | AJ199: 0 | AK199: 0 | AL199: 0 | AM199: 0 | AN199: 0 | AO199: 0 | AP199: =IF(AP182>$H$192,AP182,0)*$H$191/TS_Mths_In_Yr -> 0 | AQ199: 0 | AR199: 0 | AS199: 0 | AT199: 0 | AU199: 0 | AV199: 0 | AW199: 0 | AX199: 0 | AY199: 0 | AZ199: 0 | BA199: 0 | BB199: 0 | BC199: 0 | BD199: 0 | BE199: 0 | BF199: 0 | BG199: 0
F200: July | J200: =IF(J183>$H$192,J183,0)*$H$191/TS_Mths_In_Yr -> 7154.6997 | K200: 50080.89744 | L200: 0 | M200: 0 | N200: 0 | O200: 0 | P200: 0 | Q200: 0 | R200: 0 | S200: 0 | T200: 0 | U200: 0 | V200: 0 | W200: 0 | X200: 0 | Y200: 0 | Z200: 0 | AA200: 0 | AB200: 0 | AC200: 0 | AD200: 0 | AE200: 0 | AF200: 0 | AG200: 0 | AH200: 0 | AI200: 0 | AJ200: 0 | AK200: 0 | AL200: 0 | AM200: 0 | AN200: 0 | AO200: 0 | AP200: =IF(AP183>$H$192,AP183,0)*$H$191/TS_Mths_In_Yr -> 0 | AQ200: 0 | AR200: 0 | AS200: 0 | AT200: 0 | AU200: 0 | AV200: 0 | AW200: 0 | AX200: 0 | AY200: 0 | AZ200: 0 | BA200: 0 | BB200: 0 | BC200: 0 | BD200: 0 | BE200: 0 | BF200: 0 | BG200: 0
F201: August | J201: =IF(J184>$H$192,J184,0)*$H$191/TS_Mths_In_Yr -> 8347.14965 | K201: 56042.81378 | L201: 0 | M201: 0 | N201: 0 | O201: 0 | P201: 0 | Q201: 0 | R201: 0 | S201: 0 | T201: 0 | U201: 0 | V201: 0 | W201: 0 | X201: 0 | Y201: 0 | Z201: 0 | AA201: 0 | AB201: 0 | AC201: 0 | AD201: 0 | AE201: 0 | AF201: 0 | AG201: 0 | AH201: 0 | AI201: 0 | AJ201: 0 | AK201: 0 | AL201: 0 | AM201: 0 | AN201: 0 | AO201: 0 | AP201: =IF(AP184>$H$192,AP184,0)*$H$191/TS_Mths_In_Yr -> 0 | AQ201: 0 | AR201: 0 | AS201: 0 | AT201: 0 | AU201: 0 | AV201: 0 | AW201: 0 | AX201: 0 | AY201: 0 | AZ201: 0 | BA201: 0 | BB201: 0 | BC201: 0 | BD201: 0 | BE201: 0 | BF201: 0 | BG201: 0
F202: September | J202: =IF(J185>$H$192,J185,0)*$H$191/TS_Mths_In_Yr -> 9539.5996 | K202: 62004.73012 | L202: 0 | M202: 0 | N202: 0 | O202: 0 | P202: 0 | Q202: 0 | R202: 0 | S202: 0 | T202: 0 | U202: 0 | V202: 0 | W202: 0 | X202: 0 | Y202: 0 | Z202: 0 | AA202: 0 | AB202: 0 | AC202: 0 | AD202: 0 | AE202: 0 | AF202: 0 | AG202: 0 | AH202: 0 | AI202: 0 | AJ202: 0 | AK202: 0 | AL202: 0 | AM202: 0 | AN202: 0 | AO202: 0 | AP202: =IF(AP185>$H$192,AP185,0)*$H$191/TS_Mths_In_Yr -> 0 | AQ202: 0 | AR202: 0 | AS202: 0 | AT202: 0 | AU202: 0 | AV202: 0 | AW202: 0 | AX202: 0 | AY202: 0 | AZ202: 0 | BA202: 0 | BB202: 0 | BC202: 0 | BD202: 0 | BE202: 0 | BF202: 0 | BG202: 0
F203: October | J203: =IF(J186>$H$192,J186,0)*$H$191/TS_Mths_In_Yr -> 10732.04955 | K203: 67966.64646 | L203: 0 | M203: 0 | N203: 0 | O203: 0 | P203: 0 | Q203: 0 | R203: 0 | S203: 0 | T203: 0 | U203: 0 | V203: 0 | W203: 0 | X203: 0 | Y203: 0 | Z203: 0 | AA203: 0 | AB203: 0 | AC203: 0 | AD203: 0 | AE203: 0 | AF203: 0 | AG203: 0 | AH203: 0 | AI203: 0 | AJ203: 0 | AK203: 0 | AL203: 0 | AM203: 0 | AN203: 0 | AO203: 0 | AP203: =IF(AP186>$H$192,AP186,0)*$H$191/TS_Mths_In_Yr -> 0 | AQ203: 0 | AR203: 0 | AS203: 0 | AT203: 0 | AU203: 0 | AV203: 0 | AW203: 0 | AX203: 0 | AY203: 0 | AZ203: 0 | BA203: 0 | BB203: 0 | BC203: 0 | BD203: 0 | BE203: 0 | BF203: 0 | BG203: 0
F204: November | J204: =IF(J187>$H$192,J187,0)*$H$191/TS_Mths_In_Yr -> 11924.4995 | K204: 73928.5628 | L204: 0 | M204: 0 | N204: 0 | O204: 0 | P204: 0 | Q204: 0 | R204: 0 | S204: 0 | T204: 0 | U204: 0 | V204: 0 | W204: 0 | X204: 0 | Y204: 0 | Z204: 0 | AA204: 0 | AB204: 0 | AC204: 0 | AD204: 0 | AE204: 0 | AF204: 0 | AG204: 0 | AH204: 0 | AI204: 0 | AJ204: 0 | AK204: 0 | AL204: 0 | AM204: 0 | AN204: 0 | AO204: 0 | AP204: =IF(AP187>$H$192,AP187,0)*$H$191/TS_Mths_In_Yr -> 0 | AQ204: 0 | AR204: 0 | AS204: 0 | AT204: 0 | AU204: 0 | AV204: 0 | AW204: 0 | AX204: 0 | AY204: 0 | AZ204: 0 | BA204: 0 | BB204: 0 | BC204: 0 | BD204: 0 | BE204: 0 | BF204: 0 | BG204: 0
F205: December | J205: =IF(J188>$H$192,J188,0)*$H$191/TS_Mths_In_Yr -> 13116.94945 | K205: 79890.47915 | L205: 0 | M205: 0 | N205: 0 | O205: 0 | P205: 0 | Q205: 0 | R205: 0 | S205: 0 | T205: 0 | U205: 0 | V205: 0 | W205: 0 | X205: 0 | Y205: 0 | Z205: 0 | AA205: 0 | AB205: 0 | AC205: 0 | AD205: 0 | AE205: 0 | AF205: 0 | AG205: 0 | AH205: 0 | AI205: 0 | AJ205: 0 | AK205: 0 | AL205: 0 | AM205: 0 | AN205: 0 | AO205: 0 | AP205: =IF(AP188>$H$192,AP188,0)*$H$191/TS_Mths_In_Yr -> 0 | AQ205: 0 | AR205: 0 | AS205: 0 | AT205: 0 | AU205: 0 | AV205: 0 | AW205: 0 | AX205: 0 | AY205: 0 | AZ205: 0 | BA205: 0 | BB205: 0 | BC205: 0 | BD205: 0 | BE205: 0 | BF205: 0 | BG205: 0
F207: CFCs added to capex amount for approval | J207: =SUM(J194:J205) -> 78701.6967 | K207: =SUM(K194:K205) -> 565199.2713 | L207: =SUM(L194:L205) -> 0 | M207: 0 | N207: 0 | O207: 0 | P207: 0 | Q207: 0 | R207: 0 | S207: 0 | T207: 0 | U207: 0 | V207: 0 | W207: 0 | X207: 0 | Y207: 0 | Z207: 0 | AA207: 0 | AB207: 0 | AC207: 0 | AD207: 0 | AE207: 0 | AF207: 0 | AG207: 0 | AH207: 0 | AI207: 0 | AJ207: 0 | AK207: 0 | AL207: 0 | AM207: 0 | AN207: 0 | AO207: 0 | AP207: =SUM(AP194:AP205) -> 0 | AQ207: 0 | AR207: 0 | AS207: 0 | AT207: 0 | AU207: 0 | AV207: 0 | AW207: 0 | AX207: 0 | AY207: 0 | AZ207: 0 | BA207: 0 | BB207: 0 | BC207: 0 | BD207: 0 | BE207: 0 | BF207: 0 | BG207: 0 | BI207: =SUMPRODUCT($J$11:$BG$11,J207:BG207) -> 658030.9497
D210: Operating Expenditure (enter costs as positive numbers and savings as negative numbers)
E212: =IF(G253,"","Ongoing Opex from BAU") -> Ongoing Opex from BAU | J212: =IF(SUM($J$96:$BG$96,J255:BG257)=0,0,BAU_Input!J220) -> 0 | K212: =IF(SUM($J$96:$BG$96,K255:BH257)=0,0,BAU_Input!K220) -> 0 | L212: =IF(SUM($J$96:$BG$96,L255:BI257)=0,0,BAU_Input!L220) -> 0 | M212: =IF(SUM($J$96:$BG$96,M255:BJ257)=0,0,BAU_Input!M220) -> 0 | N212: =IF(SUM($J$96:$BG$96,N255:BK257)=0,0,BAU_Input!N220) -> 0 | O212: =IF(SUM($J$96:$BG$96,O255:BL257)=0,0,BAU_Input!O220) -> 0 | P212: =IF(SUM($J$96:$BG$96,P255:BM257)=0,0,BAU_Input!P220) -> 0 | Q212: =IF(SUM($J$96:$BG$96,Q255:BN257)=0,0,BAU_Input!Q220) -> 0 | R212: =IF(SUM($J$96:$BG$96,R255:BO257)=0,0,BAU_Input!R220) -> 0 | S212: =IF(SUM($J$96:$BG$96,S255:BP257)=0,0,BAU_Input!S220) -> 0 | T212: =IF(SUM($J$96:$BG$96,T255:BQ257)=0,0,BAU_Input!T220) -> 0 | U212: =IF(SUM($J$96:$BG$96,U255:BR257)=0,0,BAU_Input!U220) -> 0 | V212: =IF(SUM($J$96:$BG$96,V255:BS257)=0,0,BAU_Input!V220) -> 0 | W212: =IF(SUM($J$96:$BG$96,W255:BT257)=0,0,BAU_Input!W220) -> 0 | X212: =IF(SUM($J$96:$BG$96,X255:BU257)=0,0,BAU_Input!X220) -> 0 | Y212: =IF(SUM($J$96:$BG$96,Y255:BV257)=0,0,BAU_Input!Y220) -> 0 | Z212: =IF(SUM($J$96:$BG$96,Z255:BW257)=0,0,BAU_Input!Z220) -> 0 | AA212: =IF(SUM($J$96:$BG$96,AA255:BX257)=0,0,BAU_Input!AA220) -> 0 | AB212: =IF(SUM($J$96:$BG$96,AB255:BY257)=0,0,BAU_Input!AB220) -> 0 | AC212: =IF(SUM($J$96:$BG$96,AC255:BZ257)=0,0,BAU_Input!AC220) -> 0 | AD212: =IF(SUM($J$96:$BG$96,AD255:CA257)=0,0,BAU_Input!AD220) -> 0 | AE212: =IF(SUM($J$96:$BG$96,AE255:CB257)=0,0,BAU_Input!AE220) -> 0 | AF212: =IF(SUM($J$96:$BG$96,AF255:CC257)=0,0,BAU_Input!AF220) -> 0 | AG212: =IF(SUM($J$96:$BG$96,AG255:CD257)=0,0,BAU_Input!AG220) -> 0 | AH212: =IF(SUM($J$96:$BG$96,AH255:CE257)=0,0,BAU_Input!AH220) -> 0 | AI212: =IF(SUM($J$96:$BG$96,AI255:CF257)=0,0,BAU_Input!AI220) -> 0 | AJ212: =IF(SUM($J$96:$BG$96,AJ255:CG257)=0,0,BAU_Input!AJ220) -> 0 | AK212: =IF(SUM($J$96:$BG$96,AK255:CH257)=0,0,BAU_Input!AK220) -> 0 | AL212: =IF(SUM($J$96:$BG$96,AL255:CI257)=0,0,BAU_Input!AL220) -> 0 | AM212: =IF(SUM($J$96:$BG$96,AM255:CJ257)=0,0,BAU_Input!AM220) -> 0 | AN212: =IF(SUM($J$96:$BG$96,AN255:CK257)=0,0,BAU_Input!AN220) -> 0 | AO212: =IF(SUM($J$96:$BG$96,AO255:CL257)=0,0,BAU_Input!AO220) -> 0 | AP212: =IF(SUM($J$96:$BG$96,AP255:CM257)=0,0,BAU_Input!AP220) -> 0 | AQ212: =IF(SUM($J$96:$BG$96,AQ255:CN257)=0,0,BAU_Input!AQ220) -> 0 | AR212: =IF(SUM($J$96:$BG$96,AR255:CO257)=0,0,BAU_Input!AR220) -> 0 | AS212: =IF(SUM($J$96:$BG$96,AS255:CP257)=0,0,BAU_Input!AS220) -> 0 | AT212: =IF(SUM($J$96:$BG$96,AT255:CQ257)=0,0,BAU_Input!AT220) -> 0 | AU212: =IF(SUM($J$96:$BG$96,AU255:CR257)=0,0,BAU_Input!AU220) -> 0 | AV212: =IF(SUM($J$96:$BG$96,AV255:CS257)=0,0,BAU_Input!AV220) -> 0 | AW212: =IF(SUM($J$96:$BG$96,AW255:CT257)=0,0,BAU_Input!AW220) -> 0 | AX212: =IF(SUM($J$96:$BG$96,AX255:CU257)=0,0,BAU_Input!AX220) -> 0 | AY212: =IF(SUM($J$96:$BG$96,AY255:CV257)=0,0,BAU_Input!AY220) -> 0 | AZ212: =IF(SUM($J$96:$BG$96,AZ255:CW257)=0,0,BAU_Input!AZ220) -> 0 | BA212: =IF(SUM($J$96:$BG$96,BA255:CX257)=0,0,BAU_Input!BA220) -> 0 | BB212: =IF(SUM($J$96:$BG$96,BB255:CY257)=0,0,BAU_Input!BB220) -> 0 | BC212: =IF(SUM($J$96:$BG$96,BC255:CZ257)=0,0,BAU_Input!BC220) -> 0 | BD212: =IF(SUM($J$96:$BG$96,BD255:DA257)=0,0,BAU_Input!BD220) -> 0 | BE212: =IF(SUM($J$96:$BG$96,BE255:DB257)=0,0,BAU_Input!BE220) -> 0 | BF212: =IF(SUM($J$96:$BG$96,BF255:DC257)=0,0,BAU_Input!BF220) -> 0 | BG212: =IF(SUM($J$96:$BG$96,BG255:DD257)=0,0,BAU_Input!BG220) -> 0
E215: =F255 -> Project/Implementation Cost (Opex for approval) (positive numbers)
E217: =IF(E215="Project/Implementation Cost (Opex for approval) (positive numbers)",0,1) -> 0 | F217: EAI Infrastructure | J217: =19467 -> 19467 | L217: 0 | M217: 0 | N217: 0 | O217: 0 | P217: 0 | Q217: 0 | R217: 0 | S217: 0 | T217: 0 | U217: 0 | V217: 0 | W217: 0 | X217: 0 | Y217: 0 | Z217: 0 | AA217: 0 | AB217: 0 | AC217: 0 | AD217: 0 | AE217: 0 | AF217: 0 | AG217: 0 | AH217: 0 | AI217: 0 | AJ217: 0 | AK217: 0 | AL217: 0 | AM217: 0 | AN217: 0 | AO217: 0 | AP217: 0 | AQ217: 0 | AR217: 0 | AS217: 0 | AT217: 0 | AU217: 0 | AV217: 0 | AW217: 0 | AX217: 0 | AY217: 0 | AZ217: 0 | BA217: 0 | BB217: 0 | BC217: 0 | BD217: 0 | BE217: 0 | BF217: 0 | BG217: 0
E218: =E217 -> 0 | F218: Infra. Salesforce, Microsoft Azure (SaaS platforms) | J218: =150000/2 -> 75000 | K218: =150000+150000/2 -> 225000 | L218: 0 | M218: 0 | N218: 0 | O218: 0 | P218: 0 | Q218: 0 | R218: 0 | S218: 0 | T218: 0 | U218: 0 | V218: 0 | W218: 0 | X218: 0 | Y218: 0 | Z218: 0 | AA218: 0 | AB218: 0 | AC218: 0 | AD218: 0 | AE218: 0 | AF218: 0 | AG218: 0 | AH218: 0 | AI218: 0 | AJ218: 0 | AK218: 0 | AL218: 0 | AM218: 0 | AN218: 0 | AO218: 0 | AP218: 0 | AQ218: 0 | AR218: 0 | AS218: 0 | AT218: 0 | AU218: 0 | AV218: 0 | AW218: 0 | AX218: 0 | AY218: 0 | AZ218: 0 | BA218: 0 | BB218: 0 | BC218: 0 | BD218: 0 | BE218: 0 | BF218: 0 | BG218: 0
E219: 0 | F219: Infra. - SW, Maintenance, Support - Yr 2 onwards | K219: 82266 | L219: 82266 | M219: 82266 | N219: 82266 | O219: 82266 | P219: 0 | Q219: 0 | R219: 0 | S219: 0 | T219: 0 | U219: 0 | V219: 0 | W219: 0 | X219: 0 | Y219: 0 | Z219: 0 | AA219: 0 | AB219: 0 | AC219: 0 | AD219: 0 | AE219: 0 | AF219: 0 | AG219: 0 | AH219: 0 | AI219: 0 | AJ219: 0 | AK219: 0 | AL219: 0 | AM219: 0 | AN219: 0 | AO219: 0 | AP219: 0 | AQ219: 0 | AR219: 0 | AS219: 0 | AT219: 0 | AU219: 0 | AV219: 0 | AW219: 0 | AX219: 0 | AY219: 0 | AZ219: 0 | BA219: 0 | BB219: 0 | BC219: 0 | BD219: 0 | BE219: 0 | BF219: 0 | BG219: 0
E220: 0 | P220: 0 | Q220: 0 | R220: 0 | S220: 0 | T220: 0 | U220: 0 | V220: 0 | W220: 0 | X220: 0 | Y220: 0 | Z220: 0 | AA220: 0 | AB220: 0 | AC220: 0 | AD220: 0 | AE220: 0 | AF220: 0 | AG220: 0 | AH220: 0 | AI220: 0 | AJ220: 0 | AK220: 0 | AL220: 0 | AM220: 0 | AN220: 0 | AO220: 0 | AP220: 0 | AQ220: 0 | AR220: 0 | AS220: 0 | AT220: 0 | AU220: 0 | AV220: 0 | AW220: 0 | AX220: 0 | AY220: 0 | AZ220: 0 | BA220: 0 | BB220: 0 | BC220: 0 | BD220: 0 | BE220: 0 | BF220: 0 | BG220: 0
E221: 0 | J221: 0 | K221: 0 | L221: 0 | M221: 0 | N221: 0 | O221: 0 | P221: 0 | Q221: 0 | R221: 0 | S221: 0 | T221: 0 | U221: 0 | V221: 0 | W221: 0 | X221: 0 | Y221: 0 | Z221: 0 | AA221: 0 | AB221: 0 | AC221: 0 | AD221: 0 | AE221: 0 | AF221: 0 | AG221: 0 | AH221: 0 | AI221: 0 | AJ221: 0 | AK221: 0 | AL221: 0 | AM221: 0 | AN221: 0 | AO221: 0 | AP221: 0 | AQ221: 0 | AR221: 0 | AS221: 0 | AT221: 0 | AU221: 0 | AV221: 0 | AW221: 0 | AX221: 0 | AY221: 0 | AZ221: 0 | BA221: 0 | BB221: 0 | BC221: 0 | BD221: 0 | BE221: 0 | BF221: 0 | BG221: 0
E222: 0 | J222: 0 | K222: 0 | L222: 0 | M222: 0 | N222: 0 | O222: 0 | P222: 0 | Q222: 0 | R222: 0 | S222: 0 | T222: 0 | U222: 0 | V222: 0 | W222: 0 | X222: 0 | Y222: 0 | Z222: 0 | AA222: 0 | AB222: 0 | AC222: 0 | AD222: 0 | AE222: 0 | AF222: 0 | AG222: 0 | AH222: 0 | AI222: 0 | AJ222: 0 | AK222: 0 | AL222: 0 | AM222: 0 | AN222: 0 | AO222: 0 | AP222: 0 | AQ222: 0 | AR222: 0 | AS222: 0 | AT222: 0 | AU222: 0 | AV222: 0 | AW222: 0 | AX222: 0 | AY222: 0 | AZ222: 0 | BA222: 0 | BB222: 0 | BC222: 0 | BD222: 0 | BE222: 0 | BF222: 0 | BG222: 0
E223: 0 | J223: 0 | K223: 0 | L223: 0 | M223: 0 | N223: 0 | O223: 0 | P223: 0 | Q223: 0 | R223: 0 | S223: 0 | T223: 0 | U223: 0 | V223: 0 | W223: 0 | X223: 0 | Y223: 0 | Z223: 0 | AA223: 0 | AB223: 0 | AC223: 0 | AD223: 0 | AE223: 0 | AF223: 0 | AG223: 0 | AH223: 0 | AI223: 0 | AJ223: 0 | AK223: 0 | AL223: 0 | AM223: 0 | AN223: 0 | AO223: 0 | AP223: 0 | AQ223: 0 | AR223: 0 | AS223: 0 | AT223: 0 | AU223: 0 | AV223: 0 | AW223: 0 | AX223: 0 | AY223: 0 | AZ223: 0 | BA223: 0 | BB223: 0 | BC223: 0 | BD223: 0 | BE223: 0 | BF223: 0 | BG223: 0
E224: =E223 -> 0 | J224: 0 | K224: 0 | L224: 0 | M224: 0 | N224: 0 | O224: 0 | P224: 0 | Q224: 0 | R224: 0 | S224: 0 | T224: 0 | U224: 0 | V224: 0 | W224: 0 | X224: 0 | Y224: 0 | Z224: 0 | AA224: 0 | AB224: 0 | AC224: 0 | AD224: 0 | AE224: 0 | AF224: 0 | AG224: 0 | AH224: 0 | AI224: 0 | AJ224: 0 | AK224: 0 | AL224: 0 | AM224: 0 | AN224: 0 | AO224: 0 | AP224: 0 | AQ224: 0 | AR224: 0 | AS224: 0 | AT224: 0 | AU224: 0 | AV224: 0 | AW224: 0 | AX224: 0 | AY224: 0 | AZ224: 0 | BA224: 0 | BB224: 0 | BC224: 0 | BD224: 0 | BE224: 0 | BF224: 0 | BG224: 0
F225: ="Total "&E215 -> Total Project/Implementation Cost (Opex for approval) (positive numbers) | I225: =CHOOSE(I255,IF(MIN(J225:BG225)<0,"Postive # Only",""),IF(MAX(J225:BG225)>0,"Negative # Only","")) ->  | J225: =SUM(J217:J224)*J$16 -> 94467 | K225: =SUM(K217:K224)*K$16 -> 307266 | L225: 82266 | M225: 82266 | N225: 82266 | O225: 82266 | P225: 0 | Q225: 0 | R225: 0 | S225: 0 | T225: 0 | U225: 0 | V225: 0 | W225: 0 | X225: 0 | Y225: 0 | Z225: 0 | AA225: 0 | AB225: 0 | AC225: 0 | AD225: 0 | AE225: 0 | AF225: 0 | AG225: 0 | AH225: 0 | AI225: 0 | AJ225: 0 | AK225: 0 | AL225: 0 | AM225: 0 | AN225: 0 | AO225: 0 | AP225: =SUM(AP217:AP224)*AP$16 -> 0 | AQ225: 0 | AR225: 0 | AS225: 0 | AT225: 0 | AU225: 0 | AV225: 0 | AW225: 0 | AX225: 0 | AY225: 0 | AZ225: 0 | BA225: 0 | BB225: 0 | BC225: 0 | BD225: 0 | BE225: 0 | BF225: 0 | BG225: 0 | BI225: =SUMPRODUCT($J$11:$BG$11,J225:BG225) -> 768319.5497
I226: =IF(SUM(J226:BG226)<>0,"ERROR CHECK: Savings cannot be greater than BAU cost","") ->  | J226: =IF(-J225>J$212,1,"") ->  | AP226: =IF(-AP225>AP$212,1,"") -> 
E228: =F256 -> Incremental opex costs compared to BAU (positive numbers) | I228: Specify Division:
E230: =IF(E228="Project/Implementation Cost (Opex for approval) (positive numbers)",0,1) -> 1 | J230: 0 | K230: 0 | L230: 0 | M230: 0 | N230: 0 | O230: 0 | P230: 0 | Q230: 0 | R230: 0 | S230: 0 | T230: 0 | U230: 0 | V230: 0 | W230: 0 | X230: 0 | Y230: 0 | Z230: 0 | AA230: 0 | AB230: 0 | AC230: 0 | AD230: 0 | AE230: 0 | AF230: 0 | AG230: 0 | AH230: 0 | AI230: 0 | AJ230: 0 | AK230: 0 | AL230: 0 | AM230: 0 | AN230: 0 | AO230: 0 | AP230: 0 | AQ230: 0 | AR230: 0 | AS230: 0 | AT230: 0 | AU230: 0 | AV230: 0 | AW230: 0 | AX230: 0 | AY230: 0 | AZ230: 0 | BA230: 0 | BB230: 0 | BC230: 0 | BD230: 0 | BE230: 0 | BF230: 0 | BG230: 0
E231: =E230 -> 1 | J231: 0 | K231: 0 | L231: 0 | M231: 0 | N231: 0 | O231: 0 | P231: 0 | Q231: 0 | R231: 0 | S231: 0 | T231: 0 | U231: 0 | V231: 0 | W231: 0 | X231: 0 | Y231: 0 | Z231: 0 | AA231: 0 | AB231: 0 | AC231: 0 | AD231: 0 | AE231: 0 | AF231: 0 | AG231: 0 | AH231: 0 | AI231: 0 | AJ231: 0 | AK231: 0 | AL231: 0 | AM231: 0 | AN231: 0 | AO231: 0 | AP231: 0 | AQ231: 0 | AR231: 0 | AS231: 0 | AT231: 0 | AU231: 0 | AV231: 0 | AW231: 0 | AX231: 0 | AY231: 0 | AZ231: 0 | BA231: 0 | BB231: 0 | BC231: 0 | BD231: 0 | BE231: 0 | BF231: 0 | BG231: 0
E232: 1 | J232: 0 | K232: 0 | L232: 0 | M232: 0 | N232: 0 | O232: 0 | P232: 0 | Q232: 0 | R232: 0 | S232: 0 | T232: 0 | U232: 0 | V232: 0 | W232: 0 | X232: 0 | Y232: 0 | Z232: 0 | AA232: 0 | AB232: 0 | AC232: 0 | AD232: 0 | AE232: 0 | AF232: 0 | AG232: 0 | AH232: 0 | AI232: 0 | AJ232: 0 | AK232: 0 | AL232: 0 | AM232: 0 | AN232: 0 | AO232: 0 | AP232: 0 | AQ232: 0 | AR232: 0 | AS232: 0 | AT232: 0 | AU232: 0 | AV232: 0 | AW232: 0 | AX232: 0 | AY232: 0 | AZ232: 0 | BA232: 0 | BB232: 0 | BC232: 0 | BD232: 0 | BE232: 0 | BF232: 0 | BG232: 0
E233: 1 | J233: 0 | K233: 0 | L233: 0 | M233: 0 | N233: 0 | O233: 0 | P233: 0 | Q233: 0 | R233: 0 | S233: 0 | T233: 0 | U233: 0 | V233: 0 | W233: 0 | X233: 0 | Y233: 0 | Z233: 0 | AA233: 0 | AB233: 0 | AC233: 0 | AD233: 0 | AE233: 0 | AF233: 0 | AG233: 0 | AH233: 0 | AI233: 0 | AJ233: 0 | AK233: 0 | AL233: 0 | AM233: 0 | AN233: 0 | AO233: 0 | AP233: 0 | AQ233: 0 | AR233: 0 | AS233: 0 | AT233: 0 | AU233: 0 | AV233: 0 | AW233: 0 | AX233: 0 | AY233: 0 | AZ233: 0 | BA233: 0 | BB233: 0 | BC233: 0 | BD233: 0 | BE233: 0 | BF233: 0 | BG233: 0
E234: 1 | J234: 0 | K234: 0 | L234: 0 | M234: 0 | N234: 0 | O234: 0 | P234: 0 | Q234: 0 | R234: 0 | S234: 0 | T234: 0 | U234: 0 | V234: 0 | W234: 0 | X234: 0 | Y234: 0 | Z234: 0 | AA234: 0 | AB234: 0 | AC234: 0 | AD234: 0 | AE234: 0 | AF234: 0 | AG234: 0 | AH234: 0 | AI234: 0 | AJ234: 0 | AK234: 0 | AL234: 0 | AM234: 0 | AN234: 0 | AO234: 0 | AP234: 0 | AQ234: 0 | AR234: 0 | AS234: 0 | AT234: 0 | AU234: 0 | AV234: 0 | AW234: 0 | AX234: 0 | AY234: 0 | AZ234: 0 | BA234: 0 | BB234: 0 | BC234: 0 | BD234: 0 | BE234: 0 | BF234: 0 | BG234: 0
E235: 1 | J235: 0 | K235: 0 | L235: 0 | M235: 0 | N235: 0 | O235: 0 | P235: 0 | Q235: 0 | R235: 0 | S235: 0 | T235: 0 | U235: 0 | V235: 0 | W235: 0 | X235: 0 | Y235: 0 | Z235: 0 | AA235: 0 | AB235: 0 | AC235: 0 | AD235: 0 | AE235: 0 | AF235: 0 | AG235: 0 | AH235: 0 | AI235: 0 | AJ235: 0 | AK235: 0 | AL235: 0 | AM235: 0 | AN235: 0 | AO235: 0 | AP235: 0 | AQ235: 0 | AR235: 0 | AS235: 0 | AT235: 0 | AU235: 0 | AV235: 0 | AW235: 0 | AX235: 0 | AY235: 0 | AZ235: 0 | BA235: 0 | BB235: 0 | BC235: 0 | BD235: 0 | BE235: 0 | BF235: 0 | BG235: 0
E236: 1 | J236: 0 | K236: 0 | L236: 0 | M236: 0 | N236: 0 | O236: 0 | P236: 0 | Q236: 0 | R236: 0 | S236: 0 | T236: 0 | U236: 0 | V236: 0 | W236: 0 | X236: 0 | Y236: 0 | Z236: 0 | AA236: 0 | AB236: 0 | AC236: 0 | AD236: 0 | AE236: 0 | AF236: 0 | AG236: 0 | AH236: 0 | AI236: 0 | AJ236: 0 | AK236: 0 | AL236: 0 | AM236: 0 | AN236: 0 | AO236: 0 | AP236: 0 | AQ236: 0 | AR236: 0 | AS236: 0 | AT236: 0 | AU236: 0 | AV236: 0 | AW236: 0 | AX236: 0 | AY236: 0 | AZ236: 0 | BA236: 0 | BB236: 0 | BC236: 0 | BD236: 0 | BE236: 0 | BF236: 0 | BG236: 0
E237: =E236 -> 1 | J237: 0 | K237: 0 | L237: 0 | M237: 0 | N237: 0 | O237: 0 | P237: 0 | Q237: 0 | R237: 0 | S237: 0 | T237: 0 | U237: 0 | V237: 0 | W237: 0 | X237: 0 | Y237: 0 | Z237: 0 | AA237: 0 | AB237: 0 | AC237: 0 | AD237: 0 | AE237: 0 | AF237: 0 | AG237: 0 | AH237: 0 | AI237: 0 | AJ237: 0 | AK237: 0 | AL237: 0 | AM237: 0 | AN237: 0 | AO237: 0 | AP237: 0 | AQ237: 0 | AR237: 0 | AS237: 0 | AT237: 0 | AU237: 0 | AV237: 0 | AW237: 0 | AX237: 0 | AY237: 0 | AZ237: 0 | BA237: 0 | BB237: 0 | BC237: 0 | BD237: 0 | BE237: 0 | BF237: 0 | BG237: 0
F238: ="Total "&E228 -> Total Incremental opex costs compared to BAU (positive numbers) | I238: =CHOOSE(I256,IF(MIN(J238:BG238)<0,"Postive # Only",""),IF(MAX(J238:BG238)>0,"Negative # Only","")) ->  | J238: =SUM(J230:J237)*J$16 -> 0 | K238: 0 | L238: 0 | M238: 0 | N238: 0 | O238: 0 | P238: 0 | Q238: 0 | R238: 0 | S238: 0 | T238: 0 | U238: 0 | V238: 0 | W238: 0 | X238: 0 | Y238: 0 | Z238: 0 | AA238: 0 | AB238: 0 | AC238: 0 | AD238: 0 | AE238: 0 | AF238: 0 | AG238: 0 | AH238: 0 | AI238: 0 | AJ238: 0 | AK238: 0 | AL238: 0 | AM238: 0 | AN238: 0 | AO238: 0 | AP238: =SUM(AP230:AP237)*AP$16 -> 0 | AQ238: 0 | AR238: 0 | AS238: 0 | AT238: 0 | AU238: 0 | AV238: 0 | AW238: 0 | AX238: 0 | AY238: 0 | AZ238: 0 | BA238: 0 | BB238: 0 | BC238: 0 | BD238: 0 | BE238: 0 | BF238: 0 | BG238: 0 | BI238: =SUMPRODUCT($J$11:$BG$11,J238:BG238) -> 0
I239: =IF(SUM(J239:BG239)<>0,"ERROR CHECK: Savings cannot be greater than BAU cost","") ->  | J239: =IF(-J238>J$212,1,"") ->  | AP239: =IF(-AP238>AP$212,1,"") -> 
E241: =F257 -> Incremental opex savings compared to BAU (negative numbers) | I241: Specify Division:
E243: =IF(E241="Project/Implementation Cost (Opex for approval) (positive numbers)",0,1) -> 1 | J243: 0 | K243: 0 | L243: 0 | M243: 0 | N243: 0 | O243: 0 | P243: 0 | Q243: 0 | R243: 0 | S243: 0 | T243: 0 | U243: 0 | V243: 0 | W243: 0 | X243: 0 | Y243: 0 | Z243: 0 | AA243: 0 | AB243: 0 | AC243: 0 | AD243: 0 | AE243: 0 | AF243: 0 | AG243: 0 | AH243: 0 | AI243: 0 | AJ243: 0 | AK243: 0 | AL243: 0 | AM243: 0 | AN243: 0 | AO243: 0 | AP243: 0 | AQ243: 0 | AR243: 0 | AS243: 0 | AT243: 0 | AU243: 0 | AV243: 0 | AW243: 0 | AX243: 0 | AY243: 0 | AZ243: 0 | BA243: 0 | BB243: 0 | BC243: 0 | BD243: 0 | BE243: 0 | BF243: 0 | BG243: 0
E244: =E243 -> 1 | J244: 0 | K244: 0 | L244: 0 | M244: 0 | N244: 0 | O244: 0 | P244: 0 | Q244: 0 | R244: 0 | S244: 0 | T244: 0 | U244: 0 | V244: 0 | W244: 0 | X244: 0 | Y244: 0 | Z244: 0 | AA244: 0 | AB244: 0 | AC244: 0 | AD244: 0 | AE244: 0 | AF244: 0 | AG244: 0 | AH244: 0 | AI244: 0 | AJ244: 0 | AK244: 0 | AL244: 0 | AM244: 0 | AN244: 0 | AO244: 0 | AP244: 0 | AQ244: 0 | AR244: 0 | AS244: 0 | AT244: 0 | AU244: 0 | AV244: 0 | AW244: 0 | AX244: 0 | AY244: 0 | AZ244: 0 | BA244: 0 | BB244: 0 | BC244: 0 | BD244: 0 | BE244: 0 | BF244: 0 | BG244: 0
E245: 1 | J245: 0 | K245: 0 | L245: 0 | M245: 0 | N245: 0 | O245: 0 | P245: 0 | Q245: 0 | R245: 0 | S245: 0 | T245: 0 | U245: 0 | V245: 0 | W245: 0 | X245: 0 | Y245: 0 | Z245: 0 | AA245: 0 | AB245: 0 | AC245: 0 | AD245: 0 | AE245: 0 | AF245: 0 | AG245: 0 | AH245: 0 | AI245: 0 | AJ245: 0 | AK245: 0 | AL245: 0 | AM245: 0 | AN245: 0 | AO245: 0 | AP245: 0 | AQ245: 0 | AR245: 0 | AS245: 0 | AT245: 0 | AU245: 0 | AV245: 0 | AW245: 0 | AX245: 0 | AY245: 0 | AZ245: 0 | BA245: 0 | BB245: 0 | BC245: 0 | BD245: 0 | BE245: 0 | BF245: 0 | BG245: 0
... 92 more rows

Sheet Opt2_Input
B1: =IF(G23=0,G22,G23)&" - Cost & Benefit Inputs" -> Option 2 - Cost & Benefit Inputs
B2: =Model_Name -> Business Case Evaluation Flexible Trading Arrangements
B5: ="Calendar Year Ending "&INDEX(LU_TS_Mth_Names,DD_TS_Fin_Yr_End_Mth) -> Calendar Year Ending December | J5: =J10 -> 2025 | K5: =K10 -> 2026 | L5: 2027 | M5: 2028 | N5: 2029 | O5: 2030 | P5: 2031 | Q5: 2032 | R5: 2033 | S5: 2034 | T5: 2035 | U5: 2036 | V5: 2037 | W5: 2038 | X5: 2039 | Y5: 2040 | Z5: 2041 | AA5: 2042 | AB5: 2043 | AC5: 2044 | AD5: 2045 | AE5: 2046 | AF5: 2047 | AG5: 2048 | AH5: 2049 | AI5: 2050 | AJ5: 2051 | AK5: 2052 | AL5: 2053 | AM5: 2054 | AN5: 2055 | AO5: 2056 | AP5: 2057 | AQ5: 2058 | AR5: 2059 | AS5: 2060 | AT5: 2061 | AU5: 2062 | AV5: 2063 | AW5: 2064 | AX5: 2065 | AY5: 2066 | AZ5: 2067 | BA5: 2068 | BB5: 2069 | BC5: 2070 | BD5: 2071 | BE5: 2072 | BF5: 2073 | BG5: 2074 | BI5: Total (Nominal)
B6: Period Start Date | J6: =EDATE(TS_Start_Date,(J8-1)*TS_Mths_In_Yr) -> 2025-01-01 | K6: 2026-01-01 | L6: 2027-01-01 | M6: 2028-01-01 | N6: 2029-01-01 | O6: 2030-01-01 | P6: 2031-01-01 | Q6: 2032-01-01 | R6: 2033-01-01 | S6: 2034-01-01 | T6: 2035-01-01 | U6: 2036-01-01 | V6: 2037-01-01 | W6: 2038-01-01 | X6: 2039-01-01 | Y6: 2040-01-01 | Z6: 2041-01-01 | AA6: 2042-01-01 | AB6: 2043-01-01 | AC6: 2044-01-01 | AD6: 2045-01-01 | AE6: 2046-01-01 | AF6: 2047-01-01 | AG6: 2048-01-01 | AH6: 2049-01-01 | AI6: 2050-01-01 | AJ6: 2051-01-01 | AK6: 2052-01-01 | AL6: 2053-01-01 | AM6: 2054-01-01 | AN6: 2055-01-01 | AO6: 2056-01-01 | AP6: 2057-01-01 | AQ6: 2058-01-01 | AR6: 2059-01-01 | AS6: 2060-01-01 | AT6: 2061-01-01 | AU6: 2062-01-01 | AV6: 2063-01-01 | AW6: 2064-01-01 | AX6: 2065-01-01 | AY6: 2066-01-01 | AZ6: 2067-01-01 | BA6: 2068-01-01 | BB6: 2069-01-01 | BC6: 2070-01-01 | BD6: 2071-01-01 | BE6: 2072-01-01 | BF6: 2073-01-01 | BG6: 2074-01-01
B7: Period End Date | J7: =EDATE(J6,TS_Mths_In_Yr)-1 -> 2025-12-31 | K7: 2026-12-31 | L7: 2027-12-31 | M7: 2028-12-31 | N7: 2029-12-31 | O7: 2030-12-31 | P7: 2031-12-31 | Q7: 2032-12-31 | R7: 2033-12-31 | S7: 2034-12-31 | T7: 2035-12-31 | U7: 2036-12-31 | V7: 2037-12-31 | W7: 2038-12-31 | X7: 2039-12-31 | Y7: 2040-12-31 | Z7: 2041-12-31 | AA7: 2042-12-31 | AB7: 2043-12-31 | AC7: 2044-12-31 | AD7: 2045-12-31 | AE7: 2046-12-31 | AF7: 2047-12-31 | AG7: 2048-12-31 | AH7: 2049-12-31 | AI7: 2050-12-31 | AJ7: 2051-12-31 | AK7: 2052-12-31 | AL7: 2053-12-31 | AM7: 2054-12-31 | AN7: 2055-12-31 | AO7: 2056-12-31 | AP7: 2057-12-31 | AQ7: 2058-12-31 | AR7: 2059-12-31 | AS7: 2060-12-31 | AT7: 2061-12-31 | AU7: 2062-12-31 | AV7: 2063-12-31 | AW7: 2064-12-31 | AX7: 2065-12-31 | AY7: 2066-12-31 | AZ7: 2067-12-31 | BA7: 2068-12-31 | BB7: 2069-12-31 | BC7: 2070-12-31 | BD7: 2071-12-31 | BE7: 2072-12-31 | BF7: 2073-12-31 | BG7: 2074-12-31
B8: ="Project Year" -> Project Year | J8: =COLUMNS($J8:J8) -> 1 | K8: =COLUMNS($J8:K8) -> 2 | L8: =COLUMNS($J8:L8) -> 3 | M8: =COLUMNS($J8:M8) -> 4 | N8: =COLUMNS($J8:N8) -> 5 | O8: =COLUMNS($J8:O8) -> 6 | P8: =COLUMNS($J8:P8) -> 7 | Q8: =COLUMNS($J8:Q8) -> 8 | R8: =COLUMNS($J8:R8) -> 9 | S8: =COLUMNS($J8:S8) -> 10 | T8: =COLUMNS($J8:T8) -> 11 | U8: =COLUMNS($J8:U8) -> 12 | V8: =COLUMNS($J8:V8) -> 13 | W8: =COLUMNS($J8:W8) -> 14 | X8: =COLUMNS($J8:X8) -> 15 | Y8: =COLUMNS($J8:Y8) -> 16 | Z8: =COLUMNS($J8:Z8) -> 17 | AA8: =COLUMNS($J8:AA8) -> 18 | AB8: =COLUMNS($J8:AB8) -> 19 | AC8: =COLUMNS($J8:AC8) -> 20 | AD8: =COLUMNS($J8:AD8) -> 21 | AE8: =COLUMNS($J8:AE8) -> 22 | AF8: =COLUMNS($J8:AF8) -> 23 | AG8: =COLUMNS($J8:AG8) -> 24 | AH8: =COLUMNS($J8:AH8) -> 25 | AI8: =COLUMNS($J8:AI8) -> 26 | AJ8: =COLUMNS($J8:AJ8) -> 27 | AK8: =COLUMNS($J8:AK8) -> 28 | AL8: =COLUMNS($J8:AL8) -> 29 | AM8: =COLUMNS($J8:AM8) -> 30 | AN8: =COLUMNS($J8:AN8) -> 31 | AO8: =COLUMNS($J8:AO8) -> 32 | AP8: =COLUMNS($J8:AP8) -> 33 | AQ8: =COLUMNS($J8:AQ8) -> 34 | AR8: =COLUMNS($J8:AR8) -> 35 | AS8: =COLUMNS($J8:AS8) -> 36 | AT8: =COLUMNS($J8:AT8) -> 37 | AU8: =COLUMNS($J8:AU8) -> 38 | AV8: =COLUMNS($J8:AV8) -> 39 | AW8: =COLUMNS($J8:AW8) -> 40 | AX8: =COLUMNS($J8:AX8) -> 41 | AY8: =COLUMNS($J8:AY8) -> 42 | AZ8: =COLUMNS($J8:AZ8) -> 43 | BA8: =COLUMNS($J8:BA8) -> 44 | BB8: =COLUMNS($J8:BB8) -> 45 | BC8: =COLUMNS($J8:BC8) -> 46 | BD8: =COLUMNS($J8:BD8) -> 47 | BE8: =COLUMNS($J8:BE8) -> 48 | BF8: =COLUMNS($J8:BF8) -> 49 | BG8: =COLUMNS($J8:BG8) -> 50
B9: Financial Year | J9: =YEAR(J7)+1 -> 2026 | K9: =YEAR(K7)+1 -> 2027 | L9: 2028 | M9: 2029 | N9: 2030 | O9: 2031 | P9: 2032 | Q9: 2033 | R9: 2034 | S9: 2035 | T9: 2036 | U9: 2037 | V9: 2038 | W9: 2039 | X9: 2040 | Y9: 2041 | Z9: 2042 | AA9: 2043 | AB9: 2044 | AC9: 2045 | AD9: 2046 | AE9: 2047 | AF9: 2048 | AG9: 2049 | AH9: 2050 | AI9: 2051 | AJ9: 2052 | AK9: 2053 | AL9: 2054 | AM9: 2055 | AN9: 2056 | AO9: 2057 | AP9: 2058 | AQ9: 2059 | AR9: 2060 | AS9: 2061 | AT9: 2062 | AU9: 2063 | AV9: 2064 | AW9: 2065 | AX9: 2066 | AY9: 2067 | AZ9: 2068 | BA9: 2069 | BB9: 2070 | BC9: 2071 | BD9: 2072 | BE9: 2073 | BF9: 2074 | BG9: 2075
B10: Calendar Year | J10: =J9-1 -> 2025 | K10: 2026 | L10: 2027 | M10: 2028 | N10: 2029 | O10: 2030 | P10: 2031 | Q10: 2032 | R10: 2033 | S10: 2034 | T10: 2035 | U10: 2036 | V10: 2037 | W10: 2038 | X10: 2039 | Y10: 2040 | Z10: 2041 | AA10: 2042 | AB10: 2043 | AC10: 2044 | AD10: 2045 | AE10: 2046 | AF10: 2047 | AG10: 2048 | AH10: 2049 | AI10: 2050 | AJ10: 2051 | AK10: 2052 | AL10: 2053 | AM10: 2054 | AN10: 2055 | AO10: 2056 | AP10: 2057 | AQ10: 2058 | AR10: 2059 | AS10: 2060 | AT10: 2061 | AU10: 2062 | AV10: 2063 | AW10: 2064 | AX10: 2065 | AY10: 2066 | AZ10: 2067 | BA10: 2068 | BB10: 2069 | BC10: 2070 | BD10: 2071 | BE10: 2072 | BF10: 2073 | BG10: 2074
B11: CPI index | J11: =(1+Project_Inputs!$H23)^(J$8-1) -> 1 | K11: =(1+Project_Inputs!$H23)^(K$8-1) -> 1.025 | L11: =(1+Project_Inputs!$H23)^(L$8-1) -> 1.050625 | M11: =(1+Project_Inputs!$H23)^(M$8-1) -> 1.076890625 | N11: =(1+Project_Inputs!$H23)^(N$8-1) -> 1.103812891 | O11: =(1+Project_Inputs!$H23)^(O$8-1) -> 1.131408213 | P11: =(1+Project_Inputs!$H23)^(P$8-1) -> 1.159693418 | Q11: =(1+Project_Inputs!$H23)^(Q$8-1) -> 1.188685754 | R11: =(1+Project_Inputs!$H23)^(R$8-1) -> 1.218402898 | S11: =(1+Project_Inputs!$H23)^(S$8-1) -> 1.24886297 | T11: =(1+Project_Inputs!$H23)^(T$8-1) -> 1.280084544 | U11: =(1+Project_Inputs!$H23)^(U$8-1) -> 1.312086658 | V11: =(1+Project_Inputs!$H23)^(V$8-1) -> 1.344888824 | W11: =(1+Project_Inputs!$H23)^(W$8-1) -> 1.378511045 | X11: =(1+Project_Inputs!$H23)^(X$8-1) -> 1.412973821 | Y11: =(1+Project_Inputs!$H23)^(Y$8-1) -> 1.448298166 | Z11: =(1+Project_Inputs!$H23)^(Z$8-1) -> 1.484505621 | AA11: =(1+Project_Inputs!$H23)^(AA$8-1) -> 1.521618261 | AB11: =(1+Project_Inputs!$H23)^(AB$8-1) -> 1.559658718 | AC11: =(1+Project_Inputs!$H23)^(AC$8-1) -> 1.598650186 | AD11: =(1+Project_Inputs!$H23)^(AD$8-1) -> 1.63861644 | AE11: =(1+Project_Inputs!$H23)^(AE$8-1) -> 1.679581851 | AF11: =(1+Project_Inputs!$H23)^(AF$8-1) -> 1.721571398 | AG11: =(1+Project_Inputs!$H23)^(AG$8-1) -> 1.764610683 | AH11: =(1+Project_Inputs!$H23)^(AH$8-1) -> 1.80872595 | AI11: =(1+Project_Inputs!$H23)^(AI$8-1) -> 1.853944098 | AJ11: =(1+Project_Inputs!$H23)^(AJ$8-1) -> 1.900292701 | AK11: =(1+Project_Inputs!$H23)^(AK$8-1) -> 1.947800018 | AL11: =(1+Project_Inputs!$H23)^(AL$8-1) -> 1.996495019 | AM11: =(1+Project_Inputs!$H23)^(AM$8-1) -> 2.046407394 | AN11: =(1+Project_Inputs!$H23)^(AN$8-1) -> 2.097567579 | AO11: =(1+Project_Inputs!$H23)^(AO$8-1) -> 2.150006769 | AP11: =(1+Project_Inputs!$H23)^(AP$8-1) -> 2.203756938 | AQ11: =(1+Project_Inputs!$H23)^(AQ$8-1) -> 2.258850861 | AR11: =(1+Project_Inputs!$H23)^(AR$8-1) -> 2.315322133 | AS11: =(1+Project_Inputs!$H23)^(AS$8-1) -> 2.373205186 | AT11: =(1+Project_Inputs!$H23)^(AT$8-1) -> 2.432535316 | AU11: =(1+Project_Inputs!$H23)^(AU$8-1) -> 2.493348699 | AV11: =(1+Project_Inputs!$H23)^(AV$8-1) -> 2.555682416 | AW11: =(1+Project_Inputs!$H23)^(AW$8-1) -> 2.619574476 | AX11: =(1+Project_Inputs!$H23)^(AX$8-1) -> 2.685063838 | AY11: =(1+Project_Inputs!$H23)^(AY$8-1) -> 2.752190434 | AZ11: =(1+Project_Inputs!$H23)^(AZ$8-1) -> 2.820995195 | BA11: =(1+Project_Inputs!$H23)^(BA$8-1) -> 2.891520075 | BB11: =(1+Project_Inputs!$H23)^(BB$8-1) -> 2.963808077 | BC11: =(1+Project_Inputs!$H23)^(BC$8-1) -> 3.037903279 | BD11: =(1+Project_Inputs!$H23)^(BD$8-1) -> 3.113850861 | BE11: =(1+Project_Inputs!$H23)^(BE$8-1) -> 3.191697132 | BF11: =(1+Project_Inputs!$H23)^(BF$8-1) -> 3.271489561 | BG11: =(1+Project_Inputs!$H23)^(BG$8-1) -> 3.3532768
B12: CPI Index (lagged) | J12: =IF(J8=1,1,I11) -> 1 | K12: 1 | L12: 1.025 | M12: 1.050625 | N12: 1.076890625 | O12: 1.103812891 | P12: 1.131408213 | Q12: 1.159693418 | R12: 1.188685754 | S12: 1.218402898 | T12: 1.24886297 | U12: 1.280084544 | V12: 1.312086658 | W12: 1.344888824 | X12: 1.378511045 | Y12: 1.412973821 | Z12: 1.448298166 | AA12: 1.484505621 | AB12: 1.521618261 | AC12: 1.559658718 | AD12: 1.598650186 | AE12: 1.63861644 | AF12: 1.679581851 | AG12: 1.721571398 | AH12: 1.764610683 | AI12: 1.80872595 | AJ12: 1.853944098 | AK12: 1.900292701 | AL12: 1.947800018 | AM12: 1.996495019 | AN12: 2.046407394 | AO12: 2.097567579 | AP12: =IF(AP8=1,1,AO11) -> 2.150006769 | AQ12: 2.203756938 | AR12: 2.258850861 | AS12: 2.315322133 | AT12: 2.373205186 | AU12: 2.432535316 | AV12: 2.493348699 | AW12: 2.555682416 | AX12: 2.619574476 | AY12: 2.685063838 | AZ12: 2.752190434 | BA12: 2.820995195 | BB12: 2.891520075 | BC12: 2.963808077 | BD12: 3.037903279 | BE12: 3.113850861 | BF12: 3.191697132 | BG12: 3.271489561
B13: Discount Index (post tax) | J13: =(1+Project_Inputs!$H24)^(J$8-1) -> 1 | K13: =(1+Project_Inputs!$H24)^(K$8-1) -> 1.0389176 | L13: =(1+Project_Inputs!$H24)^(L$8-1) -> 1.07934978 | M13: =(1+Project_Inputs!$H24)^(M$8-1) -> 1.121355483 | N13: =(1+Project_Inputs!$H24)^(N$8-1) -> 1.164995947 | O13: =(1+Project_Inputs!$H24)^(O$8-1) -> 1.210334793 | P13: =(1+Project_Inputs!$H24)^(P$8-1) -> 1.257438118 | Q13: =(1+Project_Inputs!$H24)^(Q$8-1) -> 1.306374592 | R13: =(1+Project_Inputs!$H24)^(R$8-1) -> 1.357215556 | S13: =(1+Project_Inputs!$H24)^(S$8-1) -> 1.410035128 | T13: =(1+Project_Inputs!$H24)^(T$8-1) -> 1.464910311 | U13: =(1+Project_Inputs!$H24)^(U$8-1) -> 1.521921105 | V13: =(1+Project_Inputs!$H24)^(V$8-1) -> 1.581150621 | W13: =(1+Project_Inputs!$H24)^(W$8-1) -> 1.642685209 | X13: =(1+Project_Inputs!$H24)^(X$8-1) -> 1.706614575 | Y13: =(1+Project_Inputs!$H24)^(Y$8-1) -> 1.773031918 | Z13: =(1+Project_Inputs!$H24)^(Z$8-1) -> 1.842034065 | AA13: =(1+Project_Inputs!$H24)^(AA$8-1) -> 1.91372161 | AB13: =(1+Project_Inputs!$H24)^(AB$8-1) -> 1.988199062 | AC13: =(1+Project_Inputs!$H24)^(AC$8-1) -> 2.065574998 | AD13: =(1+Project_Inputs!$H24)^(AD$8-1) -> 2.145962219 | AE13: =(1+Project_Inputs!$H24)^(AE$8-1) -> 2.229477919 | AF13: =(1+Project_Inputs!$H24)^(AF$8-1) -> 2.316243849 | AG13: =(1+Project_Inputs!$H24)^(AG$8-1) -> 2.4063865 | AH13: =(1+Project_Inputs!$H24)^(AH$8-1) -> 2.500037287 | AI13: =(1+Project_Inputs!$H24)^(AI$8-1) -> 2.597332738 | AJ13: =(1+Project_Inputs!$H24)^(AJ$8-1) -> 2.698414695 | AK13: =(1+Project_Inputs!$H24)^(AK$8-1) -> 2.803430519 | AL13: =(1+Project_Inputs!$H24)^(AL$8-1) -> 2.912533306 | AM13: =(1+Project_Inputs!$H24)^(AM$8-1) -> 3.025882113 | AN13: =(1+Project_Inputs!$H24)^(AN$8-1) -> 3.143642182 | AO13: =(1+Project_Inputs!$H24)^(AO$8-1) -> 3.265985191 | AP13: =(1+Project_Inputs!$H24)^(AP$8-1) -> 3.393089497 | AQ13: =(1+Project_Inputs!$H24)^(AQ$8-1) -> 3.525140396 | AR13: =(1+Project_Inputs!$H24)^(AR$8-1) -> 3.6623304 | AS13: =(1+Project_Inputs!$H24)^(AS$8-1) -> 3.80485951 | AT13: =(1+Project_Inputs!$H24)^(AT$8-1) -> 3.95293551 | AU13: =(1+Project_Inputs!$H24)^(AU$8-1) -> 4.106774273 | AV13: =(1+Project_Inputs!$H24)^(AV$8-1) -> 4.266600072 | AW13: =(1+Project_Inputs!$H24)^(AW$8-1) -> 4.432645907 | AX13: =(1+Project_Inputs!$H24)^(AX$8-1) -> 4.605153847 | AY13: =(1+Project_Inputs!$H24)^(AY$8-1) -> 4.784375382 | AZ13: =(1+Project_Inputs!$H24)^(AZ$8-1) -> 4.97057179 | BA13: =(1+Project_Inputs!$H24)^(BA$8-1) -> 5.164014514 | BB13: =(1+Project_Inputs!$H24)^(BB$8-1) -> 5.364985566 | BC13: =(1+Project_Inputs!$H24)^(BC$8-1) -> 5.573777928 | BD13: =(1+Project_Inputs!$H24)^(BD$8-1) -> 5.790695988 | BE13: =(1+Project_Inputs!$H24)^(BE$8-1) -> 6.016055978 | BF13: =(1+Project_Inputs!$H24)^(BF$8-1) -> 6.250186438 | BG13: =(1+Project_Inputs!$H24)^(BG$8-1) -> 6.493428694
B14: Discount Index (pre tax) | J14: =(1+Project_Inputs!$H25)^(J$8-1) -> 1 | K14: =(1+Project_Inputs!$H25)^(K$8-1) -> 1.055596571 | L14: =(1+Project_Inputs!$H25)^(L$8-1) -> 1.114284122 | M14: =(1+Project_Inputs!$H25)^(M$8-1) -> 1.176234498 | N14: =(1+Project_Inputs!$H25)^(N$8-1) -> 1.241629104 | O14: =(1+Project_Inputs!$H25)^(O$8-1) -> 1.310659425 | P14: =(1+Project_Inputs!$H25)^(P$8-1) -> 1.383527595 | Q14: =(1+Project_Inputs!$H25)^(Q$8-1) -> 1.460446986 | R14: =(1+Project_Inputs!$H25)^(R$8-1) -> 1.541642831 | S14: =(1+Project_Inputs!$H25)^(S$8-1) -> 1.627352887 | T14: =(1+Project_Inputs!$H25)^(T$8-1) -> 1.717828128 | U14: =(1+Project_Inputs!$H25)^(U$8-1) -> 1.813333482 | V14: =(1+Project_Inputs!$H25)^(V$8-1) -> 1.914148607 | W14: =(1+Project_Inputs!$H25)^(W$8-1) -> 2.020568706 | X14: =(1+Project_Inputs!$H25)^(X$8-1) -> 2.132905399 | Y14: =(1+Project_Inputs!$H25)^(Y$8-1) -> 2.251487626 | Z14: =(1+Project_Inputs!$H25)^(Z$8-1) -> 2.376662619 | AA14: =(1+Project_Inputs!$H25)^(AA$8-1) -> 2.508796912 | AB14: =(1+Project_Inputs!$H25)^(AB$8-1) -> 2.648277418 | AC14: =(1+Project_Inputs!$H25)^(AC$8-1) -> 2.795512563 | AD14: =(1+Project_Inputs!$H25)^(AD$8-1) -> 2.950933477 | AE14: =(1+Project_Inputs!$H25)^(AE$8-1) -> 3.114995261 | AF14: =(1+Project_Inputs!$H25)^(AF$8-1) -> 3.288178317 | AG14: =(1+Project_Inputs!$H25)^(AG$8-1) -> 3.470989758 | AH14: =(1+Project_Inputs!$H25)^(AH$8-1) -> 3.663964888 | AI14: =(1+Project_Inputs!$H25)^(AI$8-1) -> 3.867668774 | AJ14: =(1+Project_Inputs!$H25)^(AJ$8-1) -> 4.082697897 | AK14: =(1+Project_Inputs!$H25)^(AK$8-1) -> 4.309681902 | AL14: =(1+Project_Inputs!$H25)^(AL$8-1) -> 4.54928544 | AM14: =(1+Project_Inputs!$H25)^(AM$8-1) -> 4.802210113 | AN14: =(1+Project_Inputs!$H25)^(AN$8-1) -> 5.06919653 | AO14: =(1+Project_Inputs!$H25)^(AO$8-1) -> 5.351026477 | AP14: =(1+Project_Inputs!$H25)^(AP$8-1) -> 5.648525203 | AQ14: =(1+Project_Inputs!$H25)^(AQ$8-1) -> 5.962563838 | AR14: =(1+Project_Inputs!$H25)^(AR$8-1) -> 6.294061944 | AS14: =(1+Project_Inputs!$H25)^(AS$8-1) -> 6.643990209 | AT14: =(1+Project_Inputs!$H25)^(AT$8-1) -> 7.013373285 | AU14: =(1+Project_Inputs!$H25)^(AU$8-1) -> 7.403292794 | AV14: =(1+Project_Inputs!$H25)^(AV$8-1) -> 7.81489049 | AW14: =(1+Project_Inputs!$H25)^(AW$8-1) -> 8.249371608 | AX14: =(1+Project_Inputs!$H25)^(AX$8-1) -> 8.708008385 | AY14: =(1+Project_Inputs!$H25)^(AY$8-1) -> 9.192143796 | AZ14: =(1+Project_Inputs!$H25)^(AZ$8-1) -> 9.703195475 | BA14: =(1+Project_Inputs!$H25)^(BA$8-1) -> 10.24265988 | BB14: =(1+Project_Inputs!$H25)^(BB$8-1) -> 10.81211665 | BC14: =(1+Project_Inputs!$H25)^(BC$8-1) -> 11.41323326 | BD14: =(1+Project_Inputs!$H25)^(BD$8-1) -> 12.0477699 | BE14: =(1+Project_Inputs!$H25)^(BE$8-1) -> 12.7175846 | BF14: =(1+Project_Inputs!$H25)^(BF$8-1) -> 13.4246387 | BG14: =(1+Project_Inputs!$H25)^(BG$8-1) -> 14.17100258
B15: Inactive Period | J15: =IF(J8>Project_Inputs!$J$17,1,0) -> 0 | K15: =IF(K8>Project_Inputs!$J$17,1,0) -> 0 | L15: =IF(L8>Project_Inputs!$J$17,1,0) -> 0 | M15: =IF(M8>Project_Inputs!$J$17,1,0) -> 0 | N15: =IF(N8>Project_Inputs!$J$17,1,0) -> 0 | O15: =IF(O8>Project_Inputs!$J$17,1,0) -> 0 | P15: =IF(P8>Project_Inputs!$J$17,1,0) -> 0 | Q15: =IF(Q8>Project_Inputs!$J$17,1,0) -> 1 | R15: =IF(R8>Project_Inputs!$J$17,1,0) -> 1 | S15: =IF(S8>Project_Inputs!$J$17,1,0) -> 1 | T15: =IF(T8>Project_Inputs!$J$17,1,0) -> 1 | U15: =IF(U8>Project_Inputs!$J$17,1,0) -> 1 | V15: =IF(V8>Project_Inputs!$J$17,1,0) -> 1 | W15: =IF(W8>Project_Inputs!$J$17,1,0) -> 1 | X15: =IF(X8>Project_Inputs!$J$17,1,0) -> 1 | Y15: =IF(Y8>Project_Inputs!$J$17,1,0) -> 1 | Z15: =IF(Z8>Project_Inputs!$J$17,1,0) -> 1 | AA15: =IF(AA8>Project_Inputs!$J$17,1,0) -> 1 | AB15: =IF(AB8>Project_Inputs!$J$17,1,0) -> 1 | AC15: =IF(AC8>Project_Inputs!$J$17,1,0) -> 1 | AD15: =IF(AD8>Project_Inputs!$J$17,1,0) -> 1 | AE15: =IF(AE8>Project_Inputs!$J$17,1,0) -> 1 | AF15: =IF(AF8>Project_Inputs!$J$17,1,0) -> 1 | AG15: =IF(AG8>Project_Inputs!$J$17,1,0) -> 1 | AH15: =IF(AH8>Project_Inputs!$J$17,1,0) -> 1 | AI15: =IF(AI8>Project_Inputs!$J$17,1,0) -> 1 | AJ15: =IF(AJ8>Project_Inputs!$J$17,1,0) -> 1 | AK15: =IF(AK8>Project_Inputs!$J$17,1,0) -> 1 | AL15: =IF(AL8>Project_Inputs!$J$17,1,0) -> 1 | AM15: =IF(AM8>Project_Inputs!$J$17,1,0) -> 1 | AN15: =IF(AN8>Project_Inputs!$J$17,1,0) -> 1 | AO15: =IF(AO8>Project_Inputs!$J$17,1,0) -> 1 | AP15: =IF(AP8>Project_Inputs!$J$17,1,0) -> 1 | AQ15: =IF(AQ8>Project_Inputs!$J$17,1,0) -> 1 | AR15: =IF(AR8>Project_Inputs!$J$17,1,0) -> 1 | AS15: =IF(AS8>Project_Inputs!$J$17,1,0) -> 1 | AT15: =IF(AT8>Project_Inputs!$J$17,1,0) -> 1 | AU15: =IF(AU8>Project_Inputs!$J$17,1,0) -> 1 | AV15: =IF(AV8>Project_Inputs!$J$17,1,0) -> 1 | AW15: =IF(AW8>Project_Inputs!$J$17,1,0) -> 1 | AX15: =IF(AX8>Project_Inputs!$J$17,1,0) -> 1 | AY15: =IF(AY8>Project_Inputs!$J$17,1,0) -> 1 | AZ15: =IF(AZ8>Project_Inputs!$J$17,1,0) -> 1 | BA15: =IF(BA8>Project_Inputs!$J$17,1,0) -> 1 | BB15: =IF(BB8>Project_Inputs!$J$17,1,0) -> 1 | BC15: =IF(BC8>Project_Inputs!$J$17,1,0) -> 1 | BD15: =IF(BD8>Project_Inputs!$J$17,1,0) -> 1 | BE15: =IF(BE8>Project_Inputs!$J$17,1,0) -> 1 | BF15: =IF(BF8>Project_Inputs!$J$17,1,0) -> 1 | BG15: =IF(BG8>Project_Inputs!$J$17,1,0) -> 1
B16: Active Period | J16: =1-J15 -> 1 | K16: 1 | L16: 1 | M16: 1 | N16: 1 | O16: 1 | P16: 1 | Q16: 0 | R16: 0 | S16: 0 | T16: 0 | U16: 0 | V16: 0 | W16: 0 | X16: 0 | Y16: 0 | Z16: 0 | AA16: 0 | AB16: 0 | AC16: 0 | AD16: 0 | AE16: 0 | AF16: 0 | AG16: 0 | AH16: 0 | AI16: 0 | AJ16: 0 | AK16: 0 | AL16: 0 | AM16: 0 | AN16: 0 | AO16: 0 | AP16: =1-AP15 -> 0 | AQ16: 0 | AR16: 0 | AS16: 0 | AT16: 0 | AU16: 0 | AV16: 0 | AW16: 0 | AX16: 0 | AY16: 0 | AZ16: 0 | BA16: 0 | BB16: 0 | BC16: 0 | BD16: 0 | BE16: 0 | BF16: 0 | BG16: 0
J19: ="CY "&RIGHT(J5,2) -> CY 25 | K19: ="CY "&RIGHT(K5,2) -> CY 26 | L19: CY 27 | M19: CY 28 | N19: CY 29 | O19: CY 30 | P19: CY 31 | Q19: CY 32 | R19: CY 33 | S19: CY 34 | T19: CY 35 | U19: CY 36 | V19: CY 37 | W19: CY 38 | X19: CY 39 | Y19: CY 40 | Z19: CY 41 | AA19: CY 42 | AB19: CY 43 | AC19: CY 44 | AD19: CY 45 | AE19: CY 46 | AF19: CY 47 | AG19: CY 48 | AH19: CY 49 | AI19: CY 50 | AJ19: CY 51 | AK19: CY 52 | AL19: CY 53 | AM19: CY 54 | AN19: CY 55 | AO19: CY 56 | AP19: CY 57 | AQ19: CY 58 | AR19: CY 59 | AS19: CY 60 | AT19: CY 61 | AU19: CY 62 | AV19: CY 63 | AW19: CY 64 | AX19: CY 65 | AY19: CY 66 | AZ19: CY 67 | BA19: CY 68 | BB19: CY 69 | BC19: CY 70 | BD19: CY 71 | BE19: CY 72 | BF19: CY 73 | BG19: CY 74
D20: Option 2 - Option Summary | J20: =J8 -> 1 | K20: 2 | L20: 3 | M20: 4 | N20: 5 | O20: 6 | P20: 7 | Q20: 8 | R20: 9 | S20: 10 | T20: 11 | U20: 12 | V20: 13 | W20: 14 | X20: 15 | Y20: 16 | Z20: 17 | AA20: 18 | AB20: 19 | AC20: 20 | AD20: 21 | AE20: 22 | AF20: 23 | AG20: 24 | AH20: 25 | AI20: 26 | AJ20: 27 | AK20: 28 | AL20: 29 | AM20: 30 | AN20: 31 | AO20: 32 | AP20: =AP8 -> 33 | AQ20: 34 | AR20: 35 | AS20: 36 | AT20: 37 | AU20: 38 | AV20: 39 | AW20: 40 | AX20: 41 | AY20: 42 | AZ20: 43 | BA20: 44 | BB20: 45 | BC20: 46 | BD20: 47 | BE20: 48 | BF20: 49 | BG20: 50
E22: Option Generic Name | G22: Option 2
E23: Option Name | G23: =Project_Inputs!D74 -> Option 2
E25: Present Value Cost
F27: =Opt2_Input!D49 -> Capital Expenditure | H27: =SUM(J27:BG27) -> 0 | J27: =-(J85)*J11/J14 -> 0 | K27: 0 | L27: 0 | M27: 0 | N27: 0 | O27: 0 | P27: 0 | Q27: 0 | R27: 0 | S27: 0 | T27: 0 | U27: 0 | V27: 0 | W27: 0 | X27: 0 | Y27: 0 | Z27: 0 | AA27: 0 | AB27: 0 | AC27: 0 | AD27: 0 | AE27: 0 | AF27: 0 | AG27: 0 | AH27: 0 | AI27: 0 | AJ27: 0 | AK27: 0 | AL27: 0 | AM27: 0 | AN27: 0 | AO27: 0 | AP27: =-(AP85)*AP11/AP14 -> 0 | AQ27: 0 | AR27: 0 | AS27: 0 | AT27: 0 | AU27: 0 | AV27: 0 | AW27: 0 | AX27: 0 | AY27: 0 | AZ27: 0 | BA27: 0 | BB27: 0 | BC27: 0 | BD27: 0 | BE27: 0 | BF27: 0 | BG27: 0
F28: =Opt2_Input!D199 -> Operating Expenditure (enter costs as positive numbers and savings as negative numbers) | H28: =SUM(J28:BG28) -> 0 | J28: =-J249*J11/J14 -> 0 | K28: 0 | L28: 0 | M28: 0 | N28: 0 | O28: 0 | P28: 0 | Q28: 0 | R28: 0 | S28: 0 | T28: 0 | U28: 0 | V28: 0 | W28: 0 | X28: 0 | Y28: 0 | Z28: 0 | AA28: 0 | AB28: 0 | AC28: 0 | AD28: 0 | AE28: 0 | AF28: 0 | AG28: 0 | AH28: 0 | AI28: 0 | AJ28: 0 | AK28: 0 | AL28: 0 | AM28: 0 | AN28: 0 | AO28: 0 | AP28: =-AP249*AP11/AP14 -> 0 | AQ28: 0 | AR28: 0 | AS28: 0 | AT28: 0 | AU28: 0 | AV28: 0 | AW28: 0 | AX28: 0 | AY28: 0 | AZ28: 0 | BA28: 0 | BB28: 0 | BC28: 0 | BD28: 0 | BE28: 0 | BF28: 0 | BG28: 0
F29: =Opt2_Input!D320 -> Cost Avoidance from undertaking project (enter negative numbers) | H29: =SUM(J29:BG29) -> 0 | J29: =-J330*J11/J14 -> 0 | K29: 0 | L29: 0 | M29: 0 | N29: 0 | O29: 0 | P29: 0 | Q29: 0 | R29: 0 | S29: 0 | T29: 0 | U29: 0 | V29: 0 | W29: 0 | X29: 0 | Y29: 0 | Z29: 0 | AA29: 0 | AB29: 0 | AC29: 0 | AD29: 0 | AE29: 0 | AF29: 0 | AG29: 0 | AH29: 0 | AI29: 0 | AJ29: 0 | AK29: 0 | AL29: 0 | AM29: 0 | AN29: 0 | AO29: 0 | AP29: =-AP330*AP11/AP14 -> 0 | AQ29: 0 | AR29: 0 | AS29: 0 | AT29: 0 | AU29: 0 | AV29: 0 | AW29: 0 | AX29: 0 | AY29: 0 | AZ29: 0 | BA29: 0 | BB29: 0 | BC29: 0 | BD29: 0 | BE29: 0 | BF29: 0 | BG29: 0
F30: =Opt2_Input!D333 -> Other Economic Cost and Benefits | H30: =SUM(J30:BG30) -> 0 | J30: =(SUM(J344:J345)+J351)*J11/J14 -> 0 | K30: 0 | L30: 0 | M30: 0 | N30: 0 | O30: 0 | P30: 0 | Q30: 0 | R30: 0 | S30: 0 | T30: 0 | U30: 0 | V30: 0 | W30: 0 | X30: 0 | Y30: 0 | Z30: 0 | AA30: 0 | AB30: 0 | AC30: 0 | AD30: 0 | AE30: 0 | AF30: 0 | AG30: 0 | AH30: 0 | AI30: 0 | AJ30: 0 | AK30: 0 | AL30: 0 | AM30: 0 | AN30: 0 | AO30: 0 | AP30: =(SUM(AP344:AP345)+AP351)*AP11/AP14 -> 0 | AQ30: 0 | AR30: 0 | AS30: 0 | AT30: 0 | AU30: 0 | AV30: 0 | AW30: 0 | AX30: 0 | AY30: 0 | AZ30: 0 | BA30: 0 | BB30: 0 | BC30: 0 | BD30: 0 | BE30: 0 | BF30: 0 | BG30: 0
E31: Total Present Value (cost) / benefit | H31: =SUM(J31:BG31) -> 0 | J31: =SUM(J27:J30) -> 0 | K31: 0 | L31: 0 | M31: 0 | N31: 0 | O31: 0 | P31: 0 | Q31: 0 | R31: 0 | S31: 0 | T31: 0 | U31: 0 | V31: 0 | W31: 0 | X31: 0 | Y31: 0 | Z31: 0 | AA31: 0 | AB31: 0 | AC31: 0 | AD31: 0 | AE31: 0 | AF31: 0 | AG31: 0 | AH31: 0 | AI31: 0 | AJ31: 0 | AK31: 0 | AL31: 0 | AM31: 0 | AN31: 0 | AO31: 0 | AP31: =SUM(AP27:AP30) -> 0 | AQ31: 0 | AR31: 0 | AS31: 0 | AT31: 0 | AU31: 0 | AV31: 0 | AW31: 0 | AX31: 0 | AY31: 0 | AZ31: 0 | BA31: 0 | BB31: 0 | BC31: 0 | BD31: 0 | BE31: 0 | BF31: 0 | BG31: 0
E33: Net present value (NPV) Cashflows
F35: Regulated Revenue | H35: =SUM(J35:BG35) -> 0 | J35: =Op2_Calcs!J59/J13 -> 0 | K35: =Op2_Calcs!K59/K13 -> 0 | L35: =Op2_Calcs!L59/L13 -> 0 | M35: =Op2_Calcs!M59/M13 -> 0 | N35: =Op2_Calcs!N59/N13 -> 0 | O35: =Op2_Calcs!O59/O13 -> 0 | P35: =Op2_Calcs!P59/P13 -> 0 | Q35: =Op2_Calcs!Q59/Q13 -> 0 | R35: =Op2_Calcs!R59/R13 -> 0 | S35: =Op2_Calcs!S59/S13 -> 0 | T35: =Op2_Calcs!T59/T13 -> 0 | U35: =Op2_Calcs!U59/U13 -> 0 | V35: =Op2_Calcs!V59/V13 -> 0 | W35: =Op2_Calcs!W59/W13 -> 0 | X35: =Op2_Calcs!X59/X13 -> 0 | Y35: =Op2_Calcs!Y59/Y13 -> 0 | Z35: =Op2_Calcs!Z59/Z13 -> 0 | AA35: =Op2_Calcs!AA59/AA13 -> 0 | AB35: =Op2_Calcs!AB59/AB13 -> 0 | AC35: =Op2_Calcs!AC59/AC13 -> 0 | AD35: =Op2_Calcs!AD59/AD13 -> 0 | AE35: =Op2_Calcs!AE59/AE13 -> 0 | AF35: =Op2_Calcs!AF59/AF13 -> 0 | AG35: =Op2_Calcs!AG59/AG13 -> 0 | AH35: =Op2_Calcs!AH59/AH13 -> 0 | AI35: =Op2_Calcs!AI59/AI13 -> 0 | AJ35: =Op2_Calcs!AJ59/AJ13 -> 0 | AK35: =Op2_Calcs!AK59/AK13 -> 0 | AL35: =Op2_Calcs!AL59/AL13 -> 0 | AM35: =Op2_Calcs!AM59/AM13 -> 0 | AN35: =Op2_Calcs!AN59/AN13 -> 0 | AO35: =Op2_Calcs!AO59/AO13 -> 0 | AP35: =Op2_Calcs!AP59/AP13 -> 0 | AQ35: =Op2_Calcs!AQ59/AQ13 -> 0 | AR35: =Op2_Calcs!AR59/AR13 -> 0 | AS35: =Op2_Calcs!AS59/AS13 -> 0 | AT35: =Op2_Calcs!AT59/AT13 -> 0 | AU35: =Op2_Calcs!AU59/AU13 -> 0 | AV35: =Op2_Calcs!AV59/AV13 -> 0 | AW35: =Op2_Calcs!AW59/AW13 -> 0 | AX35: =Op2_Calcs!AX59/AX13 -> 0 | AY35: =Op2_Calcs!AY59/AY13 -> 0 | AZ35: =Op2_Calcs!AZ59/AZ13 -> 0 | BA35: =Op2_Calcs!BA59/BA13 -> 0 | BB35: =Op2_Calcs!BB59/BB13 -> 0 | BC35: =Op2_Calcs!BC59/BC13 -> 0 | BD35: =Op2_Calcs!BD59/BD13 -> 0 | BE35: =Op2_Calcs!BE59/BE13 -> 0 | BF35: =Op2_Calcs!BF59/BF13 -> 0 | BG35: =Op2_Calcs!BG59/BG13 -> 0
F36: Unregulated Revenue | H36: 0 | J36: =J313*J11/J13 -> 0 | K36: 0 | L36: 0 | M36: 0 | N36: 0 | O36: 0 | P36: 0 | Q36: 0 | R36: 0 | S36: 0 | T36: 0 | U36: 0 | V36: 0 | W36: 0 | X36: 0 | Y36: 0 | Z36: 0 | AA36: 0 | AB36: 0 | AC36: 0 | AD36: 0 | AE36: 0 | AF36: 0 | AG36: 0 | AH36: 0 | AI36: 0 | AJ36: 0 | AK36: 0 | AL36: 0 | AM36: 0 | AN36: 0 | AO36: 0 | AP36: =AP313*AP11/AP13 -> 0 | AQ36: 0 | AR36: 0 | AS36: 0 | AT36: 0 | AU36: 0 | AV36: 0 | AW36: 0 | AX36: 0 | AY36: 0 | AZ36: 0 | BA36: 0 | BB36: 0 | BC36: 0 | BD36: 0 | BE36: 0 | BF36: 0 | BG36: 0
F37: =Opt2_Input!F281 -> Revenue from sold assets | H37: 0 | J37: =J281*J11/J13 -> 0 | K37: 0 | L37: 0 | M37: 0 | N37: 0 | O37: 0 | P37: 0 | Q37: 0 | R37: 0 | S37: 0 | T37: 0 | U37: 0 | V37: 0 | W37: 0 | X37: 0 | Y37: 0 | Z37: 0 | AA37: 0 | AB37: 0 | AC37: 0 | AD37: 0 | AE37: 0 | AF37: 0 | AG37: 0 | AH37: 0 | AI37: 0 | AJ37: 0 | AK37: 0 | AL37: 0 | AM37: 0 | AN37: 0 | AO37: 0 | AP37: =AP281*AP11/AP13 -> 0 | AQ37: 0 | AR37: 0 | AS37: 0 | AT37: 0 | AU37: 0 | AV37: 0 | AW37: 0 | AX37: 0 | AY37: 0 | AZ37: 0 | BA37: 0 | BB37: 0 | BC37: 0 | BD37: 0 | BE37: 0 | BF37: 0 | BG37: 0
F38: Opex | H38: 0 | J38: =-J249*J11/J13 -> 0 | K38: 0 | L38: 0 | M38: 0 | N38: 0 | O38: 0 | P38: 0 | Q38: 0 | R38: 0 | S38: 0 | T38: 0 | U38: 0 | V38: 0 | W38: 0 | X38: 0 | Y38: 0 | Z38: 0 | AA38: 0 | AB38: 0 | AC38: 0 | AD38: 0 | AE38: 0 | AF38: 0 | AG38: 0 | AH38: 0 | AI38: 0 | AJ38: 0 | AK38: 0 | AL38: 0 | AM38: 0 | AN38: 0 | AO38: 0 | AP38: =-AP249*AP11/AP13 -> 0 | AQ38: 0 | AR38: 0 | AS38: 0 | AT38: 0 | AU38: 0 | AV38: 0 | AW38: 0 | AX38: 0 | AY38: 0 | AZ38: 0 | BA38: 0 | BB38: 0 | BC38: 0 | BD38: 0 | BE38: 0 | BF38: 0 | BG38: 0
F39: Tax | H39: 0 | J39: =-(ROUND(Op2_Calcs!J87/J13,4)) -> 0 | K39: =-(ROUND(Op2_Calcs!K87/K13,4)) -> 0 | L39: =-(ROUND(Op2_Calcs!L87/L13,4)) -> 0 | M39: =-(ROUND(Op2_Calcs!M87/M13,4)) -> 0 | N39: =-(ROUND(Op2_Calcs!N87/N13,4)) -> 0 | O39: =-(ROUND(Op2_Calcs!O87/O13,4)) -> 0 | P39: =-(ROUND(Op2_Calcs!P87/P13,4)) -> 0 | Q39: =-(ROUND(Op2_Calcs!Q87/Q13,4)) -> 0 | R39: =-(ROUND(Op2_Calcs!R87/R13,4)) -> 0 | S39: =-(ROUND(Op2_Calcs!S87/S13,4)) -> 0 | T39: =-(ROUND(Op2_Calcs!T87/T13,4)) -> 0 | U39: =-(ROUND(Op2_Calcs!U87/U13,4)) -> 0 | V39: =-(ROUND(Op2_Calcs!V87/V13,4)) -> 0 | W39: =-(ROUND(Op2_Calcs!W87/W13,4)) -> 0 | X39: =-(ROUND(Op2_Calcs!X87/X13,4)) -> 0 | Y39: =-(ROUND(Op2_Calcs!Y87/Y13,4)) -> 0 | Z39: =-(ROUND(Op2_Calcs!Z87/Z13,4)) -> 0 | AA39: =-(ROUND(Op2_Calcs!AA87/AA13,4)) -> 0 | AB39: =-(ROUND(Op2_Calcs!AB87/AB13,4)) -> 0 | AC39: =-(ROUND(Op2_Calcs!AC87/AC13,4)) -> 0 | AD39: =-(ROUND(Op2_Calcs!AD87/AD13,4)) -> 0 | AE39: =-(ROUND(Op2_Calcs!AE87/AE13,4)) -> 0 | AF39: =-(ROUND(Op2_Calcs!AF87/AF13,4)) -> 0 | AG39: =-(ROUND(Op2_Calcs!AG87/AG13,4)) -> 0 | AH39: =-(ROUND(Op2_Calcs!AH87/AH13,4)) -> 0 | AI39: =-(ROUND(Op2_Calcs!AI87/AI13,4)) -> 0 | AJ39: =-(ROUND(Op2_Calcs!AJ87/AJ13,4)) -> 0 | AK39: =-(ROUND(Op2_Calcs!AK87/AK13,4)) -> 0 | AL39: =-(ROUND(Op2_Calcs!AL87/AL13,4)) -> 0 | AM39: =-(ROUND(Op2_Calcs!AM87/AM13,4)) -> 0 | AN39: =-(ROUND(Op2_Calcs!AN87/AN13,4)) -> 0 | AO39: =-(ROUND(Op2_Calcs!AO87/AO13,4)) -> 0 | AP39: =-(ROUND(Op2_Calcs!AP87/AP13,4)) -> 0 | AQ39: =-(ROUND(Op2_Calcs!AQ87/AQ13,4)) -> 0 | AR39: =-(ROUND(Op2_Calcs!AR87/AR13,4)) -> 0 | AS39: =-(ROUND(Op2_Calcs!AS87/AS13,4)) -> 0 | AT39: =-(ROUND(Op2_Calcs!AT87/AT13,4)) -> 0 | AU39: =-(ROUND(Op2_Calcs!AU87/AU13,4)) -> 0 | AV39: =-(ROUND(Op2_Calcs!AV87/AV13,4)) -> 0 | AW39: =-(ROUND(Op2_Calcs!AW87/AW13,4)) -> 0 | AX39: =-(ROUND(Op2_Calcs!AX87/AX13,4)) -> 0 | AY39: =-(ROUND(Op2_Calcs!AY87/AY13,4)) -> 0 | AZ39: =-(ROUND(Op2_Calcs!AZ87/AZ13,4)) -> 0 | BA39: =-(ROUND(Op2_Calcs!BA87/BA13,4)) -> 0 | BB39: =-(ROUND(Op2_Calcs!BB87/BB13,4)) -> 0 | BC39: =-(ROUND(Op2_Calcs!BC87/BC13,4)) -> 0 | BD39: =-(ROUND(Op2_Calcs!BD87/BD13,4)) -> 0 | BE39: =-(ROUND(Op2_Calcs!BE87/BE13,4)) -> 0 | BF39: =-(ROUND(Op2_Calcs!BF87/BF13,4)) -> 0 | BG39: =-(ROUND(Op2_Calcs!BG87/BG13,4)) -> 0
F40: Cash Capex (excl CFC) | H40: 0 | J40: =-(J85)/J13 -> 0 | K40: 0 | L40: 0 | M40: 0 | N40: 0 | O40: 0 | P40: 0 | Q40: 0 | R40: 0 | S40: 0 | T40: 0 | U40: 0 | V40: 0 | W40: 0 | X40: 0 | Y40: 0 | Z40: 0 | AA40: 0 | AB40: 0 | AC40: 0 | AD40: 0 | AE40: 0 | AF40: 0 | AG40: 0 | AH40: 0 | AI40: 0 | AJ40: 0 | AK40: 0 | AL40: 0 | AM40: 0 | AN40: 0 | AO40: 0 | AP40: =-(AP85)/AP13 -> 0 | AQ40: 0 | AR40: 0 | AS40: 0 | AT40: 0 | AU40: 0 | AV40: 0 | AW40: 0 | AX40: 0 | AY40: 0 | AZ40: 0 | BA40: 0 | BB40: 0 | BC40: 0 | BD40: 0 | BE40: 0 | BF40: 0 | BG40: 0
E41: Net Present Value of Cashflows | H41: 0 | J41: =ROUND(SUM(J35:J40),1) -> 0 | K41: 0 | L41: 0 | M41: 0 | N41: 0 | O41: 0 | P41: 0 | Q41: 0 | R41: 0 | S41: 0 | T41: 0 | U41: 0 | V41: 0 | W41: 0 | X41: 0 | Y41: 0 | Z41: 0 | AA41: 0 | AB41: 0 | AC41: 0 | AD41: 0 | AE41: 0 | AF41: 0 | AG41: 0 | AH41: 0 | AI41: 0 | AJ41: 0 | AK41: 0 | AL41: 0 | AM41: 0 | AN41: 0 | AO41: 0 | AP41: =ROUND(SUM(AP35:AP40),1) -> 0 | AQ41: 0 | AR41: 0 | AS41: 0 | AT41: 0 | AU41: 0 | AV41: 0 | AW41: 0 | AX41: 0 | AY41: 0 | AZ41: 0 | BA41: 0 | BB41: 0 | BC41: 0 | BD41: 0 | BE41: 0 | BF41: 0 | BG41: 0
E43: Payback Period (years) | H43: =IFERROR(INDEX($J$8:$BG$8,0,MATCH(1,$J$44:$BG$44,0)),"-") -> -
J44: =IF(SUM($J41:J41)>0,1,0) -> 0 | K44: =IF(SUM($J41:K41)>0,1,0) -> 0 | L44: =IF(SUM($J41:L41)>0,1,0) -> 0 | M44: =IF(SUM($J41:M41)>0,1,0) -> 0 | N44: =IF(SUM($J41:N41)>0,1,0) -> 0 | O44: =IF(SUM($J41:O41)>0,1,0) -> 0 | P44: =IF(SUM($J41:P41)>0,1,0) -> 0 | Q44: =IF(SUM($J41:Q41)>0,1,0) -> 0 | R44: =IF(SUM($J41:R41)>0,1,0) -> 0 | S44: =IF(SUM($J41:S41)>0,1,0) -> 0 | T44: =IF(SUM($J41:T41)>0,1,0) -> 0 | U44: =IF(SUM($J41:U41)>0,1,0) -> 0 | V44: =IF(SUM($J41:V41)>0,1,0) -> 0 | W44: =IF(SUM($J41:W41)>0,1,0) -> 0 | X44: =IF(SUM($J41:X41)>0,1,0) -> 0 | Y44: =IF(SUM($J41:Y41)>0,1,0) -> 0 | Z44: =IF(SUM($J41:Z41)>0,1,0) -> 0 | AA44: =IF(SUM($J41:AA41)>0,1,0) -> 0 | AB44: =IF(SUM($J41:AB41)>0,1,0) -> 0 | AC44: =IF(SUM($J41:AC41)>0,1,0) -> 0 | AD44: =IF(SUM($J41:AD41)>0,1,0) -> 0 | AE44: =IF(SUM($J41:AE41)>0,1,0) -> 0 | AF44: =IF(SUM($J41:AF41)>0,1,0) -> 0 | AG44: =IF(SUM($J41:AG41)>0,1,0) -> 0 | AH44: =IF(SUM($J41:AH41)>0,1,0) -> 0 | AI44: =IF(SUM($J41:AI41)>0,1,0) -> 0 | AJ44: =IF(SUM($J41:AJ41)>0,1,0) -> 0 | AK44: =IF(SUM($J41:AK41)>0,1,0) -> 0 | AL44: =IF(SUM($J41:AL41)>0,1,0) -> 0 | AM44: =IF(SUM($J41:AM41)>0,1,0) -> 0 | AN44: =IF(SUM($J41:AN41)>0,1,0) -> 0 | AO44: =IF(SUM($J41:AO41)>0,1,0) -> 0 | AP44: =IF(SUM($J41:AP41)>0,1,0) -> 0 | AQ44: =IF(SUM($J41:AQ41)>0,1,0) -> 0 | AR44: =IF(SUM($J41:AR41)>0,1,0) -> 0 | AS44: =IF(SUM($J41:AS41)>0,1,0) -> 0 | AT44: =IF(SUM($J41:AT41)>0,1,0) -> 0 | AU44: =IF(SUM($J41:AU41)>0,1,0) -> 0 | AV44: =IF(SUM($J41:AV41)>0,1,0) -> 0 | AW44: =IF(SUM($J41:AW41)>0,1,0) -> 0 | AX44: =IF(SUM($J41:AX41)>0,1,0) -> 0 | AY44: =IF(SUM($J41:AY41)>0,1,0) -> 0 | AZ44: =IF(SUM($J41:AZ41)>0,1,0) -> 0 | BA44: =IF(SUM($J41:BA41)>0,1,0) -> 0 | BB44: =IF(SUM($J41:BB41)>0,1,0) -> 0 | BC44: =IF(SUM($J41:BC41)>0,1,0) -> 0 | BD44: =IF(SUM($J41:BD41)>0,1,0) -> 0 | BE44: =IF(SUM($J41:BE41)>0,1,0) -> 0 | BF44: =IF(SUM($J41:BF41)>0,1,0) -> 0 | BG44: =IF(SUM($J41:BG41)>0,1,0) -> 0
J45: =IF(COUNTIF($J44:J44,1)=1,1,0) -> 0 | K45: =IF(COUNTIF($J44:K44,1)=1,1,0) -> 0 | L45: =IF(COUNTIF($J44:L44,1)=1,1,0) -> 0 | M45: =IF(COUNTIF($J44:M44,1)=1,1,0) -> 0 | N45: =IF(COUNTIF($J44:N44,1)=1,1,0) -> 0 | O45: =IF(COUNTIF($J44:O44,1)=1,1,0) -> 0 | P45: =IF(COUNTIF($J44:P44,1)=1,1,0) -> 0 | Q45: =IF(COUNTIF($J44:Q44,1)=1,1,0) -> 0 | R45: =IF(COUNTIF($J44:R44,1)=1,1,0) -> 0 | S45: =IF(COUNTIF($J44:S44,1)=1,1,0) -> 0 | T45: =IF(COUNTIF($J44:T44,1)=1,1,0) -> 0 | U45: =IF(COUNTIF($J44:U44,1)=1,1,0) -> 0 | V45: =IF(COUNTIF($J44:V44,1)=1,1,0) -> 0 | W45: =IF(COUNTIF($J44:W44,1)=1,1,0) -> 0 | X45: =IF(COUNTIF($J44:X44,1)=1,1,0) -> 0 | Y45: =IF(COUNTIF($J44:Y44,1)=1,1,0) -> 0 | Z45: =IF(COUNTIF($J44:Z44,1)=1,1,0) -> 0 | AA45: =IF(COUNTIF($J44:AA44,1)=1,1,0) -> 0 | AB45: =IF(COUNTIF($J44:AB44,1)=1,1,0) -> 0 | AC45: =IF(COUNTIF($J44:AC44,1)=1,1,0) -> 0 | AD45: =IF(COUNTIF($J44:AD44,1)=1,1,0) -> 0 | AE45: =IF(COUNTIF($J44:AE44,1)=1,1,0) -> 0 | AF45: =IF(COUNTIF($J44:AF44,1)=1,1,0) -> 0 | AG45: =IF(COUNTIF($J44:AG44,1)=1,1,0) -> 0 | AH45: =IF(COUNTIF($J44:AH44,1)=1,1,0) -> 0 | AI45: =IF(COUNTIF($J44:AI44,1)=1,1,0) -> 0 | AJ45: =IF(COUNTIF($J44:AJ44,1)=1,1,0) -> 0 | AK45: =IF(COUNTIF($J44:AK44,1)=1,1,0) -> 0 | AL45: =IF(COUNTIF($J44:AL44,1)=1,1,0) -> 0 | AM45: =IF(COUNTIF($J44:AM44,1)=1,1,0) -> 0 | AN45: =IF(COUNTIF($J44:AN44,1)=1,1,0) -> 0 | AO45: =IF(COUNTIF($J44:AO44,1)=1,1,0) -> 0 | AP45: =IF(COUNTIF($J44:AP44,1)=1,1,0) -> 0 | AQ45: =IF(COUNTIF($J44:AQ44,1)=1,1,0) -> 0 | AR45: =IF(COUNTIF($J44:AR44,1)=1,1,0) -> 0 | AS45: =IF(COUNTIF($J44:AS44,1)=1,1,0) -> 0 | AT45: =IF(COUNTIF($J44:AT44,1)=1,1,0) -> 0 | AU45: =IF(COUNTIF($J44:AU44,1)=1,1,0) -> 0 | AV45: =IF(COUNTIF($J44:AV44,1)=1,1,0) -> 0 | AW45: =IF(COUNTIF($J44:AW44,1)=1,1,0) -> 0 | AX45: =IF(COUNTIF($J44:AX44,1)=1,1,0) -> 0 | AY45: =IF(COUNTIF($J44:AY44,1)=1,1,0) -> 0 | AZ45: =IF(COUNTIF($J44:AZ44,1)=1,1,0) -> 0 | BA45: =IF(COUNTIF($J44:BA44,1)=1,1,0) -> 0 | BB45: =IF(COUNTIF($J44:BB44,1)=1,1,0) -> 0 | BC45: =IF(COUNTIF($J44:BC44,1)=1,1,0) -> 0 | BD45: =IF(COUNTIF($J44:BD44,1)=1,1,0) -> 0 | BE45: =IF(COUNTIF($J44:BE44,1)=1,1,0) -> 0 | BF45: =IF(COUNTIF($J44:BF44,1)=1,1,0) -> 0 | BG45: =IF(COUNTIF($J44:BG44,1)=1,1,0) -> 0
